Workbook

Sheet Instructions
A1: Instructions - Fleet Procurement Analysis Tool
B2: ="Version " & TEXT(MAX(Version[Version]), "#,##0.00") -> Version 1.06
B3: ="Last Updated: " & TEXT(MAX(Version[Date]), "m/d/yyyy") -> Last Updated: 7/3/2017
A5: Input Definitions | E5: Model Overview
C7: User-entered inputs
C9: Default assumptions that can be overridden by user
C11: Calculations or assumptions that cannot be altered
A13: Ownership Structure Definitions
B15: Purchase (Cash) - Vehicles purchased with cash
B16: Purchase (Loan) - Vehicles purchased with debt financing
B17: FMV (Closed-End) Lease - Vehicles leased with Fair Market Value lease structure. Vehicles not purchased at end of lease term.
B18: FMV (Closed-End) Lease w/ Cash Purchase - Vehicles leased with Fair Market Value lease structure. Vehicles purchased at end of lease term with cash.
B19: FMV (Closed-End) Lease w/ Loan Purchase - Vehicles leased with Fair Market Value lease structure. Vehicles purchased at end of lease term with debt financing.
B20: TRAC (Open-End) Lease - Vehicles leased with Terminal Rental Adjustment Clause lease structure. Vehicles not purchased at end of lease term.
B21: TRAC (Open-End) Lease w/ Cash Purchase - Vehicles leased with Terminal Rental Adjustment Clause lease structure. Vehicles purchased at end of lease term with cash.
B22: TRAC (Open-End) Lease w/ Loan Purchase - Vehicles leased with Terminal Rental Adjustment Clause lease structure. Vehicles purchased at end of lease term with debt financing.
B23: Tax-Exempt Lease Purchase (Cash) - Vehicles leased with tax-exempt lease-purchase structure. Vehicles purchased at end of lease term with cash, typically a nominal amount ($1).

Sheet Solicitation Inputs (hidden)
A1: Quick Inputs - Fleet Procurement Analysis Tool
B2: *Coming soon*
B4: Market Inputs
B6: ZIP Code | C6: 20001
B7: Include Cost of Carbon? | C7: No
B10: Vehicle Inputs
B11: Procurement 1 (Baseline) | K11: Procurement 2 (Comparison)
B12: Vehicle Type #1 | K12: Vehicle Type #1
B13: Vehicle Drivetrain Type | E13: BEV | K13: Vehicle Drivetrain Type | N13: BEV
B14: Vehicle Year | E14: 2017 | K14: Vehicle Year | N14: 2017
B15: Vehicle Make | E15: Chevy | K15: Vehicle Make | N15: Ford
B16: Vehicle Model | E16: Bolt | K16: Vehicle Model | N16: Focus Electric
B19: Vehicle Procurement Inputs
B20: Procurement 1 (Baseline) | K20: Procurement 2 (Comparison)
B21: Vehicle Type #1 | K21: Vehicle Type #1
B22: Ownership Structure | E22: TRAC (Open-End) Lease w/ Cash Purchase | K22: Ownership Structure | N22: TRAC (Open-End) Lease w/ Cash Purchase
B23: Tax Credits Can Be Monetized? (Y/N) | E23: Yes | K23: Tax Credits Can Be Monetized? (Y/N) | N23: Yes

Sheet Initital Settings
A1: Initial Settings - Fleet Procurement Analysis Tool | H1: *HIDDEN* | I1: *HIDDEN* | J1: *HIDDEN*
B3: Save/Load
B5: Procurment Name | C5: Demo Fleet Procurement
B7: Load values from external file
B9: Save all current user inputs to an external file
B12: Sensitivity Settings
B14: Update sensitivity analysis results if Calculation Options is set to Manual or Automatic Excerpt for Tables
B16: Variable | C16: Input Field | D16: Min Value | E16: Max Value | F16: Current Value | G16: Valid | H16: Field Code | I16: Field Reference | J16: Sensitivity Reference
B17: 1 | C17: Electricity Cost ($/kWh) | D17: 0.09 | E17: 0.22 | F17: =INDIRECT(H17,FALSE) -> 0.122 | G17: =IF(IFERROR(VLOOKUP(sensitivity_01_input_field, DB_Sensitivity_Codes,2,FALSE), "Error")<> "Error", "OK", "Error") -> OK | H17: =VLOOKUP(sensitivity_01_input_field,DB_Sensitivity_Codes,2,FALSE) -> Electricity_Price | I17: =MID(CELL("filename",INDIRECT(H17)),FIND("]", CELL("filename",INDIRECT(H17)))+1,32) & "!" & ADDRESS(ROW(INDIRECT(H17)),COLUMN(INDIRECT(H17)),4,1) -> Inputs!E6 | J17: =CELL("address", OFFSET('Sensitivity Tables'!A$9, 16*(B17-1), 0)) -> '[Fleet-Procurement-Analysis-Tool_v1.06.xlsm]Sensitivity Tables'!$A$9
B18: 2 | C18: Gasoline Cost ($/Gallon) | D18: 2 | E18: 4 | F18: =INDIRECT(H18,FALSE) -> 2.312 | G18: =IF(IFERROR(VLOOKUP(sensitivity_02_input_field, DB_Sensitivity_Codes,2,FALSE), "Error")<> "Error", "OK", "Error") -> OK | H18: =VLOOKUP(sensitivity_02_input_field,DB_Sensitivity_Codes,2,FALSE) -> Gasoline_Price | I18: =MID(CELL("filename",INDIRECT(H18)),FIND("]", CELL("filename",INDIRECT(H18)))+1,32) & "!" & ADDRESS(ROW(INDIRECT(H18)),COLUMN(INDIRECT(H18)),4,1) -> Inputs!E5 | J18: =CELL("address", OFFSET('Sensitivity Tables'!A$9, 16*(B18-1), 0)) -> '[Fleet-Procurement-Analysis-Tool_v1.06.xlsm]Sensitivity Tables'!$A$25
B19: 3 | C19: Baseline Annual Vehicle Mileage (VMT/Year) | D19: 5000 | E19: 25000 | F19: =INDIRECT(H19,FALSE) -> 15000 | G19: =IF(IFERROR(VLOOKUP(sensitivity_03_input_field, DB_Sensitivity_Codes,2,FALSE), "Error")<> "Error", "OK", "Error") -> OK | H19: =VLOOKUP(sensitivity_03_input_field,DB_Sensitivity_Codes,2,FALSE) -> Base_V1_VMT | I19: =MID(CELL("filename",INDIRECT(H19)),FIND("]", CELL("filename",INDIRECT(H19)))+1,32) & "!" & ADDRESS(ROW(INDIRECT(H19)),COLUMN(INDIRECT(H19)),4,1) -> Inputs!E22 | J19: =CELL("address", OFFSET('Sensitivity Tables'!A$9, 16*(B19-1), 0)) -> '[Fleet-Procurement-Analysis-Tool_v1.06.xlsm]Sensitivity Tables'!$A$41
B20: 4 | C20: Comparison Annual Vehicle Mileage (VMT/Year) | D20: 5000 | E20: 25000 | F20: =INDIRECT(H20,FALSE) -> 15000 | G20: =IF(IFERROR(VLOOKUP(sensitivity_04_input_field, DB_Sensitivity_Codes,2,FALSE), "Error")<> "Error", "OK", "Error") -> OK | H20: =VLOOKUP(sensitivity_04_input_field,DB_Sensitivity_Codes,2,FALSE) -> Comp_V1_VMT | I20: =MID(CELL("filename",INDIRECT(H20)),FIND("]", CELL("filename",INDIRECT(H20)))+1,32) & "!" & ADDRESS(ROW(INDIRECT(H20)),COLUMN(INDIRECT(H20)),4,1) -> Inputs!N22 | J20: =CELL("address", OFFSET('Sensitivity Tables'!A$9, 16*(B20-1), 0)) -> '[Fleet-Procurement-Analysis-Tool_v1.06.xlsm]Sensitivity Tables'!$A$57

Sheet Inputs
A1: Inputs - Fleet Procurement Analysis Tool | F1: *HIDDEN* | G1: *HIDDEN* | H1: *HIDDEN* | O1: *HIDDEN* | P1: *HIDDEN* | Q1: *HIDDEN*
F2: Autofill Values | G2: Sensitivity Values (to model) | H2: Validation Calcs | O2: Autofill Values | P2: Sensitivity Values (to model) | Q2: Validation Calcs
B3: Market Inputs
B5: ZIP Code | C5: 20001 | D5: Gasoline Cost ($/Gallon) | E5: 2.312 | F5: =VLOOKUP(State_Ex,DB_Fuel_Prices_2[],3,FALSE) -> 2.312 | G5: =IFERROR(INDIRECT(VLOOKUP(MID(CELL("filename",E5),FIND("]", CELL("filename",E5))+1,32) & "!" & ADDRESS(ROW(E5),COLUMN(E5),4,1), DB_Sensitivity_Indirect_Reference,2, FALSE)), E5) -> 2.312 | K5: PADD Region | L5: =VLOOKUP(_Zip_Code,DB_Zip_Code,5,FALSE) -> 1b | M5: Include Cost of Carbon? | N5: No
B6: State | C6: =VLOOKUP(_Zip_Code,DB_Zip_Code,3,FALSE) -> DC | D6: Electricity Cost ($/kWh) | E6: 0.122 | F6: =VLOOKUP(State_Ex,DB_Fuel_Prices_2[],2,FALSE) -> 0.122 | G6: =IFERROR(INDIRECT(VLOOKUP(MID(CELL("filename",E6),FIND("]", CELL("filename",E6))+1,32) & "!" & ADDRESS(ROW(E6),COLUMN(E6),4,1), DB_Sensitivity_Indirect_Reference,2, FALSE)), E6) -> 0.122 | K6: eGRID Region | L6: =VLOOKUP(_Zip_Code,DB_Zip_Code,6,FALSE) -> RFCE | M6: Cost of Carbon ($/Ton) | N6: 0 | O6: =Data!B144 -> 36 | P6: =IFERROR(INDIRECT(VLOOKUP(MID(CELL("filename",N6),FIND("]", CELL("filename",N6))+1,32) & "!" & ADDRESS(ROW(N6),COLUMN(N6),4,1), DB_Sensitivity_Indirect_Reference,2, FALSE)), N6) -> 0
D7: Inflation Rate (Excluding Fuel) (%/Year) | E7: 0.02 | F7: =Data!A81 -> 0.02 | G7: =IFERROR(INDIRECT(VLOOKUP(MID(CELL("filename",E7),FIND("]", CELL("filename",E7))+1,32) & "!" & ADDRESS(ROW(E7),COLUMN(E7),4,1), DB_Sensitivity_Indirect_Reference,2, FALSE)), E7) -> 0.02
B10: Vehicle Inputs
B11: Procurement 1 (Baseline) | K11: Procurement 2 (Comparison)
B12: Vehicle Type #1 | K12: Vehicle Type #1
B13: Vehicle Drivetrain Type | E13: ICE | K13: Vehicle Drivetrain Type | N13: BEV
B14: Vehicle Year | E14: 2017 | K14: Vehicle Year | N14: 2017
B15: Vehicle Make | E15: Chevrolet | K15: Vehicle Make | N15: Chevrolet
B16: Vehicle Model | E16: Cruze | H16: =_Base_V1_Vehicle_Year&" "&_Base_V1_Vehicle_Make&" "&_Base_V1_Vehicle_Model&" "&_Base_V1_Vehicle_Drivetrain -> 2017 Chevrolet Cruze ICE | K16: Vehicle Model | N16: Bolt EV | Q16: =_Comp_V1_Vehicle_Year&" "&_Comp_V1_Vehicle_Make&" "&_Comp_V1_Vehicle_Model&" "&_Comp_V1_Vehicle_Drivetrain -> 2017 Chevrolet Bolt EV BEV
B17: Fuel Economy Gas City (MPG) | E17: 30 | F17: =VLOOKUP(Base_V1_Type_Ex,DB_Vehicles[],COLUMN(DB_Vehicles[[#Headers],[Fuel Economy Gas City (MPG)]]),FALSE) -> 30 | G17: =IFERROR(INDIRECT(VLOOKUP(MID(CELL("filename",E17),FIND("]", CELL("filename",E17))+1,32) & "!" & ADDRESS(ROW(E17),COLUMN(E17),4,1), DB_Sensitivity_Indirect_Reference,2, FALSE)), E17) -> 30 | K17: Fuel Economy Gas City (MPG) | N17: 0 | O17: =VLOOKUP(Comp_V1_Type_Ex,DB_Vehicles[],COLUMN(DB_Vehicles[[#Headers],[Fuel Economy Gas City (MPG)]]),FALSE) -> 0 | P17: =IFERROR(INDIRECT(VLOOKUP(MID(CELL("filename",N17),FIND("]", CELL("filename",N17))+1,32) & "!" & ADDRESS(ROW(N17),COLUMN(N17),4,1), DB_Sensitivity_Indirect_Reference,2, FALSE)), N17) -> 0
B18: Fuel Economy Gas Highway (MPG) | E18: 40 | F18: =VLOOKUP(Base_V1_Type_Ex,DB_Vehicles[], COLUMN(DB_Vehicles[[#Headers],[Fuel Economy Gas Hwy (MPG)]]),FALSE) -> 40 | G18: =IFERROR(INDIRECT(VLOOKUP(MID(CELL("filename",E18),FIND("]", CELL("filename",E18))+1,32) & "!" & ADDRESS(ROW(E18),COLUMN(E18),4,1), DB_Sensitivity_Indirect_Reference,2, FALSE)), E18) -> 40 | K18: Fuel Economy Gas Highway (MPG) | N18: 0 | O18: =VLOOKUP(Comp_V1_Type_Ex,DB_Vehicles[], COLUMN(DB_Vehicles[[#Headers],[Fuel Economy Gas Hwy (MPG)]]),FALSE) -> 0 | P18: =IFERROR(INDIRECT(VLOOKUP(MID(CELL("filename",N18),FIND("]", CELL("filename",N18))+1,32) & "!" & ADDRESS(ROW(N18),COLUMN(N18),4,1), DB_Sensitivity_Indirect_Reference,2, FALSE)), N18) -> 0
B19: Fuel Economy Electric City (MPGe) | E19: 0 | F19: =VLOOKUP(Base_V1_Type_Ex,DB_Vehicles[],COLUMN(DB_Vehicles[[#Headers],[Fuel Economy Electric City (MPGe)]]),FALSE) -> 0 | G19: 0 | K19: Fuel Economy Electric City (MPGe) | N19: 128 | O19: =VLOOKUP(Comp_V1_Type_Ex,DB_Vehicles[],COLUMN(DB_Vehicles[[#Headers],[Fuel Economy Electric City (MPGe)]]),FALSE) -> 128 | P19: 128
B20: Fuel Economy Electric Highway (MPGe) | E20: 0 | F20: =VLOOKUP(Base_V1_Type_Ex,DB_Vehicles[],COLUMN(DB_Vehicles[[#Headers],[Fuel Economy Electric Hwy (MPGe)]]),FALSE) -> 0 | G20: =IFERROR(INDIRECT(VLOOKUP(MID(CELL("filename",E20),FIND("]", CELL("filename",E20))+1,32) & "!" & ADDRESS(ROW(E20),COLUMN(E20),4,1), DB_Sensitivity_Indirect_Reference,2, FALSE)), E20) -> 0 | K20: Fuel Economy Electric Highway (MPGe) | N20: 110 | O20: =VLOOKUP(Comp_V1_Type_Ex,DB_Vehicles[],COLUMN(DB_Vehicles[[#Headers],[Fuel Economy Electric Hwy (MPGe)]]),FALSE) -> 110 | P20: =IFERROR(INDIRECT(VLOOKUP(MID(CELL("filename",N20),FIND("]", CELL("filename",N20))+1,32) & "!" & ADDRESS(ROW(N20),COLUMN(N20),4,1), DB_Sensitivity_Indirect_Reference,2, FALSE)), N20) -> 110
B21: Expected Years of Use/Ownership (Years) | E21: 7 | F21: 7 | G21: 7 | K21: Expected Years of Use/Ownership (Years) | N21: 7 | O21: 7 | P21: 7
B22: Annual Vehicle Mileage (VMT/Year) | E22: 15000 | F22: 15000 | G22: 15000 | K22: Annual Vehicle Mileage (VMT/Year) | N22: 15000 | O22: 15000 | P22: 15000
B23: % of Annual Miles on Gasoline | E23: 1 | F23: =MAX((Base_V1_VMT/365)-VLOOKUP(Base_V1_Type_Ex,DB_Vehicles[], COLUMN(DB_Vehicles[[#Headers],[Electric Range]]),FALSE),0)/(Base_V1_VMT/365) -> 1 | G23: 1 | K23: % of Annual Miles on Gasoline | N23: 0 | O23: =MAX((Comp_V1_VMT/365)-VLOOKUP(Comp_V1_Type_Ex,DB_Vehicles[], COLUMN(DB_Vehicles[[#Headers],[Electric Range]]),FALSE),0)/(Comp_V1_VMT/365) -> 0 | P23: 0
B24: % of Annual Miles City Driving | E24: 0.55 | F24: =DB_Percent_Annual_Miles_City_Driving -> 0.55 | G24: 0.55 | K24: % of Annual Miles City Driving | N24: 0.55 | O24: =Data!B143 -> 0.55 | P24: 0.55
B25: Cost to Insure ($/Year) | E25: 1222 | F25: =DB_Annual_Insurance_Cost -> 1222 | G25: 1222 | K25: Cost to Insure ($/Year) | N25: 1222 | O25: =DB_Annual_Insurance_Cost -> 1222 | P25: 1222
B26: Use Drivetrain Default Maintenance and Repair Costs? | E26: Yes | K26: Use Drivetrain Default Maintenance and Repair Costs? | N26: Yes
B27: Maintenance and Repair Cost - Years 1 - 5 ($/Mile) | E27: 0.08 | F27: =VLOOKUP(_Base_V1_Vehicle_Drivetrain,DB_Maint_Repair_Costs[],2,FALSE) -> 0.08 | G27: 0.08 | K27: Maintenance and Repair Cost - Years 1 - 5 ($/Mile) | N27: 0.04 | O27: =VLOOKUP(_Comp_V1_Vehicle_Drivetrain,DB_Maint_Repair_Costs[],2,FALSE) -> 0.04 | P27: 0.04
B28: Maintenance and Repair Cost - Years 5+ ($/Mile) | E28: 0.104 | F28: =VLOOKUP(_Base_V1_Vehicle_Drivetrain,DB_Maint_Repair_Costs[],7,FALSE) -> 0.104 | G28: =IFERROR(INDIRECT(VLOOKUP(MID(CELL("filename",E28),FIND("]", CELL("filename",E28))+1,32) & "!" & ADDRESS(ROW(E28),COLUMN(E28),4,1), DB_Sensitivity_Indirect_Reference,2, FALSE)), E28) -> 0.104 | K28: Maintenance and Repair Cost - Years 5+ ($/Mile) | N28: 0.052 | O28: =VLOOKUP(_Comp_V1_Vehicle_Drivetrain,DB_Maint_Repair_Costs[],7,FALSE) -> 0.052 | P28: =IFERROR(INDIRECT(VLOOKUP(MID(CELL("filename",N28),FIND("]", CELL("filename",N28))+1,32) & "!" & ADDRESS(ROW(N28),COLUMN(N28),4,1), DB_Sensitivity_Indirect_Reference,2, FALSE)), N28) -> 0.052
B29: Recurring Taxes and Fees ($/Year) | E29: 10 | G29: 10 | K29: Recurring Taxes and Fees ($/Year) | N29: 10 | P29: 10
D30: Vehicle details from fueleconomy.gov | F30: =VLOOKUP(Base_V1_Type_Ex,DB_Vehicles[],COLUMN(DB_Vehicles[[#Headers],[Fueleconomy.gov Link]]),FALSE) -> https://www.fueleconomy.gov/feg/Find.do?action=sbs&id=37907 | M30: Vehicle details from fueleconomy.gov | O30: =VLOOKUP(Comp_V1_Type_Ex,DB_Vehicles[],COLUMN(DB_Vehicles[[#Headers],[Fueleconomy.gov Link]]),FALSE) -> https://www.fueleconomy.gov/feg/Find.do?action=sbs&id=38187
B31: Vehicle Type #2 | K31: Vehicle Type #2
B32: Etc…etc. | K32: Etc…etc.
B36: Vehicle Procurement Inputs
B37: Procurement 1 (Baseline) | K37: Procurement 2 (Comparison)
B39: Discount Rate for NPV Calculations (%) | E39: 0 | G39: =IFERROR(INDIRECT(VLOOKUP(MID(CELL("filename",E39),FIND("]", CELL("filename",E39))+1,32) & "!" & ADDRESS(ROW(E39),COLUMN(E39),4,1), DB_Sensitivity_Indirect_Reference,2, FALSE)), E39) -> 0 | K39: Discount Rate for NPV Calculations (%) | N39: 0 | P39: =IFERROR(INDIRECT(VLOOKUP(MID(CELL("filename",N39),FIND("]", CELL("filename",N39))+1,32) & "!" & ADDRESS(ROW(N39),COLUMN(N39),4,1), DB_Sensitivity_Indirect_Reference,2, FALSE)), N39) -> 0
B41: Vehicle Type #1 | K41: Vehicle Type #1
B42: Number of Vehicles to Procure (#) | E42: 19 | G42: =IFERROR(INDIRECT(VLOOKUP(MID(CELL("filename",E42),FIND("]", CELL("filename",E42))+1,32) & "!" & ADDRESS(ROW(E42),COLUMN(E42),4,1), DB_Sensitivity_Indirect_Reference,2, FALSE)), E42) -> 19 | K42: Number of Vehicles to Procure (#) | N42: 19 | P42: =IFERROR(INDIRECT(VLOOKUP(MID(CELL("filename",N42),FIND("]", CELL("filename",N42))+1,32) & "!" & ADDRESS(ROW(N42),COLUMN(N42),4,1), DB_Sensitivity_Indirect_Reference,2, FALSE)), N42) -> 19
B43: Pricing Approach (select one) | E43: Dealer Cost Plus Markup | H43: =IF(IFERROR(FIND("MSRP",_Base_V1_Pricing_Approach,1),0)>0,TRUE,FALSE) -> FALSE | K43: Pricing Approach (select one) | N43: Dealer Cost Plus Markup | Q43: =IF(IFERROR(FIND("MSRP",_Comp_V1_Pricing_Approach,1),0)>0,TRUE,FALSE) -> FALSE
B44: MSRP ($/Vehicle) | E44: 16975 | F44: =VLOOKUP(Base_V1_Type_Ex,DB_Vehicles[],COLUMN(DB_Vehicles[[#Headers],[MSRP]]),FALSE) -> 16975 | G44: =IFERROR(INDIRECT(VLOOKUP(MID(CELL("filename",E44),FIND("]", CELL("filename",E44))+1,32) & "!" & ADDRESS(ROW(E44),COLUMN(E44),4,1), DB_Sensitivity_Indirect_Reference,2, FALSE)), E44) -> 16975 | K44: MSRP ($) | N44: 36620 | O44: =VLOOKUP(Comp_V1_Type_Ex,DB_Vehicles[],COLUMN(DB_Vehicles[[#Headers],[MSRP]]),FALSE) -> 36620 | P44: =IFERROR(INDIRECT(VLOOKUP(MID(CELL("filename",N44),FIND("]", CELL("filename",N44))+1,32) & "!" & ADDRESS(ROW(N44),COLUMN(N44),4,1), DB_Sensitivity_Indirect_Reference,2, FALSE)), N44) -> 36620
B45: Value of Negotiated Discounts off MSRP ($/Vehicle) | E45: 0 | G45: =IFERROR(INDIRECT(VLOOKUP(MID(CELL("filename",E45),FIND("]", CELL("filename",E45))+1,32) & "!" & ADDRESS(ROW(E45),COLUMN(E45),4,1), DB_Sensitivity_Indirect_Reference,2, FALSE)), E45) -> 0 | K45: Value of Negotiated Discounts off MSRP ($/Vehicle) | N45: 0 | P45: =IFERROR(INDIRECT(VLOOKUP(MID(CELL("filename",N45),FIND("]", CELL("filename",N45))+1,32) & "!" & ADDRESS(ROW(N45),COLUMN(N45),4,1), DB_Sensitivity_Indirect_Reference,2, FALSE)), N45) -> 0
B46: Dealer Triple Net Price ($/Vehicle) | E46: 18024 | G46: =IFERROR(INDIRECT(VLOOKUP(MID(CELL("filename",E46),FIND("]", CELL("filename",E46))+1,32) & "!" & ADDRESS(ROW(E46),COLUMN(E46),4,1), DB_Sensitivity_Indirect_Reference,2, FALSE)), E46) -> 18024 | K46: Dealer List Price ($) | N46: 33226 | P46: =IFERROR(INDIRECT(VLOOKUP(MID(CELL("filename",N46),FIND("]", CELL("filename",N46))+1,32) & "!" & ADDRESS(ROW(N46),COLUMN(N46),4,1), DB_Sensitivity_Indirect_Reference,2, FALSE)), N46) -> 33226
B47: Dealer Markup ($/Vehicle) | E47: 200 | G47: =IFERROR(INDIRECT(VLOOKUP(MID(CELL("filename",E47),FIND("]", CELL("filename",E47))+1,32) & "!" & ADDRESS(ROW(E47),COLUMN(E47),4,1), DB_Sensitivity_Indirect_Reference,2, FALSE)), E47) -> 200 | K47: Markup ($) | N47: 300 | P47: =IFERROR(INDIRECT(VLOOKUP(MID(CELL("filename",N47),FIND("]", CELL("filename",N47))+1,32) & "!" & ADDRESS(ROW(N47),COLUMN(N47),4,1), DB_Sensitivity_Indirect_Reference,2, FALSE)), N47) -> 300
B48: Total Base Price | E48: =IF(IFERROR(FIND("MSRP",_Base_V1_Pricing_Approach,1),0)>0,Base_V1_MSRP_Modeled-Base_V1_Discounts_Modeled,Base_V1_List_Price_Modeled+Base_V1_List_Price_Markup_Modeled) -> 18224 | K48: Total Base Price | N48: =IF(IFERROR(FIND("MSRP",_Comp_V1_Pricing_Approach,1),0)>0,Comp_V1_MSRP_Modeled-Comp_V1_Discounts_Modeled,Comp_V1_List_Price_Modeled+Comp_V1_List_Price_Markup_Modeled) -> 33526
B49: Value of Federal Tax Incentives ($/Vehicle) | E49: 0 | F49: =IFERROR(VLOOKUP("Federal Tax Credit", DB_Vehicle_Incentives[], MATCH(Base_V1_Type_Ex, DB_Vehicle_Incentives[#Headers],0),FALSE), 0) -> 0 | G49: =IFERROR(INDIRECT(VLOOKUP(MID(CELL("filename",E49),FIND("]", CELL("filename",E49))+1,32) & "!" & ADDRESS(ROW(E49),COLUMN(E49),4,1), DB_Sensitivity_Indirect_Reference,2, FALSE)), E49) -> 0 | K49: Value of Federal Tax Credits ($/Vehicle) | N49: 7500 | O49: =IFERROR(VLOOKUP("Federal Tax Credit", DB_Vehicle_Incentives[], MATCH(Comp_V1_Type_Ex, DB_Vehicle_Incentives[#Headers],0),FALSE), 0) -> 7500 | P49: =IFERROR(INDIRECT(VLOOKUP(MID(CELL("filename",N49),FIND("]", CELL("filename",N49))+1,32) & "!" & ADDRESS(ROW(N49),COLUMN(N49),4,1), DB_Sensitivity_Indirect_Reference,2, FALSE)), N49) -> 7500
B50: Value of State Tax Incentives ($/Vehicle) | E50: 0 | F50: =IFERROR(IF(VLOOKUP(State_Ex, DB_Vehicle_Incentives[], COLUMN(DB_Vehicle_Incentives[[#Headers],[Incentive Type]]),FALSE)="Tax", VLOOKUP(State_Ex, DB_Vehicle_Incentives[], MATCH(Base_V1_Type_Ex, DB_Vehicle_Incentives[[#Headers],[2016 Chevrolet Spark EV BEV]:[2017 Volkswagen e-Golf BEV]],0),FALSE),0),0) -> 0 | G50: 0 | K50: Value of State Tax Incentives ($/Vehicle) | N50: 0 | O50: =IFERROR(IF(VLOOKUP(State_Ex, DB_Vehicle_Incentives[], COLUMN(DB_Vehicle_Incentives[[#Headers],[Incentive Type]]),FALSE)="Tax", VLOOKUP(State_Ex, DB_Vehicle_Incentives[], MATCH(Comp_V1_Type_Ex, DB_Vehicle_Incentives[[#Headers],[2016 Chevrolet Spark EV BEV]:[2017 Volkswagen e-Golf BEV]],0),FALSE),0),0) -> 0 | P50: 0
B51: State Tax Incentive Cap ($) | E51: 0 | G51: 0 | K51: State Tax Incentive Cap ($) | N51: 0 | P51: 0
B52: Value of Non-tax Incentives ($/Vehicle) | E52: 0 | F52: =IFERROR(IF(VLOOKUP(State_Ex, DB_Vehicle_Incentives[], COLUMN(DB_Vehicle_Incentives[[#Headers],[Incentive Type]]),FALSE)="Other", VLOOKUP(State_Ex, DB_Vehicle_Incentives[], MATCH(Base_V1_Type_Ex, DB_Vehicle_Incentives[[#Headers],[2016 Chevrolet Spark EV BEV]:[2017 Volkswagen e-Golf BEV]],0),FALSE),0),0) -> 0 | G52: 0 | K52: Value of Non-tax Incentives ($/Vehicle) | N52: 0 | O52: =IFERROR(IF(VLOOKUP(State_Ex, DB_Vehicle_Incentives[], COLUMN(DB_Vehicle_Incentives[[#Headers],[Incentive Type]]),FALSE)="Other", VLOOKUP(State_Ex, DB_Vehicle_Incentives[], MATCH(Comp_V1_Type_Ex, DB_Vehicle_Incentives[[#Headers],[2016 Chevrolet Spark EV BEV]:[2017 Volkswagen e-Golf BEV]],0),FALSE),0),0) -> 0 | P52: 0
B53: Initial Tax, Title, and Registration Cost ($/Vehicle) | E53: 1000 | G53: 1000 | K53: Initial Tax, Title, and Registration Cost ($/Vehicle) | N53: 1000 | P53: 1000
B54: Initial Fee as Percent of Vehicle Base Price (%) | E54: 0 | G54: 0 | K54: Initial Fee as Percent of Vehicle Base Price (%) | N54: 0 | P54: 0
B55: Ownership Structure | E55: Purchase (Cash) | H55: =IF(IFERROR(FIND("Cash",_Base_V1_Ownership_Structure,1),0)>0,TRUE,FALSE) -> TRUE | K55: Ownership Structure | N55: Purchase (Cash) | Q55: =IF(IFERROR(FIND("Cash",_Comp_V1_Ownership_Structure,1),0)>0,TRUE,FALSE) -> TRUE
B56: Tax Credits Can Be Monetized? (Y/N) | E56: Yes | H56: =IF(IFERROR(FIND("Loan",_Base_V1_Ownership_Structure,1),0)>0,TRUE,FALSE) -> FALSE | K56: Tax Credits Can Be Monetized? (Y/N) | N56: Yes | Q56: =IF(IFERROR(FIND("Loan",_Comp_V1_Ownership_Structure,1),0)>0,TRUE,FALSE) -> FALSE
H57: =IF(IFERROR(FIND("Lease",_Base_V1_Ownership_Structure,1),0)>0,TRUE,FALSE) -> FALSE | Q57: =IF(IFERROR(FIND("Lease",_Comp_V1_Ownership_Structure,1),0)>0,TRUE,FALSE) -> FALSE
B58: Down Payment ($/Vehicle) | E58: 0 | G58: =IFERROR(INDIRECT(VLOOKUP(MID(CELL("filename",E58),FIND("]", CELL("filename",E58))+1,32) & "!" & ADDRESS(ROW(E58),COLUMN(E58),4,1), DB_Sensitivity_Indirect_Reference,2, FALSE)), E58) -> 0 | K58: Down Payment ($/Vehicle) | N58: 0 | P58: =IFERROR(INDIRECT(VLOOKUP(MID(CELL("filename",N58),FIND("]", CELL("filename",N58))+1,32) & "!" & ADDRESS(ROW(N58),COLUMN(N58),4,1), DB_Sensitivity_Indirect_Reference,2, FALSE)), N58) -> 0
B59: Lease | K59: Lease
B60: Lease Term (Years) | E60: 3 | G60: =IFERROR(INDIRECT(VLOOKUP(MID(CELL("filename",E60),FIND("]", CELL("filename",E60))+1,32) & "!" & ADDRESS(ROW(E60),COLUMN(E60),4,1), DB_Sensitivity_Indirect_Reference,2, FALSE)), E60) -> 3 | H60: Data validation handled in VBA | K60: Lease Term (Years) | N60: 0 | P60: =IFERROR(INDIRECT(VLOOKUP(MID(CELL("filename",N60),FIND("]", CELL("filename",N60))+1,32) & "!" & ADDRESS(ROW(N60),COLUMN(N60),4,1), DB_Sensitivity_Indirect_Reference,2, FALSE)), N60) -> 0 | Q60: Data validation handled in VBA
B61: Lease Interest Rate (APR - %) | E61: 0.1 | G61: =IFERROR(INDIRECT(VLOOKUP(MID(CELL("filename",E61),FIND("]", CELL("filename",E61))+1,32) & "!" & ADDRESS(ROW(E61),COLUMN(E61),4,1), DB_Sensitivity_Indirect_Reference,2, FALSE)), E61) -> 0.1 | K61: Lease Interest Rate (APR - %) | N61: 0 | P61: =IFERROR(INDIRECT(VLOOKUP(MID(CELL("filename",N61),FIND("]", CELL("filename",N61))+1,32) & "!" & ADDRESS(ROW(N61),COLUMN(N61),4,1), DB_Sensitivity_Indirect_Reference,2, FALSE)), N61) -> 0
B62: OR | K62: OR
B63: Money Factor (#) | E63: 0.004166666667 | G63: =IFERROR(INDIRECT(VLOOKUP(MID(CELL("filename",E63),FIND("]", CELL("filename",E63))+1,32) & "!" & ADDRESS(ROW(E63),COLUMN(E63),4,1), DB_Sensitivity_Indirect_Reference,2, FALSE)), E63) -> 0.004166666667 | K63: Money Factor (#) | N63: 0 | P63: =IFERROR(INDIRECT(VLOOKUP(MID(CELL("filename",N63),FIND("]", CELL("filename",N63))+1,32) & "!" & ADDRESS(ROW(N63),COLUMN(N63),4,1), DB_Sensitivity_Indirect_Reference,2, FALSE)), N63) -> 0
B64: Acquisition Fee ($/Vehicle) | E64: 0 | G64: 0 | K64: Acquisition Fee ($/Vehicle) | N64: 0 | P64: 0
B65: Disposition Charge ($/Vehicle) | E65: 0 | G65: 0 | K65: Disposition Charge ($/Vehicle) | N65: 0 | P65: 0
B66: Residual Value ($/Vehicle) | E66: 17000 | G66: 17000 | H66: =IF(IFERROR(FIND("Tax-Exempt",_Base_V1_Ownership_Structure,1),0)>0,IF(Base_V1_Lease_Residual_Price=1,TRUE,FALSE),TRUE) -> TRUE | K66: Negotiated Residual Value ($/Vehicle) | N66: 0 | P66: 0 | Q66: =IF(IFERROR(FIND("Tax-Exempt",_Comp_V1_Ownership_Structure,1),0)>0,IF(Comp_V1_Lease_Residual_Price=1,TRUE,FALSE),TRUE) -> TRUE
B67: Mileage Included (Closed-End Only) | E67: 0 | G67: 0 | K67: Mileage Included (Closed-End Only) | N67: 0 | P67: 0
B68: Excess Mileage Cost ($/Mile) | E68: 0 | G68: 0 | K68: Excess Mileage Cost ($/Mile) | N68: 0 | P68: 0
B69: Loan | K69: Loan
B70: Loan Term (Years) | E70: 4 | G70: =IFERROR(INDIRECT(VLOOKUP(MID(CELL("filename",E70),FIND("]", CELL("filename",E70))+1,32) & "!" & ADDRESS(ROW(E70),COLUMN(E70),4,1), DB_Sensitivity_Indirect_Reference,2, FALSE)), E70) -> 4 | H70: Data validation handled in VBA | K70: Loan Term (Years) | N70: 4 | P70: =IFERROR(INDIRECT(VLOOKUP(MID(CELL("filename",N70),FIND("]", CELL("filename",N70))+1,32) & "!" & ADDRESS(ROW(N70),COLUMN(N70),4,1), DB_Sensitivity_Indirect_Reference,2, FALSE)), N70) -> 4 | Q70: Data validation handled in VBA
B71: Loan Interest Rate (APR - %) | E71: 0.05 | G71: =IFERROR(INDIRECT(VLOOKUP(MID(CELL("filename",E71),FIND("]", CELL("filename",E71))+1,32) & "!" & ADDRESS(ROW(E71),COLUMN(E71),4,1), DB_Sensitivity_Indirect_Reference,2, FALSE)), E71) -> 0.05 | K71: Loan Interest Rate (APR - %) | N71: 0.05 | P71: =IFERROR(INDIRECT(VLOOKUP(MID(CELL("filename",N71),FIND("]", CELL("filename",N71))+1,32) & "!" & ADDRESS(ROW(N71),COLUMN(N71),4,1), DB_Sensitivity_Indirect_Reference,2, FALSE)), N71) -> 0.05
B73: Vehicle Type #2 | K73: Vehicle Type #2
B74: Etc…etc. | K74: Etc…etc.
B78: EV Infrastructure Inputs
B79: Procurement 1 (Baseline) | K79: Procurement 2 (Comparison)
B80: Procurement Includes EV Charging? | E80: No | K80: Procurement Includes EV Charging? | N80: No
B81: Number of Level 2 EV Stations Needed (#) | E81: 0 | G81: =IFERROR(INDIRECT(VLOOKUP(MID(CELL("filename",E81),FIND("]", CELL("filename",E81))+1,32) & "!" & ADDRESS(ROW(E81),COLUMN(E81),4,1), DB_Sensitivity_Indirect_Reference,2, FALSE)), E81) -> 0 | K81: Number of Level 2 EV Stations Needed (#) | N81: 0 | P81: =IFERROR(INDIRECT(VLOOKUP(MID(CELL("filename",N81),FIND("]", CELL("filename",N81))+1,32) & "!" & ADDRESS(ROW(N81),COLUMN(N81),4,1), DB_Sensitivity_Indirect_Reference,2, FALSE)), N81) -> 0
B82: Equipment and Installation Cost ($/Station) | E82: 0 | F82: =DB_Base_Station_Cost -> 5000 | G82: =IFERROR(INDIRECT(VLOOKUP(MID(CELL("filename",E82),FIND("]", CELL("filename",E82))+1,32) & "!" & ADDRESS(ROW(E82),COLUMN(E82),4,1), DB_Sensitivity_Indirect_Reference,2, FALSE)), E82) -> 0 | K82: Equipment and Installation Cost ($/Station) | N82: 0 | O82: =DB_Base_Station_Cost -> 5000 | P82: =IFERROR(INDIRECT(VLOOKUP(MID(CELL("filename",N82),FIND("]", CELL("filename",N82))+1,32) & "!" & ADDRESS(ROW(N82),COLUMN(N82),4,1), DB_Sensitivity_Indirect_Reference,2, FALSE)), N82) -> 0
B83: Maintenance Cost ($/Station/Year) | E83: 0 | F83: =DB_Base_Station_Maint_Cost -> 75 | G83: =IFERROR(INDIRECT(VLOOKUP(MID(CELL("filename",E83),FIND("]", CELL("filename",E83))+1,32) & "!" & ADDRESS(ROW(E83),COLUMN(E83),4,1), DB_Sensitivity_Indirect_Reference,2, FALSE)), E83) -> 0 | K83: Maintenance Cost ($/Station/Year) | N83: 0 | O83: =DB_Base_Station_Maint_Cost -> 75 | P83: =IFERROR(INDIRECT(VLOOKUP(MID(CELL("filename",N83),FIND("]", CELL("filename",N83))+1,32) & "!" & ADDRESS(ROW(N83),COLUMN(N83),4,1), DB_Sensitivity_Indirect_Reference,2, FALSE)), N83) -> 0
B84: Ownership Structure | E84: Purchase (Cash) | H84: =IF(IFERROR(FIND("Cash",_Base_Inf_Ownership_Structure,1),0)>0,TRUE,FALSE) -> TRUE | K84: Ownership Structure | N84: Purchase (Cash) | Q84: =IF(IFERROR(FIND("Cash",_Comp_Inf_Ownership_Structure,1),0)>0,TRUE,FALSE) -> TRUE
B85: Loan | K85: Loan
B86: Cash Upfront / Down Payment ($) | E86: 0 | G86: =IFERROR(INDIRECT(VLOOKUP(MID(CELL("filename",E86),FIND("]", CELL("filename",E86))+1,32) & "!" & ADDRESS(ROW(E86),COLUMN(E86),4,1), DB_Sensitivity_Indirect_Reference,2, FALSE)), E86) -> 0 | K86: Cash Upfront / Down Payment ($) | N86: 0 | P86: =IFERROR(INDIRECT(VLOOKUP(MID(CELL("filename",N86),FIND("]", CELL("filename",N86))+1,32) & "!" & ADDRESS(ROW(N86),COLUMN(N86),4,1), DB_Sensitivity_Indirect_Reference,2, FALSE)), N86) -> 0
B87: Loan Term (Years) | E87: 0 | G87: =IFERROR(INDIRECT(VLOOKUP(MID(CELL("filename",E87),FIND("]", CELL("filename",E87))+1,32) & "!" & ADDRESS(ROW(E87),COLUMN(E87),4,1), DB_Sensitivity_Indirect_Reference,2, FALSE)), E87) -> 0 | K87: Loan Term (Years) | N87: 0 | P87: =IFERROR(INDIRECT(VLOOKUP(MID(CELL("filename",N87),FIND("]", CELL("filename",N87))+1,32) & "!" & ADDRESS(ROW(N87),COLUMN(N87),4,1), DB_Sensitivity_Indirect_Reference,2, FALSE)), N87) -> 0
B88: Interest Rate (APR - %) | E88: 0 | G88: =IFERROR(INDIRECT(VLOOKUP(MID(CELL("filename",E88),FIND("]", CELL("filename",E88))+1,32) & "!" & ADDRESS(ROW(E88),COLUMN(E88),4,1), DB_Sensitivity_Indirect_Reference,2, FALSE)), E88) -> 0 | K88: Interest Rate (APR - %) | N88: 0 | P88: =IFERROR(INDIRECT(VLOOKUP(MID(CELL("filename",N88),FIND("]", CELL("filename",N88))+1,32) & "!" & ADDRESS(ROW(N88),COLUMN(N88),4,1), DB_Sensitivity_Indirect_Reference,2, FALSE)), N88) -> 0

Sheet Results
A1: Results - Fleet Procurement Analysis Tool
A2: ="Procurement Name: " & Procurement_Name -> Procurement Name: Demo Fleet Procurement
B3: Procurement Summary
L4: Procurement Details
M5: =Base_V1_Type_Ex&" (Baseline)" -> 2017 Chevrolet Cruze ICE (Baseline) | N5: =Comp_V1_Type_Ex&" (Comparison)" -> 2017 Chevrolet Bolt EV BEV (Comparison)
L6: Procurement Type | M6: =_Base_V1_Ownership_Structure -> Purchase (Cash) | N6: =_Comp_V1_Ownership_Structure -> Purchase (Cash)
L7: Number of Vehicles Procured | M7: =Base_V1_Num_Vehicles_Modeled -> 19 | N7: =Comp_V1_Num_Vehicles_Modeled -> 19
L8: Years of Use/Ownership | M8: =Base_V1_Years_Usage_Modeled -> 7 | N8: =Comp_V1_Years_Usage_Modeled -> 7
L9: Miles Procured | M9: =Base_V1_Years_Usage_Modeled*Base_V1_VMT_Modeled*Base_V1_Num_Vehicles_Modeled -> 1995000 | N9: =Comp_V1_Years_Usage_Modeled*Comp_V1_VMT_Modeled*Comp_V1_Num_Vehicles_Modeled -> 1995000
L10: Total NPV Vehicle and Operating Cost | M10: =SUM(M11:M14) -> 843287.6174 | N10: =SUM(N11:N14) -> 953971.0477
L11: Total Tax Incentives Captured | M11: =IF(Base_V1_Tax_Incentives_Monetized="Yes",(Base_V1_Federal_Tax_Incentives_Modeled*Base_V1_Num_Vehicles_Modeled)+IF(Base_V1_State_Tax_Incentive_Cap_Modeled=0,Base_V1_State_Tax_Incentives_Modeled*Base_V1_Num_Vehicles_Modeled,MIN(Base_V1_State_Tax_Incentive_Cap_Modeled,Base_V1_State_Tax_Incentives_Modeled*Base_V1_Num_Vehicles_Modeled)),0) -> 0 | N11: =IF(Comp_V1_Tax_Incentives_Monetized="Yes",(Comp_V1_Federal_Tax_Incentives_Modeled*Comp_V1_Num_Vehicles_Modeled)+IF(Comp_V1_State_Tax_Incentive_Cap_Modeled=0,Comp_V1_State_Tax_Incentives_Modeled*Comp_V1_Num_Vehicles_Modeled,MIN(Comp_V1_State_Tax_Incentive_Cap_Modeled,Comp_V1_State_Tax_Incentives_Modeled*Comp_V1_Num_Vehicles_Modeled)),0) -> 142500
L12: Total Non-Tax Incentive Captured | M12: =Base_V1_Other_Incentives_Modeled*Base_V1_Num_Vehicles_Modeled -> 0 | N12: =Comp_V1_Other_Incentives_Modeled*Comp_V1_Num_Vehicles_Modeled -> 0
L13: Total Discounts Captured | M13: =IF(_Base_V1_Pricing_Approach="MSRP Less Discounts",Base_V1_Discounts_Modeled*Base_V1_Num_Vehicles_Modeled,0) -> 0 | N13: =IF(_Comp_V1_Pricing_Approach="MSRP Less Discounts",Comp_V1_Discounts_Modeled*Comp_V1_Num_Vehicles_Modeled,0) -> 0
L14: NPV Vehicle Total Cost less Incentives and Discounts | M14: =-Base_V1_Annualized_Cost_Ownership_Ex*Base_V1_Years_Usage_Modeled*Base_V1_Num_Vehicles_Modeled -> 843287.6174 | N14: =-Comp_V1_Annualized_Cost_Ownership_Ex*Comp_V1_Years_Usage_Modeled*Comp_V1_Num_Vehicles_Modeled -> 811471.0477
L15: NPV Total Cost of Infrastructure | M15: =-Base_Inf_Annualized_Cost_Ownership_Ex*Base_V1_Years_Usage_Modeled -> 0 | N15: =-Comp_Inf_Annualized_Cost_Ownership_Ex*Comp_V1_Years_Usage_Modeled -> 0
L16: Total NPV Cost | M16: =SUM(M14:M15) -> 843287.6174 | N16: =SUM(N14:N15) -> 811471.0477
B17: ="The baseline is "& ABS(ROUND(('Results Tables'!C29-'Results Tables'!D29)/'Results Tables'!C29*100,2))&"% "&IF(ROUND(('Results Tables'!C29-'Results Tables'!D29)/'Results Tables'!C29*100,2)>0,"more","less")&" expensive than the comparison vehicle" -> The baseline is 3.77% more expensive than the comparison vehicle | L17: Total NPV Cost / Mile | M17: =M16/M9 -> 0.4227005601 | N17: =N16/N9 -> 0.4067524049
B19: Societal Benefit Summary
B30: Fleet Gasoline Use (Total All Vehicles)
B32: =Base_V1_Type_Ex&" Based Fleet" -> 2017 Chevrolet Cruze ICE Based Fleet | F32: VS | G32: =Comp_V1_Type_Ex&" Based Fleet" -> 2017 Chevrolet Bolt EV BEV Based Fleet | K32: = | L32: ="The baseline fleet uses "& TEXT(ABS(ROUND(B33-G33,0)),"#,##0")&" "&IF(ROUND(B33-G33,0)>0,"more","fewer")&" gallons of gasoline than the comparison fleet" -> The baseline fleet uses 59,019 more gallons of gasoline than the comparison fleet
B33: ='Results Tables'!C36 -> 59018.75 | D33: gallons | G33: ='Results Tables'!D36 -> 0 | I33: gallons
B35: Cash Flow Summary
B56: Sensitivity Analysis

Sheet Financial Model
A1: Financial Models - Fleet Procurement Analysis Tool
D2: Year 0 | E2: Year 1 | F2: Year 2 | G2: Year 3 | H2: Year 4 | I2: Year 5 | J2: Year 6 | K2: Year 7 | L2: Year 8 | M2: Year 9 | N2: Year 10 | O2: Year 11 | P2: Year 12 | Q2: Year 13 | R2: Year 14 | S2: Year 15 | T2: Year 16 | U2: Year 17 | V2: Year 18 | W2: Year 19 | X2: Year 20 | Y2: Year 21 | Z2: Year 22 | AA2: Year 23 | AB2: Year 24 | AC2: Year 25
B3: Baseline Vehicle 1
D4: Year 0 | E4: Year 1 | F4: Year 2 | G4: Year 3 | H4: Year 4 | I4: Year 5 | J4: Year 6 | K4: Year 7 | L4: Year 8 | M4: Year 9 | N4: Year 10 | O4: Year 11 | P4: Year 12 | Q4: Year 13 | R4: Year 14 | S4: Year 15 | T4: Year 16 | U4: Year 17 | V4: Year 18 | W4: Year 19 | X4: Year 20 | Y4: Year 21 | Z4: Year 22 | AA4: Year 23 | AB4: Year 24 | AC4: Year 25
B5: Depreciation Calculations
B6: Fair Market Value - BEV | D6: =IF(VLOOKUP(Base_V1_Type_Ex,DB_Vehicles[],COLUMN(DB_Vehicles[[#Headers],[Drivetrain Type]]),FALSE)="BEV",Base_V1_MSRP_Modeled,0) -> 0 | E6: =IF(VLOOKUP(Base_V1_Type_Ex,DB_Vehicles[],COLUMN(DB_Vehicles[[#Headers],[Drivetrain Type]]),FALSE)="BEV",MAX(IF(VLOOKUP(Base_V1_Type_Ex,DB_Vehicles[],COLUMN(DB_Vehicles[[#Headers],[Drivetrain Type]]),FALSE)="BEV",Reg_BEV_Const_Ex+Reg_BEV_Age_Coef_Ex*(COLUMN(E4)-COLUMN($D4))+Reg_BEV_Agesq_Coef_Ex*((COLUMN(E4)-COLUMN($D4))^2)+Reg_BEV_MSRP_Coef_Ex*Base_V1_MSRP_Modeled+Reg_BEV_Range_Coef_Ex*VLOOKUP(Base_V1_Type_Ex,DB_Vehicles[],COLUMN(DB_Vehicles[[#Headers],[Electric Range]]),FALSE)+Reg_BEV_Mileage_Coef_Ex*Base_V1_VMT_Modeled*(COLUMN(E4)-COLUMN($D4)),0),300),0) -> 0 | F6: =IF(VLOOKUP(Base_V1_Type_Ex,DB_Vehicles[],COLUMN(DB_Vehicles[[#Headers],[Drivetrain Type]]),FALSE)="BEV",MAX(IF(VLOOKUP(Base_V1_Type_Ex,DB_Vehicles[],COLUMN(DB_Vehicles[[#Headers],[Drivetrain Type]]),FALSE)="BEV",Reg_BEV_Const_Ex+Reg_BEV_Age_Coef_Ex*(COLUMN(F4)-COLUMN($D4))+Reg_BEV_Agesq_Coef_Ex*((COLUMN(F4)-COLUMN($D4))^2)+Reg_BEV_MSRP_Coef_Ex*Base_V1_MSRP_Modeled+Reg_BEV_Range_Coef_Ex*VLOOKUP(Base_V1_Type_Ex,DB_Vehicles[],COLUMN(DB_Vehicles[[#Headers],[Electric Range]]),FALSE)+Reg_BEV_Mileage_Coef_Ex*Base_V1_VMT_Modeled*(COLUMN(F4)-COLUMN($D4)),0),300),0) -> 0 | G6: =IF(VLOOKUP(Base_V1_Type_Ex,DB_Vehicles[],COLUMN(DB_Vehicles[[#Headers],[Drivetrain Type]]),FALSE)="BEV",MAX(IF(VLOOKUP(Base_V1_Type_Ex,DB_Vehicles[],COLUMN(DB_Vehicles[[#Headers],[Drivetrain Type]]),FALSE)="BEV",Reg_BEV_Const_Ex+Reg_BEV_Age_Coef_Ex*(COLUMN(G4)-COLUMN($D4))+Reg_BEV_Agesq_Coef_Ex*((COLUMN(G4)-COLUMN($D4))^2)+Reg_BEV_MSRP_Coef_Ex*Base_V1_MSRP_Modeled+Reg_BEV_Range_Coef_Ex*VLOOKUP(Base_V1_Type_Ex,DB_Vehicles[],COLUMN(DB_Vehicles[[#Headers],[Electric Range]]),FALSE)+Reg_BEV_Mileage_Coef_Ex*Base_V1_VMT_Modeled*(COLUMN(G4)-COLUMN($D4)),0),300),0) -> 0 | H6: =IF(VLOOKUP(Base_V1_Type_Ex,DB_Vehicles[],COLUMN(DB_Vehicles[[#Headers],[Drivetrain Type]]),FALSE)="BEV",MAX(IF(VLOOKUP(Base_V1_Type_Ex,DB_Vehicles[],COLUMN(DB_Vehicles[[#Headers],[Drivetrain Type]]),FALSE)="BEV",Reg_BEV_Const_Ex+Reg_BEV_Age_Coef_Ex*(COLUMN(H4)-COLUMN($D4))+Reg_BEV_Agesq_Coef_Ex*((COLUMN(H4)-COLUMN($D4))^2)+Reg_BEV_MSRP_Coef_Ex*Base_V1_MSRP_Modeled+Reg_BEV_Range_Coef_Ex*VLOOKUP(Base_V1_Type_Ex,DB_Vehicles[],COLUMN(DB_Vehicles[[#Headers],[Electric Range]]),FALSE)+Reg_BEV_Mileage_Coef_Ex*Base_V1_VMT_Modeled*(COLUMN(H4)-COLUMN($D4)),0),300),0) -> 0 | I6: =IF(VLOOKUP(Base_V1_Type_Ex,DB_Vehicles[],COLUMN(DB_Vehicles[[#Headers],[Drivetrain Type]]),FALSE)="BEV",MAX(IF(VLOOKUP(Base_V1_Type_Ex,DB_Vehicles[],COLUMN(DB_Vehicles[[#Headers],[Drivetrain Type]]),FALSE)="BEV",Reg_BEV_Const_Ex+Reg_BEV_Age_Coef_Ex*(COLUMN(I4)-COLUMN($D4))+Reg_BEV_Agesq_Coef_Ex*((COLUMN(I4)-COLUMN($D4))^2)+Reg_BEV_MSRP_Coef_Ex*Base_V1_MSRP_Modeled+Reg_BEV_Range_Coef_Ex*VLOOKUP(Base_V1_Type_Ex,DB_Vehicles[],COLUMN(DB_Vehicles[[#Headers],[Electric Range]]),FALSE)+Reg_BEV_Mileage_Coef_Ex*Base_V1_VMT_Modeled*(COLUMN(I4)-COLUMN($D4)),0),300),0) -> 0 | J6: =IF($H6-$I6=0,0,MAX((1-($H6-$I6)/$H6)*I6,300)) -> 0 | K6: =IF($H6-$I6=0,0,MAX((1-($H6-$I6)/$H6)*J6,300)) -> 0 | L6: 0 | M6: 0 | N6: 0 | O6: 0 | P6: 0 | Q6: 0 | R6: 0 | S6: 0 | T6: 0 | U6: 0 | V6: 0 | W6: 0 | X6: 0 | Y6: 0 | Z6: 0 | AA6: 0 | AB6: 0 | AC6: 0
B7: Fair Market Value - PHEV | D7: =IF(VLOOKUP(Base_V1_Type_Ex,DB_Vehicles[],COLUMN(DB_Vehicles[[#Headers],[Drivetrain Type]]),FALSE)="PHEV",Base_V1_MSRP_Modeled,0) -> 0 | E7: =IF(VLOOKUP(Base_V1_Type_Ex,DB_Vehicles[],COLUMN(DB_Vehicles[[#Headers],[Drivetrain Type]]),FALSE)="PHEV",MAX(IF(VLOOKUP(Base_V1_Type_Ex,DB_Vehicles[],COLUMN(DB_Vehicles[[#Headers],[Drivetrain Type]]),FALSE)="PHEV",Reg_PHEV_Const_Ex+Reg_PHEV_Age_Coef_Ex*(COLUMN(E4)-COLUMN($D4))+Reg_PHEV_Agesq_Coef_Ex*((COLUMN(E4)-COLUMN($D4))^2)+Reg_PHEV_MSRP_Coef_Ex*Base_V1_MSRP_Modeled+Reg_PHEV_Range_Coef_Ex*VLOOKUP(Base_V1_Type_Ex,DB_Vehicles[],COLUMN(DB_Vehicles[[#Headers],[Electric Range]]),FALSE)+Reg_PHEV_Mileage_Coef_Ex*Base_V1_VMT_Modeled*(COLUMN(E4)-COLUMN($D4)),0),300),0) -> 0 | F7: =IF(VLOOKUP(Base_V1_Type_Ex,DB_Vehicles[],COLUMN(DB_Vehicles[[#Headers],[Drivetrain Type]]),FALSE)="PHEV",MAX(IF(VLOOKUP(Base_V1_Type_Ex,DB_Vehicles[],COLUMN(DB_Vehicles[[#Headers],[Drivetrain Type]]),FALSE)="PHEV",Reg_PHEV_Const_Ex+Reg_PHEV_Age_Coef_Ex*(COLUMN(F4)-COLUMN($D4))+Reg_PHEV_Agesq_Coef_Ex*((COLUMN(F4)-COLUMN($D4))^2)+Reg_PHEV_MSRP_Coef_Ex*Base_V1_MSRP_Modeled+Reg_PHEV_Range_Coef_Ex*VLOOKUP(Base_V1_Type_Ex,DB_Vehicles[],COLUMN(DB_Vehicles[[#Headers],[Electric Range]]),FALSE)+Reg_PHEV_Mileage_Coef_Ex*Base_V1_VMT_Modeled*(COLUMN(F4)-COLUMN($D4)),0),300),0) -> 0 | G7: =IF(VLOOKUP(Base_V1_Type_Ex,DB_Vehicles[],COLUMN(DB_Vehicles[[#Headers],[Drivetrain Type]]),FALSE)="PHEV",MAX(IF(VLOOKUP(Base_V1_Type_Ex,DB_Vehicles[],COLUMN(DB_Vehicles[[#Headers],[Drivetrain Type]]),FALSE)="PHEV",Reg_PHEV_Const_Ex+Reg_PHEV_Age_Coef_Ex*(COLUMN(G4)-COLUMN($D4))+Reg_PHEV_Agesq_Coef_Ex*((COLUMN(G4)-COLUMN($D4))^2)+Reg_PHEV_MSRP_Coef_Ex*Base_V1_MSRP_Modeled+Reg_PHEV_Range_Coef_Ex*VLOOKUP(Base_V1_Type_Ex,DB_Vehicles[],COLUMN(DB_Vehicles[[#Headers],[Electric Range]]),FALSE)+Reg_PHEV_Mileage_Coef_Ex*Base_V1_VMT_Modeled*(COLUMN(G4)-COLUMN($D4)),0),300),0) -> 0 | H7: =IF(VLOOKUP(Base_V1_Type_Ex,DB_Vehicles[],COLUMN(DB_Vehicles[[#Headers],[Drivetrain Type]]),FALSE)="PHEV",MAX(IF(VLOOKUP(Base_V1_Type_Ex,DB_Vehicles[],COLUMN(DB_Vehicles[[#Headers],[Drivetrain Type]]),FALSE)="PHEV",Reg_PHEV_Const_Ex+Reg_PHEV_Age_Coef_Ex*(COLUMN(H4)-COLUMN($D4))+Reg_PHEV_Agesq_Coef_Ex*((COLUMN(H4)-COLUMN($D4))^2)+Reg_PHEV_MSRP_Coef_Ex*Base_V1_MSRP_Modeled+Reg_PHEV_Range_Coef_Ex*VLOOKUP(Base_V1_Type_Ex,DB_Vehicles[],COLUMN(DB_Vehicles[[#Headers],[Electric Range]]),FALSE)+Reg_PHEV_Mileage_Coef_Ex*Base_V1_VMT_Modeled*(COLUMN(H4)-COLUMN($D4)),0),300),0) -> 0 | I7: =IF(VLOOKUP(Base_V1_Type_Ex,DB_Vehicles[],COLUMN(DB_Vehicles[[#Headers],[Drivetrain Type]]),FALSE)="PHEV",MAX(IF(VLOOKUP(Base_V1_Type_Ex,DB_Vehicles[],COLUMN(DB_Vehicles[[#Headers],[Drivetrain Type]]),FALSE)="PHEV",Reg_PHEV_Const_Ex+Reg_PHEV_Age_Coef_Ex*(COLUMN(I4)-COLUMN($D4))+Reg_PHEV_Agesq_Coef_Ex*((COLUMN(I4)-COLUMN($D4))^2)+Reg_PHEV_MSRP_Coef_Ex*Base_V1_MSRP_Modeled+Reg_PHEV_Range_Coef_Ex*VLOOKUP(Base_V1_Type_Ex,DB_Vehicles[],COLUMN(DB_Vehicles[[#Headers],[Electric Range]]),FALSE)+Reg_PHEV_Mileage_Coef_Ex*Base_V1_VMT_Modeled*(COLUMN(I4)-COLUMN($D4)),0),300),0) -> 0 | J7: =IF($H7-$I7=0,0,MAX((1-($H7-$I7)/$H7)*I7,300)) -> 0 | K7: 0 | L7: 0 | M7: 0 | N7: 0 | O7: 0 | P7: 0 | Q7: 0 | R7: 0 | S7: 0 | T7: 0 | U7: 0 | V7: 0 | W7: 0 | X7: 0 | Y7: 0 | Z7: 0 | AA7: 0 | AB7: 0 | AC7: 0
B8: Fair Market Value - ICE | D8: =IF(VLOOKUP(Base_V1_Type_Ex,DB_Vehicles[],COLUMN(DB_Vehicles[[#Headers],[Drivetrain Type]]),FALSE)="ICE",Base_V1_MSRP_Modeled,0) -> 16975 | E8: =IF(VLOOKUP(Base_V1_Type_Ex,DB_Vehicles[],COLUMN(DB_Vehicles[[#Headers],[Drivetrain Type]]),FALSE)="ICE",MAX(IF(VLOOKUP(Base_V1_Type_Ex,DB_Vehicles[],COLUMN(DB_Vehicles[[#Headers],[Drivetrain Type]]),FALSE)="ICE",Reg_ICE_Const_Ex+Reg_ICE_Age_Coef_Ex*(COLUMN(E4)-COLUMN($D4))+Reg_ICE_Agesq_Coef_Ex*(COLUMN(E4)-COLUMN($D4))^2+Reg_ICE_MSRP_Coef_Ex*Base_V1_MSRP_Modeled+Reg_ICE_MPG_Coef_Ex*VLOOKUP(Base_V1_Type_Ex,DB_Vehicles[],COLUMN(DB_Vehicles[[#Headers],[Fuel Economy Gas City (MPG)]]),FALSE)+Reg_ICE_Mileage_Coef_Ex*Base_V1_VMT_Modeled*(COLUMN(E4)-COLUMN($D4)),0),300),0) -> 14063.54692 | F8: =IF(VLOOKUP(Base_V1_Type_Ex,DB_Vehicles[],COLUMN(DB_Vehicles[[#Headers],[Drivetrain Type]]),FALSE)="ICE",MAX(IF(VLOOKUP(Base_V1_Type_Ex,DB_Vehicles[],COLUMN(DB_Vehicles[[#Headers],[Drivetrain Type]]),FALSE)="ICE",Reg_ICE_Const_Ex+Reg_ICE_Age_Coef_Ex*(COLUMN(F4)-COLUMN($D4))+Reg_ICE_Agesq_Coef_Ex*(COLUMN(F4)-COLUMN($D4))^2+Reg_ICE_MSRP_Coef_Ex*Base_V1_MSRP_Modeled+Reg_ICE_MPG_Coef_Ex*VLOOKUP(Base_V1_Type_Ex,DB_Vehicles[],COLUMN(DB_Vehicles[[#Headers],[Fuel Economy Gas City (MPG)]]),FALSE)+Reg_ICE_Mileage_Coef_Ex*Base_V1_VMT_Modeled*(COLUMN(F4)-COLUMN($D4)),0),300),0) -> 12434.06692 | G8: =IF(VLOOKUP(Base_V1_Type_Ex,DB_Vehicles[],COLUMN(DB_Vehicles[[#Headers],[Drivetrain Type]]),FALSE)="ICE",MAX(IF(VLOOKUP(Base_V1_Type_Ex,DB_Vehicles[],COLUMN(DB_Vehicles[[#Headers],[Drivetrain Type]]),FALSE)="ICE",Reg_ICE_Const_Ex+Reg_ICE_Age_Coef_Ex*(COLUMN(G4)-COLUMN($D4))+Reg_ICE_Agesq_Coef_Ex*(COLUMN(G4)-COLUMN($D4))^2+Reg_ICE_MSRP_Coef_Ex*Base_V1_MSRP_Modeled+Reg_ICE_MPG_Coef_Ex*VLOOKUP(Base_V1_Type_Ex,DB_Vehicles[],COLUMN(DB_Vehicles[[#Headers],[Fuel Economy Gas City (MPG)]]),FALSE)+Reg_ICE_Mileage_Coef_Ex*Base_V1_VMT_Modeled*(COLUMN(G4)-COLUMN($D4)),0),300),0) -> 10486.88692 | H8: =IF(VLOOKUP(Base_V1_Type_Ex,DB_Vehicles[],COLUMN(DB_Vehicles[[#Headers],[Drivetrain Type]]),FALSE)="ICE",MAX(IF(VLOOKUP(Base_V1_Type_Ex,DB_Vehicles[],COLUMN(DB_Vehicles[[#Headers],[Drivetrain Type]]),FALSE)="ICE",Reg_ICE_Const_Ex+Reg_ICE_Age_Coef_Ex*(COLUMN(H4)-COLUMN($D4))+Reg_ICE_Agesq_Coef_Ex*(COLUMN(H4)-COLUMN($D4))^2+Reg_ICE_MSRP_Coef_Ex*Base_V1_MSRP_Modeled+Reg_ICE_MPG_Coef_Ex*VLOOKUP(Base_V1_Type_Ex,DB_Vehicles[],COLUMN(DB_Vehicles[[#Headers],[Fuel Economy Gas City (MPG)]]),FALSE)+Reg_ICE_Mileage_Coef_Ex*Base_V1_VMT_Modeled*(COLUMN(H4)-COLUMN($D4)),0),300),0) -> 8222.006925 | I8: =IF(VLOOKUP(Base_V1_Type_Ex,DB_Vehicles[],COLUMN(DB_Vehicles[[#Headers],[Drivetrain Type]]),FALSE)="ICE",MAX(IF(VLOOKUP(Base_V1_Type_Ex,DB_Vehicles[],COLUMN(DB_Vehicles[[#Headers],[Drivetrain Type]]),FALSE)="ICE",Reg_ICE_Const_Ex+Reg_ICE_Age_Coef_Ex*(COLUMN(I4)-COLUMN($D4))+Reg_ICE_Agesq_Coef_Ex*(COLUMN(I4)-COLUMN($D4))^2+Reg_ICE_MSRP_Coef_Ex*Base_V1_MSRP_Modeled+Reg_ICE_MPG_Coef_Ex*VLOOKUP(Base_V1_Type_Ex,DB_Vehicles[],COLUMN(DB_Vehicles[[#Headers],[Fuel Economy Gas City (MPG)]]),FALSE)+Reg_ICE_Mileage_Coef_Ex*Base_V1_VMT_Modeled*(COLUMN(I4)-COLUMN($D4)),0),300),0) -> 5639.426925 | J8: =IF($H8-$I8=0,0,MAX((1-($H8-$I8)/$H8)*I8,300)) -> 3868.050262 | K8: 2653.07327 | L8: 1819.727588 | M8: 1248.140612 | N8: 856.0924162 | O8: 587.1888295 | P8: 402.7494169 | Q8: 300 | R8: 300 | S8: 300 | T8: 300 | U8: 300 | V8: 300 | W8: 300 | X8: 300 | Y8: 300 | Z8: 300 | AA8: 300 | AB8: 300 | AC8: 300
B10: Capital and Financing Costs
B11: Cash
B12: Cash Payment | D12: =IF(AND(Base_V1_Has_Cash_Purchase_Ex=TRUE,Base_V1_Has_Loan_Ex=FALSE,Base_V1_Has_Lease_Ex=FALSE,COLUMN(D4)-COLUMN($D4)=0),-(Base_V1_Base_Price_Ex-IF(Base_V1_Tax_Incentives_Monetized="Yes",Base_V1_Federal_Tax_Incentives_Modeled+IF(Base_V1_State_Tax_Incentive_Cap_Modeled=0,Base_V1_State_Tax_Incentives_Modeled,MIN(Base_V1_State_Tax_Incentive_Cap_Modeled,Base_V1_State_Tax_Incentives_Modeled*Base_V1_Num_Vehicles_Modeled)/Base_V1_Num_Vehicles_Modeled),0)-Base_V1_Other_Incentives_Modeled),IF(AND(Base_V1_Has_Cash_Purchase_Ex=TRUE,OR(Base_V1_Has_Loan_Ex=TRUE,Base_V1_Has_Lease_Ex=TRUE),COLUMN(D4)-COLUMN($D4)=Base_V1_Lease_Term_Modeled),IF(ISERROR(FIND("Tax",_Base_V1_Ownership_Structure,1)),-SUM(D6:D8),-Base_V1_Lease_Residual_Price_Modeled),0)) -> -18224 | E12: 0 | F12: 0 | G12: 0 | H12: 0 | I12: 0 | J12: 0 | K12: 0 | L12: 0 | M12: 0 | N12: 0 | O12: 0 | P12: 0 | Q12: 0 | R12: 0 | S12: 0 | T12: 0 | U12: 0 | V12: 0 | W12: 0 | X12: 0 | Y12: 0 | Z12: 0 | AA12: 0 | AB12: 0 | AC12: 0
B13: Lease
B14: Down Payment | D14: =IF(Base_V1_Has_Lease_Ex=TRUE,-Base_V1_Down_Payment_Modeled,0) -> 0
B15: Acquisition Fee | D15: =IF(Base_V1_Has_Lease_Ex=TRUE,-Base_V1_Lease_Acquisition_Fee_Modeled,0) -> 0
B16: Disposition Charge | D16: =IF(AND(Base_V1_Has_Lease_Ex=TRUE,((COLUMN(D4)-COLUMN($D4))=Base_V1_Lease_Term_Modeled)),-Base_V1_Lease_Disposition_Fee_Modeled,0) -> 0 | E16: 0 | F16: 0 | G16: 0 | H16: 0 | I16: 0 | J16: 0 | K16: 0 | L16: 0 | M16: 0 | N16: 0 | O16: 0 | P16: 0 | Q16: 0 | R16: 0 | S16: 0 | T16: 0 | U16: 0 | V16: 0 | W16: 0 | X16: 0 | Y16: 0 | Z16: 0 | AA16: 0 | AB16: 0 | AC16: 0
B17: Lease Payments | E17: =IF(Base_V1_Has_Lease_Ex=TRUE,IF((COLUMN(E4)-COLUMN($E4))<Base_V1_Lease_Term_Modeled,-PMT(Base_V1_Lease_APR_Modeled/12,Base_V1_Lease_Term_Modeled*12,-(Base_V1_Base_Price_Ex-IF(Base_V1_Tax_Incentives_Monetized="Yes",Base_V1_Federal_Tax_Incentives_Modeled+IF(Base_V1_State_Tax_Incentive_Cap_Modeled=0,Base_V1_State_Tax_Incentives_Modeled,MIN(Base_V1_State_Tax_Incentive_Cap_Modeled,Base_V1_State_Tax_Incentives_Modeled*Base_V1_Num_Vehicles_Modeled)/Base_V1_Num_Vehicles_Modeled),0)-Base_V1_Other_Incentives_Modeled-Base_V1_Down_Payment_Modeled)+Base_V1_Lease_Residual_Price_Modeled,0)*12,0),0) -> 0 | F17: 0 | G17: 0 | H17: 0 | I17: 0 | J17: 0 | K17: 0 | L17: 0 | M17: 0 | N17: 0 | O17: 0 | P17: 0 | Q17: 0 | R17: 0 | S17: 0 | T17: 0 | U17: 0 | V17: 0 | W17: 0 | X17: 0 | Y17: 0 | Z17: 0 | AA17: 0 | AB17: 0 | AC17: 0
B18: Principal Payments | E18: =IF(Base_V1_Has_Lease_Ex=TRUE,IF((COLUMN(E4)-COLUMN($E4))<Base_V1_Lease_Term_Modeled,-PPMT(Base_V1_Lease_APR_Modeled/12,(COLUMN(E4)-COLUMN($D4))*12,Base_V1_Lease_Term_Modeled*12,-(Base_V1_Base_Price_Ex-IF(Base_V1_Tax_Incentives_Monetized="Yes",Base_V1_Federal_Tax_Incentives_Modeled+IF(Base_V1_State_Tax_Incentive_Cap_Modeled=0,Base_V1_State_Tax_Incentives_Modeled,MIN(Base_V1_State_Tax_Incentive_Cap_Modeled,Base_V1_State_Tax_Incentives_Modeled*Base_V1_Num_Vehicles_Modeled)/Base_V1_Num_Vehicles_Modeled),0)-Base_V1_Other_Incentives_Modeled-Base_V1_Down_Payment_Modeled)+Base_V1_Lease_Residual_Price_Modeled,0)*12,0),0) -> 0 | F18: 0 | G18: 0 | H18: 0 | I18: 0 | J18: 0 | K18: 0 | L18: 0 | M18: 0 | N18: 0 | O18: 0 | P18: 0 | Q18: 0 | R18: 0 | S18: 0 | T18: 0 | U18: 0 | V18: 0 | W18: 0 | X18: 0 | Y18: 0 | Z18: 0 | AA18: 0 | AB18: 0 | AC18: 0
B19: Interest Payments | E19: =IF(Base_V1_Has_Lease_Ex=TRUE,IF((COLUMN(E4)-COLUMN($E4))<Base_V1_Lease_Term_Modeled,-IPMT(Base_V1_Lease_APR_Modeled/12,(COLUMN(E4)-COLUMN($D4))*12,Base_V1_Lease_Term_Modeled*12,-(Base_V1_Base_Price_Ex-IF(Base_V1_Tax_Incentives_Monetized="Yes",Base_V1_Federal_Tax_Incentives_Modeled+IF(Base_V1_State_Tax_Incentive_Cap_Modeled=0,Base_V1_State_Tax_Incentives_Modeled,MIN(Base_V1_State_Tax_Incentive_Cap_Modeled,Base_V1_State_Tax_Incentives_Modeled*Base_V1_Num_Vehicles_Modeled)/Base_V1_Num_Vehicles_Modeled),0)-Base_V1_Other_Incentives_Modeled-Base_V1_Down_Payment_Modeled)+Base_V1_Lease_Residual_Price_Modeled,0)*12,0),0) -> 0 | F19: 0 | G19: 0 | H19: 0 | I19: 0 | J19: 0 | K19: 0 | L19: 0 | M19: 0 | N19: 0 | O19: 0 | P19: 0 | Q19: 0 | R19: 0 | S19: 0 | T19: 0 | U19: 0 | V19: 0 | W19: 0 | X19: 0 | Y19: 0 | Z19: 0 | AA19: 0 | AB19: 0 | AC19: 0
B20: TRAC Value Adjustment | E20: =IF(ISERROR(FIND("TRAC",_Base_V1_Ownership_Structure,1)),0,IF(Base_V1_Has_Loan_Ex=TRUE,0,IF((COLUMN(E4)-COLUMN($D4))=Base_V1_Lease_Term_Modeled,SUM(E6:E8)-Base_V1_Lease_Residual_Price_Modeled,0))) -> 0 | F20: 0 | G20: 0 | H20: 0 | I20: 0 | J20: 0 | K20: 0 | L20: 0 | M20: 0 | N20: 0 | O20: 0 | P20: 0 | Q20: 0 | R20: 0 | S20: 0 | T20: 0 | U20: 0 | V20: 0 | W20: 0 | X20: 0 | Y20: 0 | Z20: 0 | AA20: 0 | AB20: 0 | AC20: 0
B21: FMV Mileage Adjustment | E21: =MIN(0,MAX(-Base_V1_Lease_Residual_Price_Modeled+SUM(E6:E8),IF(IFERROR(IF(FIND("FMV",_Base_V1_Ownership_Structure,1)>0,TRUE,FALSE),FALSE),IF((COLUMN(E4)-COLUMN($D4))=Base_V1_Lease_Term_Modeled,(Base_V1_Lease_Mileage_Inc_Modeled-Base_V1_VMT_Modeled)*(COLUMN(E4)-COLUMN($D4))*Base_V1_Lease_Mileage_Cost_Modeled,0),0))) -> 0 | F21: 0 | G21: 0 | H21: 0 | I21: 0 | J21: 0 | K21: 0 | L21: 0 | M21: 0 | N21: 0 | O21: 0 | P21: 0 | Q21: 0 | R21: 0 | S21: 0 | T21: 0 | U21: 0 | V21: 0 | W21: 0 | X21: 0 | Y21: 0 | Z21: 0 | AA21: 0 | AB21: 0 | AC21: 0
B22: Subtotal Lease Cash Flows | D22: =SUM(D14:D17)+SUM(D20:D21) -> 0 | E22: =SUM(E14:E17)+SUM(E20:E21) -> 0 | F22: 0 | G22: 0 | H22: 0 | I22: 0 | J22: 0 | K22: 0 | L22: 0 | M22: 0 | N22: 0 | O22: 0 | P22: 0 | Q22: 0 | R22: 0 | S22: 0 | T22: 0 | U22: 0 | V22: 0 | W22: 0 | X22: 0 | Y22: 0 | Z22: 0 | AA22: 0 | AB22: 0 | AC22: 0
B23: Loan
B24: Down Payment | D24: =IF(AND(Base_V1_Has_Loan_Ex=TRUE,Base_V1_Has_Lease_Ex=FALSE),-Base_V1_Down_Payment_Modeled,0) -> 0
B25: Loan Payments | E25: =IF(Base_V1_Has_Loan_Ex=TRUE,IF(AND((COLUMN(E4)-COLUMN($E4))<Base_V1_Loan_Term_Modeled+Base_V1_Lease_Term_Modeled,(COLUMN(E4)-COLUMN($E4))>=Base_V1_Lease_Term_Modeled),PMT(Base_V1_Loan_APR_Modeled/12,Base_V1_Loan_Term_Modeled*12,IF(Base_V1_Has_Lease_Ex=TRUE,SUM(OFFSET($D4,0,Comp_V1_Lease_Term_Modeled,3,1)),Base_V1_Base_Price_Ex-IF(Base_V1_Tax_Incentives_Monetized="Yes",Base_V1_Federal_Tax_Incentives_Modeled+IF(Base_V1_State_Tax_Incentive_Cap_Modeled=0,Base_V1_State_Tax_Incentives_Modeled,MIN(Base_V1_State_Tax_Incentive_Cap_Modeled,Base_V1_State_Tax_Incentives_Modeled*Base_V1_Num_Vehicles_Modeled)/Base_V1_Num_Vehicles_Modeled),0)-Base_V1_Other_Incentives_Modeled-Base_V1_Down_Payment_Modeled),0)*12,0),0) -> 0 | F25: 0 | G25: 0 | H25: 0 | I25: 0 | J25: 0 | K25: 0 | L25: 0 | M25: 0 | N25: 0 | O25: 0 | P25: 0 | Q25: 0 | R25: 0 | S25: 0 | T25: 0 | U25: 0 | V25: 0 | W25: 0 | X25: 0 | Y25: 0 | Z25: 0 | AA25: 0 | AB25: 0 | AC25: 0
B26: Principal Payments | E26: =IF(Base_V1_Has_Loan_Ex=TRUE,IF(AND((COLUMN(E4)-COLUMN($E4))<Base_V1_Loan_Term_Modeled+Base_V1_Lease_Term_Modeled,(COLUMN(E4)-COLUMN($E4))>=Base_V1_Lease_Term_Modeled),PPMT(Base_V1_Loan_APR_Modeled/12,IF(Base_V1_Has_Lease_Ex=TRUE,(COLUMN(E4)-COLUMN($D4)-Base_V1_Lease_Term_Modeled)*12,(COLUMN(E4)-COLUMN($D4))*12),Base_V1_Loan_Term_Modeled*12,IF(Base_V1_Has_Lease_Ex=TRUE,SUM(OFFSET($D4,0,Comp_V1_Lease_Term_Modeled,3,1)),Base_V1_Base_Price_Ex-IF(Base_V1_Tax_Incentives_Monetized="Yes",Base_V1_Federal_Tax_Incentives_Modeled+IF(Base_V1_State_Tax_Incentive_Cap_Modeled=0,Base_V1_State_Tax_Incentives_Modeled,MIN(Base_V1_State_Tax_Incentive_Cap_Modeled,Base_V1_State_Tax_Incentives_Modeled*Base_V1_Num_Vehicles_Modeled)/Base_V1_Num_Vehicles_Modeled),0)-Base_V1_Other_Incentives_Modeled-Base_V1_Down_Payment_Modeled),0)*12,0),0) -> 0 | F26: 0 | G26: 0 | H26: 0 | I26: 0 | J26: 0 | K26: 0 | L26: 0 | M26: 0 | N26: 0 | O26: 0 | P26: 0 | Q26: 0 | R26: 0 | S26: 0 | T26: 0 | U26: 0 | V26: 0 | W26: 0 | X26: 0 | Y26: 0 | Z26: 0 | AA26: 0 | AB26: 0 | AC26: 0
B27: Interest Payments | E27: =IF(Base_V1_Has_Loan_Ex=TRUE,IF(AND((COLUMN(E4)-COLUMN($E4))<Base_V1_Loan_Term_Modeled+Base_V1_Lease_Term_Modeled,(COLUMN(E4)-COLUMN($E4))>=Base_V1_Lease_Term_Modeled),IPMT(Base_V1_Loan_APR_Modeled/12,IF(Base_V1_Has_Lease_Ex=TRUE,(COLUMN(E4)-COLUMN($D4)-Base_V1_Lease_Term)*12,(COLUMN(E4)-COLUMN($D4))*12),Base_V1_Loan_Term_Modeled*12,IF(Base_V1_Has_Lease_Ex=TRUE,SUM(OFFSET($D4,0,Comp_V1_Lease_Term_Modeled,3,1)),Base_V1_Base_Price_Ex-IF(Base_V1_Tax_Incentives_Monetized="Yes",Base_V1_Federal_Tax_Incentives_Modeled+IF(Base_V1_State_Tax_Incentive_Cap_Modeled=0,Base_V1_State_Tax_Incentives_Modeled,MIN(Base_V1_State_Tax_Incentive_Cap_Modeled,Base_V1_State_Tax_Incentives_Modeled*Base_V1_Num_Vehicles_Modeled)/Base_V1_Num_Vehicles_Modeled),0)-Base_V1_Other_Incentives_Modeled-Base_V1_Down_Payment_Modeled),0)*12,0),0) -> 0 | F27: 0 | G27: 0 | H27: 0 | I27: 0 | J27: 0 | K27: 0 | L27: 0 | M27: 0 | N27: 0 | O27: 0 | P27: 0 | Q27: 0 | R27: 0 | S27: 0 | T27: 0 | U27: 0 | V27: 0 | W27: 0 | X27: 0 | Y27: 0 | Z27: 0 | AA27: 0 | AB27: 0 | AC27: 0
B28: Subtotal Loan Cash Flows | D28: =SUM(D24:D25) -> 0 | E28: =SUM(E24:E25) -> 0 | F28: 0 | G28: 0 | H28: 0 | I28: 0 | J28: 0 | K28: 0 | L28: 0 | M28: 0 | N28: 0 | O28: 0 | P28: 0 | Q28: 0 | R28: 0 | S28: 0 | T28: 0 | U28: 0 | V28: 0 | W28: 0 | X28: 0 | Y28: 0 | Z28: 0 | AA28: 0 | AB28: 0 | AC28: 0
B29: Terminal Value | E29: =IF(OR(Base_V1_Has_Loan_Ex=TRUE,Base_V1_Has_Cash_Purchase_Ex=TRUE),IF((COLUMN(E4)-COLUMN($D4))=Base_V1_Years_Usage_Modeled,SUM(E6:E8),0),0) -> 0 | F29: 0 | G29: 0 | H29: 0 | I29: 0 | J29: 0 | K29: 2653.07327 | L29: 0 | M29: 0 | N29: 0 | O29: 0 | P29: 0 | Q29: 0 | R29: 0 | S29: 0 | T29: 0 | U29: 0 | V29: 0 | W29: 0 | X29: 0 | Y29: 0 | Z29: 0 | AA29: 0 | AB29: 0 | AC29: 0
B31: Total Capital and Financing Costs | D31: =D12+D22+D28+D29 -> -18224 | E31: =E12+E22+E28+E29 -> 0 | F31: =F12+F22+F28+F29 -> 0 | G31: 0 | H31: 0 | I31: 0 | J31: 0 | K31: 2653.07327 | L31: 0 | M31: 0 | N31: 0 | O31: 0 | P31: 0 | Q31: 0 | R31: 0 | S31: 0 | T31: 0 | U31: 0 | V31: 0 | W31: 0 | X31: 0 | Y31: 0 | Z31: 0 | AA31: 0 | AB31: 0 | AC31: 0
B33: Fuel and Operating Costs
B34: Fuel Cost | E34: =IF(COLUMN(E4)-COLUMN($E4)<Base_V1_Years_Usage_Modeled,-((Base_V1_Gas_Usage_Ex*Gasoline_Price_Modeled*Data!C$73)+(Base_V1_Electricity_Usage_Ex*Electricity_Price_Modeled*Data!C$75)),0) -> -1025.95 | F34: =IF(COLUMN(F4)-COLUMN($E4)<Base_V1_Years_Usage_Modeled,-((Base_V1_Gas_Usage_Ex*Gasoline_Price_Modeled*Data!D$73)+(Base_V1_Electricity_Usage_Ex*Electricity_Price_Modeled*Data!D$75)),0) -> -1117.154362 | G34: =IF(COLUMN(G4)-COLUMN($E4)<Base_V1_Years_Usage_Modeled,-((Base_V1_Gas_Usage_Ex*Gasoline_Price_Modeled*Data!E$73)+(Base_V1_Electricity_Usage_Ex*Electricity_Price_Modeled*Data!E$75)),0) -> -1199.215989 | H34: =IF(COLUMN(H4)-COLUMN($E4)<Base_V1_Years_Usage_Modeled,-((Base_V1_Gas_Usage_Ex*Gasoline_Price_Modeled*Data!F$73)+(Base_V1_Electricity_Usage_Ex*Electricity_Price_Modeled*Data!F$75)),0) -> -1319.707946 | I34: =IF(COLUMN(I4)-COLUMN($E4)<Base_V1_Years_Usage_Modeled,-((Base_V1_Gas_Usage_Ex*Gasoline_Price_Modeled*Data!G$73)+(Base_V1_Electricity_Usage_Ex*Electricity_Price_Modeled*Data!G$75)),0) -> -1385.952467 | J34: =IF(COLUMN(J4)-COLUMN($E4)<Base_V1_Years_Usage_Modeled,-((Base_V1_Gas_Usage_Ex*Gasoline_Price_Modeled*Data!H$73)+(Base_V1_Electricity_Usage_Ex*Electricity_Price_Modeled*Data!H$75)),0) -> -1429.846602 | K34: =IF(COLUMN(K4)-COLUMN($E4)<Base_V1_Years_Usage_Modeled,-((Base_V1_Gas_Usage_Ex*Gasoline_Price_Modeled*Data!I$73)+(Base_V1_Electricity_Usage_Ex*Electricity_Price_Modeled*Data!I$75)),0) -> -1451.739968 | L34: =IF(COLUMN(L4)-COLUMN($E4)<Base_V1_Years_Usage_Modeled,-((Base_V1_Gas_Usage_Ex*Gasoline_Price_Modeled*Data!J$73)+(Base_V1_Electricity_Usage_Ex*Electricity_Price_Modeled*Data!J$75)),0) -> 0 | M34: =IF(COLUMN(M4)-COLUMN($E4)<Base_V1_Years_Usage_Modeled,-((Base_V1_Gas_Usage_Ex*Gasoline_Price_Modeled*Data!K$73)+(Base_V1_Electricity_Usage_Ex*Electricity_Price_Modeled*Data!K$75)),0) -> 0 | N34: =IF(COLUMN(N4)-COLUMN($E4)<Base_V1_Years_Usage_Modeled,-((Base_V1_Gas_Usage_Ex*Gasoline_Price_Modeled*Data!L$73)+(Base_V1_Electricity_Usage_Ex*Electricity_Price_Modeled*Data!L$75)),0) -> 0 | O34: =IF(COLUMN(O4)-COLUMN($E4)<Base_V1_Years_Usage_Modeled,-((Base_V1_Gas_Usage_Ex*Gasoline_Price_Modeled*Data!M$73)+(Base_V1_Electricity_Usage_Ex*Electricity_Price_Modeled*Data!M$75)),0) -> 0 | P34: =IF(COLUMN(P4)-COLUMN($E4)<Base_V1_Years_Usage_Modeled,-((Base_V1_Gas_Usage_Ex*Gasoline_Price_Modeled*Data!N$73)+(Base_V1_Electricity_Usage_Ex*Electricity_Price_Modeled*Data!N$75)),0) -> 0 | Q34: =IF(COLUMN(Q4)-COLUMN($E4)<Base_V1_Years_Usage_Modeled,-((Base_V1_Gas_Usage_Ex*Gasoline_Price_Modeled*Data!O$73)+(Base_V1_Electricity_Usage_Ex*Electricity_Price_Modeled*Data!O$75)),0) -> 0 | R34: =IF(COLUMN(R4)-COLUMN($E4)<Base_V1_Years_Usage_Modeled,-((Base_V1_Gas_Usage_Ex*Gasoline_Price_Modeled*Data!P$73)+(Base_V1_Electricity_Usage_Ex*Electricity_Price_Modeled*Data!P$75)),0) -> 0 | S34: =IF(COLUMN(S4)-COLUMN($E4)<Base_V1_Years_Usage_Modeled,-((Base_V1_Gas_Usage_Ex*Gasoline_Price_Modeled*Data!Q$73)+(Base_V1_Electricity_Usage_Ex*Electricity_Price_Modeled*Data!Q$75)),0) -> 0 | T34: =IF(COLUMN(T4)-COLUMN($E4)<Base_V1_Years_Usage_Modeled,-((Base_V1_Gas_Usage_Ex*Gasoline_Price_Modeled*Data!R$73)+(Base_V1_Electricity_Usage_Ex*Electricity_Price_Modeled*Data!R$75)),0) -> 0 | U34: =IF(COLUMN(U4)-COLUMN($E4)<Base_V1_Years_Usage_Modeled,-((Base_V1_Gas_Usage_Ex*Gasoline_Price_Modeled*Data!S$73)+(Base_V1_Electricity_Usage_Ex*Electricity_Price_Modeled*Data!S$75)),0) -> 0 | V34: =IF(COLUMN(V4)-COLUMN($E4)<Base_V1_Years_Usage_Modeled,-((Base_V1_Gas_Usage_Ex*Gasoline_Price_Modeled*Data!T$73)+(Base_V1_Electricity_Usage_Ex*Electricity_Price_Modeled*Data!T$75)),0) -> 0 | W34: =IF(COLUMN(W4)-COLUMN($E4)<Base_V1_Years_Usage_Modeled,-((Base_V1_Gas_Usage_Ex*Gasoline_Price_Modeled*Data!U$73)+(Base_V1_Electricity_Usage_Ex*Electricity_Price_Modeled*Data!U$75)),0) -> 0 | X34: =IF(COLUMN(X4)-COLUMN($E4)<Base_V1_Years_Usage_Modeled,-((Base_V1_Gas_Usage_Ex*Gasoline_Price_Modeled*Data!V$73)+(Base_V1_Electricity_Usage_Ex*Electricity_Price_Modeled*Data!V$75)),0) -> 0 | Y34: =IF(COLUMN(Y4)-COLUMN($E4)<Base_V1_Years_Usage_Modeled,-((Base_V1_Gas_Usage_Ex*Gasoline_Price_Modeled*Data!W$73)+(Base_V1_Electricity_Usage_Ex*Electricity_Price_Modeled*Data!W$75)),0) -> 0 | Z34: =IF(COLUMN(Z4)-COLUMN($E4)<Base_V1_Years_Usage_Modeled,-((Base_V1_Gas_Usage_Ex*Gasoline_Price_Modeled*Data!X$73)+(Base_V1_Electricity_Usage_Ex*Electricity_Price_Modeled*Data!X$75)),0) -> 0 | AA34: =IF(COLUMN(AA4)-COLUMN($E4)<Base_V1_Years_Usage_Modeled,-((Base_V1_Gas_Usage_Ex*Gasoline_Price_Modeled*Data!Y$73)+(Base_V1_Electricity_Usage_Ex*Electricity_Price_Modeled*Data!Y$75)),0) -> 0 | AB34: =IF(COLUMN(AB4)-COLUMN($E4)<Base_V1_Years_Usage_Modeled,-((Base_V1_Gas_Usage_Ex*Gasoline_Price_Modeled*Data!Z$73)+(Base_V1_Electricity_Usage_Ex*Electricity_Price_Modeled*Data!Z$75)),0) -> 0 | AC34: =IF(COLUMN(AC4)-COLUMN($E4)<Base_V1_Years_Usage_Modeled,-((Base_V1_Gas_Usage_Ex*Gasoline_Price_Modeled*Data!AA$73)+(Base_V1_Electricity_Usage_Ex*Electricity_Price_Modeled*Data!AA$75)),0) -> 0
B35: Maintenance and Repair Cost | E35: =-IF(_Base_V1_Maint_Repair_Cost_Use_Default="Yes",IF(COLUMN(E4)-COLUMN($E4)<Base_V1_Years_Usage_Modeled,VLOOKUP(_Base_V1_Vehicle_Drivetrain,DB_Maint_Repair_Costs[],COLUMN(E4)-COLUMN($E4)+2,FALSE)*Base_V1_VMT_Modeled,0),IF(AND(COLUMN(E4)-COLUMN($E4)<Base_V1_Years_Usage_Modeled,COLUMN(E4)-COLUMN($E4)<5),Base_V1_Maint_Repair_Cost_Year_1_Modeled*Base_V1_VMT_Modeled,IF(AND(COLUMN(E4)-COLUMN($E4)<Base_V1_Years_Usage_Modeled,COLUMN(E4)-COLUMN($E4)>=5),Base_V1_Maint_Repair_Cost_Year_5_Modeled*Base_V1_VMT_Modeled,0)))*Data!C$81 -> -1200 | F35: =-IF(_Base_V1_Maint_Repair_Cost_Use_Default="Yes",IF(COLUMN(F4)-COLUMN($E4)<Base_V1_Years_Usage_Modeled,VLOOKUP(_Base_V1_Vehicle_Drivetrain,DB_Maint_Repair_Costs[],COLUMN(F4)-COLUMN($E4)+2,FALSE)*Base_V1_VMT_Modeled,0),IF(AND(COLUMN(F4)-COLUMN($E4)<Base_V1_Years_Usage_Modeled,COLUMN(F4)-COLUMN($E4)<5),Base_V1_Maint_Repair_Cost_Year_1_Modeled*Base_V1_VMT_Modeled,IF(AND(COLUMN(F4)-COLUMN($E4)<Base_V1_Years_Usage_Modeled,COLUMN(F4)-COLUMN($E4)>=5),Base_V1_Maint_Repair_Cost_Year_5_Modeled*Base_V1_VMT_Modeled,0)))*Data!D$81 -> -1224 | G35: =-IF(_Base_V1_Maint_Repair_Cost_Use_Default="Yes",IF(COLUMN(G4)-COLUMN($E4)<Base_V1_Years_Usage_Modeled,VLOOKUP(_Base_V1_Vehicle_Drivetrain,DB_Maint_Repair_Costs[],COLUMN(G4)-COLUMN($E4)+2,FALSE)*Base_V1_VMT_Modeled,0),IF(AND(COLUMN(G4)-COLUMN($E4)<Base_V1_Years_Usage_Modeled,COLUMN(G4)-COLUMN($E4)<5),Base_V1_Maint_Repair_Cost_Year_1_Modeled*Base_V1_VMT_Modeled,IF(AND(COLUMN(G4)-COLUMN($E4)<Base_V1_Years_Usage_Modeled,COLUMN(G4)-COLUMN($E4)>=5),Base_V1_Maint_Repair_Cost_Year_5_Modeled*Base_V1_VMT_Modeled,0)))*Data!E$81 -> -1248.48 | H35: =-IF(_Base_V1_Maint_Repair_Cost_Use_Default="Yes",IF(COLUMN(H4)-COLUMN($E4)<Base_V1_Years_Usage_Modeled,VLOOKUP(_Base_V1_Vehicle_Drivetrain,DB_Maint_Repair_Costs[],COLUMN(H4)-COLUMN($E4)+2,FALSE)*Base_V1_VMT_Modeled,0),IF(AND(COLUMN(H4)-COLUMN($E4)<Base_V1_Years_Usage_Modeled,COLUMN(H4)-COLUMN($E4)<5),Base_V1_Maint_Repair_Cost_Year_1_Modeled*Base_V1_VMT_Modeled,IF(AND(COLUMN(H4)-COLUMN($E4)<Base_V1_Years_Usage_Modeled,COLUMN(H4)-COLUMN($E4)>=5),Base_V1_Maint_Repair_Cost_Year_5_Modeled*Base_V1_VMT_Modeled,0)))*Data!F$81 -> -1273.4496 | I35: =-IF(_Base_V1_Maint_Repair_Cost_Use_Default="Yes",IF(COLUMN(I4)-COLUMN($E4)<Base_V1_Years_Usage_Modeled,VLOOKUP(_Base_V1_Vehicle_Drivetrain,DB_Maint_Repair_Costs[],COLUMN(I4)-COLUMN($E4)+2,FALSE)*Base_V1_VMT_Modeled,0),IF(AND(COLUMN(I4)-COLUMN($E4)<Base_V1_Years_Usage_Modeled,COLUMN(I4)-COLUMN($E4)<5),Base_V1_Maint_Repair_Cost_Year_1_Modeled*Base_V1_VMT_Modeled,IF(AND(COLUMN(I4)-COLUMN($E4)<Base_V1_Years_Usage_Modeled,COLUMN(I4)-COLUMN($E4)>=5),Base_V1_Maint_Repair_Cost_Year_5_Modeled*Base_V1_VMT_Modeled,0)))*Data!G$81 -> -1298.918592 | J35: =-IF(_Base_V1_Maint_Repair_Cost_Use_Default="Yes",IF(COLUMN(J4)-COLUMN($E4)<Base_V1_Years_Usage_Modeled,VLOOKUP(_Base_V1_Vehicle_Drivetrain,DB_Maint_Repair_Costs[],COLUMN(J4)-COLUMN($E4)+2,FALSE)*Base_V1_VMT_Modeled,0),IF(AND(COLUMN(J4)-COLUMN($E4)<Base_V1_Years_Usage_Modeled,COLUMN(J4)-COLUMN($E4)<5),Base_V1_Maint_Repair_Cost_Year_1_Modeled*Base_V1_VMT_Modeled,IF(AND(COLUMN(J4)-COLUMN($E4)<Base_V1_Years_Usage_Modeled,COLUMN(J4)-COLUMN($E4)>=5),Base_V1_Maint_Repair_Cost_Year_5_Modeled*Base_V1_VMT_Modeled,0)))*Data!H$81 -> -1722.366053 | K35: =-IF(_Base_V1_Maint_Repair_Cost_Use_Default="Yes",IF(COLUMN(K4)-COLUMN($E4)<Base_V1_Years_Usage_Modeled,VLOOKUP(_Base_V1_Vehicle_Drivetrain,DB_Maint_Repair_Costs[],COLUMN(K4)-COLUMN($E4)+2,FALSE)*Base_V1_VMT_Modeled,0),IF(AND(COLUMN(K4)-COLUMN($E4)<Base_V1_Years_Usage_Modeled,COLUMN(K4)-COLUMN($E4)<5),Base_V1_Maint_Repair_Cost_Year_1_Modeled*Base_V1_VMT_Modeled,IF(AND(COLUMN(K4)-COLUMN($E4)<Base_V1_Years_Usage_Modeled,COLUMN(K4)-COLUMN($E4)>=5),Base_V1_Maint_Repair_Cost_Year_5_Modeled*Base_V1_VMT_Modeled,0)))*Data!I$81 -> -1756.813374 | L35: =-IF(_Base_V1_Maint_Repair_Cost_Use_Default="Yes",IF(COLUMN(L4)-COLUMN($E4)<Base_V1_Years_Usage_Modeled,VLOOKUP(_Base_V1_Vehicle_Drivetrain,DB_Maint_Repair_Costs[],COLUMN(L4)-COLUMN($E4)+2,FALSE)*Base_V1_VMT_Modeled,0),IF(AND(COLUMN(L4)-COLUMN($E4)<Base_V1_Years_Usage_Modeled,COLUMN(L4)-COLUMN($E4)<5),Base_V1_Maint_Repair_Cost_Year_1_Modeled*Base_V1_VMT_Modeled,IF(AND(COLUMN(L4)-COLUMN($E4)<Base_V1_Years_Usage_Modeled,COLUMN(L4)-COLUMN($E4)>=5),Base_V1_Maint_Repair_Cost_Year_5_Modeled*Base_V1_VMT_Modeled,0)))*Data!J$81 -> 0 | M35: =-IF(_Base_V1_Maint_Repair_Cost_Use_Default="Yes",IF(COLUMN(M4)-COLUMN($E4)<Base_V1_Years_Usage_Modeled,VLOOKUP(_Base_V1_Vehicle_Drivetrain,DB_Maint_Repair_Costs[],COLUMN(M4)-COLUMN($E4)+2,FALSE)*Base_V1_VMT_Modeled,0),IF(AND(COLUMN(M4)-COLUMN($E4)<Base_V1_Years_Usage_Modeled,COLUMN(M4)-COLUMN($E4)<5),Base_V1_Maint_Repair_Cost_Year_1_Modeled*Base_V1_VMT_Modeled,IF(AND(COLUMN(M4)-COLUMN($E4)<Base_V1_Years_Usage_Modeled,COLUMN(M4)-COLUMN($E4)>=5),Base_V1_Maint_Repair_Cost_Year_5_Modeled*Base_V1_VMT_Modeled,0)))*Data!K$81 -> 0 | N35: =-IF(_Base_V1_Maint_Repair_Cost_Use_Default="Yes",IF(COLUMN(N4)-COLUMN($E4)<Base_V1_Years_Usage_Modeled,VLOOKUP(_Base_V1_Vehicle_Drivetrain,DB_Maint_Repair_Costs[],COLUMN(N4)-COLUMN($E4)+2,FALSE)*Base_V1_VMT_Modeled,0),IF(AND(COLUMN(N4)-COLUMN($E4)<Base_V1_Years_Usage_Modeled,COLUMN(N4)-COLUMN($E4)<5),Base_V1_Maint_Repair_Cost_Year_1_Modeled*Base_V1_VMT_Modeled,IF(AND(COLUMN(N4)-COLUMN($E4)<Base_V1_Years_Usage_Modeled,COLUMN(N4)-COLUMN($E4)>=5),Base_V1_Maint_Repair_Cost_Year_5_Modeled*Base_V1_VMT_Modeled,0)))*Data!L$81 -> 0 | O35: =-IF(_Base_V1_Maint_Repair_Cost_Use_Default="Yes",IF(COLUMN(O4)-COLUMN($E4)<Base_V1_Years_Usage_Modeled,VLOOKUP(_Base_V1_Vehicle_Drivetrain,DB_Maint_Repair_Costs[],COLUMN(O4)-COLUMN($E4)+2,FALSE)*Base_V1_VMT_Modeled,0),IF(AND(COLUMN(O4)-COLUMN($E4)<Base_V1_Years_Usage_Modeled,COLUMN(O4)-COLUMN($E4)<5),Base_V1_Maint_Repair_Cost_Year_1_Modeled*Base_V1_VMT_Modeled,IF(AND(COLUMN(O4)-COLUMN($E4)<Base_V1_Years_Usage_Modeled,COLUMN(O4)-COLUMN($E4)>=5),Base_V1_Maint_Repair_Cost_Year_5_Modeled*Base_V1_VMT_Modeled,0)))*Data!M$81 -> 0 | P35: =-IF(_Base_V1_Maint_Repair_Cost_Use_Default="Yes",IF(COLUMN(P4)-COLUMN($E4)<Base_V1_Years_Usage_Modeled,VLOOKUP(_Base_V1_Vehicle_Drivetrain,DB_Maint_Repair_Costs[],COLUMN(P4)-COLUMN($E4)+2,FALSE)*Base_V1_VMT_Modeled,0),IF(AND(COLUMN(P4)-COLUMN($E4)<Base_V1_Years_Usage_Modeled,COLUMN(P4)-COLUMN($E4)<5),Base_V1_Maint_Repair_Cost_Year_1_Modeled*Base_V1_VMT_Modeled,IF(AND(COLUMN(P4)-COLUMN($E4)<Base_V1_Years_Usage_Modeled,COLUMN(P4)-COLUMN($E4)>=5),Base_V1_Maint_Repair_Cost_Year_5_Modeled*Base_V1_VMT_Modeled,0)))*Data!N$81 -> 0 | Q35: =-IF(_Base_V1_Maint_Repair_Cost_Use_Default="Yes",IF(COLUMN(Q4)-COLUMN($E4)<Base_V1_Years_Usage_Modeled,VLOOKUP(_Base_V1_Vehicle_Drivetrain,DB_Maint_Repair_Costs[],COLUMN(Q4)-COLUMN($E4)+2,FALSE)*Base_V1_VMT_Modeled,0),IF(AND(COLUMN(Q4)-COLUMN($E4)<Base_V1_Years_Usage_Modeled,COLUMN(Q4)-COLUMN($E4)<5),Base_V1_Maint_Repair_Cost_Year_1_Modeled*Base_V1_VMT_Modeled,IF(AND(COLUMN(Q4)-COLUMN($E4)<Base_V1_Years_Usage_Modeled,COLUMN(Q4)-COLUMN($E4)>=5),Base_V1_Maint_Repair_Cost_Year_5_Modeled*Base_V1_VMT_Modeled,0)))*Data!O$81 -> 0 | R35: =-IF(_Base_V1_Maint_Repair_Cost_Use_Default="Yes",IF(COLUMN(R4)-COLUMN($E4)<Base_V1_Years_Usage_Modeled,VLOOKUP(_Base_V1_Vehicle_Drivetrain,DB_Maint_Repair_Costs[],COLUMN(R4)-COLUMN($E4)+2,FALSE)*Base_V1_VMT_Modeled,0),IF(AND(COLUMN(R4)-COLUMN($E4)<Base_V1_Years_Usage_Modeled,COLUMN(R4)-COLUMN($E4)<5),Base_V1_Maint_Repair_Cost_Year_1_Modeled*Base_V1_VMT_Modeled,IF(AND(COLUMN(R4)-COLUMN($E4)<Base_V1_Years_Usage_Modeled,COLUMN(R4)-COLUMN($E4)>=5),Base_V1_Maint_Repair_Cost_Year_5_Modeled*Base_V1_VMT_Modeled,0)))*Data!P$81 -> 0 | S35: =-IF(_Base_V1_Maint_Repair_Cost_Use_Default="Yes",IF(COLUMN(S4)-COLUMN($E4)<Base_V1_Years_Usage_Modeled,VLOOKUP(_Base_V1_Vehicle_Drivetrain,DB_Maint_Repair_Costs[],COLUMN(S4)-COLUMN($E4)+2,FALSE)*Base_V1_VMT_Modeled,0),IF(AND(COLUMN(S4)-COLUMN($E4)<Base_V1_Years_Usage_Modeled,COLUMN(S4)-COLUMN($E4)<5),Base_V1_Maint_Repair_Cost_Year_1_Modeled*Base_V1_VMT_Modeled,IF(AND(COLUMN(S4)-COLUMN($E4)<Base_V1_Years_Usage_Modeled,COLUMN(S4)-COLUMN($E4)>=5),Base_V1_Maint_Repair_Cost_Year_5_Modeled*Base_V1_VMT_Modeled,0)))*Data!Q$81 -> 0 | T35: =-IF(_Base_V1_Maint_Repair_Cost_Use_Default="Yes",IF(COLUMN(T4)-COLUMN($E4)<Base_V1_Years_Usage_Modeled,VLOOKUP(_Base_V1_Vehicle_Drivetrain,DB_Maint_Repair_Costs[],COLUMN(T4)-COLUMN($E4)+2,FALSE)*Base_V1_VMT_Modeled,0),IF(AND(COLUMN(T4)-COLUMN($E4)<Base_V1_Years_Usage_Modeled,COLUMN(T4)-COLUMN($E4)<5),Base_V1_Maint_Repair_Cost_Year_1_Modeled*Base_V1_VMT_Modeled,IF(AND(COLUMN(T4)-COLUMN($E4)<Base_V1_Years_Usage_Modeled,COLUMN(T4)-COLUMN($E4)>=5),Base_V1_Maint_Repair_Cost_Year_5_Modeled*Base_V1_VMT_Modeled,0)))*Data!R$81 -> 0 | U35: =-IF(_Base_V1_Maint_Repair_Cost_Use_Default="Yes",IF(COLUMN(U4)-COLUMN($E4)<Base_V1_Years_Usage_Modeled,VLOOKUP(_Base_V1_Vehicle_Drivetrain,DB_Maint_Repair_Costs[],COLUMN(U4)-COLUMN($E4)+2,FALSE)*Base_V1_VMT_Modeled,0),IF(AND(COLUMN(U4)-COLUMN($E4)<Base_V1_Years_Usage_Modeled,COLUMN(U4)-COLUMN($E4)<5),Base_V1_Maint_Repair_Cost_Year_1_Modeled*Base_V1_VMT_Modeled,IF(AND(COLUMN(U4)-COLUMN($E4)<Base_V1_Years_Usage_Modeled,COLUMN(U4)-COLUMN($E4)>=5),Base_V1_Maint_Repair_Cost_Year_5_Modeled*Base_V1_VMT_Modeled,0)))*Data!S$81 -> 0 | V35: =-IF(_Base_V1_Maint_Repair_Cost_Use_Default="Yes",IF(COLUMN(V4)-COLUMN($E4)<Base_V1_Years_Usage_Modeled,VLOOKUP(_Base_V1_Vehicle_Drivetrain,DB_Maint_Repair_Costs[],COLUMN(V4)-COLUMN($E4)+2,FALSE)*Base_V1_VMT_Modeled,0),IF(AND(COLUMN(V4)-COLUMN($E4)<Base_V1_Years_Usage_Modeled,COLUMN(V4)-COLUMN($E4)<5),Base_V1_Maint_Repair_Cost_Year_1_Modeled*Base_V1_VMT_Modeled,IF(AND(COLUMN(V4)-COLUMN($E4)<Base_V1_Years_Usage_Modeled,COLUMN(V4)-COLUMN($E4)>=5),Base_V1_Maint_Repair_Cost_Year_5_Modeled*Base_V1_VMT_Modeled,0)))*Data!T$81 -> 0 | W35: =-IF(_Base_V1_Maint_Repair_Cost_Use_Default="Yes",IF(COLUMN(W4)-COLUMN($E4)<Base_V1_Years_Usage_Modeled,VLOOKUP(_Base_V1_Vehicle_Drivetrain,DB_Maint_Repair_Costs[],COLUMN(W4)-COLUMN($E4)+2,FALSE)*Base_V1_VMT_Modeled,0),IF(AND(COLUMN(W4)-COLUMN($E4)<Base_V1_Years_Usage_Modeled,COLUMN(W4)-COLUMN($E4)<5),Base_V1_Maint_Repair_Cost_Year_1_Modeled*Base_V1_VMT_Modeled,IF(AND(COLUMN(W4)-COLUMN($E4)<Base_V1_Years_Usage_Modeled,COLUMN(W4)-COLUMN($E4)>=5),Base_V1_Maint_Repair_Cost_Year_5_Modeled*Base_V1_VMT_Modeled,0)))*Data!U$81 -> 0 | X35: =-IF(_Base_V1_Maint_Repair_Cost_Use_Default="Yes",IF(COLUMN(X4)-COLUMN($E4)<Base_V1_Years_Usage_Modeled,VLOOKUP(_Base_V1_Vehicle_Drivetrain,DB_Maint_Repair_Costs[],COLUMN(X4)-COLUMN($E4)+2,FALSE)*Base_V1_VMT_Modeled,0),IF(AND(COLUMN(X4)-COLUMN($E4)<Base_V1_Years_Usage_Modeled,COLUMN(X4)-COLUMN($E4)<5),Base_V1_Maint_Repair_Cost_Year_1_Modeled*Base_V1_VMT_Modeled,IF(AND(COLUMN(X4)-COLUMN($E4)<Base_V1_Years_Usage_Modeled,COLUMN(X4)-COLUMN($E4)>=5),Base_V1_Maint_Repair_Cost_Year_5_Modeled*Base_V1_VMT_Modeled,0)))*Data!V$81 -> 0 | Y35: =-IF(_Base_V1_Maint_Repair_Cost_Use_Default="Yes",IF(COLUMN(Y4)-COLUMN($E4)<Base_V1_Years_Usage_Modeled,VLOOKUP(_Base_V1_Vehicle_Drivetrain,DB_Maint_Repair_Costs[],COLUMN(Y4)-COLUMN($E4)+2,FALSE)*Base_V1_VMT_Modeled,0),IF(AND(COLUMN(Y4)-COLUMN($E4)<Base_V1_Years_Usage_Modeled,COLUMN(Y4)-COLUMN($E4)<5),Base_V1_Maint_Repair_Cost_Year_1_Modeled*Base_V1_VMT_Modeled,IF(AND(COLUMN(Y4)-COLUMN($E4)<Base_V1_Years_Usage_Modeled,COLUMN(Y4)-COLUMN($E4)>=5),Base_V1_Maint_Repair_Cost_Year_5_Modeled*Base_V1_VMT_Modeled,0)))*Data!W$81 -> 0 | Z35: =-IF(_Base_V1_Maint_Repair_Cost_Use_Default="Yes",IF(COLUMN(Z4)-COLUMN($E4)<Base_V1_Years_Usage_Modeled,VLOOKUP(_Base_V1_Vehicle_Drivetrain,DB_Maint_Repair_Costs[],COLUMN(Z4)-COLUMN($E4)+2,FALSE)*Base_V1_VMT_Modeled,0),IF(AND(COLUMN(Z4)-COLUMN($E4)<Base_V1_Years_Usage_Modeled,COLUMN(Z4)-COLUMN($E4)<5),Base_V1_Maint_Repair_Cost_Year_1_Modeled*Base_V1_VMT_Modeled,IF(AND(COLUMN(Z4)-COLUMN($E4)<Base_V1_Years_Usage_Modeled,COLUMN(Z4)-COLUMN($E4)>=5),Base_V1_Maint_Repair_Cost_Year_5_Modeled*Base_V1_VMT_Modeled,0)))*Data!X$81 -> 0 | AA35: =-IF(_Base_V1_Maint_Repair_Cost_Use_Default="Yes",IF(COLUMN(AA4)-COLUMN($E4)<Base_V1_Years_Usage_Modeled,VLOOKUP(_Base_V1_Vehicle_Drivetrain,DB_Maint_Repair_Costs[],COLUMN(AA4)-COLUMN($E4)+2,FALSE)*Base_V1_VMT_Modeled,0),IF(AND(COLUMN(AA4)-COLUMN($E4)<Base_V1_Years_Usage_Modeled,COLUMN(AA4)-COLUMN($E4)<5),Base_V1_Maint_Repair_Cost_Year_1_Modeled*Base_V1_VMT_Modeled,IF(AND(COLUMN(AA4)-COLUMN($E4)<Base_V1_Years_Usage_Modeled,COLUMN(AA4)-COLUMN($E4)>=5),Base_V1_Maint_Repair_Cost_Year_5_Modeled*Base_V1_VMT_Modeled,0)))*Data!Y$81 -> 0 | AB35: =-IF(_Base_V1_Maint_Repair_Cost_Use_Default="Yes",IF(COLUMN(AB4)-COLUMN($E4)<Base_V1_Years_Usage_Modeled,VLOOKUP(_Base_V1_Vehicle_Drivetrain,DB_Maint_Repair_Costs[],COLUMN(AB4)-COLUMN($E4)+2,FALSE)*Base_V1_VMT_Modeled,0),IF(AND(COLUMN(AB4)-COLUMN($E4)<Base_V1_Years_Usage_Modeled,COLUMN(AB4)-COLUMN($E4)<5),Base_V1_Maint_Repair_Cost_Year_1_Modeled*Base_V1_VMT_Modeled,IF(AND(COLUMN(AB4)-COLUMN($E4)<Base_V1_Years_Usage_Modeled,COLUMN(AB4)-COLUMN($E4)>=5),Base_V1_Maint_Repair_Cost_Year_5_Modeled*Base_V1_VMT_Modeled,0)))*Data!Z$81 -> 0 | AC35: =-IF(_Base_V1_Maint_Repair_Cost_Use_Default="Yes",IF(COLUMN(AC4)-COLUMN($E4)<Base_V1_Years_Usage_Modeled,VLOOKUP(_Base_V1_Vehicle_Drivetrain,DB_Maint_Repair_Costs[],COLUMN(AC4)-COLUMN($E4)+2,FALSE)*Base_V1_VMT_Modeled,0),IF(AND(COLUMN(AC4)-COLUMN($E4)<Base_V1_Years_Usage_Modeled,COLUMN(AC4)-COLUMN($E4)<5),Base_V1_Maint_Repair_Cost_Year_1_Modeled*Base_V1_VMT_Modeled,IF(AND(COLUMN(AC4)-COLUMN($E4)<Base_V1_Years_Usage_Modeled,COLUMN(AC4)-COLUMN($E4)>=5),Base_V1_Maint_Repair_Cost_Year_5_Modeled*Base_V1_VMT_Modeled,0)))*Data!AA$81 -> 0
B36: Taxes and Fees | D36: =-Base_V1_Initial_Taxes_Fees_Modeled-(Base_V1_Initial_Percent_Base_Price_Modeled*Base_V1_Base_Price_Ex) -> -1000 | E36: =-IF(COLUMN(E4)-COLUMN($E4)<Base_V1_Years_Usage_Modeled,Base_V1_Taxes_Fees_Modeled,0)*Data!C$81 -> -10 | F36: =-IF(COLUMN(F4)-COLUMN($E4)<Base_V1_Years_Usage_Modeled,Base_V1_Taxes_Fees_Modeled,0)*Data!D$81 -> -10.2 | G36: =-IF(COLUMN(G4)-COLUMN($E4)<Base_V1_Years_Usage_Modeled,Base_V1_Taxes_Fees_Modeled,0)*Data!E$81 -> -10.404 | H36: =-IF(COLUMN(H4)-COLUMN($E4)<Base_V1_Years_Usage_Modeled,Base_V1_Taxes_Fees_Modeled,0)*Data!F$81 -> -10.61208 | I36: =-IF(COLUMN(I4)-COLUMN($E4)<Base_V1_Years_Usage_Modeled,Base_V1_Taxes_Fees_Modeled,0)*Data!G$81 -> -10.8243216 | J36: =-IF(COLUMN(J4)-COLUMN($E4)<Base_V1_Years_Usage_Modeled,Base_V1_Taxes_Fees_Modeled,0)*Data!H$81 -> -11.04080803 | K36: =-IF(COLUMN(K4)-COLUMN($E4)<Base_V1_Years_Usage_Modeled,Base_V1_Taxes_Fees_Modeled,0)*Data!I$81 -> -11.26162419 | L36: =-IF(COLUMN(L4)-COLUMN($E4)<Base_V1_Years_Usage_Modeled,Base_V1_Taxes_Fees_Modeled,0)*Data!J$81 -> 0 | M36: =-IF(COLUMN(M4)-COLUMN($E4)<Base_V1_Years_Usage_Modeled,Base_V1_Taxes_Fees_Modeled,0)*Data!K$81 -> 0 | N36: =-IF(COLUMN(N4)-COLUMN($E4)<Base_V1_Years_Usage_Modeled,Base_V1_Taxes_Fees_Modeled,0)*Data!L$81 -> 0 | O36: =-IF(COLUMN(O4)-COLUMN($E4)<Base_V1_Years_Usage_Modeled,Base_V1_Taxes_Fees_Modeled,0)*Data!M$81 -> 0 | P36: =-IF(COLUMN(P4)-COLUMN($E4)<Base_V1_Years_Usage_Modeled,Base_V1_Taxes_Fees_Modeled,0)*Data!N$81 -> 0 | Q36: =-IF(COLUMN(Q4)-COLUMN($E4)<Base_V1_Years_Usage_Modeled,Base_V1_Taxes_Fees_Modeled,0)*Data!O$81 -> 0 | R36: =-IF(COLUMN(R4)-COLUMN($E4)<Base_V1_Years_Usage_Modeled,Base_V1_Taxes_Fees_Modeled,0)*Data!P$81 -> 0 | S36: =-IF(COLUMN(S4)-COLUMN($E4)<Base_V1_Years_Usage_Modeled,Base_V1_Taxes_Fees_Modeled,0)*Data!Q$81 -> 0 | T36: =-IF(COLUMN(T4)-COLUMN($E4)<Base_V1_Years_Usage_Modeled,Base_V1_Taxes_Fees_Modeled,0)*Data!R$81 -> 0 | U36: =-IF(COLUMN(U4)-COLUMN($E4)<Base_V1_Years_Usage_Modeled,Base_V1_Taxes_Fees_Modeled,0)*Data!S$81 -> 0 | V36: =-IF(COLUMN(V4)-COLUMN($E4)<Base_V1_Years_Usage_Modeled,Base_V1_Taxes_Fees_Modeled,0)*Data!T$81 -> 0 | W36: =-IF(COLUMN(W4)-COLUMN($E4)<Base_V1_Years_Usage_Modeled,Base_V1_Taxes_Fees_Modeled,0)*Data!U$81 -> 0 | X36: =-IF(COLUMN(X4)-COLUMN($E4)<Base_V1_Years_Usage_Modeled,Base_V1_Taxes_Fees_Modeled,0)*Data!V$81 -> 0 | Y36: =-IF(COLUMN(Y4)-COLUMN($E4)<Base_V1_Years_Usage_Modeled,Base_V1_Taxes_Fees_Modeled,0)*Data!W$81 -> 0 | Z36: =-IF(COLUMN(Z4)-COLUMN($E4)<Base_V1_Years_Usage_Modeled,Base_V1_Taxes_Fees_Modeled,0)*Data!X$81 -> 0 | AA36: =-IF(COLUMN(AA4)-COLUMN($E4)<Base_V1_Years_Usage_Modeled,Base_V1_Taxes_Fees_Modeled,0)*Data!Y$81 -> 0 | AB36: =-IF(COLUMN(AB4)-COLUMN($E4)<Base_V1_Years_Usage_Modeled,Base_V1_Taxes_Fees_Modeled,0)*Data!Z$81 -> 0 | AC36: =-IF(COLUMN(AC4)-COLUMN($E4)<Base_V1_Years_Usage_Modeled,Base_V1_Taxes_Fees_Modeled,0)*Data!AA$81 -> 0
B37: Insurance Cost | E37: =-IF(COLUMN(E4)-COLUMN($E4)<Base_V1_Years_Usage_Modeled,Base_V1_Insurance_Cost_Modeled,0)*Data!C$81 -> -1222 | F37: =-IF(COLUMN(F4)-COLUMN($E4)<Base_V1_Years_Usage_Modeled,Base_V1_Insurance_Cost_Modeled,0)*Data!D$81 -> -1246.44 | G37: =-IF(COLUMN(G4)-COLUMN($E4)<Base_V1_Years_Usage_Modeled,Base_V1_Insurance_Cost_Modeled,0)*Data!E$81 -> -1271.3688 | H37: =-IF(COLUMN(H4)-COLUMN($E4)<Base_V1_Years_Usage_Modeled,Base_V1_Insurance_Cost_Modeled,0)*Data!F$81 -> -1296.796176 | I37: =-IF(COLUMN(I4)-COLUMN($E4)<Base_V1_Years_Usage_Modeled,Base_V1_Insurance_Cost_Modeled,0)*Data!G$81 -> -1322.7321 | J37: =-IF(COLUMN(J4)-COLUMN($E4)<Base_V1_Years_Usage_Modeled,Base_V1_Insurance_Cost_Modeled,0)*Data!H$81 -> -1349.186742 | K37: =-IF(COLUMN(K4)-COLUMN($E4)<Base_V1_Years_Usage_Modeled,Base_V1_Insurance_Cost_Modeled,0)*Data!I$81 -> -1376.170476 | L37: =-IF(COLUMN(L4)-COLUMN($E4)<Base_V1_Years_Usage_Modeled,Base_V1_Insurance_Cost_Modeled,0)*Data!J$81 -> 0 | M37: =-IF(COLUMN(M4)-COLUMN($E4)<Base_V1_Years_Usage_Modeled,Base_V1_Insurance_Cost_Modeled,0)*Data!K$81 -> 0 | N37: =-IF(COLUMN(N4)-COLUMN($E4)<Base_V1_Years_Usage_Modeled,Base_V1_Insurance_Cost_Modeled,0)*Data!L$81 -> 0 | O37: =-IF(COLUMN(O4)-COLUMN($E4)<Base_V1_Years_Usage_Modeled,Base_V1_Insurance_Cost_Modeled,0)*Data!M$81 -> 0 | P37: =-IF(COLUMN(P4)-COLUMN($E4)<Base_V1_Years_Usage_Modeled,Base_V1_Insurance_Cost_Modeled,0)*Data!N$81 -> 0 | Q37: =-IF(COLUMN(Q4)-COLUMN($E4)<Base_V1_Years_Usage_Modeled,Base_V1_Insurance_Cost_Modeled,0)*Data!O$81 -> 0 | R37: =-IF(COLUMN(R4)-COLUMN($E4)<Base_V1_Years_Usage_Modeled,Base_V1_Insurance_Cost_Modeled,0)*Data!P$81 -> 0 | S37: =-IF(COLUMN(S4)-COLUMN($E4)<Base_V1_Years_Usage_Modeled,Base_V1_Insurance_Cost_Modeled,0)*Data!Q$81 -> 0 | T37: =-IF(COLUMN(T4)-COLUMN($E4)<Base_V1_Years_Usage_Modeled,Base_V1_Insurance_Cost_Modeled,0)*Data!R$81 -> 0 | U37: =-IF(COLUMN(U4)-COLUMN($E4)<Base_V1_Years_Usage_Modeled,Base_V1_Insurance_Cost_Modeled,0)*Data!S$81 -> 0 | V37: =-IF(COLUMN(V4)-COLUMN($E4)<Base_V1_Years_Usage_Modeled,Base_V1_Insurance_Cost_Modeled,0)*Data!T$81 -> 0 | W37: =-IF(COLUMN(W4)-COLUMN($E4)<Base_V1_Years_Usage_Modeled,Base_V1_Insurance_Cost_Modeled,0)*Data!U$81 -> 0 | X37: =-IF(COLUMN(X4)-COLUMN($E4)<Base_V1_Years_Usage_Modeled,Base_V1_Insurance_Cost_Modeled,0)*Data!V$81 -> 0 | Y37: =-IF(COLUMN(Y4)-COLUMN($E4)<Base_V1_Years_Usage_Modeled,Base_V1_Insurance_Cost_Modeled,0)*Data!W$81 -> 0 | Z37: =-IF(COLUMN(Z4)-COLUMN($E4)<Base_V1_Years_Usage_Modeled,Base_V1_Insurance_Cost_Modeled,0)*Data!X$81 -> 0 | AA37: =-IF(COLUMN(AA4)-COLUMN($E4)<Base_V1_Years_Usage_Modeled,Base_V1_Insurance_Cost_Modeled,0)*Data!Y$81 -> 0 | AB37: =-IF(COLUMN(AB4)-COLUMN($E4)<Base_V1_Years_Usage_Modeled,Base_V1_Insurance_Cost_Modeled,0)*Data!Z$81 -> 0 | AC37: =-IF(COLUMN(AC4)-COLUMN($E4)<Base_V1_Years_Usage_Modeled,Base_V1_Insurance_Cost_Modeled,0)*Data!AA$81 -> 0
B38: Subtotal Fuel and Operating Costs | D38: =SUM(D34:D37) -> -1000 | E38: -3457.95 | F38: -3597.794362 | G38: -3729.468789 | H38: -3900.565802 | I38: -4018.42748 | J38: -4512.440205 | K38: -4595.985442 | L38: 0 | M38: 0 | N38: 0 | O38: 0 | P38: 0 | Q38: 0 | R38: 0 | S38: 0 | T38: 0 | U38: 0 | V38: 0 | W38: 0 | X38: 0 | Y38: 0 | Z38: 0 | AA38: 0 | AB38: 0 | AC38: 0
B40: Other Costs
B41: Cost of Carbon | E41: =-IF(COLUMN(E4)-COLUMN($E4)<Base_V1_Years_Usage_Modeled,Base_V1_CO2_Ex/2204.62*Carbon_Price_Modeled,0) -> 0 | F41: 0 | G41: 0 | H41: 0 | I41: 0 | J41: 0 | K41: 0 | L41: 0 | M41: 0 | N41: 0 | O41: 0 | P41: 0 | Q41: 0 | R41: 0 | S41: 0 | T41: 0 | U41: 0 | V41: 0 | W41: 0 | X41: 0 | Y41: 0 | Z41: 0 | AA41: 0 | AB41: 0 | AC41: 0
B42: Subtotal Other Costs | D42: =SUM(D41:D41) -> 0 | E42: 0 | F42: 0 | G42: 0 | H42: 0 | I42: 0 | J42: 0 | K42: 0 | L42: 0 | M42: 0 | N42: 0 | O42: 0 | P42: 0 | Q42: 0 | R42: 0 | S42: 0 | T42: 0 | U42: 0 | V42: 0 | W42: 0 | X42: 0 | Y42: 0 | Z42: 0 | AA42: 0 | AB42: 0 | AC42: =SUM(AC41:AC41) -> 0
B44: Total Discounted Costs
B45: Total Annual Costs | D45: =D31+D38+D42 -> -19224 | E45: -3457.95 | F45: -3597.794362 | G45: -3729.468789 | H45: -3900.565802 | I45: -4018.42748 | J45: -4512.440205 | K45: -1942.912172 | L45: 0 | M45: 0 | N45: 0 | O45: 0 | P45: 0 | Q45: 0 | R45: 0 | S45: 0 | T45: 0 | U45: 0 | V45: 0 | W45: 0 | X45: 0 | Y45: 0 | Z45: 0 | AA45: 0 | AB45: 0 | AC45: 0
B46: Discount Factor | C46: =Base_Discount_Rate_Modeled -> 0 | D46: =(1/(1+$C46))^(COLUMN(D4)-COLUMN($D4)) -> 1 | E46: 1 | F46: 1 | G46: 1 | H46: 1 | I46: 1 | J46: 1 | K46: 1 | L46: 1 | M46: 1 | N46: 1 | O46: 1 | P46: 1 | Q46: 1 | R46: 1 | S46: 1 | T46: 1 | U46: 1 | V46: 1 | W46: 1 | X46: 1 | Y46: 1 | Z46: 1 | AA46: 1 | AB46: 1 | AC46: 1
B47: Discounted Total | D47: =D45*D46 -> -19224 | E47: =E45*E46 -> -3457.95 | F47: =F45*F46 -> -3597.794362 | G47: -3729.468789 | H47: -3900.565802 | I47: -4018.42748 | J47: -4512.440205 | K47: -1942.912172 | L47: 0 | M47: 0 | N47: 0 | O47: 0 | P47: 0 | Q47: 0 | R47: 0 | S47: 0 | T47: 0 | U47: 0 | V47: 0 | W47: 0 | X47: 0 | Y47: 0 | Z47: 0 | AA47: 0 | AB47: 0 | AC47: 0
B48: Cumulative Discounted Total | D48: =IF((COLUMN(D4)-COLUMN($D4))<=Base_V1_Years_Usage_Modeled,C48+D47,0) -> -19224 | E48: -22681.95 | F48: -26279.74436 | G48: -30009.21315 | H48: -33909.77895 | I48: -37928.20643 | J48: -42440.64664 | K48: -44383.55881 | L48: 0 | M48: 0 | N48: 0 | O48: 0 | P48: 0 | Q48: 0 | R48: 0 | S48: 0 | T48: 0 | U48: 0 | V48: 0 | W48: 0 | X48: 0 | Y48: 0 | Z48: 0 | AA48: 0 | AB48: 0 | AC48: 0
B49: Annualized NPV Total Cost of Ownership | D49: =OFFSET($D48,0,Base_V1_Years_Usage_Modeled)/Base_V1_Years_Usage_Modeled -> -6340.508402
B51: Baseline EV Infrastructure
D52: Year 0 | E52: Year 1 | F52: Year 2 | G52: Year 3 | H52: Year 4 | I52: Year 5 | J52: Year 6 | K52: Year 7 | L52: Year 8 | M52: Year 9 | N52: Year 10 | O52: Year 11 | P52: Year 12 | Q52: Year 13 | R52: Year 14 | S52: Year 15 | T52: Year 16 | U52: Year 17 | V52: Year 18 | W52: Year 19 | X52: Year 20 | Y52: Year 21 | Z52: Year 22 | AA52: Year 23 | AB52: Year 24 | AC52: Year 25
B53: Capital and Financing Costs
B54: Cash
B55: Cash Payment | D55: =IF(AND(Base_Inf_Has_Cash_Purchase_Ex=TRUE,_Base_Include_Charging="Yes"),-Base_Num_Stations_Modeled*Base_Station_Cost_Modeled,0) -> 0
B56: Loan
B57: Down Payment | D57: =IF(AND(Base_Inf_Has_Cash_Purchase_Ex=FALSE,_Base_Include_Charging="Yes"),-Base_Inf_Down_Payment_Modeled,0) -> 0
B58: Loan Payments | E58: =IF(AND(Base_Inf_Has_Cash_Purchase_Ex=FALSE,_Base_Include_Charging="Yes",(COLUMN(E52)-COLUMN($E52))<Base_Inf_Loan_Term_Modeled),PMT(Base_Inf_Loan_APR_Modeled/12,Base_Inf_Loan_Term_Modeled*12,(Base_Num_Stations_Modeled*Base_Station_Cost_Modeled)-Base_Inf_Down_Payment_Modeled,0)*12,0) -> 0 | F58: 0 | G58: 0 | H58: 0 | I58: 0 | J58: 0 | K58: 0 | L58: 0 | M58: 0 | N58: 0 | O58: 0 | P58: 0 | Q58: 0 | R58: 0 | S58: 0 | T58: 0 | U58: 0 | V58: 0 | W58: 0 | X58: 0 | Y58: 0 | Z58: 0 | AA58: 0 | AB58: 0 | AC58: 0
B59: Subtotal Loan Cash Flows | D59: =SUM(D57:D58) -> 0 | E59: =SUM(E57:E58) -> 0 | F59: 0 | G59: 0 | H59: 0 | I59: 0 | J59: 0 | K59: 0 | L59: 0 | M59: 0 | N59: 0 | O59: 0 | P59: 0 | Q59: 0 | R59: 0 | S59: 0 | T59: 0 | U59: 0 | V59: 0 | W59: 0 | X59: 0 | Y59: 0 | Z59: 0 | AA59: 0 | AB59: 0 | AC59: 0
B61: Total Capital and Financing Costs | D61: =D55+D59 -> 0 | E61: =E55+E59 -> 0 | F61: 0 | G61: 0 | H61: 0 | I61: 0 | J61: 0 | K61: 0 | L61: 0 | M61: 0 | N61: 0 | O61: 0 | P61: 0 | Q61: 0 | R61: 0 | S61: 0 | T61: 0 | U61: 0 | V61: 0 | W61: 0 | X61: 0 | Y61: 0 | Z61: 0 | AA61: 0 | AB61: 0 | AC61: 0
B63: Operating Costs
B64: Maintenance Cost | E64: =-IF(AND(COLUMN(E52)-COLUMN($E52)<Base_V1_Years_Usage_Modeled,_Base_Include_Charging="Yes"),Base_Station_Maint_Cost_Modeled*Base_Num_Stations_Modeled,0)*Data!C$81 -> 0 | F64: =-IF(AND(COLUMN(F52)-COLUMN($E52)<Base_V1_Years_Usage_Modeled,_Base_Include_Charging="Yes"),Base_Station_Maint_Cost_Modeled*Base_Num_Stations_Modeled,0)*Data!D$81 -> 0 | G64: =-IF(AND(COLUMN(G52)-COLUMN($E52)<Base_V1_Years_Usage_Modeled,_Base_Include_Charging="Yes"),Base_Station_Maint_Cost_Modeled*Base_Num_Stations_Modeled,0)*Data!E$81 -> 0 | H64: =-IF(AND(COLUMN(H52)-COLUMN($E52)<Base_V1_Years_Usage_Modeled,_Base_Include_Charging="Yes"),Base_Station_Maint_Cost_Modeled*Base_Num_Stations_Modeled,0)*Data!F$81 -> 0 | I64: =-IF(AND(COLUMN(I52)-COLUMN($E52)<Base_V1_Years_Usage_Modeled,_Base_Include_Charging="Yes"),Base_Station_Maint_Cost_Modeled*Base_Num_Stations_Modeled,0)*Data!G$81 -> 0 | J64: =-IF(AND(COLUMN(J52)-COLUMN($E52)<Base_V1_Years_Usage_Modeled,_Base_Include_Charging="Yes"),Base_Station_Maint_Cost_Modeled*Base_Num_Stations_Modeled,0)*Data!H$81 -> 0 | K64: =-IF(AND(COLUMN(K52)-COLUMN($E52)<Base_V1_Years_Usage_Modeled,_Base_Include_Charging="Yes"),Base_Station_Maint_Cost_Modeled*Base_Num_Stations_Modeled,0)*Data!I$81 -> 0 | L64: =-IF(AND(COLUMN(L52)-COLUMN($E52)<Base_V1_Years_Usage_Modeled,_Base_Include_Charging="Yes"),Base_Station_Maint_Cost_Modeled*Base_Num_Stations_Modeled,0)*Data!J$81 -> 0 | M64: =-IF(AND(COLUMN(M52)-COLUMN($E52)<Base_V1_Years_Usage_Modeled,_Base_Include_Charging="Yes"),Base_Station_Maint_Cost_Modeled*Base_Num_Stations_Modeled,0)*Data!K$81 -> 0 | N64: =-IF(AND(COLUMN(N52)-COLUMN($E52)<Base_V1_Years_Usage_Modeled,_Base_Include_Charging="Yes"),Base_Station_Maint_Cost_Modeled*Base_Num_Stations_Modeled,0)*Data!L$81 -> 0 | O64: =-IF(AND(COLUMN(O52)-COLUMN($E52)<Base_V1_Years_Usage_Modeled,_Base_Include_Charging="Yes"),Base_Station_Maint_Cost_Modeled*Base_Num_Stations_Modeled,0)*Data!M$81 -> 0 | P64: =-IF(AND(COLUMN(P52)-COLUMN($E52)<Base_V1_Years_Usage_Modeled,_Base_Include_Charging="Yes"),Base_Station_Maint_Cost_Modeled*Base_Num_Stations_Modeled,0)*Data!N$81 -> 0 | Q64: =-IF(AND(COLUMN(Q52)-COLUMN($E52)<Base_V1_Years_Usage_Modeled,_Base_Include_Charging="Yes"),Base_Station_Maint_Cost_Modeled*Base_Num_Stations_Modeled,0)*Data!O$81 -> 0 | R64: =-IF(AND(COLUMN(R52)-COLUMN($E52)<Base_V1_Years_Usage_Modeled,_Base_Include_Charging="Yes"),Base_Station_Maint_Cost_Modeled*Base_Num_Stations_Modeled,0)*Data!P$81 -> 0 | S64: =-IF(AND(COLUMN(S52)-COLUMN($E52)<Base_V1_Years_Usage_Modeled,_Base_Include_Charging="Yes"),Base_Station_Maint_Cost_Modeled*Base_Num_Stations_Modeled,0)*Data!Q$81 -> 0 | T64: =-IF(AND(COLUMN(T52)-COLUMN($E52)<Base_V1_Years_Usage_Modeled,_Base_Include_Charging="Yes"),Base_Station_Maint_Cost_Modeled*Base_Num_Stations_Modeled,0)*Data!R$81 -> 0 | U64: =-IF(AND(COLUMN(U52)-COLUMN($E52)<Base_V1_Years_Usage_Modeled,_Base_Include_Charging="Yes"),Base_Station_Maint_Cost_Modeled*Base_Num_Stations_Modeled,0)*Data!S$81 -> 0 | V64: =-IF(AND(COLUMN(V52)-COLUMN($E52)<Base_V1_Years_Usage_Modeled,_Base_Include_Charging="Yes"),Base_Station_Maint_Cost_Modeled*Base_Num_Stations_Modeled,0)*Data!T$81 -> 0 | W64: =-IF(AND(COLUMN(W52)-COLUMN($E52)<Base_V1_Years_Usage_Modeled,_Base_Include_Charging="Yes"),Base_Station_Maint_Cost_Modeled*Base_Num_Stations_Modeled,0)*Data!U$81 -> 0 | X64: =-IF(AND(COLUMN(X52)-COLUMN($E52)<Base_V1_Years_Usage_Modeled,_Base_Include_Charging="Yes"),Base_Station_Maint_Cost_Modeled*Base_Num_Stations_Modeled,0)*Data!V$81 -> 0 | Y64: =-IF(AND(COLUMN(Y52)-COLUMN($E52)<Base_V1_Years_Usage_Modeled,_Base_Include_Charging="Yes"),Base_Station_Maint_Cost_Modeled*Base_Num_Stations_Modeled,0)*Data!W$81 -> 0 | Z64: =-IF(AND(COLUMN(Z52)-COLUMN($E52)<Base_V1_Years_Usage_Modeled,_Base_Include_Charging="Yes"),Base_Station_Maint_Cost_Modeled*Base_Num_Stations_Modeled,0)*Data!X$81 -> 0 | AA64: =-IF(AND(COLUMN(AA52)-COLUMN($E52)<Base_V1_Years_Usage_Modeled,_Base_Include_Charging="Yes"),Base_Station_Maint_Cost_Modeled*Base_Num_Stations_Modeled,0)*Data!Y$81 -> 0 | AB64: =-IF(AND(COLUMN(AB52)-COLUMN($E52)<Base_V1_Years_Usage_Modeled,_Base_Include_Charging="Yes"),Base_Station_Maint_Cost_Modeled*Base_Num_Stations_Modeled,0)*Data!Z$81 -> 0 | AC64: =-IF(AND(COLUMN(AC52)-COLUMN($E52)<Base_V1_Years_Usage_Modeled,_Base_Include_Charging="Yes"),Base_Station_Maint_Cost_Modeled*Base_Num_Stations_Modeled,0)*Data!AA$81 -> 0
B65: Subtotal Operating Costs | E65: =SUM(E64:E64) -> 0 | F65: 0 | G65: 0 | H65: 0 | I65: 0 | J65: 0 | K65: 0 | L65: 0 | M65: 0 | N65: 0 | O65: 0 | P65: 0 | Q65: 0 | R65: 0 | S65: 0 | T65: 0 | U65: 0 | V65: 0 | W65: 0 | X65: 0 | Y65: 0 | Z65: 0 | AA65: 0 | AB65: 0 | AC65: 0
B66: Total Discounted Costs
B67: Total Annual Costs | D67: =D61+D65 -> 0 | E67: =E61+E65 -> 0 | F67: 0 | G67: 0 | H67: 0 | I67: 0 | J67: 0 | K67: 0 | L67: 0 | M67: 0 | N67: 0 | O67: 0 | P67: 0 | Q67: 0 | R67: 0 | S67: 0 | T67: 0 | U67: 0 | V67: 0 | W67: 0 | X67: 0 | Y67: 0 | Z67: 0 | AA67: 0 | AB67: 0 | AC67: 0
B68: Discount Factor | C68: =Base_Discount_Rate_Modeled -> 0 | D68: =(1/(1+$C68))^(COLUMN(D52)-COLUMN($D52)) -> 1 | E68: 1 | F68: 1 | G68: 1 | H68: 1 | I68: 1 | J68: 1 | K68: 1 | L68: 1 | M68: 1 | N68: 1 | O68: 1 | P68: 1 | Q68: 1 | R68: 1 | S68: 1 | T68: 1 | U68: 1 | V68: 1 | W68: 1 | X68: 1 | Y68: 1 | Z68: 1 | AA68: 1 | AB68: 1 | AC68: 1
B69: Discounted Total | D69: =D67*D68 -> 0 | E69: =E67*E68 -> 0 | F69: =F67*F68 -> 0 | G69: 0 | H69: 0 | I69: 0 | J69: 0 | K69: 0 | L69: 0 | M69: 0 | N69: 0 | O69: 0 | P69: 0 | Q69: 0 | R69: 0 | S69: 0 | T69: 0 | U69: 0 | V69: 0 | W69: 0 | X69: 0 | Y69: 0 | Z69: 0 | AA69: 0 | AB69: 0 | AC69: 0
B70: Cumulative Discounted Total | D70: =IF((COLUMN(D52)-COLUMN($D52))<=Base_V1_Years_Usage_Modeled,C70+D69,0) -> 0 | E70: 0 | F70: 0 | G70: 0 | H70: 0 | I70: 0 | J70: 0 | K70: 0 | L70: 0 | M70: 0 | N70: 0 | O70: 0 | P70: 0 | Q70: 0 | R70: 0 | S70: 0 | T70: 0 | U70: 0 | V70: 0 | W70: 0 | X70: 0 | Y70: 0 | Z70: 0 | AA70: 0 | AB70: 0 | AC70: 0
B71: Annualized NPV Total Cost of Ownership | D71: =OFFSET($D70,0,Base_V1_Years_Usage_Modeled)/Base_V1_Years_Usage_Modeled -> 0
B73: Comparison Vehicle 1
D74: Year 0 | E74: Year 1 | F74: Year 2 | G74: Year 3 | H74: Year 4 | I74: Year 5 | J74: Year 6 | K74: Year 7 | L74: Year 8 | M74: Year 9 | N74: Year 10 | O74: Year 11 | P74: Year 12 | Q74: Year 13 | R74: Year 14 | S74: Year 15 | T74: Year 16 | U74: Year 17 | V74: Year 18 | W74: Year 19 | X74: Year 20 | Y74: Year 21 | Z74: Year 22 | AA74: Year 23 | AB74: Year 24 | AC74: Year 25
B75: Depreciation Calculations
B76: Fair Market Value - BEV | D76: =IF(VLOOKUP(Comp_V1_Type_Ex,DB_Vehicles[],COLUMN(DB_Vehicles[[#Headers],[Drivetrain Type]]),FALSE)="BEV",Comp_V1_MSRP_Modeled,0) -> 36620 | E76: =IF(VLOOKUP(Comp_V1_Type_Ex,DB_Vehicles[],COLUMN(DB_Vehicles[[#Headers],[Drivetrain Type]]),FALSE)="BEV",MAX(IF(VLOOKUP(Comp_V1_Type_Ex,DB_Vehicles[],COLUMN(DB_Vehicles[[#Headers],[Drivetrain Type]]),FALSE)="BEV",Reg_BEV_Const_Ex+Reg_BEV_Age_Coef_Ex*(COLUMN(E74)-COLUMN($D74))+Reg_BEV_Agesq_Coef_Ex*((COLUMN(E74)-COLUMN($D74))^2)+Reg_BEV_MSRP_Coef_Ex*Comp_V1_MSRP_Modeled+Reg_BEV_Range_Coef_Ex*VLOOKUP(Comp_V1_Type_Ex,DB_Vehicles[],COLUMN(DB_Vehicles[[#Headers],[Electric Range]]),FALSE)+Reg_BEV_Mileage_Coef_Ex*Comp_V1_VMT_Modeled*(COLUMN(E74)-COLUMN($D74)),0),300),0) -> 25633.78764 | F76: =IF(VLOOKUP(Comp_V1_Type_Ex,DB_Vehicles[],COLUMN(DB_Vehicles[[#Headers],[Drivetrain Type]]),FALSE)="BEV",MAX(IF(VLOOKUP(Comp_V1_Type_Ex,DB_Vehicles[],COLUMN(DB_Vehicles[[#Headers],[Drivetrain Type]]),FALSE)="BEV",Reg_BEV_Const_Ex+Reg_BEV_Age_Coef_Ex*(COLUMN(F74)-COLUMN($D74))+Reg_BEV_Agesq_Coef_Ex*((COLUMN(F74)-COLUMN($D74))^2)+Reg_BEV_MSRP_Coef_Ex*Comp_V1_MSRP_Modeled+Reg_BEV_Range_Coef_Ex*VLOOKUP(Comp_V1_Type_Ex,DB_Vehicles[],COLUMN(DB_Vehicles[[#Headers],[Electric Range]]),FALSE)+Reg_BEV_Mileage_Coef_Ex*Comp_V1_VMT_Modeled*(COLUMN(F74)-COLUMN($D74)),0),300),0) -> 21314.53864 | G76: =IF(VLOOKUP(Comp_V1_Type_Ex,DB_Vehicles[],COLUMN(DB_Vehicles[[#Headers],[Drivetrain Type]]),FALSE)="BEV",MAX(IF(VLOOKUP(Comp_V1_Type_Ex,DB_Vehicles[],COLUMN(DB_Vehicles[[#Headers],[Drivetrain Type]]),FALSE)="BEV",Reg_BEV_Const_Ex+Reg_BEV_Age_Coef_Ex*(COLUMN(G74)-COLUMN($D74))+Reg_BEV_Agesq_Coef_Ex*((COLUMN(G74)-COLUMN($D74))^2)+Reg_BEV_MSRP_Coef_Ex*Comp_V1_MSRP_Modeled+Reg_BEV_Range_Coef_Ex*VLOOKUP(Comp_V1_Type_Ex,DB_Vehicles[],COLUMN(DB_Vehicles[[#Headers],[Electric Range]]),FALSE)+Reg_BEV_Mileage_Coef_Ex*Comp_V1_VMT_Modeled*(COLUMN(G74)-COLUMN($D74)),0),300),0) -> 16732.72364 | H76: =IF(VLOOKUP(Comp_V1_Type_Ex,DB_Vehicles[],COLUMN(DB_Vehicles[[#Headers],[Drivetrain Type]]),FALSE)="BEV",MAX(IF(VLOOKUP(Comp_V1_Type_Ex,DB_Vehicles[],COLUMN(DB_Vehicles[[#Headers],[Drivetrain Type]]),FALSE)="BEV",Reg_BEV_Const_Ex+Reg_BEV_Age_Coef_Ex*(COLUMN(H74)-COLUMN($D74))+Reg_BEV_Agesq_Coef_Ex*((COLUMN(H74)-COLUMN($D74))^2)+Reg_BEV_MSRP_Coef_Ex*Comp_V1_MSRP_Modeled+Reg_BEV_Range_Coef_Ex*VLOOKUP(Comp_V1_Type_Ex,DB_Vehicles[],COLUMN(DB_Vehicles[[#Headers],[Electric Range]]),FALSE)+Reg_BEV_Mileage_Coef_Ex*Comp_V1_VMT_Modeled*(COLUMN(H74)-COLUMN($D74)),0),300),0) -> 11888.34264 | I76: =IF(VLOOKUP(Comp_V1_Type_Ex,DB_Vehicles[],COLUMN(DB_Vehicles[[#Headers],[Drivetrain Type]]),FALSE)="BEV",MAX(IF(VLOOKUP(Comp_V1_Type_Ex,DB_Vehicles[],COLUMN(DB_Vehicles[[#Headers],[Drivetrain Type]]),FALSE)="BEV",Reg_BEV_Const_Ex+Reg_BEV_Age_Coef_Ex*(COLUMN(I74)-COLUMN($D74))+Reg_BEV_Agesq_Coef_Ex*((COLUMN(I74)-COLUMN($D74))^2)+Reg_BEV_MSRP_Coef_Ex*Comp_V1_MSRP_Modeled+Reg_BEV_Range_Coef_Ex*VLOOKUP(Comp_V1_Type_Ex,DB_Vehicles[],COLUMN(DB_Vehicles[[#Headers],[Electric Range]]),FALSE)+Reg_BEV_Mileage_Coef_Ex*Comp_V1_VMT_Modeled*(COLUMN(I74)-COLUMN($D74)),0),300),0) -> 6781.39564 | J76: =IF($H76-$I76=0,0,MAX((1-($H76-$I76)/$H76)*I76,300)) -> 3868.270643 | K76: 2206.554308 | L76: 1258.671475 | M76: 717.9763834 | N76: 409.5509411 | O76: 300 | P76: 300 | Q76: 300 | R76: 300 | S76: 300 | T76: 300 | U76: 300 | V76: 300 | W76: 300 | X76: 300 | Y76: 300 | Z76: 300 | AA76: 300 | AB76: 300 | AC76: 300
B77: Fair Market Value - PHEV | D77: =IF(VLOOKUP(Comp_V1_Type_Ex,DB_Vehicles[],COLUMN(DB_Vehicles[[#Headers],[Drivetrain Type]]),FALSE)="PHEV",Comp_V1_MSRP_Modeled,0) -> 0 | E77: =IF(VLOOKUP(Comp_V1_Type_Ex,DB_Vehicles[],COLUMN(DB_Vehicles[[#Headers],[Drivetrain Type]]),FALSE)="PHEV",MAX(IF(VLOOKUP(Comp_V1_Type_Ex,DB_Vehicles[],COLUMN(DB_Vehicles[[#Headers],[Drivetrain Type]]),FALSE)="PHEV",Reg_PHEV_Const_Ex+Reg_PHEV_Age_Coef_Ex*(COLUMN(E74)-COLUMN($D74))+Reg_PHEV_Agesq_Coef_Ex*((COLUMN(E74)-COLUMN($D74))^2)+Reg_PHEV_MSRP_Coef_Ex*Comp_V1_MSRP_Modeled+Reg_PHEV_Range_Coef_Ex*VLOOKUP(Comp_V1_Type_Ex,DB_Vehicles[],COLUMN(DB_Vehicles[[#Headers],[Electric Range]]),FALSE)+Reg_PHEV_Mileage_Coef_Ex*Comp_V1_VMT_Modeled*(COLUMN(E74)-COLUMN($D74)),0),300),0) -> 0 | F77: =IF(VLOOKUP(Comp_V1_Type_Ex,DB_Vehicles[],COLUMN(DB_Vehicles[[#Headers],[Drivetrain Type]]),FALSE)="PHEV",MAX(IF(VLOOKUP(Comp_V1_Type_Ex,DB_Vehicles[],COLUMN(DB_Vehicles[[#Headers],[Drivetrain Type]]),FALSE)="PHEV",Reg_PHEV_Const_Ex+Reg_PHEV_Age_Coef_Ex*(COLUMN(F74)-COLUMN($D74))+Reg_PHEV_Agesq_Coef_Ex*((COLUMN(F74)-COLUMN($D74))^2)+Reg_PHEV_MSRP_Coef_Ex*Comp_V1_MSRP_Modeled+Reg_PHEV_Range_Coef_Ex*VLOOKUP(Comp_V1_Type_Ex,DB_Vehicles[],COLUMN(DB_Vehicles[[#Headers],[Electric Range]]),FALSE)+Reg_PHEV_Mileage_Coef_Ex*Comp_V1_VMT_Modeled*(COLUMN(F74)-COLUMN($D74)),0),300),0) -> 0 | G77: =IF(VLOOKUP(Comp_V1_Type_Ex,DB_Vehicles[],COLUMN(DB_Vehicles[[#Headers],[Drivetrain Type]]),FALSE)="PHEV",MAX(IF(VLOOKUP(Comp_V1_Type_Ex,DB_Vehicles[],COLUMN(DB_Vehicles[[#Headers],[Drivetrain Type]]),FALSE)="PHEV",Reg_PHEV_Const_Ex+Reg_PHEV_Age_Coef_Ex*(COLUMN(G74)-COLUMN($D74))+Reg_PHEV_Agesq_Coef_Ex*((COLUMN(G74)-COLUMN($D74))^2)+Reg_PHEV_MSRP_Coef_Ex*Comp_V1_MSRP_Modeled+Reg_PHEV_Range_Coef_Ex*VLOOKUP(Comp_V1_Type_Ex,DB_Vehicles[],COLUMN(DB_Vehicles[[#Headers],[Electric Range]]),FALSE)+Reg_PHEV_Mileage_Coef_Ex*Comp_V1_VMT_Modeled*(COLUMN(G74)-COLUMN($D74)),0),300),0) -> 0 | H77: =IF(VLOOKUP(Comp_V1_Type_Ex,DB_Vehicles[],COLUMN(DB_Vehicles[[#Headers],[Drivetrain Type]]),FALSE)="PHEV",MAX(IF(VLOOKUP(Comp_V1_Type_Ex,DB_Vehicles[],COLUMN(DB_Vehicles[[#Headers],[Drivetrain Type]]),FALSE)="PHEV",Reg_PHEV_Const_Ex+Reg_PHEV_Age_Coef_Ex*(COLUMN(H74)-COLUMN($D74))+Reg_PHEV_Agesq_Coef_Ex*((COLUMN(H74)-COLUMN($D74))^2)+Reg_PHEV_MSRP_Coef_Ex*Comp_V1_MSRP_Modeled+Reg_PHEV_Range_Coef_Ex*VLOOKUP(Comp_V1_Type_Ex,DB_Vehicles[],COLUMN(DB_Vehicles[[#Headers],[Electric Range]]),FALSE)+Reg_PHEV_Mileage_Coef_Ex*Comp_V1_VMT_Modeled*(COLUMN(H74)-COLUMN($D74)),0),300),0) -> 0 | I77: =IF(VLOOKUP(Comp_V1_Type_Ex,DB_Vehicles[],COLUMN(DB_Vehicles[[#Headers],[Drivetrain Type]]),FALSE)="PHEV",MAX(IF(VLOOKUP(Comp_V1_Type_Ex,DB_Vehicles[],COLUMN(DB_Vehicles[[#Headers],[Drivetrain Type]]),FALSE)="PHEV",Reg_PHEV_Const_Ex+Reg_PHEV_Age_Coef_Ex*(COLUMN(I74)-COLUMN($D74))+Reg_PHEV_Agesq_Coef_Ex*((COLUMN(I74)-COLUMN($D74))^2)+Reg_PHEV_MSRP_Coef_Ex*Comp_V1_MSRP_Modeled+Reg_PHEV_Range_Coef_Ex*VLOOKUP(Comp_V1_Type_Ex,DB_Vehicles[],COLUMN(DB_Vehicles[[#Headers],[Electric Range]]),FALSE)+Reg_PHEV_Mileage_Coef_Ex*Comp_V1_VMT_Modeled*(COLUMN(I74)-COLUMN($D74)),0),300),0) -> 0 | J77: =IF($H77-$I77=0,0,MAX((1-($H77-$I77)/$H77)*I77,300)) -> 0 | K77: 0 | L77: 0 | M77: 0 | N77: 0 | O77: 0 | P77: 0 | Q77: 0 | R77: 0 | S77: 0 | T77: 0 | U77: 0 | V77: 0 | W77: 0 | X77: 0 | Y77: 0 | Z77: 0 | AA77: 0 | AB77: 0 | AC77: 0
B78: Fair Market Value - ICE | D78: =IF(VLOOKUP(Comp_V1_Type_Ex,DB_Vehicles[],COLUMN(DB_Vehicles[[#Headers],[Drivetrain Type]]),FALSE)="ICE",Comp_V1_MSRP_Modeled,0) -> 0 | E78: =IF(VLOOKUP(Comp_V1_Type_Ex,DB_Vehicles[],COLUMN(DB_Vehicles[[#Headers],[Drivetrain Type]]),FALSE)="ICE",MAX(IF(VLOOKUP(Comp_V1_Type_Ex,DB_Vehicles[],COLUMN(DB_Vehicles[[#Headers],[Drivetrain Type]]),FALSE)="ICE",Reg_ICE_Const_Ex+Reg_ICE_Age_Coef_Ex*(COLUMN(E74)-COLUMN($D74))+Reg_ICE_Agesq_Coef_Ex*(COLUMN(E74)-COLUMN($D74))^2+Reg_ICE_MSRP_Coef_Ex*Comp_V1_MSRP_Modeled+Reg_ICE_MPG_Coef_Ex*VLOOKUP(Comp_V1_Type_Ex,DB_Vehicles[],COLUMN(DB_Vehicles[[#Headers],[Fuel Economy Gas City (MPG)]]),FALSE)+Reg_ICE_Mileage_Coef_Ex*Comp_V1_VMT_Modeled*(COLUMN(E74)-COLUMN($D74)),0),300),0) -> 0 | F78: =IF(VLOOKUP(Comp_V1_Type_Ex,DB_Vehicles[],COLUMN(DB_Vehicles[[#Headers],[Drivetrain Type]]),FALSE)="ICE",MAX(IF(VLOOKUP(Comp_V1_Type_Ex,DB_Vehicles[],COLUMN(DB_Vehicles[[#Headers],[Drivetrain Type]]),FALSE)="ICE",Reg_ICE_Const_Ex+Reg_ICE_Age_Coef_Ex*(COLUMN(F74)-COLUMN($D74))+Reg_ICE_Agesq_Coef_Ex*(COLUMN(F74)-COLUMN($D74))^2+Reg_ICE_MSRP_Coef_Ex*Comp_V1_MSRP_Modeled+Reg_ICE_MPG_Coef_Ex*VLOOKUP(Comp_V1_Type_Ex,DB_Vehicles[],COLUMN(DB_Vehicles[[#Headers],[Fuel Economy Gas City (MPG)]]),FALSE)+Reg_ICE_Mileage_Coef_Ex*Comp_V1_VMT_Modeled*(COLUMN(F74)-COLUMN($D74)),0),300),0) -> 0 | G78: =IF(VLOOKUP(Comp_V1_Type_Ex,DB_Vehicles[],COLUMN(DB_Vehicles[[#Headers],[Drivetrain Type]]),FALSE)="ICE",MAX(IF(VLOOKUP(Comp_V1_Type_Ex,DB_Vehicles[],COLUMN(DB_Vehicles[[#Headers],[Drivetrain Type]]),FALSE)="ICE",Reg_ICE_Const_Ex+Reg_ICE_Age_Coef_Ex*(COLUMN(G74)-COLUMN($D74))+Reg_ICE_Agesq_Coef_Ex*(COLUMN(G74)-COLUMN($D74))^2+Reg_ICE_MSRP_Coef_Ex*Comp_V1_MSRP_Modeled+Reg_ICE_MPG_Coef_Ex*VLOOKUP(Comp_V1_Type_Ex,DB_Vehicles[],COLUMN(DB_Vehicles[[#Headers],[Fuel Economy Gas City (MPG)]]),FALSE)+Reg_ICE_Mileage_Coef_Ex*Comp_V1_VMT_Modeled*(COLUMN(G74)-COLUMN($D74)),0),300),0) -> 0 | H78: =IF(VLOOKUP(Comp_V1_Type_Ex,DB_Vehicles[],COLUMN(DB_Vehicles[[#Headers],[Drivetrain Type]]),FALSE)="ICE",MAX(IF(VLOOKUP(Comp_V1_Type_Ex,DB_Vehicles[],COLUMN(DB_Vehicles[[#Headers],[Drivetrain Type]]),FALSE)="ICE",Reg_ICE_Const_Ex+Reg_ICE_Age_Coef_Ex*(COLUMN(H74)-COLUMN($D74))+Reg_ICE_Agesq_Coef_Ex*(COLUMN(H74)-COLUMN($D74))^2+Reg_ICE_MSRP_Coef_Ex*Comp_V1_MSRP_Modeled+Reg_ICE_MPG_Coef_Ex*VLOOKUP(Comp_V1_Type_Ex,DB_Vehicles[],COLUMN(DB_Vehicles[[#Headers],[Fuel Economy Gas City (MPG)]]),FALSE)+Reg_ICE_Mileage_Coef_Ex*Comp_V1_VMT_Modeled*(COLUMN(H74)-COLUMN($D74)),0),300),0) -> 0 | I78: =IF(VLOOKUP(Comp_V1_Type_Ex,DB_Vehicles[],COLUMN(DB_Vehicles[[#Headers],[Drivetrain Type]]),FALSE)="ICE",MAX(IF(VLOOKUP(Comp_V1_Type_Ex,DB_Vehicles[],COLUMN(DB_Vehicles[[#Headers],[Drivetrain Type]]),FALSE)="ICE",Reg_ICE_Const_Ex+Reg_ICE_Age_Coef_Ex*(COLUMN(I74)-COLUMN($D74))+Reg_ICE_Agesq_Coef_Ex*(COLUMN(I74)-COLUMN($D74))^2+Reg_ICE_MSRP_Coef_Ex*Comp_V1_MSRP_Modeled+Reg_ICE_MPG_Coef_Ex*VLOOKUP(Comp_V1_Type_Ex,DB_Vehicles[],COLUMN(DB_Vehicles[[#Headers],[Fuel Economy Gas City (MPG)]]),FALSE)+Reg_ICE_Mileage_Coef_Ex*Comp_V1_VMT_Modeled*(COLUMN(I74)-COLUMN($D74)),0),300),0) -> 0 | J78: =IF($H78-$I78=0,0,MAX((1-($H78-$I78)/$H78)*I78,300)) -> 0 | K78: 0 | L78: 0 | M78: 0 | N78: 0 | O78: 0 | P78: 0 | Q78: 0 | R78: 0 | S78: 0 | T78: 0 | U78: 0 | V78: 0 | W78: 0 | X78: 0 | Y78: 0 | Z78: 0 | AA78: 0 | AB78: 0 | AC78: 0
B80: Capital and Financing Costs
B81: Cash
B82: Cash Payment | D82: =IF(AND(Comp_V1_Has_Cash_Purchase_Ex=TRUE,Comp_V1_Has_Loan_Ex=FALSE,Comp_V1_Has_Lease_Ex=FALSE,COLUMN(D74)-COLUMN($D74)=0),-(Comp_V1_Base_Price_Ex-IF(Comp_V1_Tax_Incentives_Monetized="Yes",Comp_V1_Federal_Tax_Incentives_Modeled+IF(Comp_V1_State_Tax_Incentive_Cap_Modeled=0,Comp_V1_State_Tax_Incentives_Modeled,MIN(Comp_V1_State_Tax_Incentive_Cap_Modeled,Comp_V1_State_Tax_Incentives_Modeled*Comp_V1_Num_Vehicles_Modeled)/Comp_V1_Num_Vehicles_Modeled),0)-Comp_V1_Other_Incentives_Modeled),IF(AND(Comp_V1_Has_Cash_Purchase_Ex=TRUE,OR(Comp_V1_Has_Loan_Ex=TRUE,Comp_V1_Has_Lease_Ex=TRUE),COLUMN(D74)-COLUMN($D74)=Comp_V1_Lease_Term_Modeled),IF(ISERROR(FIND("Tax",_Comp_V1_Ownership_Structure,1)),-SUM(D76:D78),-Comp_V1_Lease_Residual_Price_Modeled),0)) -> -26026 | E82: 0 | F82: 0 | G82: 0 | H82: 0 | I82: 0 | J82: 0 | K82: 0 | L82: 0 | M82: 0 | N82: 0 | O82: 0 | P82: 0 | Q82: 0 | R82: 0 | S82: 0 | T82: 0 | U82: 0 | V82: 0 | W82: 0 | X82: 0 | Y82: 0 | Z82: 0 | AA82: 0 | AB82: 0 | AC82: 0
B83: Lease
B84: Down Payment | D84: =IF(Comp_V1_Has_Lease_Ex=TRUE,-Comp_V1_Down_Payment_Modeled,0) -> 0
B85: Acquisition Fee | D85: =IF(Comp_V1_Has_Lease_Ex=TRUE,-Comp_V1_Lease_Acquisition_Fee_Modeled,0) -> 0
B86: Disposition Charge | D86: =IF(AND(Comp_V1_Has_Lease_Ex=TRUE,((COLUMN(D74)-COLUMN($D74))=Comp_V1_Lease_Term_Modeled)),-Comp_V1_Lease_Disposition_Fee_Modeled,0) -> 0 | E86: 0 | F86: 0 | G86: 0 | H86: 0 | I86: 0 | J86: 0 | K86: 0 | L86: 0 | M86: 0 | N86: 0 | O86: 0 | P86: 0 | Q86: 0 | R86: 0 | S86: 0 | T86: 0 | U86: 0 | V86: 0 | W86: 0 | X86: 0 | Y86: 0 | Z86: 0 | AA86: 0 | AB86: 0 | AC86: 0
B87: Lease Payments | E87: =IF(Comp_V1_Has_Lease_Ex=TRUE,IF((COLUMN(E74)-COLUMN($E74))<Comp_V1_Lease_Term_Modeled,-PMT(Comp_V1_Lease_APR_Modeled/12,Comp_V1_Lease_Term_Modeled*12,-(Comp_V1_Base_Price_Ex-IF(Comp_V1_Tax_Incentives_Monetized="Yes",Comp_V1_Federal_Tax_Incentives_Modeled+IF(Comp_V1_State_Tax_Incentive_Cap_Modeled=0,Comp_V1_State_Tax_Incentives_Modeled,MIN(Comp_V1_State_Tax_Incentive_Cap_Modeled,Comp_V1_State_Tax_Incentives_Modeled*Comp_V1_Num_Vehicles_Modeled)/Comp_V1_Num_Vehicles_Modeled),0)-Comp_V1_Other_Incentives_Modeled-Comp_V1_Down_Payment_Modeled)+Comp_V1_Lease_Residual_Price_Modeled,0)*12,0),0) -> 0 | F87: 0 | G87: 0 | H87: 0 | I87: 0 | J87: 0 | K87: 0 | L87: 0 | M87: 0 | N87: 0 | O87: 0 | P87: 0 | Q87: 0 | R87: 0 | S87: 0 | T87: 0 | U87: 0 | V87: 0 | W87: 0 | X87: 0 | Y87: 0 | Z87: 0 | AA87: 0 | AB87: 0 | AC87: 0
B88: Principal Payments | E88: =IF(Comp_V1_Has_Lease_Ex=TRUE,IF((COLUMN(E74)-COLUMN($E74))<Comp_V1_Lease_Term_Modeled,-PPMT(Comp_V1_Lease_APR_Modeled/12,(COLUMN(E74)-COLUMN($D74))*12,Comp_V1_Lease_Term_Modeled*12,-(Comp_V1_Base_Price_Ex-IF(Comp_V1_Tax_Incentives_Monetized="Yes",Comp_V1_Federal_Tax_Incentives_Modeled+IF(Comp_V1_State_Tax_Incentive_Cap_Modeled=0,Comp_V1_State_Tax_Incentives_Modeled,MIN(Comp_V1_State_Tax_Incentive_Cap_Modeled,Comp_V1_State_Tax_Incentives_Modeled*Comp_V1_Num_Vehicles_Modeled)/Comp_V1_Num_Vehicles_Modeled),0)-Comp_V1_Other_Incentives_Modeled-Comp_V1_Down_Payment_Modeled)+Comp_V1_Lease_Residual_Price_Modeled,0)*12,0),0) -> 0 | F88: 0 | G88: 0 | H88: 0 | I88: 0 | J88: 0 | K88: 0 | L88: 0 | M88: 0 | N88: 0 | O88: 0 | P88: 0 | Q88: 0 | R88: 0 | S88: 0 | T88: 0 | U88: 0 | V88: 0 | W88: 0 | X88: 0 | Y88: 0 | Z88: 0 | AA88: 0 | AB88: 0 | AC88: 0
B89: Interest Payments | E89: =IF(Comp_V1_Has_Lease_Ex=TRUE,IF((COLUMN(E74)-COLUMN($E74))<Comp_V1_Lease_Term_Modeled,-IPMT(Comp_V1_Lease_APR_Modeled/12,(COLUMN(E74)-COLUMN($D74))*12,Comp_V1_Lease_Term_Modeled*12,-(Comp_V1_Base_Price_Ex-IF(Comp_V1_Tax_Incentives_Monetized="Yes",Comp_V1_Federal_Tax_Incentives_Modeled+IF(Comp_V1_State_Tax_Incentive_Cap_Modeled=0,Comp_V1_State_Tax_Incentives_Modeled,MIN(Comp_V1_State_Tax_Incentive_Cap_Modeled,Comp_V1_State_Tax_Incentives_Modeled*Comp_V1_Num_Vehicles_Modeled)/Comp_V1_Num_Vehicles_Modeled),0)-Comp_V1_Other_Incentives_Modeled-Comp_V1_Down_Payment_Modeled)+Comp_V1_Lease_Residual_Price_Modeled,0)*12,0),0) -> 0 | F89: 0 | G89: 0 | H89: 0 | I89: 0 | J89: 0 | K89: 0 | L89: 0 | M89: 0 | N89: 0 | O89: 0 | P89: 0 | Q89: 0 | R89: 0 | S89: 0 | T89: 0 | U89: 0 | V89: 0 | W89: 0 | X89: 0 | Y89: 0 | Z89: 0 | AA89: 0 | AB89: 0 | AC89: 0
B90: TRAC Value Adjustment | E90: =IF(ISERROR(FIND("TRAC",_Comp_V1_Ownership_Structure,1)),0,IF(Comp_V1_Has_Loan_Ex=TRUE,0,IF((COLUMN(E74)-COLUMN($D74))=Comp_V1_Lease_Term_Modeled,SUM(E76:E78)-Comp_V1_Lease_Residual_Price_Modeled,0))) -> 0 | F90: 0 | G90: 0 | H90: 0 | I90: 0 | J90: 0 | K90: 0 | L90: 0 | M90: 0 | N90: 0 | O90: 0 | P90: 0 | Q90: 0 | R90: 0 | S90: 0 | T90: 0 | U90: 0 | V90: 0 | W90: 0 | X90: 0 | Y90: 0 | Z90: 0 | AA90: 0 | AB90: 0 | AC90: 0
B91: FMV Mileage Adjustment | E91: =MIN(0,MAX(-Comp_V1_Lease_Residual_Price_Modeled+SUM(E76:E78),IF(IFERROR(IF(FIND("FMV",_Comp_V1_Ownership_Structure,1)>0,TRUE,FALSE),FALSE),IF((COLUMN(E74)-COLUMN($D74))=Comp_V1_Lease_Term_Modeled,(Comp_V1_Lease_Mileage_Inc_Modeled-Comp_V1_VMT_Modeled)*(COLUMN(E74)-COLUMN($D74))*Comp_V1_Lease_Mileage_Cost_Modeled,0),0))) -> 0 | F91: 0 | G91: 0 | H91: 0 | I91: 0 | J91: 0 | K91: 0 | L91: 0 | M91: 0 | N91: 0 | O91: 0 | P91: 0 | Q91: 0 | R91: 0 | S91: 0 | T91: 0 | U91: 0 | V91: 0 | W91: 0 | X91: 0 | Y91: 0 | Z91: 0 | AA91: 0 | AB91: 0 | AC91: 0
B92: Subtotal Lease Cash Flows | D92: =SUM(D84:D87)+SUM(D90:D91) -> 0 | E92: =SUM(E84:E87)+SUM(E90:E91) -> 0 | F92: 0 | G92: 0 | H92: 0 | I92: 0 | J92: 0 | K92: 0 | L92: 0 | M92: 0 | N92: 0 | O92: 0 | P92: 0 | Q92: 0 | R92: 0 | S92: 0 | T92: 0 | U92: 0 | V92: 0 | W92: 0 | X92: 0 | Y92: 0 | Z92: 0 | AA92: 0 | AB92: 0 | AC92: 0
B93: Loan
B94: Down Payment | D94: =IF(AND(Comp_V1_Has_Loan_Ex=TRUE,Comp_V1_Has_Lease_Ex=FALSE),-Comp_V1_Down_Payment_Modeled,0) -> 0
B95: Loan Payments | E95: =IF(Comp_V1_Has_Loan_Ex=TRUE,IF(AND((COLUMN(E74)-COLUMN($E74))<Comp_V1_Loan_Term_Modeled+Comp_V1_Lease_Term_Modeled,(COLUMN(E74)-COLUMN($E74))>=Comp_V1_Lease_Term_Modeled),PMT(Comp_V1_Loan_APR_Modeled/12,Comp_V1_Loan_Term_Modeled*12,IF(Comp_V1_Has_Lease_Ex=TRUE,SUM(OFFSET($D76,0,Comp_V1_Lease_Term_Modeled,3,1)),Comp_V1_Base_Price_Ex-IF(Comp_V1_Tax_Incentives_Monetized="Yes",Comp_V1_Federal_Tax_Incentives_Modeled+IF(Comp_V1_State_Tax_Incentive_Cap_Modeled=0,Comp_V1_State_Tax_Incentives_Modeled,MIN(Comp_V1_State_Tax_Incentive_Cap_Modeled,Comp_V1_State_Tax_Incentives_Modeled*Comp_V1_Num_Vehicles_Modeled)/Comp_V1_Num_Vehicles_Modeled),0)-Comp_V1_Other_Incentives_Modeled-Comp_V1_Down_Payment_Modeled),0)*12,0),0) -> 0 | F95: 0 | G95: 0 | H95: 0 | I95: 0 | J95: 0 | K95: 0 | L95: 0 | M95: 0 | N95: 0 | O95: 0 | P95: 0 | Q95: 0 | R95: 0 | S95: 0 | T95: 0 | U95: 0 | V95: 0 | W95: 0 | X95: 0 | Y95: 0 | Z95: 0 | AA95: 0 | AB95: 0 | AC95: 0
B96: Principal Payments | E96: =IF(Comp_V1_Has_Loan_Ex=TRUE,IF(AND((COLUMN(E74)-COLUMN($E74))<Comp_V1_Loan_Term_Modeled+Comp_V1_Lease_Term_Modeled,(COLUMN(E74)-COLUMN($E74))>=Comp_V1_Lease_Term_Modeled),PPMT(Comp_V1_Loan_APR_Modeled/12,IF(Comp_V1_Has_Lease_Ex=TRUE,(COLUMN(E74)-COLUMN($D74)-Comp_V1_Lease_Term_Modeled)*12,(COLUMN(E74)-COLUMN($D74))*12),Comp_V1_Loan_Term_Modeled*12,IF(Comp_V1_Has_Lease_Ex=TRUE,SUM(OFFSET($D76,0,Comp_V1_Lease_Term_Modeled,3,1)),Comp_V1_Base_Price_Ex-IF(Comp_V1_Tax_Incentives_Monetized="Yes",Comp_V1_Federal_Tax_Incentives_Modeled+IF(Comp_V1_State_Tax_Incentive_Cap_Modeled=0,Comp_V1_State_Tax_Incentives_Modeled,MIN(Comp_V1_State_Tax_Incentive_Cap_Modeled,Comp_V1_State_Tax_Incentives_Modeled*Comp_V1_Num_Vehicles_Modeled)/Comp_V1_Num_Vehicles_Modeled),0)-Comp_V1_Other_Incentives_Modeled-Comp_V1_Down_Payment_Modeled),0)*12,0),0) -> 0 | F96: 0 | G96: 0 | H96: 0 | I96: 0 | J96: 0 | K96: 0 | L96: 0 | M96: 0 | N96: 0 | O96: 0 | P96: 0 | Q96: 0 | R96: 0 | S96: 0 | T96: 0 | U96: 0 | V96: 0 | W96: 0 | X96: 0 | Y96: 0 | Z96: 0 | AA96: 0 | AB96: 0 | AC96: 0
B97: Interest Payments | E97: =IF(Comp_V1_Has_Loan_Ex=TRUE,IF(AND((COLUMN(E74)-COLUMN($E74))<Comp_V1_Loan_Term_Modeled+Comp_V1_Lease_Term_Modeled,(COLUMN(E74)-COLUMN($E74))>=Comp_V1_Lease_Term_Modeled),IPMT(Comp_V1_Loan_APR_Modeled/12,IF(Comp_V1_Has_Lease_Ex=TRUE,(COLUMN(E74)-COLUMN($D74)-Comp_V1_Lease_Term)*12,(COLUMN(E74)-COLUMN($D74))*12),Comp_V1_Loan_Term_Modeled*12,IF(Comp_V1_Has_Lease_Ex=TRUE,SUM(OFFSET($D76,0,Comp_V1_Lease_Term_Modeled,3,1)),Comp_V1_Base_Price_Ex-IF(Comp_V1_Tax_Incentives_Monetized="Yes",Comp_V1_Federal_Tax_Incentives_Modeled+IF(Comp_V1_State_Tax_Incentive_Cap_Modeled=0,Comp_V1_State_Tax_Incentives_Modeled,MIN(Comp_V1_State_Tax_Incentive_Cap_Modeled,Comp_V1_State_Tax_Incentives_Modeled*Comp_V1_Num_Vehicles_Modeled)/Comp_V1_Num_Vehicles_Modeled),0)-Comp_V1_Other_Incentives_Modeled-Comp_V1_Down_Payment_Modeled),0)*12,0),0) -> 0 | F97: 0 | G97: 0 | H97: 0 | I97: 0 | J97: 0 | K97: 0 | L97: 0 | M97: 0 | N97: 0 | O97: 0 | P97: 0 | Q97: 0 | R97: 0 | S97: 0 | T97: 0 | U97: 0 | V97: 0 | W97: 0 | X97: 0 | Y97: 0 | Z97: 0 | AA97: 0 | AB97: 0 | AC97: 0
B98: Subtotal Loan Cash Flows | D98: =SUM(D94:D95) -> 0 | E98: =SUM(E94:E95) -> 0 | F98: 0 | G98: 0 | H98: 0 | I98: 0 | J98: 0 | K98: 0 | L98: 0 | M98: 0 | N98: 0 | O98: 0 | P98: 0 | Q98: 0 | R98: 0 | S98: 0 | T98: 0 | U98: 0 | V98: 0 | W98: 0 | X98: 0 | Y98: 0 | Z98: 0 | AA98: 0 | AB98: 0 | AC98: 0
B99: Terminal Value | E99: =IF(OR(Comp_V1_Has_Loan_Ex=TRUE,Comp_V1_Has_Cash_Purchase_Ex=TRUE),IF((COLUMN(E74)-COLUMN($D74))=Comp_V1_Years_Usage_Modeled,SUM(E76:E78),0),0) -> 0 | F99: 0 | G99: 0 | H99: 0 | I99: 0 | J99: 0 | K99: 2206.554308 | L99: 0 | M99: 0 | N99: 0 | O99: 0 | P99: 0 | Q99: 0 | R99: 0 | S99: 0 | T99: 0 | U99: 0 | V99: 0 | W99: 0 | X99: 0 | Y99: 0 | Z99: 0 | AA99: 0 | AB99: 0 | AC99: 0
B101: Total Capital and Financing Costs | D101: =D82+D92+D98+D99 -> -26026 | E101: 0 | F101: 0 | G101: 0 | H101: 0 | I101: 0 | J101: 0 | K101: 2206.554308 | L101: 0 | M101: 0 | N101: 0 | O101: 0 | P101: 0 | Q101: 0 | R101: 0 | S101: 0 | T101: 0 | U101: 0 | V101: 0 | W101: 0 | X101: 0 | Y101: 0 | Z101: 0 | AA101: 0 | AB101: 0 | AC101: 0
B103: Fuel and Operating Costs
B104: Fuel Cost | E104: =IF(COLUMN(E74)-COLUMN($E74)<Comp_V1_Years_Usage_Modeled,-((Comp_V1_Gas_Usage_Ex*Gasoline_Price_Modeled*Data!C$73)+(Comp_V1_Electricity_Usage_Ex*Electricity_Price_Modeled*Data!C$75)),0) -> -517.2830327 | F104: =IF(COLUMN(F74)-COLUMN($E74)<Comp_V1_Years_Usage_Modeled,-((Comp_V1_Gas_Usage_Ex*Gasoline_Price_Modeled*Data!D$73)+(Comp_V1_Electricity_Usage_Ex*Electricity_Price_Modeled*Data!D$75)),0) -> -512.0721356 | G104: =IF(COLUMN(G74)-COLUMN($E74)<Comp_V1_Years_Usage_Modeled,-((Comp_V1_Gas_Usage_Ex*Gasoline_Price_Modeled*Data!E$73)+(Comp_V1_Electricity_Usage_Ex*Electricity_Price_Modeled*Data!E$75)),0) -> -531.0833308 | H104: =IF(COLUMN(H74)-COLUMN($E74)<Comp_V1_Years_Usage_Modeled,-((Comp_V1_Gas_Usage_Ex*Gasoline_Price_Modeled*Data!F$73)+(Comp_V1_Electricity_Usage_Ex*Electricity_Price_Modeled*Data!F$75)),0) -> -559.4752297 | I104: =IF(COLUMN(I74)-COLUMN($E74)<Comp_V1_Years_Usage_Modeled,-((Comp_V1_Gas_Usage_Ex*Gasoline_Price_Modeled*Data!G$73)+(Comp_V1_Electricity_Usage_Ex*Electricity_Price_Modeled*Data!G$75)),0) -> -573.3123525 | J104: =IF(COLUMN(J74)-COLUMN($E74)<Comp_V1_Years_Usage_Modeled,-((Comp_V1_Gas_Usage_Ex*Gasoline_Price_Modeled*Data!H$73)+(Comp_V1_Electricity_Usage_Ex*Electricity_Price_Modeled*Data!H$75)),0) -> -584.5637871 | K104: =IF(COLUMN(K74)-COLUMN($E74)<Comp_V1_Years_Usage_Modeled,-((Comp_V1_Gas_Usage_Ex*Gasoline_Price_Modeled*Data!I$73)+(Comp_V1_Electricity_Usage_Ex*Electricity_Price_Modeled*Data!I$75)),0) -> -590.7160161 | L104: =IF(COLUMN(L74)-COLUMN($E74)<Comp_V1_Years_Usage_Modeled,-((Comp_V1_Gas_Usage_Ex*Gasoline_Price_Modeled*Data!J$73)+(Comp_V1_Electricity_Usage_Ex*Electricity_Price_Modeled*Data!J$75)),0) -> 0 | M104: =IF(COLUMN(M74)-COLUMN($E74)<Comp_V1_Years_Usage_Modeled,-((Comp_V1_Gas_Usage_Ex*Gasoline_Price_Modeled*Data!K$73)+(Comp_V1_Electricity_Usage_Ex*Electricity_Price_Modeled*Data!K$75)),0) -> 0 | N104: =IF(COLUMN(N74)-COLUMN($E74)<Comp_V1_Years_Usage_Modeled,-((Comp_V1_Gas_Usage_Ex*Gasoline_Price_Modeled*Data!L$73)+(Comp_V1_Electricity_Usage_Ex*Electricity_Price_Modeled*Data!L$75)),0) -> 0 | O104: =IF(COLUMN(O74)-COLUMN($E74)<Comp_V1_Years_Usage_Modeled,-((Comp_V1_Gas_Usage_Ex*Gasoline_Price_Modeled*Data!M$73)+(Comp_V1_Electricity_Usage_Ex*Electricity_Price_Modeled*Data!M$75)),0) -> 0 | P104: =IF(COLUMN(P74)-COLUMN($E74)<Comp_V1_Years_Usage_Modeled,-((Comp_V1_Gas_Usage_Ex*Gasoline_Price_Modeled*Data!N$73)+(Comp_V1_Electricity_Usage_Ex*Electricity_Price_Modeled*Data!N$75)),0) -> 0 | Q104: =IF(COLUMN(Q74)-COLUMN($E74)<Comp_V1_Years_Usage_Modeled,-((Comp_V1_Gas_Usage_Ex*Gasoline_Price_Modeled*Data!O$73)+(Comp_V1_Electricity_Usage_Ex*Electricity_Price_Modeled*Data!O$75)),0) -> 0 | R104: =IF(COLUMN(R74)-COLUMN($E74)<Comp_V1_Years_Usage_Modeled,-((Comp_V1_Gas_Usage_Ex*Gasoline_Price_Modeled*Data!P$73)+(Comp_V1_Electricity_Usage_Ex*Electricity_Price_Modeled*Data!P$75)),0) -> 0 | S104: =IF(COLUMN(S74)-COLUMN($E74)<Comp_V1_Years_Usage_Modeled,-((Comp_V1_Gas_Usage_Ex*Gasoline_Price_Modeled*Data!Q$73)+(Comp_V1_Electricity_Usage_Ex*Electricity_Price_Modeled*Data!Q$75)),0) -> 0 | T104: =IF(COLUMN(T74)-COLUMN($E74)<Comp_V1_Years_Usage_Modeled,-((Comp_V1_Gas_Usage_Ex*Gasoline_Price_Modeled*Data!R$73)+(Comp_V1_Electricity_Usage_Ex*Electricity_Price_Modeled*Data!R$75)),0) -> 0 | U104: =IF(COLUMN(U74)-COLUMN($E74)<Comp_V1_Years_Usage_Modeled,-((Comp_V1_Gas_Usage_Ex*Gasoline_Price_Modeled*Data!S$73)+(Comp_V1_Electricity_Usage_Ex*Electricity_Price_Modeled*Data!S$75)),0) -> 0 | V104: =IF(COLUMN(V74)-COLUMN($E74)<Comp_V1_Years_Usage_Modeled,-((Comp_V1_Gas_Usage_Ex*Gasoline_Price_Modeled*Data!T$73)+(Comp_V1_Electricity_Usage_Ex*Electricity_Price_Modeled*Data!T$75)),0) -> 0 | W104: =IF(COLUMN(W74)-COLUMN($E74)<Comp_V1_Years_Usage_Modeled,-((Comp_V1_Gas_Usage_Ex*Gasoline_Price_Modeled*Data!U$73)+(Comp_V1_Electricity_Usage_Ex*Electricity_Price_Modeled*Data!U$75)),0) -> 0 | X104: =IF(COLUMN(X74)-COLUMN($E74)<Comp_V1_Years_Usage_Modeled,-((Comp_V1_Gas_Usage_Ex*Gasoline_Price_Modeled*Data!V$73)+(Comp_V1_Electricity_Usage_Ex*Electricity_Price_Modeled*Data!V$75)),0) -> 0 | Y104: =IF(COLUMN(Y74)-COLUMN($E74)<Comp_V1_Years_Usage_Modeled,-((Comp_V1_Gas_Usage_Ex*Gasoline_Price_Modeled*Data!W$73)+(Comp_V1_Electricity_Usage_Ex*Electricity_Price_Modeled*Data!W$75)),0) -> 0 | Z104: =IF(COLUMN(Z74)-COLUMN($E74)<Comp_V1_Years_Usage_Modeled,-((Comp_V1_Gas_Usage_Ex*Gasoline_Price_Modeled*Data!X$73)+(Comp_V1_Electricity_Usage_Ex*Electricity_Price_Modeled*Data!X$75)),0) -> 0 | AA104: =IF(COLUMN(AA74)-COLUMN($E74)<Comp_V1_Years_Usage_Modeled,-((Comp_V1_Gas_Usage_Ex*Gasoline_Price_Modeled*Data!Y$73)+(Comp_V1_Electricity_Usage_Ex*Electricity_Price_Modeled*Data!Y$75)),0) -> 0 | AB104: =IF(COLUMN(AB74)-COLUMN($E74)<Comp_V1_Years_Usage_Modeled,-((Comp_V1_Gas_Usage_Ex*Gasoline_Price_Modeled*Data!Z$73)+(Comp_V1_Electricity_Usage_Ex*Electricity_Price_Modeled*Data!Z$75)),0) -> 0 | AC104: =IF(COLUMN(AC74)-COLUMN($E74)<Comp_V1_Years_Usage_Modeled,-((Comp_V1_Gas_Usage_Ex*Gasoline_Price_Modeled*Data!AA$73)+(Comp_V1_Electricity_Usage_Ex*Electricity_Price_Modeled*Data!AA$75)),0) -> 0
B105: Maintenance and Repair Cost | E105: =-IF(_Comp_V1_Maint_Repair_Cost_Use_Default="Yes",IF(COLUMN(E74)-COLUMN($E74)<Comp_V1_Years_Usage_Modeled,VLOOKUP(_Comp_V1_Vehicle_Drivetrain,DB_Maint_Repair_Costs[],COLUMN(E74)-COLUMN($E74)+2,FALSE)*Comp_V1_VMT_Modeled,0),IF(AND(COLUMN(E74)-COLUMN($E74)<Comp_V1_Years_Usage_Modeled,COLUMN(E74)-COLUMN($E74)<5),Comp_V1_Maint_Repair_Cost_Year_1_Modeled*Comp_V1_VMT_Modeled,IF(AND(COLUMN(E74)-COLUMN($E74)<Comp_V1_Years_Usage_Modeled,COLUMN(E74)-COLUMN($E74)>=5),Comp_V1_Maint_Repair_Cost_Year_5_Modeled*Comp_V1_VMT_Modeled,0)))*Data!C$81 -> -600 | F105: =-IF(_Comp_V1_Maint_Repair_Cost_Use_Default="Yes",IF(COLUMN(F74)-COLUMN($E74)<Comp_V1_Years_Usage_Modeled,VLOOKUP(_Comp_V1_Vehicle_Drivetrain,DB_Maint_Repair_Costs[],COLUMN(F74)-COLUMN($E74)+2,FALSE)*Comp_V1_VMT_Modeled,0),IF(AND(COLUMN(F74)-COLUMN($E74)<Comp_V1_Years_Usage_Modeled,COLUMN(F74)-COLUMN($E74)<5),Comp_V1_Maint_Repair_Cost_Year_1_Modeled*Comp_V1_VMT_Modeled,IF(AND(COLUMN(F74)-COLUMN($E74)<Comp_V1_Years_Usage_Modeled,COLUMN(F74)-COLUMN($E74)>=5),Comp_V1_Maint_Repair_Cost_Year_5_Modeled*Comp_V1_VMT_Modeled,0)))*Data!D$81 -> -612 | G105: =-IF(_Comp_V1_Maint_Repair_Cost_Use_Default="Yes",IF(COLUMN(G74)-COLUMN($E74)<Comp_V1_Years_Usage_Modeled,VLOOKUP(_Comp_V1_Vehicle_Drivetrain,DB_Maint_Repair_Costs[],COLUMN(G74)-COLUMN($E74)+2,FALSE)*Comp_V1_VMT_Modeled,0),IF(AND(COLUMN(G74)-COLUMN($E74)<Comp_V1_Years_Usage_Modeled,COLUMN(G74)-COLUMN($E74)<5),Comp_V1_Maint_Repair_Cost_Year_1_Modeled*Comp_V1_VMT_Modeled,IF(AND(COLUMN(G74)-COLUMN($E74)<Comp_V1_Years_Usage_Modeled,COLUMN(G74)-COLUMN($E74)>=5),Comp_V1_Maint_Repair_Cost_Year_5_Modeled*Comp_V1_VMT_Modeled,0)))*Data!E$81 -> -624.24 | H105: =-IF(_Comp_V1_Maint_Repair_Cost_Use_Default="Yes",IF(COLUMN(H74)-COLUMN($E74)<Comp_V1_Years_Usage_Modeled,VLOOKUP(_Comp_V1_Vehicle_Drivetrain,DB_Maint_Repair_Costs[],COLUMN(H74)-COLUMN($E74)+2,FALSE)*Comp_V1_VMT_Modeled,0),IF(AND(COLUMN(H74)-COLUMN($E74)<Comp_V1_Years_Usage_Modeled,COLUMN(H74)-COLUMN($E74)<5),Comp_V1_Maint_Repair_Cost_Year_1_Modeled*Comp_V1_VMT_Modeled,IF(AND(COLUMN(H74)-COLUMN($E74)<Comp_V1_Years_Usage_Modeled,COLUMN(H74)-COLUMN($E74)>=5),Comp_V1_Maint_Repair_Cost_Year_5_Modeled*Comp_V1_VMT_Modeled,0)))*Data!F$81 -> -636.7248 | I105: =-IF(_Comp_V1_Maint_Repair_Cost_Use_Default="Yes",IF(COLUMN(I74)-COLUMN($E74)<Comp_V1_Years_Usage_Modeled,VLOOKUP(_Comp_V1_Vehicle_Drivetrain,DB_Maint_Repair_Costs[],COLUMN(I74)-COLUMN($E74)+2,FALSE)*Comp_V1_VMT_Modeled,0),IF(AND(COLUMN(I74)-COLUMN($E74)<Comp_V1_Years_Usage_Modeled,COLUMN(I74)-COLUMN($E74)<5),Comp_V1_Maint_Repair_Cost_Year_1_Modeled*Comp_V1_VMT_Modeled,IF(AND(COLUMN(I74)-COLUMN($E74)<Comp_V1_Years_Usage_Modeled,COLUMN(I74)-COLUMN($E74)>=5),Comp_V1_Maint_Repair_Cost_Year_5_Modeled*Comp_V1_VMT_Modeled,0)))*Data!G$81 -> -649.459296 | J105: =-IF(_Comp_V1_Maint_Repair_Cost_Use_Default="Yes",IF(COLUMN(J74)-COLUMN($E74)<Comp_V1_Years_Usage_Modeled,VLOOKUP(_Comp_V1_Vehicle_Drivetrain,DB_Maint_Repair_Costs[],COLUMN(J74)-COLUMN($E74)+2,FALSE)*Comp_V1_VMT_Modeled,0),IF(AND(COLUMN(J74)-COLUMN($E74)<Comp_V1_Years_Usage_Modeled,COLUMN(J74)-COLUMN($E74)<5),Comp_V1_Maint_Repair_Cost_Year_1_Modeled*Comp_V1_VMT_Modeled,IF(AND(COLUMN(J74)-COLUMN($E74)<Comp_V1_Years_Usage_Modeled,COLUMN(J74)-COLUMN($E74)>=5),Comp_V1_Maint_Repair_Cost_Year_5_Modeled*Comp_V1_VMT_Modeled,0)))*Data!H$81 -> -861.1830265 | K105: =-IF(_Comp_V1_Maint_Repair_Cost_Use_Default="Yes",IF(COLUMN(K74)-COLUMN($E74)<Comp_V1_Years_Usage_Modeled,VLOOKUP(_Comp_V1_Vehicle_Drivetrain,DB_Maint_Repair_Costs[],COLUMN(K74)-COLUMN($E74)+2,FALSE)*Comp_V1_VMT_Modeled,0),IF(AND(COLUMN(K74)-COLUMN($E74)<Comp_V1_Years_Usage_Modeled,COLUMN(K74)-COLUMN($E74)<5),Comp_V1_Maint_Repair_Cost_Year_1_Modeled*Comp_V1_VMT_Modeled,IF(AND(COLUMN(K74)-COLUMN($E74)<Comp_V1_Years_Usage_Modeled,COLUMN(K74)-COLUMN($E74)>=5),Comp_V1_Maint_Repair_Cost_Year_5_Modeled*Comp_V1_VMT_Modeled,0)))*Data!I$81 -> -878.406687 | L105: =-IF(_Comp_V1_Maint_Repair_Cost_Use_Default="Yes",IF(COLUMN(L74)-COLUMN($E74)<Comp_V1_Years_Usage_Modeled,VLOOKUP(_Comp_V1_Vehicle_Drivetrain,DB_Maint_Repair_Costs[],COLUMN(L74)-COLUMN($E74)+2,FALSE)*Comp_V1_VMT_Modeled,0),IF(AND(COLUMN(L74)-COLUMN($E74)<Comp_V1_Years_Usage_Modeled,COLUMN(L74)-COLUMN($E74)<5),Comp_V1_Maint_Repair_Cost_Year_1_Modeled*Comp_V1_VMT_Modeled,IF(AND(COLUMN(L74)-COLUMN($E74)<Comp_V1_Years_Usage_Modeled,COLUMN(L74)-COLUMN($E74)>=5),Comp_V1_Maint_Repair_Cost_Year_5_Modeled*Comp_V1_VMT_Modeled,0)))*Data!J$81 -> 0 | M105: =-IF(_Comp_V1_Maint_Repair_Cost_Use_Default="Yes",IF(COLUMN(M74)-COLUMN($E74)<Comp_V1_Years_Usage_Modeled,VLOOKUP(_Comp_V1_Vehicle_Drivetrain,DB_Maint_Repair_Costs[],COLUMN(M74)-COLUMN($E74)+2,FALSE)*Comp_V1_VMT_Modeled,0),IF(AND(COLUMN(M74)-COLUMN($E74)<Comp_V1_Years_Usage_Modeled,COLUMN(M74)-COLUMN($E74)<5),Comp_V1_Maint_Repair_Cost_Year_1_Modeled*Comp_V1_VMT_Modeled,IF(AND(COLUMN(M74)-COLUMN($E74)<Comp_V1_Years_Usage_Modeled,COLUMN(M74)-COLUMN($E74)>=5),Comp_V1_Maint_Repair_Cost_Year_5_Modeled*Comp_V1_VMT_Modeled,0)))*Data!K$81 -> 0 | N105: =-IF(_Comp_V1_Maint_Repair_Cost_Use_Default="Yes",IF(COLUMN(N74)-COLUMN($E74)<Comp_V1_Years_Usage_Modeled,VLOOKUP(_Comp_V1_Vehicle_Drivetrain,DB_Maint_Repair_Costs[],COLUMN(N74)-COLUMN($E74)+2,FALSE)*Comp_V1_VMT_Modeled,0),IF(AND(COLUMN(N74)-COLUMN($E74)<Comp_V1_Years_Usage_Modeled,COLUMN(N74)-COLUMN($E74)<5),Comp_V1_Maint_Repair_Cost_Year_1_Modeled*Comp_V1_VMT_Modeled,IF(AND(COLUMN(N74)-COLUMN($E74)<Comp_V1_Years_Usage_Modeled,COLUMN(N74)-COLUMN($E74)>=5),Comp_V1_Maint_Repair_Cost_Year_5_Modeled*Comp_V1_VMT_Modeled,0)))*Data!L$81 -> 0 | O105: =-IF(_Comp_V1_Maint_Repair_Cost_Use_Default="Yes",IF(COLUMN(O74)-COLUMN($E74)<Comp_V1_Years_Usage_Modeled,VLOOKUP(_Comp_V1_Vehicle_Drivetrain,DB_Maint_Repair_Costs[],COLUMN(O74)-COLUMN($E74)+2,FALSE)*Comp_V1_VMT_Modeled,0),IF(AND(COLUMN(O74)-COLUMN($E74)<Comp_V1_Years_Usage_Modeled,COLUMN(O74)-COLUMN($E74)<5),Comp_V1_Maint_Repair_Cost_Year_1_Modeled*Comp_V1_VMT_Modeled,IF(AND(COLUMN(O74)-COLUMN($E74)<Comp_V1_Years_Usage_Modeled,COLUMN(O74)-COLUMN($E74)>=5),Comp_V1_Maint_Repair_Cost_Year_5_Modeled*Comp_V1_VMT_Modeled,0)))*Data!M$81 -> 0 | P105: =-IF(_Comp_V1_Maint_Repair_Cost_Use_Default="Yes",IF(COLUMN(P74)-COLUMN($E74)<Comp_V1_Years_Usage_Modeled,VLOOKUP(_Comp_V1_Vehicle_Drivetrain,DB_Maint_Repair_Costs[],COLUMN(P74)-COLUMN($E74)+2,FALSE)*Comp_V1_VMT_Modeled,0),IF(AND(COLUMN(P74)-COLUMN($E74)<Comp_V1_Years_Usage_Modeled,COLUMN(P74)-COLUMN($E74)<5),Comp_V1_Maint_Repair_Cost_Year_1_Modeled*Comp_V1_VMT_Modeled,IF(AND(COLUMN(P74)-COLUMN($E74)<Comp_V1_Years_Usage_Modeled,COLUMN(P74)-COLUMN($E74)>=5),Comp_V1_Maint_Repair_Cost_Year_5_Modeled*Comp_V1_VMT_Modeled,0)))*Data!N$81 -> 0 | Q105: =-IF(_Comp_V1_Maint_Repair_Cost_Use_Default="Yes",IF(COLUMN(Q74)-COLUMN($E74)<Comp_V1_Years_Usage_Modeled,VLOOKUP(_Comp_V1_Vehicle_Drivetrain,DB_Maint_Repair_Costs[],COLUMN(Q74)-COLUMN($E74)+2,FALSE)*Comp_V1_VMT_Modeled,0),IF(AND(COLUMN(Q74)-COLUMN($E74)<Comp_V1_Years_Usage_Modeled,COLUMN(Q74)-COLUMN($E74)<5),Comp_V1_Maint_Repair_Cost_Year_1_Modeled*Comp_V1_VMT_Modeled,IF(AND(COLUMN(Q74)-COLUMN($E74)<Comp_V1_Years_Usage_Modeled,COLUMN(Q74)-COLUMN($E74)>=5),Comp_V1_Maint_Repair_Cost_Year_5_Modeled*Comp_V1_VMT_Modeled,0)))*Data!O$81 -> 0 | R105: =-IF(_Comp_V1_Maint_Repair_Cost_Use_Default="Yes",IF(COLUMN(R74)-COLUMN($E74)<Comp_V1_Years_Usage_Modeled,VLOOKUP(_Comp_V1_Vehicle_Drivetrain,DB_Maint_Repair_Costs[],COLUMN(R74)-COLUMN($E74)+2,FALSE)*Comp_V1_VMT_Modeled,0),IF(AND(COLUMN(R74)-COLUMN($E74)<Comp_V1_Years_Usage_Modeled,COLUMN(R74)-COLUMN($E74)<5),Comp_V1_Maint_Repair_Cost_Year_1_Modeled*Comp_V1_VMT_Modeled,IF(AND(COLUMN(R74)-COLUMN($E74)<Comp_V1_Years_Usage_Modeled,COLUMN(R74)-COLUMN($E74)>=5),Comp_V1_Maint_Repair_Cost_Year_5_Modeled*Comp_V1_VMT_Modeled,0)))*Data!P$81 -> 0 | S105: =-IF(_Comp_V1_Maint_Repair_Cost_Use_Default="Yes",IF(COLUMN(S74)-COLUMN($E74)<Comp_V1_Years_Usage_Modeled,VLOOKUP(_Comp_V1_Vehicle_Drivetrain,DB_Maint_Repair_Costs[],COLUMN(S74)-COLUMN($E74)+2,FALSE)*Comp_V1_VMT_Modeled,0),IF(AND(COLUMN(S74)-COLUMN($E74)<Comp_V1_Years_Usage_Modeled,COLUMN(S74)-COLUMN($E74)<5),Comp_V1_Maint_Repair_Cost_Year_1_Modeled*Comp_V1_VMT_Modeled,IF(AND(COLUMN(S74)-COLUMN($E74)<Comp_V1_Years_Usage_Modeled,COLUMN(S74)-COLUMN($E74)>=5),Comp_V1_Maint_Repair_Cost_Year_5_Modeled*Comp_V1_VMT_Modeled,0)))*Data!Q$81 -> 0 | T105: =-IF(_Comp_V1_Maint_Repair_Cost_Use_Default="Yes",IF(COLUMN(T74)-COLUMN($E74)<Comp_V1_Years_Usage_Modeled,VLOOKUP(_Comp_V1_Vehicle_Drivetrain,DB_Maint_Repair_Costs[],COLUMN(T74)-COLUMN($E74)+2,FALSE)*Comp_V1_VMT_Modeled,0),IF(AND(COLUMN(T74)-COLUMN($E74)<Comp_V1_Years_Usage_Modeled,COLUMN(T74)-COLUMN($E74)<5),Comp_V1_Maint_Repair_Cost_Year_1_Modeled*Comp_V1_VMT_Modeled,IF(AND(COLUMN(T74)-COLUMN($E74)<Comp_V1_Years_Usage_Modeled,COLUMN(T74)-COLUMN($E74)>=5),Comp_V1_Maint_Repair_Cost_Year_5_Modeled*Comp_V1_VMT_Modeled,0)))*Data!R$81 -> 0 | U105: =-IF(_Comp_V1_Maint_Repair_Cost_Use_Default="Yes",IF(COLUMN(U74)-COLUMN($E74)<Comp_V1_Years_Usage_Modeled,VLOOKUP(_Comp_V1_Vehicle_Drivetrain,DB_Maint_Repair_Costs[],COLUMN(U74)-COLUMN($E74)+2,FALSE)*Comp_V1_VMT_Modeled,0),IF(AND(COLUMN(U74)-COLUMN($E74)<Comp_V1_Years_Usage_Modeled,COLUMN(U74)-COLUMN($E74)<5),Comp_V1_Maint_Repair_Cost_Year_1_Modeled*Comp_V1_VMT_Modeled,IF(AND(COLUMN(U74)-COLUMN($E74)<Comp_V1_Years_Usage_Modeled,COLUMN(U74)-COLUMN($E74)>=5),Comp_V1_Maint_Repair_Cost_Year_5_Modeled*Comp_V1_VMT_Modeled,0)))*Data!S$81 -> 0 | V105: =-IF(_Comp_V1_Maint_Repair_Cost_Use_Default="Yes",IF(COLUMN(V74)-COLUMN($E74)<Comp_V1_Years_Usage_Modeled,VLOOKUP(_Comp_V1_Vehicle_Drivetrain,DB_Maint_Repair_Costs[],COLUMN(V74)-COLUMN($E74)+2,FALSE)*Comp_V1_VMT_Modeled,0),IF(AND(COLUMN(V74)-COLUMN($E74)<Comp_V1_Years_Usage_Modeled,COLUMN(V74)-COLUMN($E74)<5),Comp_V1_Maint_Repair_Cost_Year_1_Modeled*Comp_V1_VMT_Modeled,IF(AND(COLUMN(V74)-COLUMN($E74)<Comp_V1_Years_Usage_Modeled,COLUMN(V74)-COLUMN($E74)>=5),Comp_V1_Maint_Repair_Cost_Year_5_Modeled*Comp_V1_VMT_Modeled,0)))*Data!T$81 -> 0 | W105: =-IF(_Comp_V1_Maint_Repair_Cost_Use_Default="Yes",IF(COLUMN(W74)-COLUMN($E74)<Comp_V1_Years_Usage_Modeled,VLOOKUP(_Comp_V1_Vehicle_Drivetrain,DB_Maint_Repair_Costs[],COLUMN(W74)-COLUMN($E74)+2,FALSE)*Comp_V1_VMT_Modeled,0),IF(AND(COLUMN(W74)-COLUMN($E74)<Comp_V1_Years_Usage_Modeled,COLUMN(W74)-COLUMN($E74)<5),Comp_V1_Maint_Repair_Cost_Year_1_Modeled*Comp_V1_VMT_Modeled,IF(AND(COLUMN(W74)-COLUMN($E74)<Comp_V1_Years_Usage_Modeled,COLUMN(W74)-COLUMN($E74)>=5),Comp_V1_Maint_Repair_Cost_Year_5_Modeled*Comp_V1_VMT_Modeled,0)))*Data!U$81 -> 0 | X105: =-IF(_Comp_V1_Maint_Repair_Cost_Use_Default="Yes",IF(COLUMN(X74)-COLUMN($E74)<Comp_V1_Years_Usage_Modeled,VLOOKUP(_Comp_V1_Vehicle_Drivetrain,DB_Maint_Repair_Costs[],COLUMN(X74)-COLUMN($E74)+2,FALSE)*Comp_V1_VMT_Modeled,0),IF(AND(COLUMN(X74)-COLUMN($E74)<Comp_V1_Years_Usage_Modeled,COLUMN(X74)-COLUMN($E74)<5),Comp_V1_Maint_Repair_Cost_Year_1_Modeled*Comp_V1_VMT_Modeled,IF(AND(COLUMN(X74)-COLUMN($E74)<Comp_V1_Years_Usage_Modeled,COLUMN(X74)-COLUMN($E74)>=5),Comp_V1_Maint_Repair_Cost_Year_5_Modeled*Comp_V1_VMT_Modeled,0)))*Data!V$81 -> 0 | Y105: =-IF(_Comp_V1_Maint_Repair_Cost_Use_Default="Yes",IF(COLUMN(Y74)-COLUMN($E74)<Comp_V1_Years_Usage_Modeled,VLOOKUP(_Comp_V1_Vehicle_Drivetrain,DB_Maint_Repair_Costs[],COLUMN(Y74)-COLUMN($E74)+2,FALSE)*Comp_V1_VMT_Modeled,0),IF(AND(COLUMN(Y74)-COLUMN($E74)<Comp_V1_Years_Usage_Modeled,COLUMN(Y74)-COLUMN($E74)<5),Comp_V1_Maint_Repair_Cost_Year_1_Modeled*Comp_V1_VMT_Modeled,IF(AND(COLUMN(Y74)-COLUMN($E74)<Comp_V1_Years_Usage_Modeled,COLUMN(Y74)-COLUMN($E74)>=5),Comp_V1_Maint_Repair_Cost_Year_5_Modeled*Comp_V1_VMT_Modeled,0)))*Data!W$81 -> 0 | Z105: =-IF(_Comp_V1_Maint_Repair_Cost_Use_Default="Yes",IF(COLUMN(Z74)-COLUMN($E74)<Comp_V1_Years_Usage_Modeled,VLOOKUP(_Comp_V1_Vehicle_Drivetrain,DB_Maint_Repair_Costs[],COLUMN(Z74)-COLUMN($E74)+2,FALSE)*Comp_V1_VMT_Modeled,0),IF(AND(COLUMN(Z74)-COLUMN($E74)<Comp_V1_Years_Usage_Modeled,COLUMN(Z74)-COLUMN($E74)<5),Comp_V1_Maint_Repair_Cost_Year_1_Modeled*Comp_V1_VMT_Modeled,IF(AND(COLUMN(Z74)-COLUMN($E74)<Comp_V1_Years_Usage_Modeled,COLUMN(Z74)-COLUMN($E74)>=5),Comp_V1_Maint_Repair_Cost_Year_5_Modeled*Comp_V1_VMT_Modeled,0)))*Data!X$81 -> 0 | AA105: =-IF(_Comp_V1_Maint_Repair_Cost_Use_Default="Yes",IF(COLUMN(AA74)-COLUMN($E74)<Comp_V1_Years_Usage_Modeled,VLOOKUP(_Comp_V1_Vehicle_Drivetrain,DB_Maint_Repair_Costs[],COLUMN(AA74)-COLUMN($E74)+2,FALSE)*Comp_V1_VMT_Modeled,0),IF(AND(COLUMN(AA74)-COLUMN($E74)<Comp_V1_Years_Usage_Modeled,COLUMN(AA74)-COLUMN($E74)<5),Comp_V1_Maint_Repair_Cost_Year_1_Modeled*Comp_V1_VMT_Modeled,IF(AND(COLUMN(AA74)-COLUMN($E74)<Comp_V1_Years_Usage_Modeled,COLUMN(AA74)-COLUMN($E74)>=5),Comp_V1_Maint_Repair_Cost_Year_5_Modeled*Comp_V1_VMT_Modeled,0)))*Data!Y$81 -> 0 | AB105: =-IF(_Comp_V1_Maint_Repair_Cost_Use_Default="Yes",IF(COLUMN(AB74)-COLUMN($E74)<Comp_V1_Years_Usage_Modeled,VLOOKUP(_Comp_V1_Vehicle_Drivetrain,DB_Maint_Repair_Costs[],COLUMN(AB74)-COLUMN($E74)+2,FALSE)*Comp_V1_VMT_Modeled,0),IF(AND(COLUMN(AB74)-COLUMN($E74)<Comp_V1_Years_Usage_Modeled,COLUMN(AB74)-COLUMN($E74)<5),Comp_V1_Maint_Repair_Cost_Year_1_Modeled*Comp_V1_VMT_Modeled,IF(AND(COLUMN(AB74)-COLUMN($E74)<Comp_V1_Years_Usage_Modeled,COLUMN(AB74)-COLUMN($E74)>=5),Comp_V1_Maint_Repair_Cost_Year_5_Modeled*Comp_V1_VMT_Modeled,0)))*Data!Z$81 -> 0 | AC105: =-IF(_Comp_V1_Maint_Repair_Cost_Use_Default="Yes",IF(COLUMN(AC74)-COLUMN($E74)<Comp_V1_Years_Usage_Modeled,VLOOKUP(_Comp_V1_Vehicle_Drivetrain,DB_Maint_Repair_Costs[],COLUMN(AC74)-COLUMN($E74)+2,FALSE)*Comp_V1_VMT_Modeled,0),IF(AND(COLUMN(AC74)-COLUMN($E74)<Comp_V1_Years_Usage_Modeled,COLUMN(AC74)-COLUMN($E74)<5),Comp_V1_Maint_Repair_Cost_Year_1_Modeled*Comp_V1_VMT_Modeled,IF(AND(COLUMN(AC74)-COLUMN($E74)<Comp_V1_Years_Usage_Modeled,COLUMN(AC74)-COLUMN($E74)>=5),Comp_V1_Maint_Repair_Cost_Year_5_Modeled*Comp_V1_VMT_Modeled,0)))*Data!AA$81 -> 0
B106: Taxes and Fees | D106: =-Comp_V1_Initial_Taxes_Fees_Modeled-(Comp_V1_Initial_Percent_Base_Price_Modeled*Comp_V1_Base_Price_Ex) -> -1000 | E106: =-IF(COLUMN(E74)-COLUMN($E74)<Comp_V1_Years_Usage_Modeled,Comp_V1_Taxes_Fees_Modeled,0)*Data!C$81 -> -10 | F106: =-IF(COLUMN(F74)-COLUMN($E74)<Comp_V1_Years_Usage_Modeled,Comp_V1_Taxes_Fees_Modeled,0)*Data!D$81 -> -10.2 | G106: =-IF(COLUMN(G74)-COLUMN($E74)<Comp_V1_Years_Usage_Modeled,Comp_V1_Taxes_Fees_Modeled,0)*Data!E$81 -> -10.404 | H106: =-IF(COLUMN(H74)-COLUMN($E74)<Comp_V1_Years_Usage_Modeled,Comp_V1_Taxes_Fees_Modeled,0)*Data!F$81 -> -10.61208 | I106: =-IF(COLUMN(I74)-COLUMN($E74)<Comp_V1_Years_Usage_Modeled,Comp_V1_Taxes_Fees_Modeled,0)*Data!G$81 -> -10.8243216 | J106: =-IF(COLUMN(J74)-COLUMN($E74)<Comp_V1_Years_Usage_Modeled,Comp_V1_Taxes_Fees_Modeled,0)*Data!H$81 -> -11.04080803 | K106: =-IF(COLUMN(K74)-COLUMN($E74)<Comp_V1_Years_Usage_Modeled,Comp_V1_Taxes_Fees_Modeled,0)*Data!I$81 -> -11.26162419 | L106: =-IF(COLUMN(L74)-COLUMN($E74)<Comp_V1_Years_Usage_Modeled,Comp_V1_Taxes_Fees_Modeled,0)*Data!J$81 -> 0 | M106: =-IF(COLUMN(M74)-COLUMN($E74)<Comp_V1_Years_Usage_Modeled,Comp_V1_Taxes_Fees_Modeled,0)*Data!K$81 -> 0 | N106: =-IF(COLUMN(N74)-COLUMN($E74)<Comp_V1_Years_Usage_Modeled,Comp_V1_Taxes_Fees_Modeled,0)*Data!L$81 -> 0 | O106: =-IF(COLUMN(O74)-COLUMN($E74)<Comp_V1_Years_Usage_Modeled,Comp_V1_Taxes_Fees_Modeled,0)*Data!M$81 -> 0 | P106: =-IF(COLUMN(P74)-COLUMN($E74)<Comp_V1_Years_Usage_Modeled,Comp_V1_Taxes_Fees_Modeled,0)*Data!N$81 -> 0 | Q106: =-IF(COLUMN(Q74)-COLUMN($E74)<Comp_V1_Years_Usage_Modeled,Comp_V1_Taxes_Fees_Modeled,0)*Data!O$81 -> 0 | R106: =-IF(COLUMN(R74)-COLUMN($E74)<Comp_V1_Years_Usage_Modeled,Comp_V1_Taxes_Fees_Modeled,0)*Data!P$81 -> 0 | S106: =-IF(COLUMN(S74)-COLUMN($E74)<Comp_V1_Years_Usage_Modeled,Comp_V1_Taxes_Fees_Modeled,0)*Data!Q$81 -> 0 | T106: =-IF(COLUMN(T74)-COLUMN($E74)<Comp_V1_Years_Usage_Modeled,Comp_V1_Taxes_Fees_Modeled,0)*Data!R$81 -> 0 | U106: =-IF(COLUMN(U74)-COLUMN($E74)<Comp_V1_Years_Usage_Modeled,Comp_V1_Taxes_Fees_Modeled,0)*Data!S$81 -> 0 | V106: =-IF(COLUMN(V74)-COLUMN($E74)<Comp_V1_Years_Usage_Modeled,Comp_V1_Taxes_Fees_Modeled,0)*Data!T$81 -> 0 | W106: =-IF(COLUMN(W74)-COLUMN($E74)<Comp_V1_Years_Usage_Modeled,Comp_V1_Taxes_Fees_Modeled,0)*Data!U$81 -> 0 | X106: =-IF(COLUMN(X74)-COLUMN($E74)<Comp_V1_Years_Usage_Modeled,Comp_V1_Taxes_Fees_Modeled,0)*Data!V$81 -> 0 | Y106: =-IF(COLUMN(Y74)-COLUMN($E74)<Comp_V1_Years_Usage_Modeled,Comp_V1_Taxes_Fees_Modeled,0)*Data!W$81 -> 0 | Z106: =-IF(COLUMN(Z74)-COLUMN($E74)<Comp_V1_Years_Usage_Modeled,Comp_V1_Taxes_Fees_Modeled,0)*Data!X$81 -> 0 | AA106: =-IF(COLUMN(AA74)-COLUMN($E74)<Comp_V1_Years_Usage_Modeled,Comp_V1_Taxes_Fees_Modeled,0)*Data!Y$81 -> 0 | AB106: =-IF(COLUMN(AB74)-COLUMN($E74)<Comp_V1_Years_Usage_Modeled,Comp_V1_Taxes_Fees_Modeled,0)*Data!Z$81 -> 0 | AC106: =-IF(COLUMN(AC74)-COLUMN($E74)<Comp_V1_Years_Usage_Modeled,Comp_V1_Taxes_Fees_Modeled,0)*Data!AA$81 -> 0
B107: Insurance Cost | E107: =-IF(COLUMN(E74)-COLUMN($E74)<Comp_V1_Years_Usage_Modeled,Comp_V1_Insurance_Cost_Modeled,0)*Data!C$81 -> -1222 | F107: =-IF(COLUMN(F74)-COLUMN($E74)<Comp_V1_Years_Usage_Modeled,Comp_V1_Insurance_Cost_Modeled,0)*Data!D$81 -> -1246.44 | G107: =-IF(COLUMN(G74)-COLUMN($E74)<Comp_V1_Years_Usage_Modeled,Comp_V1_Insurance_Cost_Modeled,0)*Data!E$81 -> -1271.3688 | H107: =-IF(COLUMN(H74)-COLUMN($E74)<Comp_V1_Years_Usage_Modeled,Comp_V1_Insurance_Cost_Modeled,0)*Data!F$81 -> -1296.796176 | I107: =-IF(COLUMN(I74)-COLUMN($E74)<Comp_V1_Years_Usage_Modeled,Comp_V1_Insurance_Cost_Modeled,0)*Data!G$81 -> -1322.7321 | J107: =-IF(COLUMN(J74)-COLUMN($E74)<Comp_V1_Years_Usage_Modeled,Comp_V1_Insurance_Cost_Modeled,0)*Data!H$81 -> -1349.186742 | K107: =-IF(COLUMN(K74)-COLUMN($E74)<Comp_V1_Years_Usage_Modeled,Comp_V1_Insurance_Cost_Modeled,0)*Data!I$81 -> -1376.170476 | L107: =-IF(COLUMN(L74)-COLUMN($E74)<Comp_V1_Years_Usage_Modeled,Comp_V1_Insurance_Cost_Modeled,0)*Data!J$81 -> 0 | M107: =-IF(COLUMN(M74)-COLUMN($E74)<Comp_V1_Years_Usage_Modeled,Comp_V1_Insurance_Cost_Modeled,0)*Data!K$81 -> 0 | N107: =-IF(COLUMN(N74)-COLUMN($E74)<Comp_V1_Years_Usage_Modeled,Comp_V1_Insurance_Cost_Modeled,0)*Data!L$81 -> 0 | O107: =-IF(COLUMN(O74)-COLUMN($E74)<Comp_V1_Years_Usage_Modeled,Comp_V1_Insurance_Cost_Modeled,0)*Data!M$81 -> 0 | P107: =-IF(COLUMN(P74)-COLUMN($E74)<Comp_V1_Years_Usage_Modeled,Comp_V1_Insurance_Cost_Modeled,0)*Data!N$81 -> 0 | Q107: =-IF(COLUMN(Q74)-COLUMN($E74)<Comp_V1_Years_Usage_Modeled,Comp_V1_Insurance_Cost_Modeled,0)*Data!O$81 -> 0 | R107: =-IF(COLUMN(R74)-COLUMN($E74)<Comp_V1_Years_Usage_Modeled,Comp_V1_Insurance_Cost_Modeled,0)*Data!P$81 -> 0 | S107: =-IF(COLUMN(S74)-COLUMN($E74)<Comp_V1_Years_Usage_Modeled,Comp_V1_Insurance_Cost_Modeled,0)*Data!Q$81 -> 0 | T107: =-IF(COLUMN(T74)-COLUMN($E74)<Comp_V1_Years_Usage_Modeled,Comp_V1_Insurance_Cost_Modeled,0)*Data!R$81 -> 0 | U107: =-IF(COLUMN(U74)-COLUMN($E74)<Comp_V1_Years_Usage_Modeled,Comp_V1_Insurance_Cost_Modeled,0)*Data!S$81 -> 0 | V107: =-IF(COLUMN(V74)-COLUMN($E74)<Comp_V1_Years_Usage_Modeled,Comp_V1_Insurance_Cost_Modeled,0)*Data!T$81 -> 0 | W107: =-IF(COLUMN(W74)-COLUMN($E74)<Comp_V1_Years_Usage_Modeled,Comp_V1_Insurance_Cost_Modeled,0)*Data!U$81 -> 0 | X107: =-IF(COLUMN(X74)-COLUMN($E74)<Comp_V1_Years_Usage_Modeled,Comp_V1_Insurance_Cost_Modeled,0)*Data!V$81 -> 0 | Y107: =-IF(COLUMN(Y74)-COLUMN($E74)<Comp_V1_Years_Usage_Modeled,Comp_V1_Insurance_Cost_Modeled,0)*Data!W$81 -> 0 | Z107: =-IF(COLUMN(Z74)-COLUMN($E74)<Comp_V1_Years_Usage_Modeled,Comp_V1_Insurance_Cost_Modeled,0)*Data!X$81 -> 0 | AA107: =-IF(COLUMN(AA74)-COLUMN($E74)<Comp_V1_Years_Usage_Modeled,Comp_V1_Insurance_Cost_Modeled,0)*Data!Y$81 -> 0 | AB107: =-IF(COLUMN(AB74)-COLUMN($E74)<Comp_V1_Years_Usage_Modeled,Comp_V1_Insurance_Cost_Modeled,0)*Data!Z$81 -> 0 | AC107: =-IF(COLUMN(AC74)-COLUMN($E74)<Comp_V1_Years_Usage_Modeled,Comp_V1_Insurance_Cost_Modeled,0)*Data!AA$81 -> 0
B108: Subtotal Fuel and Operating Costs | D108: =SUM(D104:D107) -> -1000 | E108: -2349.283033 | F108: -2380.712136 | G108: -2437.096131 | H108: -2503.608286 | I108: -2556.32807 | J108: -2805.974363 | K108: -2856.554804 | L108: 0 | M108: 0 | N108: 0 | O108: 0 | P108: 0 | Q108: 0 | R108: 0 | S108: 0 | T108: 0 | U108: 0 | V108: 0 | W108: 0 | X108: 0 | Y108: 0 | Z108: 0 | AA108: 0 | AB108: 0 | AC108: 0
B110: Other Costs
B111: Cost of Carbon | E111: =-IF(COLUMN(E74)-COLUMN($E74)<Comp_V1_Years_Usage_Modeled,Comp_V1_CO2_Ex/2204.62*Carbon_Price_Modeled,0) -> 0 | F111: 0 | G111: 0 | H111: 0 | I111: 0 | J111: 0 | K111: 0 | L111: 0 | M111: 0 | N111: 0 | O111: 0 | P111: 0 | Q111: 0 | R111: 0 | S111: 0 | T111: 0 | U111: 0 | V111: 0 | W111: 0 | X111: 0 | Y111: 0 | Z111: 0 | AA111: 0 | AB111: 0 | AC111: 0
B112: Subtotal Other Costs | D112: =SUM(D111:D111) -> 0 | E112: 0 | F112: 0 | G112: 0 | H112: 0 | I112: 0 | J112: 0 | K112: 0 | L112: 0 | M112: 0 | N112: 0 | O112: 0 | P112: 0 | Q112: 0 | R112: 0 | S112: 0 | T112: 0 | U112: 0 | V112: 0 | W112: 0 | X112: 0 | Y112: 0 | Z112: 0 | AA112: 0 | AB112: 0 | AC112: =SUM(AC111:AC111) -> 0
B114: Total Discounted Costs
B115: Total Annual Costs | D115: =D101+D108+D112 -> -27026 | E115: -2349.283033 | F115: -2380.712136 | G115: -2437.096131 | H115: -2503.608286 | I115: -2556.32807 | J115: -2805.974363 | K115: -650.0004953 | L115: 0 | M115: 0 | N115: 0 | O115: 0 | P115: 0 | Q115: 0 | R115: 0 | S115: 0 | T115: 0 | U115: 0 | V115: 0 | W115: 0 | X115: 0 | Y115: 0 | Z115: 0 | AA115: 0 | AB115: 0 | AC115: 0
B116: Discount Factor | C116: =Comp_Discount_Rate_Modeled -> 0 | D116: =(1/(1+$C116))^(COLUMN(D74)-COLUMN($D74)) -> 1 | E116: 1 | F116: 1 | G116: 1 | H116: 1 | I116: 1 | J116: 1 | K116: 1 | L116: 1 | M116: 1 | N116: 1 | O116: 1 | P116: 1 | Q116: 1 | R116: 1 | S116: 1 | T116: 1 | U116: 1 | V116: 1 | W116: 1 | X116: 1 | Y116: 1 | Z116: 1 | AA116: 1 | AB116: 1 | AC116: 1
B117: Discounted Total | D117: =D115*D116 -> -27026 | E117: =E115*E116 -> -2349.283033 | F117: =F115*F116 -> -2380.712136 | G117: -2437.096131 | H117: -2503.608286 | I117: -2556.32807 | J117: -2805.974363 | K117: -650.0004953 | L117: 0 | M117: 0 | N117: 0 | O117: 0 | P117: 0 | Q117: 0 | R117: 0 | S117: 0 | T117: 0 | U117: 0 | V117: 0 | W117: 0 | X117: 0 | Y117: 0 | Z117: 0 | AA117: 0 | AB117: 0 | AC117: 0
B118: Cumulative Discounted Total | D118: =IF((COLUMN(D74)-COLUMN($D74))<=Comp_V1_Years_Usage_Modeled,C118+D117,0) -> -27026 | E118: -29375.28303 | F118: -31755.99517 | G118: -34193.0913 | H118: -36696.69958 | I118: -39253.02765 | J118: -42059.00202 | K118: -42709.00251 | L118: 0 | M118: 0 | N118: 0 | O118: 0 | P118: 0 | Q118: 0 | R118: 0 | S118: 0 | T118: 0 | U118: 0 | V118: 0 | W118: 0 | X118: 0 | Y118: 0 | Z118: 0 | AA118: 0 | AB118: 0 | AC118: 0
B119: Annualized NPV Total Cost of Ownership | D119: =OFFSET($D118,0,Comp_V1_Years_Usage_Modeled)/Comp_V1_Years_Usage_Modeled -> -6101.286073
B121: Comparison EV Infrastructure
D122: Year 0 | E122: Year 1 | F122: Year 2 | G122: Year 3 | H122: Year 4 | I122: Year 5 | J122: Year 6 | K122: Year 7 | L122: Year 8 | M122: Year 9 | N122: Year 10 | O122: Year 11 | P122: Year 12 | Q122: Year 13 | R122: Year 14 | S122: Year 15 | T122: Year 16 | U122: Year 17 | V122: Year 18 | W122: Year 19 | X122: Year 20 | Y122: Year 21 | Z122: Year 22 | AA122: Year 23 | AB122: Year 24 | AC122: Year 25
B123: Capital and Financing Costs
B124: Cash
B125: Cash Payment | D125: =IF(AND(Comp_Inf_Has_Cash_Purchase_Ex=TRUE,_Comp_Include_Charging="Yes"),-Comp_Num_Stations_Modeled*Comp_Station_Cost_Modeled,0) -> 0
B126: Loan
B127: Down Payment | D127: =IF(AND(Comp_Inf_Has_Cash_Purchase_Ex=FALSE,_Comp_Include_Charging="Yes"),-Comp_Inf_Down_Payment_Modeled,0) -> 0
B128: Loan Payments | E128: =IF(AND(Comp_Inf_Has_Cash_Purchase_Ex=FALSE,_Comp_Include_Charging="Yes",(COLUMN(E122)-COLUMN($E122))<Comp_Inf_Loan_Term_Modeled),PMT(Comp_Inf_Loan_APR_Modeled/12,Comp_Inf_Loan_Term_Modeled*12,(Comp_Num_Stations_Modeled*Comp_Station_Cost_Modeled)-Comp_Inf_Down_Payment_Modeled,0)*12,0) -> 0 | F128: 0 | G128: 0 | H128: 0 | I128: 0 | J128: 0 | K128: 0 | L128: 0 | M128: 0 | N128: 0 | O128: 0 | P128: 0 | Q128: 0 | R128: 0 | S128: 0 | T128: 0 | U128: 0 | V128: 0 | W128: 0 | X128: 0 | Y128: 0 | Z128: 0 | AA128: 0 | AB128: 0 | AC128: 0
B129: Subtotal Loan Cash Flows | D129: =SUM(D127:D128) -> 0 | E129: 0 | F129: 0 | G129: 0 | H129: 0 | I129: 0 | J129: 0 | K129: 0 | L129: 0 | M129: 0 | N129: 0 | O129: 0 | P129: 0 | Q129: 0 | R129: 0 | S129: 0 | T129: 0 | U129: 0 | V129: 0 | W129: 0 | X129: 0 | Y129: 0 | Z129: 0 | AA129: 0 | AB129: 0 | AC129: 0
B131: Total Capital and Financing Costs | D131: =D125+D129 -> 0 | E131: =E125+E129 -> 0 | F131: 0 | G131: 0 | H131: 0 | I131: 0 | J131: 0 | K131: 0 | L131: 0 | M131: 0 | N131: 0 | O131: 0 | P131: 0 | Q131: 0 | R131: 0 | S131: 0 | T131: 0 | U131: 0 | V131: 0 | W131: 0 | X131: 0 | Y131: 0 | Z131: 0 | AA131: 0 | AB131: 0 | AC131: 0
B133: Operating Costs
B134: Maintenance Cost | E134: =-IF(AND(COLUMN(E122)-COLUMN($E122)<Comp_V1_Years_Usage_Modeled,_Comp_Include_Charging="Yes"),Comp_Station_Maint_Cost_Modeled*Comp_Num_Stations_Modeled,0)*Data!C$81 -> 0 | F134: =-IF(AND(COLUMN(F122)-COLUMN($E122)<Comp_V1_Years_Usage_Modeled,_Comp_Include_Charging="Yes"),Comp_Station_Maint_Cost_Modeled*Comp_Num_Stations_Modeled,0)*Data!D$81 -> 0 | G134: =-IF(AND(COLUMN(G122)-COLUMN($E122)<Comp_V1_Years_Usage_Modeled,_Comp_Include_Charging="Yes"),Comp_Station_Maint_Cost_Modeled*Comp_Num_Stations_Modeled,0)*Data!E$81 -> 0 | H134: =-IF(AND(COLUMN(H122)-COLUMN($E122)<Comp_V1_Years_Usage_Modeled,_Comp_Include_Charging="Yes"),Comp_Station_Maint_Cost_Modeled*Comp_Num_Stations_Modeled,0)*Data!F$81 -> 0 | I134: =-IF(AND(COLUMN(I122)-COLUMN($E122)<Comp_V1_Years_Usage_Modeled,_Comp_Include_Charging="Yes"),Comp_Station_Maint_Cost_Modeled*Comp_Num_Stations_Modeled,0)*Data!G$81 -> 0 | J134: =-IF(AND(COLUMN(J122)-COLUMN($E122)<Comp_V1_Years_Usage_Modeled,_Comp_Include_Charging="Yes"),Comp_Station_Maint_Cost_Modeled*Comp_Num_Stations_Modeled,0)*Data!H$81 -> 0 | K134: =-IF(AND(COLUMN(K122)-COLUMN($E122)<Comp_V1_Years_Usage_Modeled,_Comp_Include_Charging="Yes"),Comp_Station_Maint_Cost_Modeled*Comp_Num_Stations_Modeled,0)*Data!I$81 -> 0 | L134: =-IF(AND(COLUMN(L122)-COLUMN($E122)<Comp_V1_Years_Usage_Modeled,_Comp_Include_Charging="Yes"),Comp_Station_Maint_Cost_Modeled*Comp_Num_Stations_Modeled,0)*Data!J$81 -> 0 | M134: =-IF(AND(COLUMN(M122)-COLUMN($E122)<Comp_V1_Years_Usage_Modeled,_Comp_Include_Charging="Yes"),Comp_Station_Maint_Cost_Modeled*Comp_Num_Stations_Modeled,0)*Data!K$81 -> 0 | N134: =-IF(AND(COLUMN(N122)-COLUMN($E122)<Comp_V1_Years_Usage_Modeled,_Comp_Include_Charging="Yes"),Comp_Station_Maint_Cost_Modeled*Comp_Num_Stations_Modeled,0)*Data!L$81 -> 0 | O134: =-IF(AND(COLUMN(O122)-COLUMN($E122)<Comp_V1_Years_Usage_Modeled,_Comp_Include_Charging="Yes"),Comp_Station_Maint_Cost_Modeled*Comp_Num_Stations_Modeled,0)*Data!M$81 -> 0 | P134: =-IF(AND(COLUMN(P122)-COLUMN($E122)<Comp_V1_Years_Usage_Modeled,_Comp_Include_Charging="Yes"),Comp_Station_Maint_Cost_Modeled*Comp_Num_Stations_Modeled,0)*Data!N$81 -> 0 | Q134: =-IF(AND(COLUMN(Q122)-COLUMN($E122)<Comp_V1_Years_Usage_Modeled,_Comp_Include_Charging="Yes"),Comp_Station_Maint_Cost_Modeled*Comp_Num_Stations_Modeled,0)*Data!O$81 -> 0 | R134: =-IF(AND(COLUMN(R122)-COLUMN($E122)<Comp_V1_Years_Usage_Modeled,_Comp_Include_Charging="Yes"),Comp_Station_Maint_Cost_Modeled*Comp_Num_Stations_Modeled,0)*Data!P$81 -> 0 | S134: =-IF(AND(COLUMN(S122)-COLUMN($E122)<Comp_V1_Years_Usage_Modeled,_Comp_Include_Charging="Yes"),Comp_Station_Maint_Cost_Modeled*Comp_Num_Stations_Modeled,0)*Data!Q$81 -> 0 | T134: =-IF(AND(COLUMN(T122)-COLUMN($E122)<Comp_V1_Years_Usage_Modeled,_Comp_Include_Charging="Yes"),Comp_Station_Maint_Cost_Modeled*Comp_Num_Stations_Modeled,0)*Data!R$81 -> 0 | U134: =-IF(AND(COLUMN(U122)-COLUMN($E122)<Comp_V1_Years_Usage_Modeled,_Comp_Include_Charging="Yes"),Comp_Station_Maint_Cost_Modeled*Comp_Num_Stations_Modeled,0)*Data!S$81 -> 0 | V134: =-IF(AND(COLUMN(V122)-COLUMN($E122)<Comp_V1_Years_Usage_Modeled,_Comp_Include_Charging="Yes"),Comp_Station_Maint_Cost_Modeled*Comp_Num_Stations_Modeled,0)*Data!T$81 -> 0 | W134: =-IF(AND(COLUMN(W122)-COLUMN($E122)<Comp_V1_Years_Usage_Modeled,_Comp_Include_Charging="Yes"),Comp_Station_Maint_Cost_Modeled*Comp_Num_Stations_Modeled,0)*Data!U$81 -> 0 | X134: =-IF(AND(COLUMN(X122)-COLUMN($E122)<Comp_V1_Years_Usage_Modeled,_Comp_Include_Charging="Yes"),Comp_Station_Maint_Cost_Modeled*Comp_Num_Stations_Modeled,0)*Data!V$81 -> 0 | Y134: =-IF(AND(COLUMN(Y122)-COLUMN($E122)<Comp_V1_Years_Usage_Modeled,_Comp_Include_Charging="Yes"),Comp_Station_Maint_Cost_Modeled*Comp_Num_Stations_Modeled,0)*Data!W$81 -> 0 | Z134: =-IF(AND(COLUMN(Z122)-COLUMN($E122)<Comp_V1_Years_Usage_Modeled,_Comp_Include_Charging="Yes"),Comp_Station_Maint_Cost_Modeled*Comp_Num_Stations_Modeled,0)*Data!X$81 -> 0 | AA134: =-IF(AND(COLUMN(AA122)-COLUMN($E122)<Comp_V1_Years_Usage_Modeled,_Comp_Include_Charging="Yes"),Comp_Station_Maint_Cost_Modeled*Comp_Num_Stations_Modeled,0)*Data!Y$81 -> 0 | AB134: =-IF(AND(COLUMN(AB122)-COLUMN($E122)<Comp_V1_Years_Usage_Modeled,_Comp_Include_Charging="Yes"),Comp_Station_Maint_Cost_Modeled*Comp_Num_Stations_Modeled,0)*Data!Z$81 -> 0 | AC134: =-IF(AND(COLUMN(AC122)-COLUMN($E122)<Comp_V1_Years_Usage_Modeled,_Comp_Include_Charging="Yes"),Comp_Station_Maint_Cost_Modeled*Comp_Num_Stations_Modeled,0)*Data!AA$81 -> 0
B135: Subtotal Operating Costs | E135: =SUM(E134:E134) -> 0 | F135: 0 | G135: 0 | H135: 0 | I135: 0 | J135: 0 | K135: 0 | L135: 0 | M135: 0 | N135: 0 | O135: 0 | P135: 0 | Q135: 0 | R135: 0 | S135: 0 | T135: 0 | U135: 0 | V135: 0 | W135: 0 | X135: 0 | Y135: 0 | Z135: 0 | AA135: 0 | AB135: 0 | AC135: 0
B136: Total Discounted Costs
B137: Total Annual Costs | D137: =D131+D135 -> 0 | E137: =E131+E135 -> 0 | F137: 0 | G137: 0 | H137: 0 | I137: 0 | J137: 0 | K137: 0 | L137: 0 | M137: 0 | N137: 0 | O137: 0 | P137: 0 | Q137: 0 | R137: 0 | S137: 0 | T137: 0 | U137: 0 | V137: 0 | W137: 0 | X137: 0 | Y137: 0 | Z137: 0 | AA137: 0 | AB137: 0 | AC137: 0
B138: Discount Factor | C138: =Comp_Discount_Rate_Modeled -> 0 | D138: =(1/(1+$C138))^(COLUMN(D122)-COLUMN($D122)) -> 1 | E138: 1 | F138: 1 | G138: 1 | H138: 1 | I138: 1 | J138: 1 | K138: 1 | L138: 1 | M138: 1 | N138: 1 | O138: 1 | P138: 1 | Q138: 1 | R138: 1 | S138: 1 | T138: 1 | U138: 1 | V138: 1 | W138: 1 | X138: 1 | Y138: 1 | Z138: 1 | AA138: 1 | AB138: 1 | AC138: 1
B139: Discounted Total | D139: =D137*D138 -> 0 | E139: =E137*E138 -> 0 | F139: =F137*F138 -> 0 | G139: 0 | H139: 0 | I139: 0 | J139: 0 | K139: 0 | L139: 0 | M139: 0 | N139: 0 | O139: 0 | P139: 0 | Q139: 0 | R139: 0 | S139: 0 | T139: 0 | U139: 0 | V139: 0 | W139: 0 | X139: 0 | Y139: 0 | Z139: 0 | AA139: 0 | AB139: 0 | AC139: 0
B140: Cumulative Discounted Total | D140: =IF((COLUMN(D122)-COLUMN($D122))<=Comp_V1_Years_Usage_Modeled,C140+D139,0) -> 0 | E140: 0 | F140: 0 | G140: 0 | H140: 0 | I140: 0 | J140: 0 | K140: 0 | L140: 0 | M140: 0 | N140: 0 | O140: 0 | P140: 0 | Q140: 0 | R140: 0 | S140: 0 | T140: 0 | U140: 0 | V140: 0 | W140: 0 | X140: 0 | Y140: 0 | Z140: 0 | AA140: 0 | AB140: 0 | AC140: 0
B141: Annualized NPV Total Cost of Ownership | D141: =OFFSET($D140,0,Comp_V1_Years_Usage_Modeled)/Comp_V1_Years_Usage_Modeled -> 0

Sheet Results Tables (hidden)
A1: Results Tables - EV Fleet Procurement Analysis Tool
B3: Total Cost per Vehicle
C4: =Base_V1_Type_Ex&" (Baseline)" -> 2017 Chevrolet Cruze ICE (Baseline) | D4: =Comp_V1_Type_Ex&" (Comparison)" -> 2017 Chevrolet Bolt EV BEV (Comparison)
B5: Depreciation (less tax credits and incentives) | C5: =SUM('Financial Model'!D31:AC31)-SUM('Financial Model'!D19:AC19)-SUM('Financial Model'!D27:AC27) -> -15570.92673 | D5: =SUM('Financial Model'!D101:AC101)-SUM('Financial Model'!D89:AC89)-SUM('Financial Model'!D97:AC97) -> -23819.44569
B6: Financing | C6: =SUM('Financial Model'!E19:AC19)+SUM('Financial Model'!E27:AC27) -> 0 | D6: =SUM('Financial Model'!E89:AC89)+SUM('Financial Model'!E97:AC97) -> 0
B7: Fuel | C7: =SUM('Financial Model'!D34:AC34) -> -8929.567335 | D7: =SUM('Financial Model'!D104:AC104) -> -3868.505885
B8: Maintenance and Repairs | C8: =SUM('Financial Model'!D35:AC35) -> -9724.027619 | D8: =SUM('Financial Model'!D105:AC105) -> -4862.01381
B9: Taxes & Fees | C9: =SUM('Financial Model'!D36:AC36) -> -1074.342834 | D9: =SUM('Financial Model'!D106:AC106) -> -1074.342834
B10: Insurance | C10: =SUM('Financial Model'!D37:AC37) -> -9084.694293 | D10: =SUM('Financial Model'!D107:AC107) -> -9084.694293
B11: Carbon | C11: =SUM('Financial Model'!D41:AC41) -> 0 | D11: =SUM('Financial Model'!D111:AC111) -> 0
B12: Vehicle Total | C12: =SUM(C5:C11) -> -44383.55881 | D12: =SUM(D5:D11) -> -42709.00251
B13: Vehicle Total - Check | C13: =SUM('Financial Model'!D45:AC45) -> -44383.55881 | D13: =SUM('Financial Model'!D115:AC115) -> -42709.00251
B14: Infrastructure per Vehicle | C14: =SUM('Financial Model'!D67:AC67)/Base_V1_Num_Vehicles_Modeled -> 0 | D14: =SUM('Financial Model'!D137:AC137)/Comp_V1_Num_Vehicles_Modeled -> 0
B15: Grand Total | C15: =C12+C14 -> -44383.55881 | D15: =D12+D14 -> -42709.00251
B17: Vehicle Cost per Mile
C18: =C4 -> 2017 Chevrolet Cruze ICE (Baseline) | D18: =D4 -> 2017 Chevrolet Bolt EV BEV (Comparison)
B19: Depreciation (less tax credits and incentives) | C19: =-C5/(Base_V1_VMT_Modeled*Base_V1_Years_Usage_Modeled) -> 0.1482945403 | D19: =-D5/(Comp_V1_VMT_Modeled*Comp_V1_Years_Usage_Modeled) -> 0.2268518637
B20: Financing | C20: 0 | D20: 0
B21: Fuel | C21: 0.08504349843 | D21: 0.03684291319
B22: Maintenance and Repairs | C22: 0.09260978685 | D22: 0.04630489342
B23: Taxes & Fees | C23: 0.01023183651 | D23: 0.01023183651
B24: Insurance | C24: 0.08652089803 | D24: 0.08652089803
B25: Carbon | C25: 0 | D25: 0
B26: Vehicle Total | C26: =SUM(C19:C25) -> 0.4227005601 | D26: =SUM(D19:D25) -> 0.4067524049
B27: Vehicle Total - Check | C27: =-C13/(Base_V1_VMT_Modeled*Base_V1_Years_Usage_Modeled) -> 0.4227005601 | D27: =-D13/(Comp_V1_VMT_Modeled*Comp_V1_Years_Usage_Modeled) -> 0.4067524049
B28: Charging Infrastructure | C28: =-C14/(Base_V1_VMT_Modeled*Base_V1_Years_Usage_Modeled) -> 0 | D28: =-D14/(Comp_V1_VMT_Modeled*Comp_V1_Years_Usage_Modeled) -> 0
B29: Grand Total | C29: =-C15/(Base_V1_VMT_Modeled*Base_V1_Years_Usage_Modeled) -> 0.4227005601 | D29: =-D15/(Comp_V1_VMT_Modeled*Comp_V1_Years_Usage_Modeled) -> 0.4067524049
B31: Gasoline Displaced
C32: =C4 -> 2017 Chevrolet Cruze ICE (Baseline) | D32: =D4 -> 2017 Chevrolet Bolt EV BEV (Comparison)
B33: Gallons of Gasoline / Year / Vehicle | C33: =Base_V1_Gas_Usage_Ex -> 443.75 | D33: =Comp_V1_Gas_Usage_Ex -> 0
B34: Number of Years | C34: =Base_V1_Years_Usage_Modeled -> 7 | D34: =Comp_V1_Years_Usage_Modeled -> 7
B35: Number of Vehicles | C35: =Base_V1_Num_Vehicles_Modeled -> 19 | D35: =Comp_V1_Num_Vehicles_Modeled -> 19
B36: Total Gasoline Consumption (Gallons) | C36: =C33*C34*C35 -> 59018.75 | D36: =D33*D34*D35 -> 0
B37: Gasoline Consumption / Mile (Average) | C37: =C33/Base_V1_VMT_Modeled -> 0.02958333333 | D37: =D33/Comp_V1_VMT_Modeled -> 0
B39: Cash Flow Chart
B41: =Base_V1_Type_Ex&" (Baseline)" -> 2017 Chevrolet Cruze ICE (Baseline)
C42: Year 0 | D42: Year 1 | E42: Year 2 | F42: Year 3 | G42: Year 4 | H42: Year 5 | I42: Year 6 | J42: Year 7 | K42: Year 8 | L42: Year 9 | M42: Year 10 | N42: Year 11 | O42: Year 12 | P42: Year 13 | Q42: Year 14 | R42: Year 15 | S42: Year 16 | T42: Year 17 | U42: Year 18 | V42: Year 19 | W42: Year 20 | X42: Year 21 | Y42: Year 22 | Z42: Year 23 | AA42: Year 24 | AB42: Year 25 | AC42: Totals
B43: Principal (less tax credits and incentives) | C43: =('Financial Model'!D31-'Financial Model'!D27-'Financial Model'!D29)*Base_V1_Num_Vehicles_Modeled -> -346256 | D43: =('Financial Model'!E31-'Financial Model'!E27-'Financial Model'!E29)*Base_V1_Num_Vehicles_Modeled -> 0 | E43: =('Financial Model'!F31-'Financial Model'!F27-'Financial Model'!F29)*Base_V1_Num_Vehicles_Modeled -> 0 | F43: =('Financial Model'!G31-'Financial Model'!G27-'Financial Model'!G29)*Base_V1_Num_Vehicles_Modeled -> 0 | G43: =('Financial Model'!H31-'Financial Model'!H27-'Financial Model'!H29)*Base_V1_Num_Vehicles_Modeled -> 0 | H43: =('Financial Model'!I31-'Financial Model'!I27-'Financial Model'!I29)*Base_V1_Num_Vehicles_Modeled -> 0 | I43: =('Financial Model'!J31-'Financial Model'!J27-'Financial Model'!J29)*Base_V1_Num_Vehicles_Modeled -> 0 | J43: =('Financial Model'!K31-'Financial Model'!K27-'Financial Model'!K29)*Base_V1_Num_Vehicles_Modeled -> 0 | K43: =('Financial Model'!L31-'Financial Model'!L27-'Financial Model'!L29)*Base_V1_Num_Vehicles_Modeled -> 0 | L43: =('Financial Model'!M31-'Financial Model'!M27-'Financial Model'!M29)*Base_V1_Num_Vehicles_Modeled -> 0 | M43: =('Financial Model'!N31-'Financial Model'!N27-'Financial Model'!N29)*Base_V1_Num_Vehicles_Modeled -> 0 | N43: =('Financial Model'!O31-'Financial Model'!O27-'Financial Model'!O29)*Base_V1_Num_Vehicles_Modeled -> 0 | O43: =('Financial Model'!P31-'Financial Model'!P27-'Financial Model'!P29)*Base_V1_Num_Vehicles_Modeled -> 0 | P43: =('Financial Model'!Q31-'Financial Model'!Q27-'Financial Model'!Q29)*Base_V1_Num_Vehicles_Modeled -> 0 | Q43: =('Financial Model'!R31-'Financial Model'!R27-'Financial Model'!R29)*Base_V1_Num_Vehicles_Modeled -> 0 | R43: =('Financial Model'!S31-'Financial Model'!S27-'Financial Model'!S29)*Base_V1_Num_Vehicles_Modeled -> 0 | S43: =('Financial Model'!T31-'Financial Model'!T27-'Financial Model'!T29)*Base_V1_Num_Vehicles_Modeled -> 0 | T43: =('Financial Model'!U31-'Financial Model'!U27-'Financial Model'!U29)*Base_V1_Num_Vehicles_Modeled -> 0 | U43: =('Financial Model'!V31-'Financial Model'!V27-'Financial Model'!V29)*Base_V1_Num_Vehicles_Modeled -> 0 | V43: =('Financial Model'!W31-'Financial Model'!W27-'Financial Model'!W29)*Base_V1_Num_Vehicles_Modeled -> 0 | W43: =('Financial Model'!X31-'Financial Model'!X27-'Financial Model'!X29)*Base_V1_Num_Vehicles_Modeled -> 0 | X43: =('Financial Model'!Y31-'Financial Model'!Y27-'Financial Model'!Y29)*Base_V1_Num_Vehicles_Modeled -> 0 | Y43: =('Financial Model'!Z31-'Financial Model'!Z27-'Financial Model'!Z29)*Base_V1_Num_Vehicles_Modeled -> 0 | Z43: =('Financial Model'!AA31-'Financial Model'!AA27-'Financial Model'!AA29)*Base_V1_Num_Vehicles_Modeled -> 0 | AA43: =('Financial Model'!AB31-'Financial Model'!AB27-'Financial Model'!AB29)*Base_V1_Num_Vehicles_Modeled -> 0 | AB43: =('Financial Model'!AC31-'Financial Model'!AC27-'Financial Model'!AC29)*Base_V1_Num_Vehicles_Modeled -> 0 | AC43: =SUM(C43:AB43) -> -346256
B44: Financing | C44: ='Financial Model'!D27*Base_V1_Num_Vehicles_Modeled -> 0 | D44: ='Financial Model'!E27*Base_V1_Num_Vehicles_Modeled -> 0 | E44: ='Financial Model'!F27*Base_V1_Num_Vehicles_Modeled -> 0 | F44: ='Financial Model'!G27*Base_V1_Num_Vehicles_Modeled -> 0 | G44: ='Financial Model'!H27*Base_V1_Num_Vehicles_Modeled -> 0 | H44: ='Financial Model'!I27*Base_V1_Num_Vehicles_Modeled -> 0 | I44: ='Financial Model'!J27*Base_V1_Num_Vehicles_Modeled -> 0 | J44: ='Financial Model'!K27*Base_V1_Num_Vehicles_Modeled -> 0 | K44: ='Financial Model'!L27*Base_V1_Num_Vehicles_Modeled -> 0 | L44: ='Financial Model'!M27*Base_V1_Num_Vehicles_Modeled -> 0 | M44: ='Financial Model'!N27*Base_V1_Num_Vehicles_Modeled -> 0 | N44: ='Financial Model'!O27*Base_V1_Num_Vehicles_Modeled -> 0 | O44: ='Financial Model'!P27*Base_V1_Num_Vehicles_Modeled -> 0 | P44: ='Financial Model'!Q27*Base_V1_Num_Vehicles_Modeled -> 0 | Q44: ='Financial Model'!R27*Base_V1_Num_Vehicles_Modeled -> 0 | R44: ='Financial Model'!S27*Base_V1_Num_Vehicles_Modeled -> 0 | S44: ='Financial Model'!T27*Base_V1_Num_Vehicles_Modeled -> 0 | T44: ='Financial Model'!U27*Base_V1_Num_Vehicles_Modeled -> 0 | U44: ='Financial Model'!V27*Base_V1_Num_Vehicles_Modeled -> 0 | V44: ='Financial Model'!W27*Base_V1_Num_Vehicles_Modeled -> 0 | W44: ='Financial Model'!X27*Base_V1_Num_Vehicles_Modeled -> 0 | X44: ='Financial Model'!Y27*Base_V1_Num_Vehicles_Modeled -> 0 | Y44: ='Financial Model'!Z27*Base_V1_Num_Vehicles_Modeled -> 0 | Z44: ='Financial Model'!AA27*Base_V1_Num_Vehicles_Modeled -> 0 | AA44: ='Financial Model'!AB27*Base_V1_Num_Vehicles_Modeled -> 0 | AB44: ='Financial Model'!AC27*Base_V1_Num_Vehicles_Modeled -> 0 | AC44: =SUM(C44:AB44) -> 0
B45: Residual Value (Vehicle Sale) | C45: ='Financial Model'!D29*Base_V1_Num_Vehicles_Modeled -> 0 | D45: ='Financial Model'!E29*Base_V1_Num_Vehicles_Modeled -> 0 | E45: ='Financial Model'!F29*Base_V1_Num_Vehicles_Modeled -> 0 | F45: ='Financial Model'!G29*Base_V1_Num_Vehicles_Modeled -> 0 | G45: ='Financial Model'!H29*Base_V1_Num_Vehicles_Modeled -> 0 | H45: ='Financial Model'!I29*Base_V1_Num_Vehicles_Modeled -> 0 | I45: ='Financial Model'!J29*Base_V1_Num_Vehicles_Modeled -> 0 | J45: ='Financial Model'!K29*Base_V1_Num_Vehicles_Modeled -> 50408.39212 | K45: ='Financial Model'!L29*Base_V1_Num_Vehicles_Modeled -> 0 | L45: ='Financial Model'!M29*Base_V1_Num_Vehicles_Modeled -> 0 | M45: ='Financial Model'!N29*Base_V1_Num_Vehicles_Modeled -> 0 | N45: ='Financial Model'!O29*Base_V1_Num_Vehicles_Modeled -> 0 | O45: ='Financial Model'!P29*Base_V1_Num_Vehicles_Modeled -> 0 | P45: ='Financial Model'!Q29*Base_V1_Num_Vehicles_Modeled -> 0 | Q45: ='Financial Model'!R29*Base_V1_Num_Vehicles_Modeled -> 0 | R45: ='Financial Model'!S29*Base_V1_Num_Vehicles_Modeled -> 0 | S45: ='Financial Model'!T29*Base_V1_Num_Vehicles_Modeled -> 0 | T45: ='Financial Model'!U29*Base_V1_Num_Vehicles_Modeled -> 0 | U45: ='Financial Model'!V29*Base_V1_Num_Vehicles_Modeled -> 0 | V45: ='Financial Model'!W29*Base_V1_Num_Vehicles_Modeled -> 0 | W45: ='Financial Model'!X29*Base_V1_Num_Vehicles_Modeled -> 0 | X45: ='Financial Model'!Y29*Base_V1_Num_Vehicles_Modeled -> 0 | Y45: ='Financial Model'!Z29*Base_V1_Num_Vehicles_Modeled -> 0 | Z45: ='Financial Model'!AA29*Base_V1_Num_Vehicles_Modeled -> 0 | AA45: ='Financial Model'!AB29*Base_V1_Num_Vehicles_Modeled -> 0 | AB45: ='Financial Model'!AC29*Base_V1_Num_Vehicles_Modeled -> 0 | AC45: 50408.39212
B46: Fuel | C46: ='Financial Model'!D34*Base_V1_Num_Vehicles_Modeled -> 0 | D46: ='Financial Model'!E34*Base_V1_Num_Vehicles_Modeled -> -19493.05 | E46: ='Financial Model'!F34*Base_V1_Num_Vehicles_Modeled -> -21225.93288 | F46: ='Financial Model'!G34*Base_V1_Num_Vehicles_Modeled -> -22785.1038 | G46: ='Financial Model'!H34*Base_V1_Num_Vehicles_Modeled -> -25074.45097 | H46: ='Financial Model'!I34*Base_V1_Num_Vehicles_Modeled -> -26333.09688 | I46: ='Financial Model'!J34*Base_V1_Num_Vehicles_Modeled -> -27167.08545 | J46: ='Financial Model'!K34*Base_V1_Num_Vehicles_Modeled -> -27583.05938 | K46: ='Financial Model'!L34*Base_V1_Num_Vehicles_Modeled -> 0 | L46: ='Financial Model'!M34*Base_V1_Num_Vehicles_Modeled -> 0 | M46: ='Financial Model'!N34*Base_V1_Num_Vehicles_Modeled -> 0 | N46: ='Financial Model'!O34*Base_V1_Num_Vehicles_Modeled -> 0 | O46: ='Financial Model'!P34*Base_V1_Num_Vehicles_Modeled -> 0 | P46: ='Financial Model'!Q34*Base_V1_Num_Vehicles_Modeled -> 0 | Q46: ='Financial Model'!R34*Base_V1_Num_Vehicles_Modeled -> 0 | R46: ='Financial Model'!S34*Base_V1_Num_Vehicles_Modeled -> 0 | S46: ='Financial Model'!T34*Base_V1_Num_Vehicles_Modeled -> 0 | T46: ='Financial Model'!U34*Base_V1_Num_Vehicles_Modeled -> 0 | U46: ='Financial Model'!V34*Base_V1_Num_Vehicles_Modeled -> 0 | V46: ='Financial Model'!W34*Base_V1_Num_Vehicles_Modeled -> 0 | W46: ='Financial Model'!X34*Base_V1_Num_Vehicles_Modeled -> 0 | X46: ='Financial Model'!Y34*Base_V1_Num_Vehicles_Modeled -> 0 | Y46: ='Financial Model'!Z34*Base_V1_Num_Vehicles_Modeled -> 0 | Z46: ='Financial Model'!AA34*Base_V1_Num_Vehicles_Modeled -> 0 | AA46: ='Financial Model'!AB34*Base_V1_Num_Vehicles_Modeled -> 0 | AB46: ='Financial Model'!AC34*Base_V1_Num_Vehicles_Modeled -> 0 | AC46: -169661.7794
B47: Maintenance and Repairs | C47: ='Financial Model'!D35*Base_V1_Num_Vehicles_Modeled -> 0 | D47: ='Financial Model'!E35*Base_V1_Num_Vehicles_Modeled -> -22800 | E47: ='Financial Model'!F35*Base_V1_Num_Vehicles_Modeled -> -23256 | F47: ='Financial Model'!G35*Base_V1_Num_Vehicles_Modeled -> -23721.12 | G47: ='Financial Model'!H35*Base_V1_Num_Vehicles_Modeled -> -24195.5424 | H47: ='Financial Model'!I35*Base_V1_Num_Vehicles_Modeled -> -24679.45325 | I47: ='Financial Model'!J35*Base_V1_Num_Vehicles_Modeled -> -32724.95501 | J47: ='Financial Model'!K35*Base_V1_Num_Vehicles_Modeled -> -33379.45411 | K47: ='Financial Model'!L35*Base_V1_Num_Vehicles_Modeled -> 0 | L47: ='Financial Model'!M35*Base_V1_Num_Vehicles_Modeled -> 0 | M47: ='Financial Model'!N35*Base_V1_Num_Vehicles_Modeled -> 0 | N47: ='Financial Model'!O35*Base_V1_Num_Vehicles_Modeled -> 0 | O47: ='Financial Model'!P35*Base_V1_Num_Vehicles_Modeled -> 0 | P47: ='Financial Model'!Q35*Base_V1_Num_Vehicles_Modeled -> 0 | Q47: ='Financial Model'!R35*Base_V1_Num_Vehicles_Modeled -> 0 | R47: ='Financial Model'!S35*Base_V1_Num_Vehicles_Modeled -> 0 | S47: ='Financial Model'!T35*Base_V1_Num_Vehicles_Modeled -> 0 | T47: ='Financial Model'!U35*Base_V1_Num_Vehicles_Modeled -> 0 | U47: ='Financial Model'!V35*Base_V1_Num_Vehicles_Modeled -> 0 | V47: ='Financial Model'!W35*Base_V1_Num_Vehicles_Modeled -> 0 | W47: ='Financial Model'!X35*Base_V1_Num_Vehicles_Modeled -> 0 | X47: ='Financial Model'!Y35*Base_V1_Num_Vehicles_Modeled -> 0 | Y47: ='Financial Model'!Z35*Base_V1_Num_Vehicles_Modeled -> 0 | Z47: ='Financial Model'!AA35*Base_V1_Num_Vehicles_Modeled -> 0 | AA47: ='Financial Model'!AB35*Base_V1_Num_Vehicles_Modeled -> 0 | AB47: ='Financial Model'!AC35*Base_V1_Num_Vehicles_Modeled -> 0 | AC47: -184756.5248
B48: Taxes & Fees | C48: ='Financial Model'!D36*Base_V1_Num_Vehicles_Modeled -> -19000 | D48: ='Financial Model'!E36*Base_V1_Num_Vehicles_Modeled -> -190 | E48: ='Financial Model'!F36*Base_V1_Num_Vehicles_Modeled -> -193.8 | F48: ='Financial Model'!G36*Base_V1_Num_Vehicles_Modeled -> -197.676 | G48: ='Financial Model'!H36*Base_V1_Num_Vehicles_Modeled -> -201.62952 | H48: ='Financial Model'!I36*Base_V1_Num_Vehicles_Modeled -> -205.6621104 | I48: ='Financial Model'!J36*Base_V1_Num_Vehicles_Modeled -> -209.7753526 | J48: ='Financial Model'!K36*Base_V1_Num_Vehicles_Modeled -> -213.9708597 | K48: ='Financial Model'!L36*Base_V1_Num_Vehicles_Modeled -> 0 | L48: ='Financial Model'!M36*Base_V1_Num_Vehicles_Modeled -> 0 | M48: ='Financial Model'!N36*Base_V1_Num_Vehicles_Modeled -> 0 | N48: ='Financial Model'!O36*Base_V1_Num_Vehicles_Modeled -> 0 | O48: ='Financial Model'!P36*Base_V1_Num_Vehicles_Modeled -> 0 | P48: ='Financial Model'!Q36*Base_V1_Num_Vehicles_Modeled -> 0 | Q48: ='Financial Model'!R36*Base_V1_Num_Vehicles_Modeled -> 0 | R48: ='Financial Model'!S36*Base_V1_Num_Vehicles_Modeled -> 0 | S48: ='Financial Model'!T36*Base_V1_Num_Vehicles_Modeled -> 0 | T48: ='Financial Model'!U36*Base_V1_Num_Vehicles_Modeled -> 0 | U48: ='Financial Model'!V36*Base_V1_Num_Vehicles_Modeled -> 0 | V48: ='Financial Model'!W36*Base_V1_Num_Vehicles_Modeled -> 0 | W48: ='Financial Model'!X36*Base_V1_Num_Vehicles_Modeled -> 0 | X48: ='Financial Model'!Y36*Base_V1_Num_Vehicles_Modeled -> 0 | Y48: ='Financial Model'!Z36*Base_V1_Num_Vehicles_Modeled -> 0 | Z48: ='Financial Model'!AA36*Base_V1_Num_Vehicles_Modeled -> 0 | AA48: ='Financial Model'!AB36*Base_V1_Num_Vehicles_Modeled -> 0 | AB48: ='Financial Model'!AC36*Base_V1_Num_Vehicles_Modeled -> 0 | AC48: -20412.51384
B49: Insurance | C49: ='Financial Model'!D37*Base_V1_Num_Vehicles_Modeled -> 0 | D49: ='Financial Model'!E37*Base_V1_Num_Vehicles_Modeled -> -23218 | E49: ='Financial Model'!F37*Base_V1_Num_Vehicles_Modeled -> -23682.36 | F49: ='Financial Model'!G37*Base_V1_Num_Vehicles_Modeled -> -24156.0072 | G49: ='Financial Model'!H37*Base_V1_Num_Vehicles_Modeled -> -24639.12734 | H49: ='Financial Model'!I37*Base_V1_Num_Vehicles_Modeled -> -25131.90989 | I49: ='Financial Model'!J37*Base_V1_Num_Vehicles_Modeled -> -25634.54809 | J49: ='Financial Model'!K37*Base_V1_Num_Vehicles_Modeled -> -26147.23905 | K49: ='Financial Model'!L37*Base_V1_Num_Vehicles_Modeled -> 0 | L49: ='Financial Model'!M37*Base_V1_Num_Vehicles_Modeled -> 0 | M49: ='Financial Model'!N37*Base_V1_Num_Vehicles_Modeled -> 0 | N49: ='Financial Model'!O37*Base_V1_Num_Vehicles_Modeled -> 0 | O49: ='Financial Model'!P37*Base_V1_Num_Vehicles_Modeled -> 0 | P49: ='Financial Model'!Q37*Base_V1_Num_Vehicles_Modeled -> 0 | Q49: ='Financial Model'!R37*Base_V1_Num_Vehicles_Modeled -> 0 | R49: ='Financial Model'!S37*Base_V1_Num_Vehicles_Modeled -> 0 | S49: ='Financial Model'!T37*Base_V1_Num_Vehicles_Modeled -> 0 | T49: ='Financial Model'!U37*Base_V1_Num_Vehicles_Modeled -> 0 | U49: ='Financial Model'!V37*Base_V1_Num_Vehicles_Modeled -> 0 | V49: ='Financial Model'!W37*Base_V1_Num_Vehicles_Modeled -> 0 | W49: ='Financial Model'!X37*Base_V1_Num_Vehicles_Modeled -> 0 | X49: ='Financial Model'!Y37*Base_V1_Num_Vehicles_Modeled -> 0 | Y49: ='Financial Model'!Z37*Base_V1_Num_Vehicles_Modeled -> 0 | Z49: ='Financial Model'!AA37*Base_V1_Num_Vehicles_Modeled -> 0 | AA49: ='Financial Model'!AB37*Base_V1_Num_Vehicles_Modeled -> 0 | AB49: ='Financial Model'!AC37*Base_V1_Num_Vehicles_Modeled -> 0 | AC49: -172609.1916
B50: Carbon | C50: ='Financial Model'!D42*Base_V1_Num_Vehicles_Modeled -> 0 | D50: ='Financial Model'!E42*Base_V1_Num_Vehicles_Modeled -> 0 | E50: ='Financial Model'!F42*Base_V1_Num_Vehicles_Modeled -> 0 | F50: ='Financial Model'!G42*Base_V1_Num_Vehicles_Modeled -> 0 | G50: ='Financial Model'!H42*Base_V1_Num_Vehicles_Modeled -> 0 | H50: ='Financial Model'!I42*Base_V1_Num_Vehicles_Modeled -> 0 | I50: ='Financial Model'!J42*Base_V1_Num_Vehicles_Modeled -> 0 | J50: ='Financial Model'!K42*Base_V1_Num_Vehicles_Modeled -> 0 | K50: ='Financial Model'!L42*Base_V1_Num_Vehicles_Modeled -> 0 | L50: ='Financial Model'!M42*Base_V1_Num_Vehicles_Modeled -> 0 | M50: ='Financial Model'!N42*Base_V1_Num_Vehicles_Modeled -> 0 | N50: ='Financial Model'!O42*Base_V1_Num_Vehicles_Modeled -> 0 | O50: ='Financial Model'!P42*Base_V1_Num_Vehicles_Modeled -> 0 | P50: ='Financial Model'!Q42*Base_V1_Num_Vehicles_Modeled -> 0 | Q50: ='Financial Model'!R42*Base_V1_Num_Vehicles_Modeled -> 0 | R50: ='Financial Model'!S42*Base_V1_Num_Vehicles_Modeled -> 0 | S50: ='Financial Model'!T42*Base_V1_Num_Vehicles_Modeled -> 0 | T50: ='Financial Model'!U42*Base_V1_Num_Vehicles_Modeled -> 0 | U50: ='Financial Model'!V42*Base_V1_Num_Vehicles_Modeled -> 0 | V50: ='Financial Model'!W42*Base_V1_Num_Vehicles_Modeled -> 0 | W50: ='Financial Model'!X42*Base_V1_Num_Vehicles_Modeled -> 0 | X50: ='Financial Model'!Y42*Base_V1_Num_Vehicles_Modeled -> 0 | Y50: ='Financial Model'!Z42*Base_V1_Num_Vehicles_Modeled -> 0 | Z50: ='Financial Model'!AA42*Base_V1_Num_Vehicles_Modeled -> 0 | AA50: ='Financial Model'!AB42*Base_V1_Num_Vehicles_Modeled -> 0 | AB50: ='Financial Model'!AC42*Base_V1_Num_Vehicles_Modeled -> 0 | AC50: 0
B51: Vehicle Total | C51: =SUM(C43:C50) -> -365256 | D51: -65701.05 | E51: -68358.09288 | F51: -70859.907 | G51: -74110.75024 | H51: -76350.12213 | I51: -85736.3639 | J51: -36915.33128 | K51: 0 | L51: 0 | M51: 0 | N51: 0 | O51: 0 | P51: 0 | Q51: 0 | R51: 0 | S51: 0 | T51: 0 | U51: 0 | V51: 0 | W51: 0 | X51: 0 | Y51: 0 | Z51: 0 | AA51: 0 | AB51: 0 | AC51: -843287.6174
B52: Vehicle Total - Check | C52: ='Financial Model'!D45*Base_V1_Num_Vehicles_Modeled -> -365256 | D52: ='Financial Model'!E45*Base_V1_Num_Vehicles_Modeled -> -65701.05 | E52: ='Financial Model'!F45*Base_V1_Num_Vehicles_Modeled -> -68358.09288 | F52: ='Financial Model'!G45*Base_V1_Num_Vehicles_Modeled -> -70859.907 | G52: ='Financial Model'!H45*Base_V1_Num_Vehicles_Modeled -> -74110.75024 | H52: ='Financial Model'!I45*Base_V1_Num_Vehicles_Modeled -> -76350.12213 | I52: ='Financial Model'!J45*Base_V1_Num_Vehicles_Modeled -> -85736.3639 | J52: ='Financial Model'!K45*Base_V1_Num_Vehicles_Modeled -> -36915.33128 | K52: ='Financial Model'!L45*Base_V1_Num_Vehicles_Modeled -> 0 | L52: ='Financial Model'!M45*Base_V1_Num_Vehicles_Modeled -> 0 | M52: ='Financial Model'!N45*Base_V1_Num_Vehicles_Modeled -> 0 | N52: ='Financial Model'!O45*Base_V1_Num_Vehicles_Modeled -> 0 | O52: ='Financial Model'!P45*Base_V1_Num_Vehicles_Modeled -> 0 | P52: ='Financial Model'!Q45*Base_V1_Num_Vehicles_Modeled -> 0 | Q52: ='Financial Model'!R45*Base_V1_Num_Vehicles_Modeled -> 0 | R52: ='Financial Model'!S45*Base_V1_Num_Vehicles_Modeled -> 0 | S52: ='Financial Model'!T45*Base_V1_Num_Vehicles_Modeled -> 0 | T52: ='Financial Model'!U45*Base_V1_Num_Vehicles_Modeled -> 0 | U52: ='Financial Model'!V45*Base_V1_Num_Vehicles_Modeled -> 0 | V52: ='Financial Model'!W45*Base_V1_Num_Vehicles_Modeled -> 0 | W52: ='Financial Model'!X45*Base_V1_Num_Vehicles_Modeled -> 0 | X52: ='Financial Model'!Y45*Base_V1_Num_Vehicles_Modeled -> 0 | Y52: ='Financial Model'!Z45*Base_V1_Num_Vehicles_Modeled -> 0 | Z52: ='Financial Model'!AA45*Base_V1_Num_Vehicles_Modeled -> 0 | AA52: ='Financial Model'!AB45*Base_V1_Num_Vehicles_Modeled -> 0 | AB52: ='Financial Model'!AC45*Base_V1_Num_Vehicles_Modeled -> 0 | AC52: -843287.6174
B53: Charging Infrastructure | C53: ='Financial Model'!D67 -> 0 | D53: ='Financial Model'!E67 -> 0 | E53: ='Financial Model'!F67 -> 0 | F53: ='Financial Model'!G67 -> 0 | G53: ='Financial Model'!H67 -> 0 | H53: ='Financial Model'!I67 -> 0 | I53: ='Financial Model'!J67 -> 0 | J53: ='Financial Model'!K67 -> 0 | K53: ='Financial Model'!L67 -> 0 | L53: ='Financial Model'!M67 -> 0 | M53: ='Financial Model'!N67 -> 0 | N53: ='Financial Model'!O67 -> 0 | O53: ='Financial Model'!P67 -> 0 | P53: ='Financial Model'!Q67 -> 0 | Q53: ='Financial Model'!R67 -> 0 | R53: ='Financial Model'!S67 -> 0 | S53: ='Financial Model'!T67 -> 0 | T53: ='Financial Model'!U67 -> 0 | U53: ='Financial Model'!V67 -> 0 | V53: ='Financial Model'!W67 -> 0 | W53: ='Financial Model'!X67 -> 0 | X53: ='Financial Model'!Y67 -> 0 | Y53: ='Financial Model'!Z67 -> 0 | Z53: ='Financial Model'!AA67 -> 0 | AA53: ='Financial Model'!AB67 -> 0 | AB53: ='Financial Model'!AC67 -> 0 | AC53: 0
B54: Grand Total | C54: =C51+C53 -> -365256 | D54: =D51+D53 -> -65701.05 | E54: -68358.09288 | F54: -70859.907 | G54: -74110.75024 | H54: -76350.12213 | I54: -85736.3639 | J54: -36915.33128 | K54: 0 | L54: 0 | M54: 0 | N54: 0 | O54: 0 | P54: 0 | Q54: 0 | R54: 0 | S54: 0 | T54: 0 | U54: 0 | V54: 0 | W54: 0 | X54: 0 | Y54: 0 | Z54: 0 | AA54: 0 | AB54: 0 | AC54: -843287.6174
B55: Discount Factor | C55: ='Financial Model'!D46 -> 1 | D55: ='Financial Model'!E46 -> 1 | E55: ='Financial Model'!F46 -> 1 | F55: ='Financial Model'!G46 -> 1 | G55: ='Financial Model'!H46 -> 1 | H55: ='Financial Model'!I46 -> 1 | I55: ='Financial Model'!J46 -> 1 | J55: ='Financial Model'!K46 -> 1 | K55: ='Financial Model'!L46 -> 1 | L55: ='Financial Model'!M46 -> 1 | M55: ='Financial Model'!N46 -> 1 | N55: ='Financial Model'!O46 -> 1 | O55: ='Financial Model'!P46 -> 1 | P55: ='Financial Model'!Q46 -> 1 | Q55: ='Financial Model'!R46 -> 1 | R55: ='Financial Model'!S46 -> 1 | S55: ='Financial Model'!T46 -> 1 | T55: ='Financial Model'!U46 -> 1 | U55: ='Financial Model'!V46 -> 1 | V55: ='Financial Model'!W46 -> 1 | W55: ='Financial Model'!X46 -> 1 | X55: ='Financial Model'!Y46 -> 1 | Y55: ='Financial Model'!Z46 -> 1 | Z55: ='Financial Model'!AA46 -> 1 | AA55: ='Financial Model'!AB46 -> 1 | AB55: ='Financial Model'!AC46 -> 1
B56: NPV Total | C56: =C54*C55 -> -365256 | D56: =D54*D55 -> -65701.05 | E56: -68358.09288 | F56: -70859.907 | G56: -74110.75024 | H56: -76350.12213 | I56: -85736.3639 | J56: -36915.33128 | K56: 0 | L56: 0 | M56: 0 | N56: 0 | O56: 0 | P56: 0 | Q56: 0 | R56: 0 | S56: 0 | T56: 0 | U56: 0 | V56: 0 | W56: 0 | X56: 0 | Y56: 0 | Z56: 0 | AA56: 0 | AB56: 0 | AC56: -843287.6174
B58: =Comp_V1_Type_Ex&" (Comparison)" -> 2017 Chevrolet Bolt EV BEV (Comparison)
C59: Year 0 | D59: Year 1 | E59: Year 2 | F59: Year 3 | G59: Year 4 | H59: Year 5 | I59: Year 6 | J59: Year 7 | K59: Year 8 | L59: Year 9 | M59: Year 10 | N59: Year 11 | O59: Year 12 | P59: Year 13 | Q59: Year 14 | R59: Year 15 | S59: Year 16 | T59: Year 17 | U59: Year 18 | V59: Year 19 | W59: Year 20 | X59: Year 21 | Y59: Year 22 | Z59: Year 23 | AA59: Year 24 | AB59: Year 25 | AC59: Totals
B60: Principal (less tax credits and incentives) | C60: =('Financial Model'!D101-'Financial Model'!D97-'Financial Model'!D99)*Comp_V1_Num_Vehicles_Modeled -> -494494 | D60: =('Financial Model'!E101-'Financial Model'!E97-'Financial Model'!E99)*Comp_V1_Num_Vehicles_Modeled -> 0 | E60: =('Financial Model'!F101-'Financial Model'!F97-'Financial Model'!F99)*Comp_V1_Num_Vehicles_Modeled -> 0 | F60: =('Financial Model'!G101-'Financial Model'!G97-'Financial Model'!G99)*Comp_V1_Num_Vehicles_Modeled -> 0 | G60: =('Financial Model'!H101-'Financial Model'!H97-'Financial Model'!H99)*Comp_V1_Num_Vehicles_Modeled -> 0 | H60: =('Financial Model'!I101-'Financial Model'!I97-'Financial Model'!I99)*Comp_V1_Num_Vehicles_Modeled -> 0 | I60: =('Financial Model'!J101-'Financial Model'!J97-'Financial Model'!J99)*Comp_V1_Num_Vehicles_Modeled -> 0 | J60: =('Financial Model'!K101-'Financial Model'!K97-'Financial Model'!K99)*Comp_V1_Num_Vehicles_Modeled -> 0 | K60: =('Financial Model'!L101-'Financial Model'!L97-'Financial Model'!L99)*Comp_V1_Num_Vehicles_Modeled -> 0 | L60: =('Financial Model'!M101-'Financial Model'!M97-'Financial Model'!M99)*Comp_V1_Num_Vehicles_Modeled -> 0 | M60: =('Financial Model'!N101-'Financial Model'!N97-'Financial Model'!N99)*Comp_V1_Num_Vehicles_Modeled -> 0 | N60: =('Financial Model'!O101-'Financial Model'!O97-'Financial Model'!O99)*Comp_V1_Num_Vehicles_Modeled -> 0 | O60: =('Financial Model'!P101-'Financial Model'!P97-'Financial Model'!P99)*Comp_V1_Num_Vehicles_Modeled -> 0 | P60: =('Financial Model'!Q101-'Financial Model'!Q97-'Financial Model'!Q99)*Comp_V1_Num_Vehicles_Modeled -> 0 | Q60: =('Financial Model'!R101-'Financial Model'!R97-'Financial Model'!R99)*Comp_V1_Num_Vehicles_Modeled -> 0 | R60: =('Financial Model'!S101-'Financial Model'!S97-'Financial Model'!S99)*Comp_V1_Num_Vehicles_Modeled -> 0 | S60: =('Financial Model'!T101-'Financial Model'!T97-'Financial Model'!T99)*Comp_V1_Num_Vehicles_Modeled -> 0 | T60: =('Financial Model'!U101-'Financial Model'!U97-'Financial Model'!U99)*Comp_V1_Num_Vehicles_Modeled -> 0 | U60: =('Financial Model'!V101-'Financial Model'!V97-'Financial Model'!V99)*Comp_V1_Num_Vehicles_Modeled -> 0 | V60: =('Financial Model'!W101-'Financial Model'!W97-'Financial Model'!W99)*Comp_V1_Num_Vehicles_Modeled -> 0 | W60: =('Financial Model'!X101-'Financial Model'!X97-'Financial Model'!X99)*Comp_V1_Num_Vehicles_Modeled -> 0 | X60: =('Financial Model'!Y101-'Financial Model'!Y97-'Financial Model'!Y99)*Comp_V1_Num_Vehicles_Modeled -> 0 | Y60: =('Financial Model'!Z101-'Financial Model'!Z97-'Financial Model'!Z99)*Comp_V1_Num_Vehicles_Modeled -> 0 | Z60: =('Financial Model'!AA101-'Financial Model'!AA97-'Financial Model'!AA99)*Comp_V1_Num_Vehicles_Modeled -> 0 | AA60: =('Financial Model'!AB101-'Financial Model'!AB97-'Financial Model'!AB99)*Comp_V1_Num_Vehicles_Modeled -> 0 | AB60: =('Financial Model'!AC101-'Financial Model'!AC97-'Financial Model'!AC99)*Comp_V1_Num_Vehicles_Modeled -> 0 | AC60: =SUM(C60:AB60) -> -494494
B61: Financing | C61: ='Financial Model'!D97*Comp_V1_Num_Vehicles_Modeled -> 0 | D61: ='Financial Model'!E97*Comp_V1_Num_Vehicles_Modeled -> 0 | E61: ='Financial Model'!F97*Comp_V1_Num_Vehicles_Modeled -> 0 | F61: ='Financial Model'!G97*Comp_V1_Num_Vehicles_Modeled -> 0 | G61: ='Financial Model'!H97*Comp_V1_Num_Vehicles_Modeled -> 0 | H61: ='Financial Model'!I97*Comp_V1_Num_Vehicles_Modeled -> 0 | I61: ='Financial Model'!J97*Comp_V1_Num_Vehicles_Modeled -> 0 | J61: ='Financial Model'!K97*Comp_V1_Num_Vehicles_Modeled -> 0 | K61: ='Financial Model'!L97*Comp_V1_Num_Vehicles_Modeled -> 0 | L61: ='Financial Model'!M97*Comp_V1_Num_Vehicles_Modeled -> 0 | M61: ='Financial Model'!N97*Comp_V1_Num_Vehicles_Modeled -> 0 | N61: ='Financial Model'!O97*Comp_V1_Num_Vehicles_Modeled -> 0 | O61: ='Financial Model'!P97*Comp_V1_Num_Vehicles_Modeled -> 0 | P61: ='Financial Model'!Q97*Comp_V1_Num_Vehicles_Modeled -> 0 | Q61: ='Financial Model'!R97*Comp_V1_Num_Vehicles_Modeled -> 0 | R61: ='Financial Model'!S97*Comp_V1_Num_Vehicles_Modeled -> 0 | S61: ='Financial Model'!T97*Comp_V1_Num_Vehicles_Modeled -> 0 | T61: ='Financial Model'!U97*Comp_V1_Num_Vehicles_Modeled -> 0 | U61: ='Financial Model'!V97*Comp_V1_Num_Vehicles_Modeled -> 0 | V61: ='Financial Model'!W97*Comp_V1_Num_Vehicles_Modeled -> 0 | W61: ='Financial Model'!X97*Comp_V1_Num_Vehicles_Modeled -> 0 | X61: ='Financial Model'!Y97*Comp_V1_Num_Vehicles_Modeled -> 0 | Y61: ='Financial Model'!Z97*Comp_V1_Num_Vehicles_Modeled -> 0 | Z61: ='Financial Model'!AA97*Comp_V1_Num_Vehicles_Modeled -> 0 | AA61: ='Financial Model'!AB97*Comp_V1_Num_Vehicles_Modeled -> 0 | AB61: ='Financial Model'!AC97*Comp_V1_Num_Vehicles_Modeled -> 0 | AC61: =SUM(C61:AB61) -> 0
B62: Residual Value (Vehicle Sale) | C62: ='Financial Model'!D99*Comp_V1_Num_Vehicles_Modeled -> 0 | D62: ='Financial Model'!E99*Comp_V1_Num_Vehicles_Modeled -> 0 | E62: ='Financial Model'!F99*Comp_V1_Num_Vehicles_Modeled -> 0 | F62: ='Financial Model'!G99*Comp_V1_Num_Vehicles_Modeled -> 0 | G62: ='Financial Model'!H99*Comp_V1_Num_Vehicles_Modeled -> 0 | H62: ='Financial Model'!I99*Comp_V1_Num_Vehicles_Modeled -> 0 | I62: ='Financial Model'!J99*Comp_V1_Num_Vehicles_Modeled -> 0 | J62: ='Financial Model'!K99*Comp_V1_Num_Vehicles_Modeled -> 41924.53186 | K62: ='Financial Model'!L99*Comp_V1_Num_Vehicles_Modeled -> 0 | L62: ='Financial Model'!M99*Comp_V1_Num_Vehicles_Modeled -> 0 | M62: ='Financial Model'!N99*Comp_V1_Num_Vehicles_Modeled -> 0 | N62: ='Financial Model'!O99*Comp_V1_Num_Vehicles_Modeled -> 0 | O62: ='Financial Model'!P99*Comp_V1_Num_Vehicles_Modeled -> 0 | P62: ='Financial Model'!Q99*Comp_V1_Num_Vehicles_Modeled -> 0 | Q62: ='Financial Model'!R99*Comp_V1_Num_Vehicles_Modeled -> 0 | R62: ='Financial Model'!S99*Comp_V1_Num_Vehicles_Modeled -> 0 | S62: ='Financial Model'!T99*Comp_V1_Num_Vehicles_Modeled -> 0 | T62: ='Financial Model'!U99*Comp_V1_Num_Vehicles_Modeled -> 0 | U62: ='Financial Model'!V99*Comp_V1_Num_Vehicles_Modeled -> 0 | V62: ='Financial Model'!W99*Comp_V1_Num_Vehicles_Modeled -> 0 | W62: ='Financial Model'!X99*Comp_V1_Num_Vehicles_Modeled -> 0 | X62: ='Financial Model'!Y99*Comp_V1_Num_Vehicles_Modeled -> 0 | Y62: ='Financial Model'!Z99*Comp_V1_Num_Vehicles_Modeled -> 0 | Z62: ='Financial Model'!AA99*Comp_V1_Num_Vehicles_Modeled -> 0 | AA62: ='Financial Model'!AB99*Comp_V1_Num_Vehicles_Modeled -> 0 | AB62: ='Financial Model'!AC99*Comp_V1_Num_Vehicles_Modeled -> 0 | AC62: 41924.53186
B63: Fuel | C63: ='Financial Model'!D104*Comp_V1_Num_Vehicles_Modeled -> 0 | D63: ='Financial Model'!E104*Comp_V1_Num_Vehicles_Modeled -> -9828.377621 | E63: ='Financial Model'!F104*Comp_V1_Num_Vehicles_Modeled -> -9729.370576 | F63: ='Financial Model'!G104*Comp_V1_Num_Vehicles_Modeled -> -10090.58329 | G63: ='Financial Model'!H104*Comp_V1_Num_Vehicles_Modeled -> -10630.02937 | H63: ='Financial Model'!I104*Comp_V1_Num_Vehicles_Modeled -> -10892.9347 | I63: ='Financial Model'!J104*Comp_V1_Num_Vehicles_Modeled -> -11106.71196 | J63: ='Financial Model'!K104*Comp_V1_Num_Vehicles_Modeled -> -11223.60431 | K63: ='Financial Model'!L104*Comp_V1_Num_Vehicles_Modeled -> 0 | L63: ='Financial Model'!M104*Comp_V1_Num_Vehicles_Modeled -> 0 | M63: ='Financial Model'!N104*Comp_V1_Num_Vehicles_Modeled -> 0 | N63: ='Financial Model'!O104*Comp_V1_Num_Vehicles_Modeled -> 0 | O63: ='Financial Model'!P104*Comp_V1_Num_Vehicles_Modeled -> 0 | P63: ='Financial Model'!Q104*Comp_V1_Num_Vehicles_Modeled -> 0 | Q63: ='Financial Model'!R104*Comp_V1_Num_Vehicles_Modeled -> 0 | R63: ='Financial Model'!S104*Comp_V1_Num_Vehicles_Modeled -> 0 | S63: ='Financial Model'!T104*Comp_V1_Num_Vehicles_Modeled -> 0 | T63: ='Financial Model'!U104*Comp_V1_Num_Vehicles_Modeled -> 0 | U63: ='Financial Model'!V104*Comp_V1_Num_Vehicles_Modeled -> 0 | V63: ='Financial Model'!W104*Comp_V1_Num_Vehicles_Modeled -> 0 | W63: ='Financial Model'!X104*Comp_V1_Num_Vehicles_Modeled -> 0 | X63: ='Financial Model'!Y104*Comp_V1_Num_Vehicles_Modeled -> 0 | Y63: ='Financial Model'!Z104*Comp_V1_Num_Vehicles_Modeled -> 0 | Z63: ='Financial Model'!AA104*Comp_V1_Num_Vehicles_Modeled -> 0 | AA63: ='Financial Model'!AB104*Comp_V1_Num_Vehicles_Modeled -> 0 | AB63: ='Financial Model'!AC104*Comp_V1_Num_Vehicles_Modeled -> 0 | AC63: -73501.61181
B64: Maintenance and Repairs | C64: ='Financial Model'!D105*Comp_V1_Num_Vehicles_Modeled -> 0 | D64: ='Financial Model'!E105*Comp_V1_Num_Vehicles_Modeled -> -11400 | E64: ='Financial Model'!F105*Comp_V1_Num_Vehicles_Modeled -> -11628 | F64: ='Financial Model'!G105*Comp_V1_Num_Vehicles_Modeled -> -11860.56 | G64: ='Financial Model'!H105*Comp_V1_Num_Vehicles_Modeled -> -12097.7712 | H64: ='Financial Model'!I105*Comp_V1_Num_Vehicles_Modeled -> -12339.72662 | I64: ='Financial Model'!J105*Comp_V1_Num_Vehicles_Modeled -> -16362.4775 | J64: ='Financial Model'!K105*Comp_V1_Num_Vehicles_Modeled -> -16689.72705 | K64: ='Financial Model'!L105*Comp_V1_Num_Vehicles_Modeled -> 0 | L64: ='Financial Model'!M105*Comp_V1_Num_Vehicles_Modeled -> 0 | M64: ='Financial Model'!N105*Comp_V1_Num_Vehicles_Modeled -> 0 | N64: ='Financial Model'!O105*Comp_V1_Num_Vehicles_Modeled -> 0 | O64: ='Financial Model'!P105*Comp_V1_Num_Vehicles_Modeled -> 0 | P64: ='Financial Model'!Q105*Comp_V1_Num_Vehicles_Modeled -> 0 | Q64: ='Financial Model'!R105*Comp_V1_Num_Vehicles_Modeled -> 0 | R64: ='Financial Model'!S105*Comp_V1_Num_Vehicles_Modeled -> 0 | S64: ='Financial Model'!T105*Comp_V1_Num_Vehicles_Modeled -> 0 | T64: ='Financial Model'!U105*Comp_V1_Num_Vehicles_Modeled -> 0 | U64: ='Financial Model'!V105*Comp_V1_Num_Vehicles_Modeled -> 0 | V64: ='Financial Model'!W105*Comp_V1_Num_Vehicles_Modeled -> 0 | W64: ='Financial Model'!X105*Comp_V1_Num_Vehicles_Modeled -> 0 | X64: ='Financial Model'!Y105*Comp_V1_Num_Vehicles_Modeled -> 0 | Y64: ='Financial Model'!Z105*Comp_V1_Num_Vehicles_Modeled -> 0 | Z64: ='Financial Model'!AA105*Comp_V1_Num_Vehicles_Modeled -> 0 | AA64: ='Financial Model'!AB105*Comp_V1_Num_Vehicles_Modeled -> 0 | AB64: ='Financial Model'!AC105*Comp_V1_Num_Vehicles_Modeled -> 0 | AC64: -92378.26238
B65: Taxes & Fees | C65: ='Financial Model'!D106*Comp_V1_Num_Vehicles_Modeled -> -19000 | D65: ='Financial Model'!E106*Comp_V1_Num_Vehicles_Modeled -> -190 | E65: ='Financial Model'!F106*Comp_V1_Num_Vehicles_Modeled -> -193.8 | F65: ='Financial Model'!G106*Comp_V1_Num_Vehicles_Modeled -> -197.676 | G65: ='Financial Model'!H106*Comp_V1_Num_Vehicles_Modeled -> -201.62952 | H65: ='Financial Model'!I106*Comp_V1_Num_Vehicles_Modeled -> -205.6621104 | I65: ='Financial Model'!J106*Comp_V1_Num_Vehicles_Modeled -> -209.7753526 | J65: ='Financial Model'!K106*Comp_V1_Num_Vehicles_Modeled -> -213.9708597 | K65: ='Financial Model'!L106*Comp_V1_Num_Vehicles_Modeled -> 0 | L65: ='Financial Model'!M106*Comp_V1_Num_Vehicles_Modeled -> 0 | M65: ='Financial Model'!N106*Comp_V1_Num_Vehicles_Modeled -> 0 | N65: ='Financial Model'!O106*Comp_V1_Num_Vehicles_Modeled -> 0 | O65: ='Financial Model'!P106*Comp_V1_Num_Vehicles_Modeled -> 0 | P65: ='Financial Model'!Q106*Comp_V1_Num_Vehicles_Modeled -> 0 | Q65: ='Financial Model'!R106*Comp_V1_Num_Vehicles_Modeled -> 0 | R65: ='Financial Model'!S106*Comp_V1_Num_Vehicles_Modeled -> 0 | S65: ='Financial Model'!T106*Comp_V1_Num_Vehicles_Modeled -> 0 | T65: ='Financial Model'!U106*Comp_V1_Num_Vehicles_Modeled -> 0 | U65: ='Financial Model'!V106*Comp_V1_Num_Vehicles_Modeled -> 0 | V65: ='Financial Model'!W106*Comp_V1_Num_Vehicles_Modeled -> 0 | W65: ='Financial Model'!X106*Comp_V1_Num_Vehicles_Modeled -> 0 | X65: ='Financial Model'!Y106*Comp_V1_Num_Vehicles_Modeled -> 0 | Y65: ='Financial Model'!Z106*Comp_V1_Num_Vehicles_Modeled -> 0 | Z65: ='Financial Model'!AA106*Comp_V1_Num_Vehicles_Modeled -> 0 | AA65: ='Financial Model'!AB106*Comp_V1_Num_Vehicles_Modeled -> 0 | AB65: ='Financial Model'!AC106*Comp_V1_Num_Vehicles_Modeled -> 0 | AC65: -20412.51384
B66: Insurance | C66: ='Financial Model'!D107*Comp_V1_Num_Vehicles_Modeled -> 0 | D66: ='Financial Model'!E107*Comp_V1_Num_Vehicles_Modeled -> -23218 | E66: ='Financial Model'!F107*Comp_V1_Num_Vehicles_Modeled -> -23682.36 | F66: ='Financial Model'!G107*Comp_V1_Num_Vehicles_Modeled -> -24156.0072 | G66: ='Financial Model'!H107*Comp_V1_Num_Vehicles_Modeled -> -24639.12734 | H66: ='Financial Model'!I107*Comp_V1_Num_Vehicles_Modeled -> -25131.90989 | I66: ='Financial Model'!J107*Comp_V1_Num_Vehicles_Modeled -> -25634.54809 | J66: ='Financial Model'!K107*Comp_V1_Num_Vehicles_Modeled -> -26147.23905 | K66: ='Financial Model'!L107*Comp_V1_Num_Vehicles_Modeled -> 0 | L66: ='Financial Model'!M107*Comp_V1_Num_Vehicles_Modeled -> 0 | M66: ='Financial Model'!N107*Comp_V1_Num_Vehicles_Modeled -> 0 | N66: ='Financial Model'!O107*Comp_V1_Num_Vehicles_Modeled -> 0 | O66: ='Financial Model'!P107*Comp_V1_Num_Vehicles_Modeled -> 0 | P66: ='Financial Model'!Q107*Comp_V1_Num_Vehicles_Modeled -> 0 | Q66: ='Financial Model'!R107*Comp_V1_Num_Vehicles_Modeled -> 0 | R66: ='Financial Model'!S107*Comp_V1_Num_Vehicles_Modeled -> 0 | S66: ='Financial Model'!T107*Comp_V1_Num_Vehicles_Modeled -> 0 | T66: ='Financial Model'!U107*Comp_V1_Num_Vehicles_Modeled -> 0 | U66: ='Financial Model'!V107*Comp_V1_Num_Vehicles_Modeled -> 0 | V66: ='Financial Model'!W107*Comp_V1_Num_Vehicles_Modeled -> 0 | W66: ='Financial Model'!X107*Comp_V1_Num_Vehicles_Modeled -> 0 | X66: ='Financial Model'!Y107*Comp_V1_Num_Vehicles_Modeled -> 0 | Y66: ='Financial Model'!Z107*Comp_V1_Num_Vehicles_Modeled -> 0 | Z66: ='Financial Model'!AA107*Comp_V1_Num_Vehicles_Modeled -> 0 | AA66: ='Financial Model'!AB107*Comp_V1_Num_Vehicles_Modeled -> 0 | AB66: ='Financial Model'!AC107*Comp_V1_Num_Vehicles_Modeled -> 0 | AC66: -172609.1916
B67: Carbon | C67: ='Financial Model'!D112*Comp_V1_Num_Vehicles_Modeled -> 0 | D67: ='Financial Model'!E112*Comp_V1_Num_Vehicles_Modeled -> 0 | E67: ='Financial Model'!F112*Comp_V1_Num_Vehicles_Modeled -> 0 | F67: ='Financial Model'!G112*Comp_V1_Num_Vehicles_Modeled -> 0 | G67: ='Financial Model'!H112*Comp_V1_Num_Vehicles_Modeled -> 0 | H67: ='Financial Model'!I112*Comp_V1_Num_Vehicles_Modeled -> 0 | I67: ='Financial Model'!J112*Comp_V1_Num_Vehicles_Modeled -> 0 | J67: ='Financial Model'!K112*Comp_V1_Num_Vehicles_Modeled -> 0 | K67: ='Financial Model'!L112*Comp_V1_Num_Vehicles_Modeled -> 0 | L67: ='Financial Model'!M112*Comp_V1_Num_Vehicles_Modeled -> 0 | M67: ='Financial Model'!N112*Comp_V1_Num_Vehicles_Modeled -> 0 | N67: ='Financial Model'!O112*Comp_V1_Num_Vehicles_Modeled -> 0 | O67: ='Financial Model'!P112*Comp_V1_Num_Vehicles_Modeled -> 0 | P67: ='Financial Model'!Q112*Comp_V1_Num_Vehicles_Modeled -> 0 | Q67: ='Financial Model'!R112*Comp_V1_Num_Vehicles_Modeled -> 0 | R67: ='Financial Model'!S112*Comp_V1_Num_Vehicles_Modeled -> 0 | S67: ='Financial Model'!T112*Comp_V1_Num_Vehicles_Modeled -> 0 | T67: ='Financial Model'!U112*Comp_V1_Num_Vehicles_Modeled -> 0 | U67: ='Financial Model'!V112*Comp_V1_Num_Vehicles_Modeled -> 0 | V67: ='Financial Model'!W112*Comp_V1_Num_Vehicles_Modeled -> 0 | W67: ='Financial Model'!X112*Comp_V1_Num_Vehicles_Modeled -> 0 | X67: ='Financial Model'!Y112*Comp_V1_Num_Vehicles_Modeled -> 0 | Y67: ='Financial Model'!Z112*Comp_V1_Num_Vehicles_Modeled -> 0 | Z67: ='Financial Model'!AA112*Comp_V1_Num_Vehicles_Modeled -> 0 | AA67: ='Financial Model'!AB112*Comp_V1_Num_Vehicles_Modeled -> 0 | AB67: ='Financial Model'!AC112*Comp_V1_Num_Vehicles_Modeled -> 0 | AC67: 0
B68: Vehicle Total | C68: =SUM(C60:C67) -> -513494 | D68: -44636.37762 | E68: -45233.53058 | F68: -46304.82649 | G68: -47568.55743 | H68: -48570.23332 | I68: -53313.5129 | J68: -12350.00941 | K68: 0 | L68: 0 | M68: 0 | N68: 0 | O68: 0 | P68: 0 | Q68: 0 | R68: 0 | S68: 0 | T68: 0 | U68: 0 | V68: 0 | W68: 0 | X68: 0 | Y68: 0 | Z68: 0 | AA68: 0 | AB68: 0 | AC68: -811471.0477
B69: Vehicle Total - Check | C69: ='Financial Model'!D115*Comp_V1_Num_Vehicles_Modeled -> -513494 | D69: ='Financial Model'!E115*Comp_V1_Num_Vehicles_Modeled -> -44636.37762 | E69: ='Financial Model'!F115*Comp_V1_Num_Vehicles_Modeled -> -45233.53058 | F69: ='Financial Model'!G115*Comp_V1_Num_Vehicles_Modeled -> -46304.82649 | G69: ='Financial Model'!H115*Comp_V1_Num_Vehicles_Modeled -> -47568.55743 | H69: ='Financial Model'!I115*Comp_V1_Num_Vehicles_Modeled -> -48570.23332 | I69: ='Financial Model'!J115*Comp_V1_Num_Vehicles_Modeled -> -53313.5129 | J69: ='Financial Model'!K115*Comp_V1_Num_Vehicles_Modeled -> -12350.00941 | K69: ='Financial Model'!L115*Comp_V1_Num_Vehicles_Modeled -> 0 | L69: ='Financial Model'!M115*Comp_V1_Num_Vehicles_Modeled -> 0 | M69: ='Financial Model'!N115*Comp_V1_Num_Vehicles_Modeled -> 0 | N69: ='Financial Model'!O115*Comp_V1_Num_Vehicles_Modeled -> 0 | O69: ='Financial Model'!P115*Comp_V1_Num_Vehicles_Modeled -> 0 | P69: ='Financial Model'!Q115*Comp_V1_Num_Vehicles_Modeled -> 0 | Q69: ='Financial Model'!R115*Comp_V1_Num_Vehicles_Modeled -> 0 | R69: ='Financial Model'!S115*Comp_V1_Num_Vehicles_Modeled -> 0 | S69: ='Financial Model'!T115*Comp_V1_Num_Vehicles_Modeled -> 0 | T69: ='Financial Model'!U115*Comp_V1_Num_Vehicles_Modeled -> 0 | U69: ='Financial Model'!V115*Comp_V1_Num_Vehicles_Modeled -> 0 | V69: ='Financial Model'!W115*Comp_V1_Num_Vehicles_Modeled -> 0 | W69: ='Financial Model'!X115*Comp_V1_Num_Vehicles_Modeled -> 0 | X69: ='Financial Model'!Y115*Comp_V1_Num_Vehicles_Modeled -> 0 | Y69: ='Financial Model'!Z115*Comp_V1_Num_Vehicles_Modeled -> 0 | Z69: ='Financial Model'!AA115*Comp_V1_Num_Vehicles_Modeled -> 0 | AA69: ='Financial Model'!AB115*Comp_V1_Num_Vehicles_Modeled -> 0 | AB69: ='Financial Model'!AC115*Comp_V1_Num_Vehicles_Modeled -> 0 | AC69: -811471.0477
B70: Charging Infrastructure | C70: ='Financial Model'!D137 -> 0 | D70: ='Financial Model'!E137 -> 0 | E70: ='Financial Model'!F137 -> 0 | F70: ='Financial Model'!G137 -> 0 | G70: ='Financial Model'!H137 -> 0 | H70: ='Financial Model'!I137 -> 0 | I70: ='Financial Model'!J137 -> 0 | J70: ='Financial Model'!K137 -> 0 | K70: ='Financial Model'!L137 -> 0 | L70: ='Financial Model'!M137 -> 0 | M70: ='Financial Model'!N137 -> 0 | N70: ='Financial Model'!O137 -> 0 | O70: ='Financial Model'!P137 -> 0 | P70: ='Financial Model'!Q137 -> 0 | Q70: ='Financial Model'!R137 -> 0 | R70: ='Financial Model'!S137 -> 0 | S70: ='Financial Model'!T137 -> 0 | T70: ='Financial Model'!U137 -> 0 | U70: ='Financial Model'!V137 -> 0 | V70: ='Financial Model'!W137 -> 0 | W70: ='Financial Model'!X137 -> 0 | X70: ='Financial Model'!Y137 -> 0 | Y70: ='Financial Model'!Z137 -> 0 | Z70: ='Financial Model'!AA137 -> 0 | AA70: ='Financial Model'!AB137 -> 0 | AB70: ='Financial Model'!AC137 -> 0 | AC70: 0
B71: Grand Total | C71: =C68+C70 -> -513494 | D71: -44636.37762 | E71: -45233.53058 | F71: -46304.82649 | G71: -47568.55743 | H71: -48570.23332 | I71: -53313.5129 | J71: -12350.00941 | K71: 0 | L71: 0 | M71: 0 | N71: 0 | O71: 0 | P71: 0 | Q71: 0 | R71: 0 | S71: 0 | T71: 0 | U71: 0 | V71: 0 | W71: 0 | X71: 0 | Y71: 0 | Z71: 0 | AA71: 0 | AB71: 0 | AC71: -811471.0477
B72: Discount Factor | C72: ='Financial Model'!D116 -> 1 | D72: ='Financial Model'!E116 -> 1 | E72: ='Financial Model'!F116 -> 1 | F72: ='Financial Model'!G116 -> 1 | G72: ='Financial Model'!H116 -> 1 | H72: ='Financial Model'!I116 -> 1 | I72: ='Financial Model'!J116 -> 1 | J72: ='Financial Model'!K116 -> 1 | K72: ='Financial Model'!L116 -> 1 | L72: ='Financial Model'!M116 -> 1 | M72: ='Financial Model'!N116 -> 1 | N72: ='Financial Model'!O116 -> 1 | O72: ='Financial Model'!P116 -> 1 | P72: ='Financial Model'!Q116 -> 1 | Q72: ='Financial Model'!R116 -> 1 | R72: ='Financial Model'!S116 -> 1 | S72: ='Financial Model'!T116 -> 1 | T72: ='Financial Model'!U116 -> 1 | U72: ='Financial Model'!V116 -> 1 | V72: ='Financial Model'!W116 -> 1 | W72: ='Financial Model'!X116 -> 1 | X72: ='Financial Model'!Y116 -> 1 | Y72: ='Financial Model'!Z116 -> 1 | Z72: ='Financial Model'!AA116 -> 1 | AA72: ='Financial Model'!AB116 -> 1 | AB72: ='Financial Model'!AC116 -> 1
B73: NPV Total | C73: =C71*C72 -> -513494 | D73: -44636.37762 | E73: -45233.53058 | F73: -46304.82649 | G73: -47568.55743 | H73: -48570.23332 | I73: -53313.5129 | J73: -12350.00941 | K73: 0 | L73: 0 | M73: 0 | N73: 0 | O73: 0 | P73: 0 | Q73: 0 | R73: 0 | S73: 0 | T73: 0 | U73: 0 | V73: 0 | W73: 0 | X73: 0 | Y73: 0 | Z73: 0 | AA73: 0 | AB73: 0 | AC73: =SUM(C73:AB73) -> -811471.0477

Sheet Environmental Model
A1: Environmental Models - Fleet Procurement Analysis Tool
B3: =Base_V1_Type_Ex&" (Baseline)" -> 2017 Chevrolet Cruze ICE (Baseline) | C3: =Comp_V1_Type_Ex&" (Comparison)" -> 2017 Chevrolet Bolt EV BEV (Comparison)
A4: Annual VMT | B4: =Base_V1_VMT_Modeled -> 15000 | C4: =Comp_V1_VMT_Modeled -> 15000
A5: Fuel Economy Gas City (MPG) | B5: =Base_V1_Fuel_Economy_Gas_City_Modeled -> 30 | C5: =Comp_V1_Fuel_Economy_Gas_City_Modeled -> 0
A6: Fuel Economy Gas Highway (MPG) | B6: =Base_V1_Fuel_Economy_Gas_Hwy_Modeled -> 40 | C6: =Comp_V1_Fuel_Economy_Gas_Hwy_Modeled -> 0
A7: Fuel Economy Electric City (MPGe) | B7: =Base_V1_Fuel_Economy_Electric_City_Modeled -> 0 | C7: =Comp_V1_Fuel_Economy_Electric_City_Modeled -> 128
A8: Fuel Economy Electric Highway (MPGe) | B8: =Base_V1_Fuel_Economy_Electric_Hwy_Modeled -> 0 | C8: =Comp_V1_Fuel_Economy_Electric_Hwy_Modeled -> 110
A9: % of Annual Miles on Gasoline* | B9: =Base_V1_Miles_Gas_Modeled -> 1 | C9: =Comp_V1_Miles_Gas_Modeled -> 0
A10: % of Annual Miles City Driving | B10: =Base_V1_Miles_City_Modeled -> 0.55 | C10: =Comp_V1_Miles_City_Modeled -> 0.55
A11: Gallons of Gasoline / Year | B11: =IF(B5=0,0,(B4*B10*B9)/B5)+IF(B6=0,0,(B4*B9*(1-B10))/B6) -> 443.75 | C11: =IF(C5=0,0,(C4*C10*C9)/C5)+IF(C6=0,0,(C4*C9*(1-C10))/C6) -> 0
A12: Lifecycle Carbon Intensity of Gallon of Gasoline (lbs) | B12: =Data!$C$131*Data!$B$147/Data!$B$149 -> 24.07450851 | C12: =Data!$C$131*Data!$B$147/Data!$B$149 -> 24.07450851
A13: kWh Electricity / Year | B13: =IF(B7=0,0,((B4*(1-B9)*B10)/B7*33.7))+IF(B8=0,0,((B4*(1-B9)*(1-B10))/B8*33.7)) -> 0 | C13: =IF(C7=0,0,((C4*(1-C9)*C10)/C7*33.7))+IF(C8=0,0,((C4*(1-C9)*(1-C10))/C8*33.7)) -> 4240.024858
A14: eGrid Region | B14: =eGrid_Region_Ex -> RFCE | C14: =eGrid_Region_Ex -> RFCE
A15: Lifecycle Carbon Intensity of kWh (lbs)** | B15: =(VLOOKUP(eGrid_Region_Ex,Data!$B$98:$G$126,2,FALSE)+VLOOKUP(eGrid_Region_Ex,Data!$B$98:$G$126,5,FALSE))/1000 -> 0.9491164698 | C15: =(VLOOKUP(eGrid_Region_Ex,Data!$B$98:$G$126,2,FALSE)+VLOOKUP(eGrid_Region_Ex,Data!$B$98:$G$126,5,FALSE))/1000 -> 0.9491164698
A16: Electrical Transmission Line Loss | B16: =VLOOKUP(eGrid_Region_Ex,Data!$B$98:$G$126,6,FALSE) -> 0.0497 | C16: =VLOOKUP(eGrid_Region_Ex,Data!$B$98:$G$126,6,FALSE) -> 0.0497
A17: Total Annual CO2 (lbs) | B17: =(B11*B12)+(B13*(B15/(1-B16))) -> 10683.06315 | C17: =(C11*C12)+(C13*(C15/(1-C16))) -> 4234.744213
A18: Lifecycle CO2 (lbs/mile) | B18: =B17/B4 -> 0.7122042101 | C18: =C17/C4 -> 0.2823162808
A19: Other Lifecycle Emissions**
A20: NOX (mg/mile) | B20: =(VLOOKUP(eGrid_Region_Ex,Data!$B$98:$L$126,7,FALSE)/1000*Data!$B$148*Base_V1_Electricity_Usage_Ex/Base_V1_VMT_Modeled)+(Base_V1_Gas_Usage_Ex*Data!$B$147*Data!$C133/Base_V1_VMT_Modeled) -> 243.4809572 | C20: =(VLOOKUP(eGrid_Region_Ex,Data!$B$98:$L$126,7,FALSE)/1000*Data!$B$148*Comp_V1_Electricity_Usage_Ex/Comp_V1_VMT_Modeled)+(Comp_V1_Gas_Usage_Ex*Data!$B$147*Data!$C133/Comp_V1_VMT_Modeled) -> 106.419355
A21: SOX (mg/mile) | B21: =(VLOOKUP(eGrid_Region_Ex,Data!$B$98:$L$126,8,FALSE)/1000*Data!$B$148*Base_V1_Electricity_Usage_Ex/Base_V1_VMT_Modeled)+(Base_V1_Gas_Usage_Ex*Data!$B$147*Data!$C134/Base_V1_VMT_Modeled) -> 127.3752826 | C21: =(VLOOKUP(eGrid_Region_Ex,Data!$B$98:$L$126,8,FALSE)/1000*Data!$B$148*Comp_V1_Electricity_Usage_Ex/Comp_V1_VMT_Modeled)+(Comp_V1_Gas_Usage_Ex*Data!$B$147*Data!$C134/Comp_V1_VMT_Modeled) -> 246.8159739
A22: PM10 (mg/mile) | B22: =(VLOOKUP(eGrid_Region_Ex,Data!$B$98:$L$126,9,FALSE)/1000*Data!$B$148*Base_V1_Electricity_Usage_Ex/Base_V1_VMT_Modeled)+(Base_V1_Gas_Usage_Ex*Data!$B$147*Data!$C135/Base_V1_VMT_Modeled) -> 17.47865952 | C22: =(VLOOKUP(eGrid_Region_Ex,Data!$B$98:$L$126,9,FALSE)/1000*Data!$B$148*Comp_V1_Electricity_Usage_Ex/Comp_V1_VMT_Modeled)+(Comp_V1_Gas_Usage_Ex*Data!$B$147*Data!$C135/Comp_V1_VMT_Modeled) -> 15.83751334
A23: PM2.5 (mg/mile) | B23: =(VLOOKUP(eGrid_Region_Ex,Data!$B$98:$L$126,10,FALSE)/1000*Data!$B$148*Base_V1_Electricity_Usage_Ex/Base_V1_VMT_Modeled)+(Base_V1_Gas_Usage_Ex*Data!$B$147*Data!$C136/Base_V1_VMT_Modeled) -> 12.56166495 | C23: =(VLOOKUP(eGrid_Region_Ex,Data!$B$98:$L$126,10,FALSE)/1000*Data!$B$148*Comp_V1_Electricity_Usage_Ex/Comp_V1_VMT_Modeled)+(Comp_V1_Gas_Usage_Ex*Data!$B$147*Data!$C136/Comp_V1_VMT_Modeled) -> 12.28665073
A24: VOC (mg/mile) | B24: =(VLOOKUP(eGrid_Region_Ex,Data!$B$98:$L$126,11,FALSE)/1000*Data!$B$148*Base_V1_Electricity_Usage_Ex/Base_V1_VMT_Modeled)+(Base_V1_Gas_Usage_Ex*Data!$B$147*Data!$C137/Base_V1_VMT_Modeled) -> 208.128843 | C24: =(VLOOKUP(eGrid_Region_Ex,Data!$B$98:$L$126,11,FALSE)/1000*Data!$B$148*Comp_V1_Electricity_Usage_Ex/Comp_V1_VMT_Modeled)+(Comp_V1_Gas_Usage_Ex*Data!$B$147*Data!$C137/Comp_V1_VMT_Modeled) -> 2.588383131
A26: *For PHEV calculations, assumes an equal number of miles driven on a daily basis, 365 days per year. No charging during the day.
A27: ** Emissions are well-to-wheel from Argonne National Laboratory's GREET model and U.S. EPA's eGRID.

Sheet Data
A1: Data - Fleet Procurement Analysis Tool
A2: Electricity and Gasoline Prices
A3: Energy Inflation
A4: General Inflation (Maintenance, Insurance)
A5: Maintenance and Repair Costs
A6: Electricity Emissions
A7: Gasoline Emissions
A8: Other Default Values and Scalars
A9: Federal and State Vehicles Incentive
A10: Vehicles
A12: Electricity and Gasoline Prices (2016 Average)
A13: State Abbreviation | B13: Commerical Electricity Price ($/kWh) | C13: Gasoline Price | D13: Date
A14: AK | B14: 0.166 | C14: 2.646 | D14: 2016
A15: AL | B15: 0.112 | C15: 2.024 | D15: 2016
A16: AR | B16: 0.081 | C16: 2.024 | D16: 2016
A17: AZ | B17: 0.104 | C17: 2.646 | D17: 2016
A18: CA | B18: 0.156 | C18: 2.782 | D18: 2016
A19: CO | B19: 0.094 | C19: 2.14 | D19: 2016
A20: CT | B20: 0.156 | C20: 2.255 | D20: 2016
A21: DC | B21: 0.122 | C21: 2.312 | D21: 2016
A22: DE | B22: 0.122 | C22: 2.312 | D22: 2016
A23: FL | B23: 0.087 | C23: 2.216 | D23: 2016
A24: GA | B24: 0.095 | C24: 2.206 | D24: 2016
A25: HI | B25: 0.246 | C25: 2.646 | D25: 2016
A26: IA | B26: 0.092 | C26: 2.143 | D26: 2016
A27: ID | B27: 0.078 | C27: 2.212 | D27: 2016
A28: IL | B28: 0.089 | C28: 2.143 | D28: 2016
A29: IN | B29: 0.099 | C29: 2.143 | D29: 2016
A30: KS | B30: 0.101 | C30: 2.143 | D30: 2016
A31: KY | B31: 0.094 | C31: 2.143 | D31: 2016
A32: LA | B32: 0.086 | C32: 2.024 | D32: 2016
A33: MA | B33: 0.152 | C33: 2.221 | D33: 2016
A34: MD | B34: 0.117 | C34: 2.312 | D34: 2016
A35: ME | B35: 0.118 | C35: 2.255 | D35: 2016
A36: MI | B36: 0.11 | C36: 2.143 | D36: 2016
A37: MN | B37: 0.097 | C37: 2.09 | D37: 2016
A38: MO | B38: 0.092 | C38: 2.143 | D38: 2016
A39: MS | B39: 0.09 | C39: 2.024 | D39: 2016
A40: MT | B40: 0.103 | C40: 2.212 | D40: 2016
A41: NC | B41: 0.082 | C41: 2.206 | D41: 2016
A42: ND | B42: 0.09 | C42: 2.143 | D42: 2016
A43: NE | B43: 0.085 | C43: 2.143 | D43: 2016
A44: NH | B44: 0.191 | C44: 2.255 | D44: 2016
A45: NJ | B45: 0.128 | C45: 2.312 | D45: 2016
A46: NM | B46: 0.095 | C46: 2.024 | D46: 2016
A47: NV | B47: 0.082 | C47: 2.646 | D47: 2016
A48: NY | B48: 0.16 | C48: 2.361 | D48: 2016
A49: OH | B49: 0.108 | C49: 2.185 | D49: 2016
A50: OK | B50: 0.07 | C50: 2.143 | D50: 2016
A51: OR | B51: 0.092 | C51: 2.646 | D51: 2016
A52: PA | B52: 0.111 | C52: 2.312 | D52: 2016
A53: RI | B53: 0.164 | C53: 2.255 | D53: 2016
A54: SC | B54: 0.1 | C54: 2.206 | D54: 2016
A55: SD | B55: 0.095 | C55: 2.143 | D55: 2016
A56: TN | B56: 0.1 | C56: 2.143 | D56: 2016
A57: TX | B57: 0.082 | C57: 2.016 | D57: 2016
A58: U.S. Avg | B58: 0.104 | C58: 2.25 | D58: 2016
A59: UT | B59: 0.088 | C59: 2.212 | D59: 2016
A60: VA | B60: 0.078 | C60: 2.206 | D60: 2016
A61: VT | B61: 0.145 | C61: 2.255 | D61: 2016
A62: WA | B62: 0.089 | C62: 2.531 | D62: 2016
A63: WI | B63: 0.108 | C63: 2.143 | D63: 2016
A64: WV | B64: 0.093 | C64: 2.206 | D64: 2016
A65: WY | B65: 0.092 | C65: 2.212 | D65: 2016
A67: Source: Electricity Prices, https://www.eia.gov/electricity/data/eia861m/index.html
A68: Source: Gasoline Prices, http://www.eia.gov/dnav/pet/pet_pri_gnd_a_epmr_pte_dpgal_w.htm
A70: Energy Inflation
A71: Field | B71: Units | C71: 2016 | D71: 2017 | E71: 2018 | F71: 2019 | G71: 2020 | H71: 2021 | I71: 2022 | J71: 2023 | K71: 2024 | L71: 2025 | M71: 2026 | N71: 2027 | O71: 2028 | P71: 2029 | Q71: 2030 | R71: 2031 | S71: 2032 | T71: 2033 | U71: 2034 | V71: 2035 | W71: 2036 | X71: 2037 | Y71: 2038 | Z71: 2039 | AA71: 2040
A72: Motor Gasoline - Reference case without Clean Power Plan | B72: 2015 $/MMBtu | C72: 16.811794 | D72: 18.30632 | E72: 19.651028 | F72: 21.625477 | G72: 22.710997 | H72: 23.430271 | I72: 23.789028 | J72: 24.166338 | K72: 24.381393 | L72: 24.682074 | M72: 25.206373 | N72: 25.613256 | O72: 25.905724 | P72: 26.279842 | Q72: 26.534843 | R72: 27.035015 | S72: 27.612432 | T72: 28.160969 | U72: 28.710022 | V72: 28.920519 | W72: 29.497013 | X72: 29.873716 | Y72: 30.530478 | Z72: 31.132334 | AA72: 31.788158
A73: Motor Gasoline - % over base | B73: % | C73: =C72/$C$72 -> 1 | D73: 1.088897473 | E73: 1.168883464 | F73: 1.286327741 | G73: 1.350896698 | H73: 1.393680591 | I73: 1.415020194 | J73: 1.437463366 | K73: 1.450255279 | L73: 1.468140402 | M73: 1.499326782 | N73: 1.523529018 | O73: 1.540925614 | P73: 1.563178921 | Q73: 1.578346903 | R73: 1.60809816 | S73: 1.642444108 | T73: 1.675072214 | U73: 1.707731013 | V73: 1.720251807 | W73: 1.754542852 | X73: 1.77694992 | Y73: 1.816015471 | Z73: 1.851815101 | AA73: 1.890824858
A74: Electricity - Reference case without Clean Power Plan | B74: 2015 $/MMBtu | C74: 29.737959 | D74: 29.438391 | E74: 30.531321 | F74: 32.163536 | G74: 32.959015 | H74: 33.605846 | I74: 33.95953 | J74: 34.370037 | K74: 34.751633 | L74: 35.272614 | M74: 35.575626 | N74: 35.519875 | O74: 35.526302 | P74: 35.511578 | Q74: 35.512962 | R74: 35.48069 | S74: 35.475903 | T74: 35.448685 | U74: 35.458553 | V74: 35.297573 | W74: 35.112625 | X74: 34.956844 | Y74: 34.850204 | Z74: 34.678581 | AA74: 34.537487
A75: Electricity - % over base | B75: % | C75: =C74/$C$74 -> 1 | D75: 0.9899264102 | E75: 1.026678428 | F75: 1.081565013 | G75: 1.108314629 | H75: 1.130065651 | I75: 1.141959003 | J75: 1.155763144 | K75: 1.168595094 | L75: 1.186114151 | M75: 1.196303553 | N75: 1.194428811 | O75: 1.194644932 | P75: 1.194149807 | Q75: 1.194196347 | R75: 1.193111134 | S75: 1.192950162 | T75: 1.192034901 | U75: 1.192366732 | V75: 1.186953449 | W75: 1.180734192 | X75: 1.175495736 | Y75: 1.171909747 | Z75: 1.166138571 | AA75: 1.161393995
A77: Source: http://www.eia.gov/outlooks/aeo/data/browser/#/?id=3-AEO2016&region=1-0&cases=ref2016~ref_no_cpp&start=2016&end=2040&f=A&linechart=ref2016-d032416a.3-3-AEO2016.1-0~ref_no_cpp-d032316a.3-3-AEO2016.1-0&map=ref_no_cpp-d032316a.3-3-AEO2016.1-0&chartin
A79: General Inflation (Maintenance
A80: Federal Inflation | C80: 2016 | D80: 2017 | E80: 2018 | F80: 2019 | G80: 2020 | H80: 2021 | I80: 2022 | J80: 2023 | K80: 2024 | L80: 2025 | M80: 2026 | N80: 2027 | O80: 2028 | P80: 2029 | Q80: 2030 | R80: 2031 | S80: 2032 | T80: 2033 | U80: 2034 | V80: 2035 | W80: 2036 | X80: 2037 | Y80: 2038 | Z80: 2039 | AA80: 2040
A81: =Inflation_Rate_General_Modeled -> 0.02 | C81: =(1+$A$81)^(C71-$C$71) -> 1 | D81: 1.02 | E81: 1.0404 | F81: 1.061208 | G81: 1.08243216 | H81: 1.104080803 | I81: 1.126162419 | J81: 1.148685668 | K81: 1.171659381 | L81: 1.195092569 | M81: 1.21899442 | N81: 1.243374308 | O81: 1.268241795 | P81: 1.29360663 | Q81: 1.319478763 | R81: 1.345868338 | S81: 1.372785705 | T81: 1.400241419 | U81: 1.428246248 | V81: 1.456811173 | W81: 1.485947396 | X81: 1.515666344 | Y81: 1.545979671 | Z81: 1.576899264 | AA81: 1.608437249
A83: Source: https://www.federalreserve.gov/faqs/economy_14400.htm
A85: Maintenance and Repair Costs
A86: Vehicle Type ($/mile) | B86: Year 1 | C86: Year 2 | D86: Year 3 | E86: Year 4 | F86: Year 5 | G86: Year 6 | H86: Year 7 | I86: Year 8 | J86: Year 9 | K86: Year 10 | L86: Year 11 | M86: Year 12 | N86: Year 13 | O86: Year 14 | P86: Year 15 | Q86: Year 16 | R86: Year 17 | S86: Year 18 | T86: Year 19 | U86: Year 20 | V86: Year 21 | W86: Year 22 | X86: Year 23 | Y86: Year 24 | Z86: Year 25
A87: ICE | B87: 0.08 | C87: 0.08 | D87: 0.08 | E87: 0.08 | F87: 0.08 | G87: =DB_Maint_Repair_Costs[[#This Row],[Year 5]]*1.3 -> 0.104 | H87: =DB_Maint_Repair_Costs[[#This Row],[Year 5]]*1.3 -> 0.104 | I87: =DB_Maint_Repair_Costs[[#This Row],[Year 5]]*1.3 -> 0.104 | J87: =DB_Maint_Repair_Costs[[#This Row],[Year 5]]*1.3 -> 0.104 | K87: =DB_Maint_Repair_Costs[[#This Row],[Year 5]]*1.3 -> 0.104 | L87: =DB_Maint_Repair_Costs[[#This Row],[Year 5]]*1.3 -> 0.104 | M87: =DB_Maint_Repair_Costs[[#This Row],[Year 5]]*1.3 -> 0.104 | N87: =DB_Maint_Repair_Costs[[#This Row],[Year 5]]*1.3 -> 0.104 | O87: =DB_Maint_Repair_Costs[[#This Row],[Year 5]]*1.3 -> 0.104 | P87: =DB_Maint_Repair_Costs[[#This Row],[Year 5]]*1.3 -> 0.104 | Q87: =DB_Maint_Repair_Costs[[#This Row],[Year 5]]*1.3 -> 0.104 | R87: =DB_Maint_Repair_Costs[[#This Row],[Year 5]]*1.3 -> 0.104 | S87: =DB_Maint_Repair_Costs[[#This Row],[Year 5]]*1.3 -> 0.104 | T87: =DB_Maint_Repair_Costs[[#This Row],[Year 5]]*1.3 -> 0.104 | U87: =DB_Maint_Repair_Costs[[#This Row],[Year 5]]*1.3 -> 0.104 | V87: =DB_Maint_Repair_Costs[[#This Row],[Year 5]]*1.3 -> 0.104 | W87: =DB_Maint_Repair_Costs[[#This Row],[Year 5]]*1.3 -> 0.104 | X87: =DB_Maint_Repair_Costs[[#This Row],[Year 5]]*1.3 -> 0.104 | Y87: =DB_Maint_Repair_Costs[[#This Row],[Year 5]]*1.3 -> 0.104 | Z87: =DB_Maint_Repair_Costs[[#This Row],[Year 5]]*1.3 -> 0.104
A88: BEV | B88: 0.04 | C88: 0.04 | D88: 0.04 | E88: 0.04 | F88: 0.04 | G88: =DB_Maint_Repair_Costs[[#This Row],[Year 5]]*1.3 -> 0.052 | H88: =DB_Maint_Repair_Costs[[#This Row],[Year 5]]*1.3 -> 0.052 | I88: =DB_Maint_Repair_Costs[[#This Row],[Year 5]]*1.3 -> 0.052 | J88: =DB_Maint_Repair_Costs[[#This Row],[Year 5]]*1.3 -> 0.052 | K88: =DB_Maint_Repair_Costs[[#This Row],[Year 5]]*1.3 -> 0.052 | L88: =DB_Maint_Repair_Costs[[#This Row],[Year 5]]*1.3 -> 0.052 | M88: =DB_Maint_Repair_Costs[[#This Row],[Year 5]]*1.3 -> 0.052 | N88: =DB_Maint_Repair_Costs[[#This Row],[Year 5]]*1.3 -> 0.052 | O88: =DB_Maint_Repair_Costs[[#This Row],[Year 5]]*1.3 -> 0.052 | P88: =DB_Maint_Repair_Costs[[#This Row],[Year 5]]*1.3 -> 0.052 | Q88: =DB_Maint_Repair_Costs[[#This Row],[Year 5]]*1.3 -> 0.052 | R88: =DB_Maint_Repair_Costs[[#This Row],[Year 5]]*1.3 -> 0.052 | S88: =DB_Maint_Repair_Costs[[#This Row],[Year 5]]*1.3 -> 0.052 | T88: =DB_Maint_Repair_Costs[[#This Row],[Year 5]]*1.3 -> 0.052 | U88: =DB_Maint_Repair_Costs[[#This Row],[Year 5]]*1.3 -> 0.052 | V88: =DB_Maint_Repair_Costs[[#This Row],[Year 5]]*1.3 -> 0.052 | W88: =DB_Maint_Repair_Costs[[#This Row],[Year 5]]*1.3 -> 0.052 | X88: =DB_Maint_Repair_Costs[[#This Row],[Year 5]]*1.3 -> 0.052 | Y88: =DB_Maint_Repair_Costs[[#This Row],[Year 5]]*1.3 -> 0.052 | Z88: =DB_Maint_Repair_Costs[[#This Row],[Year 5]]*1.3 -> 0.052
A89: PHEV | B89: 0.07 | C89: 0.07 | D89: 0.07 | E89: 0.07 | F89: 0.07 | G89: =DB_Maint_Repair_Costs[[#This Row],[Year 5]]*1.3 -> 0.091 | H89: =DB_Maint_Repair_Costs[[#This Row],[Year 5]]*1.3 -> 0.091 | I89: =DB_Maint_Repair_Costs[[#This Row],[Year 5]]*1.3 -> 0.091 | J89: =DB_Maint_Repair_Costs[[#This Row],[Year 5]]*1.3 -> 0.091 | K89: =DB_Maint_Repair_Costs[[#This Row],[Year 5]]*1.3 -> 0.091 | L89: =DB_Maint_Repair_Costs[[#This Row],[Year 5]]*1.3 -> 0.091 | M89: =DB_Maint_Repair_Costs[[#This Row],[Year 5]]*1.3 -> 0.091 | N89: =DB_Maint_Repair_Costs[[#This Row],[Year 5]]*1.3 -> 0.091 | O89: =DB_Maint_Repair_Costs[[#This Row],[Year 5]]*1.3 -> 0.091 | P89: =DB_Maint_Repair_Costs[[#This Row],[Year 5]]*1.3 -> 0.091 | Q89: =DB_Maint_Repair_Costs[[#This Row],[Year 5]]*1.3 -> 0.091 | R89: =DB_Maint_Repair_Costs[[#This Row],[Year 5]]*1.3 -> 0.091 | S89: =DB_Maint_Repair_Costs[[#This Row],[Year 5]]*1.3 -> 0.091 | T89: =DB_Maint_Repair_Costs[[#This Row],[Year 5]]*1.3 -> 0.091 | U89: =DB_Maint_Repair_Costs[[#This Row],[Year 5]]*1.3 -> 0.091 | V89: =DB_Maint_Repair_Costs[[#This Row],[Year 5]]*1.3 -> 0.091 | W89: =DB_Maint_Repair_Costs[[#This Row],[Year 5]]*1.3 -> 0.091 | X89: =DB_Maint_Repair_Costs[[#This Row],[Year 5]]*1.3 -> 0.091 | Y89: =DB_Maint_Repair_Costs[[#This Row],[Year 5]]*1.3 -> 0.091 | Z89: =DB_Maint_Repair_Costs[[#This Row],[Year 5]]*1.3 -> 0.091
A91: Source: Alameda County, 2017
A93: Electricity Emissions
A94: eGRID subregion name | B94: eGRID subregion acronym | C94: eGRID subregion annual CO2 total direct plant output emission rate (lb/MWh)1 | D94: eGRID subregion annual CH4 total output emission rate (lb/GWh)1 | E94: eGRID subregion annual N2O total output emission rate (lb/GWh)1 | F94: Upstream CO2 emissions from extraction (lb/MWh)3 | G94: Grid Loss Factors eGrid 2014 (%)2 | H94: eGRID subregion annual NOx total direct plant output emission rate (lb/MWh)1 | I94: eGRID subregion annual SOx total direct plant output emission rate (lb/MWh)1 | J94: EPA PM10 total direct plant output emission rate based on national average (lb/MWh)4 | K94: EPA PM2.5 total direct plant output emission rate based on national average (lb/MWh)4 | L94: EPA VOC total direct plant output emission rate based on national average (lb/MWh)4
A95: ASCC Alaska Grid | B95: AKGD | C95: 929.736 | D95: 46.629 | E95: 7.161 | F95: 194.006949 | G95: 0.0563 | H95: 2.058 | I95: 0.625 | J95: =228.579845629779*1000/4079690473.912*2204.62 -> 0.1235220423 | K95: =177.330914739379*1000/4079690473.912*2204.62 -> 0.09582768197 | L95: =37.3576459820216*1000/4079690473.912*2204.62 -> 0.02018766228
A96: ASCC Miscellaneous | B96: AKMS | C96: 683.115 | D96: 36.07 | E96: 5.998 | F96: 112.4358454 | G96: 0.0563 | H96: 9.643 | I96: 0.967 | J96: =228.579845629779*1000/4079690473.912*2204.62 -> 0.1235220423 | K96: =177.330914739379*1000/4079690473.912*2204.62 -> 0.09582768197 | L96: =37.3576459820216*1000/4079690473.912*2204.62 -> 0.02018766228
A97: WECC Southwest | B97: AZNM | C97: 879.872 | D97: 66.378 | E97: 9.313 | F97: 125.663592 | G97: 0.0479 | H97: 0.654 | I97: 0.326 | J97: 0.1235220423 | K97: 0.09582768197 | L97: 0.02018766228
A98: WECC California | B98: CAMX | C98: 570.489 | D98: 33.105 | E98: 4.036 | F98: 130.0728408 | G98: 0.0479 | H98: 0.24 | I98: 0.04 | J98: 0.1235220423 | K98: 0.09582768197 | L98: 0.02018766228
A99: ERCOT All | B99: ERCT | C99: 1148.049 | D99: 81.835 | E99: 11.575 | F99: 147.7098362 | G99: 0.0512 | H99: 0.595 | I99: 1.587 | J99: 0.1235220423 | K99: 0.09582768197 | L99: 0.02018766228
A100: FRCC All | B100: FRCC | C100: 1080.768 | D100: 87.777 | E100: 12.051 | F100: 176.3699536 | G100: 0.0497 | H100: 0.619 | I100: 0.823 | J100: 0.1235220423 | K100: 0.09582768197 | L100: 0.02018766228
A101: HICC Miscellaneous | B101: HIMS | C101: 947.527 | D101: 95.34 | E101: 15.22 | F101: 253.5318083 | G101: 0.0518 | H101: 6.914 | I101: 3.816 | J101: 0.1235220423 | K101: 0.09582768197 | L101: 0.02018766228
A102: HICC Oahu | B102: HIOA | C102: 1490.366 | D102: 159.41 | E102: 24.46 | F102: 308.6474188 | G102: 0.0518 | H102: 2.639 | I102: 8.73 | J102: 0.1235220423 | K102: 0.09582768197 | L102: 0.02018766228
A103: MRO East | B103: MROE | C103: 1676.531 | D103: 191.16 | E103: 28.178 | F103: 123.4589675 | G103: 0.0497 | H103: 1.108 | I103: 3.052 | J103: 0.1235220423 | K103: 0.09582768197 | L103: 0.02018766228
A104: MRO West | B104: MROW | C104: 1375.606 | D104: 161.369 | E104: 23.347 | F104: 105.8219722 | G104: 0.0497 | H104: 1.457 | I104: 2.302 | J104: 0.1235220423 | K104: 0.09582768197 | L104: 0.02018766228
A105: NPCC New England | B105: NEWE | C105: 576.76 | D105: 96.003 | E105: 12.843 | F105: 130.0728408 | G105: 0.0497 | H105: 0.465 | I105: 0.235 | J105: 0.1235220423 | K105: 0.09582768197 | L105: 0.02018766228
A106: WECC Northwest | B106: NWPP | C106: 913.423 | D106: 97.807 | E106: 14.224 | F106: 59.52485934 | G106: 0.0479 | H106: 1.195 | I106: 0.626 | J106: 0.1235220423 | K106: 0.09582768197 | L106: 0.02018766228
A107: NPCC NYC/Westchester | B107: NYCW | C107: 666.939 | D107: 24.365 | E107: 2.971 | F107: 138.8913385 | G107: 0.0497 | H107: 0.31 | I107: 0.046 | J107: 0.1235220423 | K107: 0.09582768197 | L107: 0.02018766228
A108: NPCC Long Island | B108: NYLI | C108: 1204.323 | D108: 132.411 | E108: 17.194 | F108: 202.8254467 | G108: 0.0497 | H108: 0.894 | I108: 0.448 | J108: 0.1235220423 | K108: 0.09582768197 | L108: 0.02018766228
A109: NPCC Upstate NY | B109: NYUP | C109: 367.64 | D109: 30.686 | E109: 4.138 | F109: 81.57110355 | G109: 0.0497 | H109: 0.402 | I109: 0.422 | J109: 0.1235220423 | K109: 0.09582768197 | L109: 0.02018766228
A110: RFC East | B110: RFCE | C110: 834.476 | D110: 73.933 | E110: 11.226 | F110: 114.6404698 | G110: 0.0497 | H110: 0.83 | I110: 1.925 | J110: 0.1235220423 | K110: 0.09582768197 | L110: 0.02018766228
A111: RFC Michigan | B111: RFCM | C111: 1542.618 | D111: 170.085 | E111: 24.461 | F111: 145.5052117 | G111: 0.0497 | H111: 1.394 | I111: 3.504 | J111: 0.1235220423 | K111: 0.09582768197 | L111: 0.02018766228
A112: RFC West | B112: RFCW | C112: 1390.868 | D112: 150.199 | E112: 22.034 | F112: 121.2543431 | G112: 0.0497 | H112: 1.254 | I112: 2.905 | J112: 0.1235220423 | K112: 0.09582768197 | L112: 0.02018766228
A113: WECC Rockies | B113: RMPA | C113: 1749.42 | D113: 178.158 | E113: 25.771 | F113: 134.4820896 | G113: 0.0479 | H113: 1.526 | I113: 1.059 | J113: 0.1235220423 | K113: 0.09582768197 | L113: 0.02018766228
A114: SPP North | B114: SPNO | C114: 1586.459 | D114: 173.789 | E114: 25.217 | F114: 130.0728408 | G114: 0.0497 | H114: 1.192 | I114: 1.563 | J114: 0.1235220423 | K114: 0.09582768197 | L114: 0.02018766228
A115: SPP South | B115: SPSO | C115: 1484.801 | D115: 135.441 | E115: 19.69 | F115: 156.5283338 | G115: 0.0497 | H115: 1.136 | I115: 2.309 | J115: 0.1235220423 | K115: 0.09582768197 | L115: 0.02018766228
A116: SERC Mississippi Valley | B116: SRMV | C116: 1027.116 | D116: 78.625 | E116: 11.247 | F116: 154.3237094 | G116: 0.0497 | H116: 0.966 | I116: 1.461 | J116: 0.1235220423 | K116: 0.09582768197 | L116: 0.02018766228
A117: SERC Midwest | B117: SRMW | C117: 1785.806 | D117: 208.841 | E117: 30.371 | F117: 132.2774652 | G117: 0.0497 | H117: 1.282 | I117: 2.907 | J117: 0.1235220423 | K117: 0.09582768197 | L117: 0.02018766228
A118: SERC South | B118: SRSO | C118: 1150.733 | D118: 103.712 | E118: 15.325 | F118: 145.5052117 | G118: 0.0497 | H118: 0.757 | I118: 1.989 | J118: 0.1235220423 | K118: 0.09582768197 | L118: 0.02018766228
A119: SERC Tennessee Valley | B119: SRTV | C119: 1345.417 | D119: 138.639 | E119: 20.194 | F119: 121.2543431 | G119: 0.0497 | H119: 0.981 | I119: 2.115 | J119: 0.1235220423 | K119: 0.09582768197 | L119: 0.02018766228
A120: SERC Virginia/Carolina | B120: SRVC | C120: 862.786 | D120: 95.723 | E120: 13.777 | F120: 108.0265966 | G120: 0.0497 | H120: 0.582 | I120: 0.676 | J120: 0.1235220423 | K120: 0.09582768197 | L120: 0.02018766228
A121: National Average | B121: U.S. Avg | C121: 1122.9 | D121: 110.9 | E121: 16 | F121: 117.7088522 | G121: 0.0495 | H121: 0.9 | I121: 1.63 | J121: =228.579845629779*1000/4079690473.912*2204.62 -> 0.1235220423 | K121: =177.330914739379*1000/4079690473.912*2204.62 -> 0.09582768197 | L121: =37.3576459820216*1000/4079690473.912*2204.62 -> 0.02018766228
A123: Source: http://www.epa.gov/cleanenergy/energy-resources/egrid/index.html
A124: 1 - eGrid 2014 Data File V2 - SRL14 tab - https://www.epa.gov/energy/emissions-generation-resource-integrated-database-egrid
A125: 2 - Table 3.5 - Grid Loss Factors https://www.epa.gov/sites/production/files/2017-02/documents/egrid2014_technicalsupportdocument_v2.pdf
A126: 3 - http://www.ucsusa.org/sites/default/files/attach/2015/11/Cleaner-Cars-from-Cradle-to-Grave-full-report.pdf
A127: 4 - National Average Annual Emissions Trends - https://www.epa.gov/air-emissions-inventories/air-pollutant-emissions-trends-data
A129: Gasoline Emissions
A130: Pollutant | B130: Car Tailpipe Emissions | C130: Car Lifecycle Emissions | D130: Pickup Tailpipe Emissions | E130: Pickup Lifecycle Emissions | F130: SUV Tailpipe Emissions | G130: SUV Lifecycle Emissions
A131: CO2 ( g/MJ) | B131: 71.67 | C131: 90.01 | D131: 70.59 | E131: 88.93 | F131: 71.64 | G131: 89.98
A132: GHG-100 (g/MJ) | B132: 68.59 | C132: 90.24 | D132: 69.95 | E132: 91.59 | F132: 68.59 | G132: 90.24
A133: Nox (mg/MJ) | B133: 26.45 | C133: 67.84 | D133: 86.16 | E133: =0.13*1000 -> 130 | F133: 33.79 | G133: 75.18
A134: Sox (mg/MJ) | B134: 0 | C134: 35.49 | D134: 0 | E134: 35.49 | F134: 0 | G134: 35.49
A135: PM10 (mg/MJ) | B135: 1.19 | C135: 4.87 | D135: 1.97 | E135: 5.66 | F135: 1.39 | G135: 5.07
A136: PM2.5 (mg/MJ) | B136: 1.05 | C136: 3.5 | D136: 1.75 | E136: 4.19 | F136: 1.23 | G136: 3.68
A137: VOC (mg/MJ) | B137: 29.66 | C137: 57.99 | D137: 30.32 | E137: 58.66 | F137: 24.5 | G137: 52.83
A139: Source: https://greet.es.anl.gov
A141: Other Default Values and Scalars
A142: Factor | B142: Value | C142: Source
A143: % of Annual Miles City Driving | B143: 0.55 | C143: https://www.epa.gov/fueleconomy/plug-hybrid-electric-vehicle-learn-more-about-new-label
A144: Carbon Price | B144: 36 | C144: https://www.epa.gov/climatechange/social-cost-carbon
A145: kWh per Gasoline Gallon | B145: 33.7 | C145: *EPA number
A146: KWh per MJ | B146: 0.277778 | C146: kWh / MJ
A147: MJ per Gasoline Gallon | B147: =B145/B146 -> 121.3199029 | C147: *EPA uses 121 MJ/gallon
A148: Miligram per Pound | B148: 453592
A149: Gram per Pound | B149: =B148/1000 -> 453.592
A150: Level 2 Charging Station Cost | B150: 5000
A151: Level 2 Charging Annual Maintenance Cost | B151: 75
A152: Annual Insurance Cost ($/year) | B152: 1222 | C152: Average passenger car insurance costs from AAA 2016 Your Driving Cost Study
A154: Federal and State Vehicle Incentives
A155: State Abbreviation | B155: Incentive Type | C155: 2016 Chevrolet Spark EV BEV | D155: 2016 Chevrolet Volt PHEV | E155: 2016 Fiat 500e BEV | F155: 2016 Ford C-MAX Energi Plug-in Hybrid PHEV | G155: 2016 Ford Focus Electric BEV | H155: 2016 Ford Fusion Energi Plug-in Hybrid PHEV | I155: 2016 Hyundai Sonata Plug-in Hybrid PHEV | J155: 2016 Kia Soul Electric BEV | K155: 2016 Mitsubishi i-MiEV BEV | L155: 2016 Nissan Leaf (30 kW-hr battery pack) BEV | M155: 2016 Volkswagen e-Golf BEV | N155: 2016 smart fortwo electric drive coupe BEV | O155: 2017 Chevrolet Bolt EV BEV | P155: 2017 Chevrolet Volt PHEV | Q155: 2017 Chrysler Pacifica Plug-in Hybrid PHEV | R155: 2017 Fiat 500e BEV | S155: 2017 Ford C-MAX Energi Plug-In Hybrid PHEV | T155: 2017 Ford Focus Electric BEV | U155: 2017 Ford Fusion Energi Plug-in Hybrid PHEV | V155: 2017 Hyundai Ioniq Electric BEV | W155: 2017 Hyundai Sonata Plug-in Hybrid PHEV | X155: 2017 Kia Soul Electric BEV | Y155: 2017 Mitsubishi i-MiEV BEV | Z155: 2017 Nissan Leaf BEV | AA155: 2017 Toyota Prius Prime PHEV | AB155: 2017 Volkswagen e-Golf BEV
A156: Federal Tax Credit | C156: 7500 | D156: 7500 | E156: 7500 | F156: 4007 | G156: 7500 | H156: 4007 | I156: 4919 | J156: 7500 | K156: 7500 | L156: 7500 | M156: 7500 | N156: 7500 | O156: 7500 | P156: 7500 | Q156: 7500 | R156: 7500 | S156: 4007 | T156: 7500 | U156: 4007 | V156: 7500 | W156: 4919 | X156: 7500 | Y156: 7500 | Z156: 7500 | AA156: 4502 | AB156: 7500
A157: CA | B157: Other | C157: 2500 | D157: 1500 | E157: 2500 | F157: 1500 | G157: 2500 | H157: 1500 | I157: 1500 | J157: 2500 | K157: 2500 | L157: 2500 | M157: 2500 | N157: 2500 | O157: 2500 | P157: 1500 | Q157: 1500 | R157: 2500 | S157: 1500 | T157: 2500 | U157: 1500 | V157: 2500 | W157: 1500 | X157: 2500 | Y157: 2500 | Z157: 2500 | AA157: 1500 | AB157: 2500
A158: AK | C158: 0 | D158: 0 | E158: 0 | F158: 0 | G158: 0 | H158: 0 | I158: 0 | J158: 0 | K158: 0 | L158: 0 | M158: 0 | N158: 0 | O158: 0 | P158: 0 | Q158: 0 | R158: 0 | S158: 0 | T158: 0 | U158: 0 | V158: 0 | W158: 0 | X158: 0 | Y158: 0 | Z158: 0 | AA158: 0 | AB158: 0
A159: CO | B159: Tax | C159: 5000 | D159: 5000 | E159: 5000 | F159: 5000 | G159: 5000 | H159: 5000 | I159: 5000 | J159: 5000 | K159: 5000 | L159: 5000 | M159: 5000 | N159: 5000 | O159: 5000 | P159: 5000 | Q159: 5000 | R159: 5000 | S159: 5000 | T159: 5000 | U159: 5000 | V159: 5000 | W159: 5000 | X159: 5000 | Y159: 5000 | Z159: 5000 | AA159: 5000 | AB159: 5000
A160: AL | C160: 0 | D160: 0 | E160: 0 | F160: 0 | G160: 0 | H160: 0 | I160: 0 | J160: 0 | K160: 0 | L160: 0 | M160: 0 | N160: 0 | O160: 0 | P160: 0 | Q160: 0 | R160: 0 | S160: 0 | T160: 0 | U160: 0 | V160: 0 | W160: 0 | X160: 0 | Y160: 0 | Z160: 0 | AA160: 0 | AB160: 0
A161: CT | B161: Other | C161: 750 | D161: 3000 | E161: 1500 | F161: 750 | G161: 1500 | H161: 750 | I161: 750 | J161: 3000 | K161: 750 | L161: 3000 | M161: 1500 | N161: 750 | O161: 3000 | P161: 3000 | Q161: 1500 | R161: 1500 | S161: 750 | T161: 3000 | U161: 750 | V161: 3000 | W161: 750 | X161: 3000 | Y161: 750 | Z161: 3000 | AA161: 750 | AB161: 3000
A162: AR | C162: 0 | D162: 0 | E162: 0 | F162: 0 | G162: 0 | H162: 0 | I162: 0 | J162: 0 | K162: 0 | L162: 0 | M162: 0 | N162: 0 | O162: 0 | P162: 0 | Q162: 0 | R162: 0 | S162: 0 | T162: 0 | U162: 0 | V162: 0 | W162: 0 | X162: 0 | Y162: 0 | Z162: 0 | AA162: 0 | AB162: 0
A163: DE | B163: Other | C163: 3500 | D163: 1500 | E163: 3500 | F163: 1500 | G163: 3500 | H163: 1500 | I163: 1500 | J163: 3500 | K163: 3500 | L163: 3500 | M163: 3500 | N163: 3500 | O163: 3500 | P163: 1500 | Q163: 1500 | R163: 3500 | S163: 1500 | T163: 3500 | U163: 1500 | V163: 3500 | W163: 1500 | X163: 3500 | Y163: 3500 | Z163: 3500 | AA163: 1500 | AB163: 3500
A164: AZ | C164: 0 | D164: 0 | E164: 0 | F164: 0 | G164: 0 | H164: 0 | I164: 0 | J164: 0 | K164: 0 | L164: 0 | M164: 0 | N164: 0 | O164: 0 | P164: 0 | Q164: 0 | R164: 0 | S164: 0 | T164: 0 | U164: 0 | V164: 0 | W164: 0 | X164: 0 | Y164: 0 | Z164: 0 | AA164: 0 | AB164: 0
A165: DC | C165: 0 | D165: 0 | E165: 0 | F165: 0 | G165: 0 | H165: 0 | I165: 0 | J165: 0 | K165: 0 | L165: 0 | M165: 0 | N165: 0 | O165: 0 | P165: 0 | Q165: 0 | R165: 0 | S165: 0 | T165: 0 | U165: 0 | V165: 0 | W165: 0 | X165: 0 | Y165: 0 | Z165: 0 | AA165: 0 | AB165: 0
A166: FL | C166: 0 | D166: 0 | E166: 0 | F166: 0 | G166: 0 | H166: 0 | I166: 0 | J166: 0 | K166: 0 | L166: 0 | M166: 0 | N166: 0 | O166: 0 | P166: 0 | Q166: 0 | R166: 0 | S166: 0 | T166: 0 | U166: 0 | V166: 0 | W166: 0 | X166: 0 | Y166: 0 | Z166: 0 | AA166: 0 | AB166: 0
A167: GA | C167: 0 | D167: 0 | E167: 0 | F167: 0 | G167: 0 | H167: 0 | I167: 0 | J167: 0 | K167: 0 | L167: 0 | M167: 0 | N167: 0 | O167: 0 | P167: 0 | Q167: 0 | R167: 0 | S167: 0 | T167: 0 | U167: 0 | V167: 0 | W167: 0 | X167: 0 | Y167: 0 | Z167: 0 | AA167: 0 | AB167: 0
A168: HI | C168: 0 | D168: 0 | E168: 0 | F168: 0 | G168: 0 | H168: 0 | I168: 0 | J168: 0 | K168: 0 | L168: 0 | M168: 0 | N168: 0 | O168: 0 | P168: 0 | Q168: 0 | R168: 0 | S168: 0 | T168: 0 | U168: 0 | V168: 0 | W168: 0 | X168: 0 | Y168: 0 | Z168: 0 | AA168: 0 | AB168: 0
A169: IA | C169: 0 | D169: 0 | E169: 0 | F169: 0 | G169: 0 | H169: 0 | I169: 0 | J169: 0 | K169: 0 | L169: 0 | M169: 0 | N169: 0 | O169: 0 | P169: 0 | Q169: 0 | R169: 0 | S169: 0 | T169: 0 | U169: 0 | V169: 0 | W169: 0 | X169: 0 | Y169: 0 | Z169: 0 | AA169: 0 | AB169: 0
A170: ID | C170: 0 | D170: 0 | E170: 0 | F170: 0 | G170: 0 | H170: 0 | I170: 0 | J170: 0 | K170: 0 | L170: 0 | M170: 0 | N170: 0 | O170: 0 | P170: 0 | Q170: 0 | R170: 0 | S170: 0 | T170: 0 | U170: 0 | V170: 0 | W170: 0 | X170: 0 | Y170: 0 | Z170: 0 | AA170: 0 | AB170: 0
A171: IL | C171: 0 | D171: 0 | E171: 0 | F171: 0 | G171: 0 | H171: 0 | I171: 0 | J171: 0 | K171: 0 | L171: 0 | M171: 0 | N171: 0 | O171: 0 | P171: 0 | Q171: 0 | R171: 0 | S171: 0 | T171: 0 | U171: 0 | V171: 0 | W171: 0 | X171: 0 | Y171: 0 | Z171: 0 | AA171: 0 | AB171: 0
A172: IN | C172: 0 | D172: 0 | E172: 0 | F172: 0 | G172: 0 | H172: 0 | I172: 0 | J172: 0 | K172: 0 | L172: 0 | M172: 0 | N172: 0 | O172: 0 | P172: 0 | Q172: 0 | R172: 0 | S172: 0 | T172: 0 | U172: 0 | V172: 0 | W172: 0 | X172: 0 | Y172: 0 | Z172: 0 | AA172: 0 | AB172: 0
A173: KS | C173: 0 | D173: 0 | E173: 0 | F173: 0 | G173: 0 | H173: 0 | I173: 0 | J173: 0 | K173: 0 | L173: 0 | M173: 0 | N173: 0 | O173: 0 | P173: 0 | Q173: 0 | R173: 0 | S173: 0 | T173: 0 | U173: 0 | V173: 0 | W173: 0 | X173: 0 | Y173: 0 | Z173: 0 | AA173: 0 | AB173: 0
A174: KY | C174: 0 | D174: 0 | E174: 0 | F174: 0 | G174: 0 | H174: 0 | I174: 0 | J174: 0 | K174: 0 | L174: 0 | M174: 0 | N174: 0 | O174: 0 | P174: 0 | Q174: 0 | R174: 0 | S174: 0 | T174: 0 | U174: 0 | V174: 0 | W174: 0 | X174: 0 | Y174: 0 | Z174: 0 | AA174: 0 | AB174: 0
A175: LA | B175: Tax | C175: 1500 | D175: 1500 | E175: 1500 | F175: 1500 | G175: 1500 | H175: 1500 | I175: 1500 | J175: 1500 | K175: 1500 | L175: 1500 | M175: 1500 | N175: 1500 | O175: 1500 | P175: 1500 | Q175: 1500 | R175: 1500 | S175: 1500 | T175: 1500 | U175: 1500 | V175: 1500 | W175: 1500 | X175: 1500 | Y175: 1500 | Z175: 1500 | AA175: 1500 | AB175: 1500
A176: MA | B176: Other | C176: 7500 | D176: 5000 | E176: 7500 | F176: 5000 | G176: 7500 | H176: 5000 | I176: 5000 | J176: 7500 | K176: 7500 | L176: 7500 | M176: 7500 | N176: 7500 | O176: 7500 | P176: 5000 | Q176: 5000 | R176: 7500 | S176: 5000 | T176: 7500 | U176: 5000 | V176: 7500 | W176: 5000 | X176: 7500 | Y176: 7500 | Z176: 7500 | AA176: 5000 | AB176: 7500
A177: MD | B177: Tax | C177: 2375 | D177: 2300 | E177: 3000 | F177: 951.5 | G177: 2875 | H177: 951.5 | I177: 1225 | J177: 3000 | K177: 2000 | L177: 3000 | M177: 3000 | N177: 2200 | O177: 3000 | P177: 2300 | Q177: 2000 | R177: 3000 | S177: 951.5 | T177: 3000 | U177: 951.5 | V177: 3000 | W177: 1225 | X177: 3000 | Y177: 2000 | Z177: 3000 | AA177: 1100 | AB177: 3000
A178: ME | C178: 0 | D178: 0 | E178: 0 | F178: 0 | G178: 0 | H178: 0 | I178: 0 | J178: 0 | K178: 0 | L178: 0 | M178: 0 | N178: 0 | O178: 0 | P178: 0 | Q178: 0 | R178: 0 | S178: 0 | T178: 0 | U178: 0 | V178: 0 | W178: 0 | X178: 0 | Y178: 0 | Z178: 0 | AA178: 0 | AB178: 0
A179: MI | C179: 0 | D179: 0 | E179: 0 | F179: 0 | G179: 0 | H179: 0 | I179: 0 | J179: 0 | K179: 0 | L179: 0 | M179: 0 | N179: 0 | O179: 0 | P179: 0 | Q179: 0 | R179: 0 | S179: 0 | T179: 0 | U179: 0 | V179: 0 | W179: 0 | X179: 0 | Y179: 0 | Z179: 0 | AA179: 0 | AB179: 0
A180: MN | C180: 0 | D180: 0 | E180: 0 | F180: 0 | G180: 0 | H180: 0 | I180: 0 | J180: 0 | K180: 0 | L180: 0 | M180: 0 | N180: 0 | O180: 0 | P180: 0 | Q180: 0 | R180: 0 | S180: 0 | T180: 0 | U180: 0 | V180: 0 | W180: 0 | X180: 0 | Y180: 0 | Z180: 0 | AA180: 0 | AB180: 0
A181: MO | C181: 0 | D181: 0 | E181: 0 | F181: 0 | G181: 0 | H181: 0 | I181: 0 | J181: 0 | K181: 0 | L181: 0 | M181: 0 | N181: 0 | O181: 0 | P181: 0 | Q181: 0 | R181: 0 | S181: 0 | T181: 0 | U181: 0 | V181: 0 | W181: 0 | X181: 0 | Y181: 0 | Z181: 0 | AA181: 0 | AB181: 0
A182: MS | C182: 0 | D182: 0 | E182: 0 | F182: 0 | G182: 0 | H182: 0 | I182: 0 | J182: 0 | K182: 0 | L182: 0 | M182: 0 | N182: 0 | O182: 0 | P182: 0 | Q182: 0 | R182: 0 | S182: 0 | T182: 0 | U182: 0 | V182: 0 | W182: 0 | X182: 0 | Y182: 0 | Z182: 0 | AA182: 0 | AB182: 0
A183: MT | C183: 0 | D183: 0 | E183: 0 | F183: 0 | G183: 0 | H183: 0 | I183: 0 | J183: 0 | K183: 0 | L183: 0 | M183: 0 | N183: 0 | O183: 0 | P183: 0 | Q183: 0 | R183: 0 | S183: 0 | T183: 0 | U183: 0 | V183: 0 | W183: 0 | X183: 0 | Y183: 0 | Z183: 0 | AA183: 0 | AB183: 0
A184: NC | C184: 0 | D184: 0 | E184: 0 | F184: 0 | G184: 0 | H184: 0 | I184: 0 | J184: 0 | K184: 0 | L184: 0 | M184: 0 | N184: 0 | O184: 0 | P184: 0 | Q184: 0 | R184: 0 | S184: 0 | T184: 0 | U184: 0 | V184: 0 | W184: 0 | X184: 0 | Y184: 0 | Z184: 0 | AA184: 0 | AB184: 0
A185: ND | C185: 0 | D185: 0 | E185: 0 | F185: 0 | G185: 0 | H185: 0 | I185: 0 | J185: 0 | K185: 0 | L185: 0 | M185: 0 | N185: 0 | O185: 0 | P185: 0 | Q185: 0 | R185: 0 | S185: 0 | T185: 0 | U185: 0 | V185: 0 | W185: 0 | X185: 0 | Y185: 0 | Z185: 0 | AA185: 0 | AB185: 0
A186: NE | C186: 0 | D186: 0 | E186: 0 | F186: 0 | G186: 0 | H186: 0 | I186: 0 | J186: 0 | K186: 0 | L186: 0 | M186: 0 | N186: 0 | O186: 0 | P186: 0 | Q186: 0 | R186: 0 | S186: 0 | T186: 0 | U186: 0 | V186: 0 | W186: 0 | X186: 0 | Y186: 0 | Z186: 0 | AA186: 0 | AB186: 0
A187: NH | C187: 0 | D187: 0 | E187: 0 | F187: 0 | G187: 0 | H187: 0 | I187: 0 | J187: 0 | K187: 0 | L187: 0 | M187: 0 | N187: 0 | O187: 0 | P187: 0 | Q187: 0 | R187: 0 | S187: 0 | T187: 0 | U187: 0 | V187: 0 | W187: 0 | X187: 0 | Y187: 0 | Z187: 0 | AA187: 0 | AB187: 0
A188: NJ | B188: Other | C188: 0 | D188: 0 | E188: 0 | F188: 0 | G188: 0 | H188: 0 | I188: 0 | J188: 0 | K188: 0 | L188: 0 | M188: 0 | N188: 0 | O188: 0 | P188: 0 | Q188: 0 | R188: 0 | S188: 0 | T188: 0 | U188: 0 | V188: 0 | W188: 0 | X188: 0 | Y188: 0 | Z188: 0 | AA188: 0 | AB188: 0
A189: NM | C189: 0 | D189: 0 | E189: 0 | F189: 0 | G189: 0 | H189: 0 | I189: 0 | J189: 0 | K189: 0 | L189: 0 | M189: 0 | N189: 0 | O189: 0 | P189: 0 | Q189: 0 | R189: 0 | S189: 0 | T189: 0 | U189: 0 | V189: 0 | W189: 0 | X189: 0 | Y189: 0 | Z189: 0 | AA189: 0 | AB189: 0
A190: NV | C190: 0 | D190: 0 | E190: 0 | F190: 0 | G190: 0 | H190: 0 | I190: 0 | J190: 0 | K190: 0 | L190: 0 | M190: 0 | N190: 0 | O190: 0 | P190: 0 | Q190: 0 | R190: 0 | S190: 0 | T190: 0 | U190: 0 | V190: 0 | W190: 0 | X190: 0 | Y190: 0 | Z190: 0 | AA190: 0 | AB190: 0
A191: NY | B191: Other | C191: 1700 | D191: 1700 | E191: 1700 | F191: 500 | G191: 1700 | H191: 500 | I191: 1100 | J191: 1700 | K191: 1700 | L191: 1700 | M191: 1700 | N191: 1700 | O191: 2000 | P191: 1700 | Q191: 1100 | R191: 1700 | S191: 500 | T191: 1700 | U191: 1100 | V191: 2000 | W191: 1100 | X191: 1700 | Y191: 1700 | Z191: 1700 | AA191: 1100 | AB191: 2000
A192: OH | C192: 0 | D192: 0 | E192: 0 | F192: 0 | G192: 0 | H192: 0 | I192: 0 | J192: 0 | K192: 0 | L192: 0 | M192: 0 | N192: 0 | O192: 0 | P192: 0 | Q192: 0 | R192: 0 | S192: 0 | T192: 0 | U192: 0 | V192: 0 | W192: 0 | X192: 0 | Y192: 0 | Z192: 0 | AA192: 0 | AB192: 0
A193: OK | C193: 0 | D193: 0 | E193: 0 | F193: 0 | G193: 0 | H193: 0 | I193: 0 | J193: 0 | K193: 0 | L193: 0 | M193: 0 | N193: 0 | O193: 0 | P193: 0 | Q193: 0 | R193: 0 | S193: 0 | T193: 0 | U193: 0 | V193: 0 | W193: 0 | X193: 0 | Y193: 0 | Z193: 0 | AA193: 0 | AB193: 0
A194: OR | C194: 0 | D194: 0 | E194: 0 | F194: 0 | G194: 0 | H194: 0 | I194: 0 | J194: 0 | K194: 0 | L194: 0 | M194: 0 | N194: 0 | O194: 0 | P194: 0 | Q194: 0 | R194: 0 | S194: 0 | T194: 0 | U194: 0 | V194: 0 | W194: 0 | X194: 0 | Y194: 0 | Z194: 0 | AA194: 0 | AB194: 0
A195: PA | B195: Other | C195: 1750 | D195: 1000 | E195: 1750 | F195: 1000 | G195: 1750 | H195: 1000 | I195: 1000 | J195: 1750 | K195: 1750 | L195: 1750 | M195: 1750 | N195: 1750 | O195: 1750 | P195: 1000 | Q195: 1000 | R195: 1750 | S195: 1000 | T195: 1750 | U195: 1000 | V195: 1750 | W195: 1000 | X195: 1750 | Y195: 1750 | Z195: 1750 | AA195: 1000 | AB195: 1750
A196: PR | C196: 0 | D196: 0 | E196: 0 | F196: 0 | G196: 0 | H196: 0 | I196: 0 | J196: 0 | K196: 0 | L196: 0 | M196: 0 | N196: 0 | O196: 0 | P196: 0 | Q196: 0 | R196: 0 | S196: 0 | T196: 0 | U196: 0 | V196: 0 | W196: 0 | X196: 0 | Y196: 0 | Z196: 0 | AA196: 0 | AB196: 0
A197: RI | B197: Other | C197: 2500 | D197: 1500 | E197: 2500 | F197: 1500 | G197: 2500 | H197: 1500 | I197: 1500 | J197: 2500 | K197: 0 | L197: 2500 | M197: 2500 | N197: 0 | O197: 2500 | P197: 1500 | Q197: 1500 | R197: 2500 | S197: 1500 | T197: 2500 | U197: 1500 | V197: 2500 | W197: 1500 | X197: 2500 | Y197: 0 | Z197: 2500 | AA197: 1500 | AB197: 2500
A198: SC | C198: 0 | D198: 0 | E198: 0 | F198: 0 | G198: 0 | H198: 0 | I198: 0 | J198: 0 | K198: 0 | L198: 0 | M198: 0 | N198: 0 | O198: 0 | P198: 0 | Q198: 0 | R198: 0 | S198: 0 | T198: 0 | U198: 0 | V198: 0 | W198: 0 | X198: 0 | Y198: 0 | Z198: 0 | AA198: 0 | AB198: 0
A199: SD | C199: 0 | D199: 0 | E199: 0 | F199: 0 | G199: 0 | H199: 0 | I199: 0 | J199: 0 | K199: 0 | L199: 0 | M199: 0 | N199: 0 | O199: 0 | P199: 0 | Q199: 0 | R199: 0 | S199: 0 | T199: 0 | U199: 0 | V199: 0 | W199: 0 | X199: 0 | Y199: 0 | Z199: 0 | AA199: 0 | AB199: 0
A200: TN | C200: 0 | D200: 0 | E200: 0 | F200: 0 | G200: 0 | H200: 0 | I200: 0 | J200: 0 | K200: 0 | L200: 0 | M200: 0 | N200: 0 | O200: 0 | P200: 0 | Q200: 0 | R200: 0 | S200: 0 | T200: 0 | U200: 0 | V200: 0 | W200: 0 | X200: 0 | Y200: 0 | Z200: 0 | AA200: 0 | AB200: 0
A201: TX | B201: Other | C201: 2500 | D201: 2500 | E201: 2500 | F201: 2500 | G201: 2500 | H201: 2500 | I201: 2500 | J201: 2500 | K201: 2500 | L201: 2500 | M201: 2500 | N201: 2500 | O201: 2500 | P201: 2500 | Q201: 2500 | R201: 2500 | S201: 2500 | T201: 2500 | U201: 2500 | V201: 2500 | W201: 2500 | X201: 2500 | Y201: 2500 | Z201: 2500 | AA201: 2500 | AB201: 2500
A202: UT | C202: 0 | D202: 0 | E202: 0 | F202: 0 | G202: 0 | H202: 0 | I202: 0 | J202: 0 | K202: 0 | L202: 0 | M202: 0 | N202: 0 | O202: 0 | P202: 0 | Q202: 0 | R202: 0 | S202: 0 | T202: 0 | U202: 0 | V202: 0 | W202: 0 | X202: 0 | Y202: 0 | Z202: 0 | AA202: 0 | AB202: 0
A203: VA | C203: 0 | D203: 0 | E203: 0 | F203: 0 | G203: 0 | H203: 0 | I203: 0 | J203: 0 | K203: 0 | L203: 0 | M203: 0 | N203: 0 | O203: 0 | P203: 0 | Q203: 0 | R203: 0 | S203: 0 | T203: 0 | U203: 0 | V203: 0 | W203: 0 | X203: 0 | Y203: 0 | Z203: 0 | AA203: 0 | AB203: 0
A204: VT | C204: 0 | D204: 0 | E204: 0 | F204: 0 | G204: 0 | H204: 0 | I204: 0 | J204: 0 | K204: 0 | L204: 0 | M204: 0 | N204: 0 | O204: 0 | P204: 0 | Q204: 0 | R204: 0 | S204: 0 | T204: 0 | U204: 0 | V204: 0 | W204: 0 | X204: 0 | Y204: 0 | Z204: 0 | AA204: 0 | AB204: 0
A205: WA | B205: Other | C205: 0 | D205: 0 | E205: 0 | F205: 0 | G205: 0 | H205: 0 | I205: 0 | J205: 0 | K205: 0 | L205: 0 | M205: 0 | N205: 0 | O205: 0 | P205: 0 | Q205: 0 | R205: 0 | S205: 0 | T205: 0 | U205: 0 | V205: 0 | W205: 0 | X205: 0 | Y205: 0 | Z205: 0 | AA205: 0 | AB205: 0
A206: WI | C206: 0 | D206: 0 | E206: 0 | F206: 0 | G206: 0 | H206: 0 | I206: 0 | J206: 0 | K206: 0 | L206: 0 | M206: 0 | N206: 0 | O206: 0 | P206: 0 | Q206: 0 | R206: 0 | S206: 0 | T206: 0 | U206: 0 | V206: 0 | W206: 0 | X206: 0 | Y206: 0 | Z206: 0 | AA206: 0 | AB206: 0
A207: WV | C207: 0 | D207: 0 | E207: 0 | F207: 0 | G207: 0 | H207: 0 | I207: 0 | J207: 0 | K207: 0 | L207: 0 | M207: 0 | N207: 0 | O207: 0 | P207: 0 | Q207: 0 | R207: 0 | S207: 0 | T207: 0 | U207: 0 | V207: 0 | W207: 0 | X207: 0 | Y207: 0 | Z207: 0 | AA207: 0 | AB207: 0
A208: WY | C208: 0 | D208: 0 | E208: 0 | F208: 0 | G208: 0 | H208: 0 | I208: 0 | J208: 0 | K208: 0 | L208: 0 | M208: 0 | N208: 0 | O208: 0 | P208: 0 | Q208: 0 | R208: 0 | S208: 0 | T208: 0 | U208: 0 | V208: 0 | W208: 0 | X208: 0 | Y208: 0 | Z208: 0 | AA208: 0 | AB208: 0
A210: Vehicles
A211: Selection Name | B211: Year | C211: Make | D211: Model | E211: Drivetrain Type | F211: Battery Size (kWh) | G211: Electric Range | H211: Fuel Economy Electric City (MPGe) | I211: Fuel Economy Electric Hwy (MPGe) | J211: Fuel Economy Gas City (MPG) | K211: Fuel Economy Gas Hwy (MPG) | L211: MSRP | M211: Fueleconomy.gov Link
A212: =DB_Vehicles[[#This Row],[Year]] & " " & DB_Vehicles[[#This Row],[Make]] & " " & DB_Vehicles[[#This Row],[Model]] & " " & DB_Vehicles[[#This Row],[Drivetrain Type]] -> *Custom Custom Custom BEV | B212: *Custom | C212: Custom | D212: Custom | E212: BEV | M212: N/A
A213: =DB_Vehicles[[#This Row],[Year]] & " " & DB_Vehicles[[#This Row],[Make]] & " " & DB_Vehicles[[#This Row],[Model]] & " " & DB_Vehicles[[#This Row],[Drivetrain Type]] -> *Custom Custom Custom ICE | B213: *Custom | C213: Custom | D213: Custom | E213: ICE | M213: N/A
A214: =DB_Vehicles[[#This Row],[Year]] & " " & DB_Vehicles[[#This Row],[Make]] & " " & DB_Vehicles[[#This Row],[Model]] & " " & DB_Vehicles[[#This Row],[Drivetrain Type]] -> *Custom Custom Custom PHEV | B214: *Custom | C214: Custom | D214: Custom | E214: PHEV | M214: N/A
A215: 2016 Mitsubishi i-MiEV BEV | B215: 2016 | C215: Mitsubishi | D215: i-MiEV | E215: BEV | F215: 16 | G215: 62 | H215: 126 | I215: 99 | L215: 22995 | M215: https://www.fueleconomy.gov/feg/Find.do?action=sbs&id=36023
... 111 more rows

Sheet Zipcode Data (hidden)
A1: Zipcode Data - EV Fleet Procurement Analysis Tool
A3: Zip Code Lookup Table
A4: PostalCodeStandardized | B4: City | C4: StateCode | D4: State Name | E4: PADD Region | F4: Primary eGRID Subregion
A5: 00000 | B5: Anytown | C5: U.S. Avg | D5: National Average | E5: U.S. Avg | F5: U.S. Avg
A6: 00705 | B6: AIBONITO | C6: PR | D6: Puerto Rico
A7: 00610 | B7: ANASCO | C7: PR | D7: Puerto Rico
A8: 00611 | B8: ANGELES | C8: PR | D8: Puerto Rico
A9: 00612 | B9: ARECIBO | C9: PR | D9: Puerto Rico
A10: 00601 | B10: ADJUNTAS | C10: PR | D10: Puerto Rico
A11: 00631 | B11: CASTANER | C11: PR | D11: Puerto Rico
A12: 00602 | B12: AGUADA | C12: PR | D12: Puerto Rico
A13: 00603 | B13: AGUADILLA | C13: PR | D13: Puerto Rico
A14: 00604 | B14: AGUADILLA | C14: PR | D14: Puerto Rico
A15: 00605 | B15: AGUADILLA | C15: PR | D15: Puerto Rico
A16: 00703 | B16: AGUAS BUENAS | C16: PR | D16: Puerto Rico
A17: 00704 | B17: AGUIRRE | C17: PR | D17: Puerto Rico
A18: 07675 | B18: WESTWOOD | C18: NJ | D18: New Jersey | E18: 1b | F18: NYUP
A19: 07677 | B19: WOODCLIFF LAKE | C19: NJ | D19: New Jersey | E19: 1b | F19: RFCE
A20: 07885 | B20: WHARTON | C20: NJ | D20: New Jersey | E20: 1b | F20: RFCE
A21: 07981 | B21: WHIPPANY | C21: NJ | D21: New Jersey | E21: 1b | F21: RFCE
A22: 07999 | B22: WHIPPANY | C22: NJ | D22: New Jersey | E22: 1b | F22: RFCE
A23: 08888 | B23: WHITEHOUSE | C23: NJ | D23: New Jersey | E23: 1b | F23: RFCE
A24: 08889 | B24: WHITEHOUSE STATION | C24: NJ | D24: New Jersey | E24: 1b | F24: RFCE
A25: 07095 | B25: WOODBRIDGE | C25: NJ | D25: New Jersey | E25: 1b | F25: RFCE
A26: 07481 | B26: WYCKOFF | C26: NJ | D26: New Jersey | E26: 1b | F26: NYUP
A27: 10451 | B27: BRONX | C27: NY | D27: New York | E27: 1b | F27: NYCW
A28: 10452 | B28: BRONX | C28: NY | D28: New York | E28: 1b | F28: NYCW
A29: 10453 | B29: BRONX | C29: NY | D29: New York | E29: 1b | F29: NYCW
A30: 10454 | B30: BRONX | C30: NY | D30: New York | E30: 1b | F30: NYCW
A31: 10455 | B31: BRONX | C31: NY | D31: New York | E31: 1b | F31: NYCW
A32: 10456 | B32: BRONX | C32: NY | D32: New York | E32: 1b | F32: NYCW
A33: 10457 | B33: BRONX | C33: NY | D33: New York | E33: 1b | F33: NYCW
A34: 10458 | B34: BRONX | C34: NY | D34: New York | E34: 1b | F34: NYCW
A35: 10459 | B35: BRONX | C35: NY | D35: New York | E35: 1b | F35: NYCW
A36: 10460 | B36: BRONX | C36: NY | D36: New York | E36: 1b | F36: NYCW
A37: 10461 | B37: BRONX | C37: NY | D37: New York | E37: 1b | F37: NYCW
A38: 10462 | B38: BRONX | C38: NY | D38: New York | E38: 1b | F38: NYCW
A39: 10463 | B39: BRONX | C39: NY | D39: New York | E39: 1b | F39: NYCW
A40: 10464 | B40: BRONX | C40: NY | D40: New York | E40: 1b | F40: NYCW
A41: 10465 | B41: BRONX | C41: NY | D41: New York | E41: 1b | F41: NYCW
A42: 10466 | B42: BRONX | C42: NY | D42: New York | E42: 1b | F42: NYCW
A43: 10467 | B43: BRONX | C43: NY | D43: New York | E43: 1b | F43: NYCW
A44: 10468 | B44: BRONX | C44: NY | D44: New York | E44: 1b | F44: NYCW
A45: 10469 | B45: BRONX | C45: NY | D45: New York | E45: 1b | F45: NYCW
A46: 10470 | B46: BRONX | C46: NY | D46: New York | E46: 1b | F46: NYCW
A47: 10471 | B47: BRONX | C47: NY | D47: New York | E47: 1b | F47: NYCW
A48: 10472 | B48: BRONX | C48: NY | D48: New York | E48: 1b | F48: NYCW
A49: 10473 | B49: BRONX | C49: NY | D49: New York | E49: 1b | F49: NYCW
A50: 10474 | B50: BRONX | C50: NY | D50: New York | E50: 1b | F50: NYCW
A51: 10475 | B51: BRONX | C51: NY | D51: New York | E51: 1b | F51: NYCW
A52: 10499 | B52: BRONX | C52: NY | D52: New York | E52: 1b | F52: NYCW
A53: 10001 | B53: NEW YORK | C53: NY | D53: New York | E53: 1b | F53: NYCW
A54: 10002 | B54: NEW YORK | C54: NY | D54: New York | E54: 1b | F54: NYCW
A55: 10003 | B55: NEW YORK | C55: NY | D55: New York | E55: 1b | F55: NYCW
A56: 10004 | B56: NEW YORK | C56: NY | D56: New York | E56: 1b | F56: NYCW
A57: 10005 | B57: NEW YORK | C57: NY | D57: New York | E57: 1b | F57: NYCW
A58: 10006 | B58: NEW YORK | C58: NY | D58: New York | E58: 1b | F58: NYCW
A59: 10007 | B59: NEW YORK | C59: NY | D59: New York | E59: 1b | F59: NYCW
A60: 10008 | B60: NEW YORK | C60: NY | D60: New York | E60: 1b | F60: NYCW
A61: 10009 | B61: NEW YORK | C61: NY | D61: New York | E61: 1b | F61: NYCW
A62: 10010 | B62: NEW YORK | C62: NY | D62: New York | E62: 1b | F62: NYCW
A63: 10011 | B63: NEW YORK | C63: NY | D63: New York | E63: 1b | F63: NYCW
A64: 10012 | B64: NEW YORK | C64: NY | D64: New York | E64: 1b | F64: NYCW
A65: 10013 | B65: NEW YORK | C65: NY | D65: New York | E65: 1b | F65: NYCW
A66: 10014 | B66: NEW YORK | C66: NY | D66: New York | E66: 1b | F66: NYCW
A67: 10016 | B67: NEW YORK | C67: NY | D67: New York | E67: 1b | F67: NYCW
A68: 10017 | B68: NEW YORK | C68: NY | D68: New York | E68: 1b | F68: NYCW
A69: 10018 | B69: NEW YORK | C69: NY | D69: New York | E69: 1b | F69: NYCW
A70: 10019 | B70: NEW YORK | C70: NY | D70: New York | E70: 1b | F70: NYCW
A71: 10020 | B71: NEW YORK | C71: NY | D71: New York | E71: 1b | F71: NYCW
A72: 10021 | B72: NEW YORK | C72: NY | D72: New York | E72: 1b | F72: NYCW
A73: 10022 | B73: NEW YORK | C73: NY | D73: New York | E73: 1b | F73: NYCW
A74: 10023 | B74: NEW YORK | C74: NY | D74: New York | E74: 1b | F74: NYCW
A75: 10024 | B75: NEW YORK | C75: NY | D75: New York | E75: 1b | F75: NYCW
A76: 10025 | B76: NEW YORK | C76: NY | D76: New York | E76: 1b | F76: NYCW
A77: 10026 | B77: NEW YORK | C77: NY | D77: New York | E77: 1b | F77: NYCW
A78: 10027 | B78: NEW YORK | C78: NY | D78: New York | E78: 1b | F78: NYCW
A79: 10028 | B79: NEW YORK | C79: NY | D79: New York | E79: 1b | F79: NYCW
A80: 10029 | B80: NEW YORK | C80: NY | D80: New York | E80: 1b | F80: NYCW
A81: 10030 | B81: NEW YORK | C81: NY | D81: New York | E81: 1b | F81: NYCW
A82: 10031 | B82: NEW YORK | C82: NY | D82: New York | E82: 1b | F82: NYCW
A83: 10032 | B83: NEW YORK | C83: NY | D83: New York | E83: 1b | F83: NYCW
A84: 10033 | B84: NEW YORK | C84: NY | D84: New York | E84: 1b | F84: NYCW
A85: 10034 | B85: NEW YORK | C85: NY | D85: New York | E85: 1b | F85: NYCW
A86: 00613 | B86: ARECIBO | C86: PR | D86: Puerto Rico
A87: 00614 | B87: ARECIBO | C87: PR | D87: Puerto Rico
A88: 00714 | B88: ARROYO | C88: PR | D88: Puerto Rico
A89: 00616 | B89: BAJADERO | C89: PR | D89: Puerto Rico
A90: 00617 | B90: BARCELONETA | C90: PR | D90: Puerto Rico
A91: 00794 | B91: BARRANQUITAS | C91: PR | D91: Puerto Rico
A92: 00622 | B92: BOQUERON | C92: PR | D92: Puerto Rico
A93: 00623 | B93: CABO ROJO | C93: PR | D93: Puerto Rico
A94: 00627 | B94: CAMUY | C94: PR | D94: Puerto Rico
A95: 00729 | B95: CANOVANAS | C95: PR | D95: Puerto Rico
A96: 00979 | B96: CAROLINA | C96: PR | D96: Puerto Rico
A97: 00981 | B97: CAROLINA | C97: PR | D97: Puerto Rico
A98: 00982 | B98: CAROLINA | C98: PR | D98: Puerto Rico
A99: 00983 | B99: CAROLINA | C99: PR | D99: Puerto Rico
A100: 00984 | B100: CAROLINA | C100: PR | D100: Puerto Rico
A101: 00985 | B101: CAROLINA | C101: PR | D101: Puerto Rico
A102: 00986 | B102: CAROLINA | C102: PR | D102: Puerto Rico
A103: 00987 | B103: CAROLINA | C103: PR | D103: Puerto Rico
A104: 00988 | B104: CAROLINA | C104: PR | D104: Puerto Rico
A105: 00736 | B105: CAYEY | C105: PR | D105: Puerto Rico
A106: 00739 | B106: CIDRA | C106: PR | D106: Puerto Rico
A107: 00769 | B107: COAMO | C107: PR | D107: Puerto Rico
A108: 00782 | B108: COMERIO | C108: PR | D108: Puerto Rico
A109: 00783 | B109: COROZAL | C109: PR | D109: Puerto Rico
A110: 09848 | B110: APO | C110: AE | D110: U.S. Armed Forces – Europe
A111: 10200 | B111: NEW YORK | C111: NY | D111: New York | E111: 1b | F111: NYCW
A112: 09323 | B112: APO | C112: AE | D112: U.S. Armed Forces – Europe
A113: 00659 | B113: HATILLO | C113: PR | D113: Puerto Rico
A114: 00660 | B114: HORMIGUEROS | C114: PR | D114: Puerto Rico
A115: 00791 | B115: HUMACAO | C115: PR | D115: Puerto Rico
A116: 00792 | B116: HUMACAO | C116: PR | D116: Puerto Rico
A117: 00662 | B117: ISABELA | C117: PR | D117: Puerto Rico
A118: 00664 | B118: JAYUYA | C118: PR | D118: Puerto Rico
A119: 00795 | B119: JUANA DIAZ | C119: PR | D119: Puerto Rico
A120: 00777 | B120: JUNCOS | C120: PR | D120: Puerto Rico
A121: 00728 | B121: PONCE | C121: PR | D121: Puerto Rico
A122: 00725 | B122: CAGUAS | C122: PR | D122: Puerto Rico
A123: 00726 | B123: CAGUAS | C123: PR | D123: Puerto Rico
A124: 00727 | B124: CAGUAS | C124: PR | D124: Puerto Rico
A125: 00737 | B125: CAYEY | C125: PR | D125: Puerto Rico
A126: 00735 | B126: CEIBA | C126: PR | D126: Puerto Rico
A127: 00742 | B127: ROOSEVELT ROADS | C127: PR | D127: Puerto Rico
A128: 00638 | B128: CIALES | C128: PR | D128: Puerto Rico
A129: 00780 | B129: COTO LAUREL | C129: PR | D129: Puerto Rico
A130: 00775 | B130: CULEBRA | C130: PR | D130: Puerto Rico
A131: 00646 | B131: DORADO | C131: PR | D131: Puerto Rico
A132: 00647 | B132: ENSENADA | C132: PR | D132: Puerto Rico
A133: 00738 | B133: FAJARDO | C133: PR | D133: Puerto Rico
A134: 00650 | B134: FLORIDA | C134: PR | D134: Puerto Rico
A135: 00652 | B135: GARROCHALES | C135: PR | D135: Puerto Rico
A136: 00653 | B136: GUANICA | C136: PR | D136: Puerto Rico
A137: 00784 | B137: GUAYAMA | C137: PR | D137: Puerto Rico
A138: 00785 | B138: GUAYAMA | C138: PR | D138: Puerto Rico
A139: 00965 | B139: GUAYNABO | C139: PR | D139: Puerto Rico
A140: 00966 | B140: GUAYNABO | C140: PR | D140: Puerto Rico
A141: 00968 | B141: GUAYNABO | C141: PR | D141: Puerto Rico
A142: 00969 | B142: GUAYNABO | C142: PR | D142: Puerto Rico
A143: 00970 | B143: GUAYNABO | C143: PR | D143: Puerto Rico
A144: 00971 | B144: GUAYNABO | C144: PR | D144: Puerto Rico
A145: 00778 | B145: GURABO | C145: PR | D145: Puerto Rico
A146: 00667 | B146: LAJAS | C146: PR | D146: Puerto Rico
A147: 00786 | B147: LA PLATA | C147: PR | D147: Puerto Rico
A148: 00669 | B148: LARES | C148: PR | D148: Puerto Rico
A149: 00670 | B149: LAS MARIAS | C149: PR | D149: Puerto Rico
A150: 00771 | B150: LAS PIEDRAS | C150: PR | D150: Puerto Rico
A151: 00931 | B151: SAN JUAN | C151: PR | D151: Puerto Rico
A152: 00933 | B152: SAN JUAN | C152: PR | D152: Puerto Rico
A153: 00934 | B153: FORT BUCHANAN | C153: PR | D153: Puerto Rico
A154: 00935 | B154: SAN JUAN | C154: PR | D154: Puerto Rico
A155: 00936 | B155: SAN JUAN | C155: PR | D155: Puerto Rico
A156: 00772 | B156: LOIZA | C156: PR | D156: Puerto Rico
A157: 00773 | B157: LUQUILLO | C157: PR | D157: Puerto Rico
A158: 00674 | B158: MANATI | C158: PR | D158: Puerto Rico
A159: 00606 | B159: MARICAO | C159: PR | D159: Puerto Rico
A160: 00707 | B160: MAUNABO | C160: PR | D160: Puerto Rico
A161: 00636 | B161: ROSARIO | C161: PR | D161: Puerto Rico
A162: 00680 | B162: MAYAGUEZ | C162: PR | D162: Puerto Rico
A163: 00681 | B163: MAYAGUEZ | C163: PR | D163: Puerto Rico
A164: 00682 | B164: MAYAGUEZ | C164: PR | D164: Puerto Rico
A165: 00715 | B165: MERCEDITA | C165: PR | D165: Puerto Rico
A166: 00676 | B166: MOCA | C166: PR | D166: Puerto Rico
A167: 00687 | B167: MOROVIS | C167: PR | D167: Puerto Rico
A168: 00718 | B168: NAGUABO | C168: PR | D168: Puerto Rico
A169: 00719 | B169: NARANJITO | C169: PR | D169: Puerto Rico
A170: 00720 | B170: OROCOVIS | C170: PR | D170: Puerto Rico
A171: 00723 | B171: PATILLAS | C171: PR | D171: Puerto Rico
A172: 00624 | B172: PENUELAS | C172: PR | D172: Puerto Rico
A173: 00716 | B173: PONCE | C173: PR | D173: Puerto Rico
A174: 00717 | B174: PONCE | C174: PR | D174: Puerto Rico
A175: 00730 | B175: PONCE | C175: PR | D175: Puerto Rico
A176: 00731 | B176: PONCE | C176: PR | D176: Puerto Rico
A177: 00732 | B177: PONCE | C177: PR | D177: Puerto Rico
A178: 00733 | B178: PONCE | C178: PR | D178: Puerto Rico
A179: 00734 | B179: PONCE | C179: PR | D179: Puerto Rico
A180: 00740 | B180: PUERTO REAL | C180: PR | D180: Puerto Rico
A181: 00741 | B181: PUNTA SANTIAGO | C181: PR | D181: Puerto Rico
A182: 00678 | B182: QUEBRADILLAS | C182: PR | D182: Puerto Rico
A183: 00677 | B183: RINCON | C183: PR | D183: Puerto Rico
A184: 00744 | B184: RIO BLANCO | C184: PR | D184: Puerto Rico
A185: 00721 | B185: PALMER | C185: PR | D185: Puerto Rico
A186: 00745 | B186: RIO GRANDE | C186: PR | D186: Puerto Rico
A187: 00637 | B187: SABANA GRANDE | C187: PR | D187: Puerto Rico
A188: 00688 | B188: SABANA HOYOS | C188: PR | D188: Puerto Rico
A189: 00952 | B189: SABANA SECA | C189: PR | D189: Puerto Rico
A190: 00751 | B190: SALINAS | C190: PR | D190: Puerto Rico
A191: 00690 | B191: SAN ANTONIO | C191: PR | D191: Puerto Rico
A192: 00683 | B192: SAN GERMAN | C192: PR | D192: Puerto Rico
A193: 00901 | B193: SAN JUAN | C193: PR | D193: Puerto Rico
A194: 00902 | B194: SAN JUAN | C194: PR | D194: Puerto Rico
A195: 00906 | B195: SAN JUAN | C195: PR | D195: Puerto Rico
A196: 00907 | B196: SAN JUAN | C196: PR | D196: Puerto Rico
A197: 00908 | B197: SAN JUAN | C197: PR | D197: Puerto Rico
A198: 00909 | B198: SAN JUAN | C198: PR | D198: Puerto Rico
A199: 00910 | B199: SAN JUAN | C199: PR | D199: Puerto Rico
A200: 00911 | B200: SAN JUAN | C200: PR | D200: Puerto Rico
A201: 00912 | B201: SAN JUAN | C201: PR | D201: Puerto Rico
... 4299 more rows

Sheet FMV Regression (hidden)
A1: FMV Regression Data - EV Fleet Procurement Analysis Tool
A3: BEV | H3: R-sq = .96
B4: Coefficient | C4: Standard Error | D4: t | E4: P>|t| | F4: 95% confidence interval
A5: age | B5: -1191.05 | C5: 881.9949 | D5: -1.35 | E5: 0.179 | F5: -2935.72 | G5: 553.6236
A6: agesq | B6: -131.283 | C6: 163.1746 | D6: -0.8 | E6: 0.423 | F6: -454.058 | G6: 191.4928
A7: msrp | B7: 0.810772 | C7: 0.020652 | D7: 39.26 | E7: 0 | F7: 0.76992 | G7: 0.851624
A8: all_elec_range | B8: 0
A9: mileage | B9: -0.18229 | C9: 0.050379 | D9: -3.62 | E9: 0 | F9: -0.28195 | G9: -0.08264
A10: constant | B10: 0
B11: INTERPRETATION: 1 unit change in these variables (age, age-squared, etc) results in a change in FMV price of coefficient
A13: PHEV | H13: R-sq = 0.98
B14: Coefficient | C14: Standard Error | D14: t | E14: P>|t| | F14: 95% confidence interval
A15: age | B15: -3764 | C15: 294.8351 | D15: -12.06 | E15: 0 | F15: -4138.964 | G15: -2972.855
A16: agesq | B16: 433 | C16: 73.93216 | D16: 6.01 | E16: 0 | F16: 298.2235 | G16: 590.6342
A17: msrp | B17: 0.75 | C17: 0.8015684 | D17: -4.33 | E17: 0 | F17: -5.052855 | G17: -1.882555
A18: all_elec_range | B18: 0 | C18: 86.58862 | D18: 3.8 | E18: 0 | F18: 157.6612 | G18: 500.1297
A19: mileage | B19: -0.076 | C19: 0.0115792 | D19: -6.25 | E19: 0 | F19: -0.0952357 | G19: -0.0494383
A20: _cons | B20: 0
B21: INTERPRETATION: 1 unit change in these variables (age, age-squared, etc) results in a change in FMV price of coefficient
A23: Gasoline (with MPG) | H23: R-sq = 0.98
B24: Coefficient | C24: Standard Error | D24: t | E24: P>|t| | F24: 95% confidence interval
A25: age | B25: -1013.43 | C25: 354.8791 | D25: -2.86 | E25: 0.005 | F25: -1713.94 | G25: -312.919
A26: agesq | B26: -158.85 | C26: 95.22333 | D26: -1.67 | E26: 0.097 | F26: -346.814 | G26: 29.1147
A27: msrp | B27: 0.905763 | C27: 0.017011 | D27: 53.25 | E27: 0 | F27: 0.872184 | G27: 0.939342
A28: mpg | B28: 0
A29: mileage | B29: -0.0093 | C29: 0.009258 | D29: -1 | E29: 0.317 | F29: -0.02757 | G29: 0.008974
A30: _cons | B30: 0
B31: INTERPRETATION: 1 unit change in these variables (age, age-squared, etc) results in a change in FMV price of coefficient

Sheet Sensitivity Tables (hidden)
A1: Sensitivity Data Tables - EV Fleet Procurement Analysis Tool
A5: Sensitivity Analysis #01
A6: =VLOOKUP(_xlfn.NUMBERVALUE(RIGHT(A5, 2)), Sensitivity_Summary, 2,FALSE) -> Electricity Cost ($/kWh)
B7: =Base_V1_Type_Ex&" (Baseline)" -> 2017 Chevrolet Cruze ICE (Baseline) | E7: =Comp_V1_Type_Ex&" (Comparison)" -> 2017 Chevrolet Bolt EV BEV (Comparison)
A8: Scenario | B8: Nominal Cost per Mile | C8: NPV Cost / Mile | D8: Lifecycle CO2 (lbs/mile) | E8: Nominal Cost per Mile | F8: NPV Cost / Mile | G8: Lifecycle CO2 (lbs/mile)
A9: =INDIRECT(VLOOKUP(_xlfn.NUMBERVALUE(RIGHT(A5,2)),Sensitivity_Summary,7,FALSE)) -> 0.122 | B9: =_xlfn.NUMBERVALUE('Results Tables'!$C$29) -> 0.4227005601 | C9: =Results!$M$17 -> 0.4227005601 | D9: ='Environmental Model'!$B$18 -> 0.7122042101 | E9: =_xlfn.NUMBERVALUE('Results Tables'!$D$29) -> 0.4067524049 | F9: =Results!$N$17 -> 0.4067524049 | G9: ='Environmental Model'!$C$18 -> 0.2823162808
A10: =sensitivity_01_value_min -> 0.09 | B10: 0.4227005601 | C10: 0.4227005601 | D10: 0.7122042101 | E10: 0.39708869 | F10: 0.39708869 | G10: 0.2823162808
A11: =A12-($A$19-$A$10)/9 -> 0.1044444444 | B11: 0.4227005601 | C11: 0.4227005601 | D11: 0.7122042101 | E11: 0.4014507835 | F11: 0.4014507835 | G11: 0.2823162808
A12: =A13-($A$19-$A$10)/9 -> 0.1188888889 | B12: 0.4227005601 | C12: 0.4227005601 | D12: 0.7122042101 | E12: 0.405812877 | F12: 0.405812877 | G12: 0.2823162808
A13: 0.1333333333 | B13: 0.4227005601 | C13: 0.4227005601 | D13: 0.7122042101 | E13: 0.4101749706 | F13: 0.4101749706 | G13: 0.2823162808
A14: 0.1477777778 | B14: 0.4227005601 | C14: 0.4227005601 | D14: 0.7122042101 | E14: 0.4145370641 | F14: 0.4145370641 | G14: 0.2823162808
A15: 0.1622222222 | B15: 0.4227005601 | C15: 0.4227005601 | D15: 0.7122042101 | E15: 0.4188991577 | F15: 0.4188991577 | G15: 0.2823162808
A16: 0.1766666667 | B16: 0.4227005601 | C16: 0.4227005601 | D16: 0.7122042101 | E16: 0.4232612512 | F16: 0.4232612512 | G16: 0.2823162808
A17: 0.1911111111 | B17: 0.4227005601 | C17: 0.4227005601 | D17: 0.7122042101 | E17: 0.4276233448 | F17: 0.4276233448 | G17: 0.2823162808
A18: 0.2055555556 | B18: 0.4227005601 | C18: 0.4227005601 | D18: 0.7122042101 | E18: 0.4319854383 | F18: 0.4319854383 | G18: 0.2823162808
A19: =sensitivity_01_value_max -> 0.22 | B19: 0.4227005601 | C19: 0.4227005601 | D19: 0.7122042101 | E19: 0.4363475319 | F19: 0.4363475319 | G19: 0.2823162808
A21: Sensitivity Analysis #02
A22: =VLOOKUP(_xlfn.NUMBERVALUE(RIGHT(A21, 2)), Sensitivity_Summary, 2,FALSE) -> Gasoline Cost ($/Gallon)
B23: =Base_V1_Type_Ex&" (Baseline)" -> 2017 Chevrolet Cruze ICE (Baseline) | E23: =Comp_V1_Type_Ex&" (Comparison)" -> 2017 Chevrolet Bolt EV BEV (Comparison)
A24: Scenario | B24: Nominal Cost per Mile | C24: NPV Cost / Mile | D24: Lifecycle CO2 (lbs/mile) | E24: Nominal Cost per Mile | F24: NPV Cost / Mile | G24: Lifecycle CO2 (lbs/mile)
A25: =INDIRECT(VLOOKUP(_xlfn.NUMBERVALUE(RIGHT(A21,2)),Sensitivity_Summary,7,FALSE)) -> 2.312 | B25: =_xlfn.NUMBERVALUE('Results Tables'!$C$29) -> 0.4227005601 | C25: =Results!$M$17 -> 0.4227005601 | D25: ='Environmental Model'!$B$18 -> 0.7122042101 | E25: =_xlfn.NUMBERVALUE('Results Tables'!$D$29) -> 0.4067524049 | F25: =Results!$N$17 -> 0.4067524049 | G25: ='Environmental Model'!$C$18 -> 0.2823162808
A26: =sensitivity_02_value_min -> 2 | B26: 0.4112241018 | C26: 0.4112241018 | D26: 0.7122042101 | E26: 0.4067524049 | F26: 0.4067524049 | G26: 0.2823162808
A27: =A28-($A$35-$A$26)/9 -> 2.222222222 | B27: 0.4193982174 | C27: 0.4193982174 | D27: 0.7122042101 | E27: 0.4067524049 | F27: 0.4067524049 | G27: 0.2823162808
A28: =A29-($A$35-$A$26)/9 -> 2.444444444 | B28: 0.427572333 | C28: 0.427572333 | D28: 0.7122042101 | E28: 0.4067524049 | F28: 0.4067524049 | G28: 0.2823162808
A29: 2.666666667 | B29: 0.4357464486 | C29: 0.4357464486 | D29: 0.7122042101 | E29: 0.4067524049 | F29: 0.4067524049 | G29: 0.2823162808
A30: 2.888888889 | B30: 0.4439205641 | C30: 0.4439205641 | D30: 0.7122042101 | E30: 0.4067524049 | F30: 0.4067524049 | G30: 0.2823162808
A31: 3.111111111 | B31: 0.4520946797 | C31: 0.4520946797 | D31: 0.7122042101 | E31: 0.4067524049 | F31: 0.4067524049 | G31: 0.2823162808
A32: 3.333333333 | B32: 0.4602687953 | C32: 0.4602687953 | D32: 0.7122042101 | E32: 0.4067524049 | F32: 0.4067524049 | G32: 0.2823162808
A33: 3.555555556 | B33: 0.4684429109 | C33: 0.4684429109 | D33: 0.7122042101 | E33: 0.4067524049 | F33: 0.4067524049 | G33: 0.2823162808
A34: 3.777777778 | B34: 0.4766170264 | C34: 0.4766170264 | D34: 0.7122042101 | E34: 0.4067524049 | F34: 0.4067524049 | G34: 0.2823162808
A35: =sensitivity_02_value_max -> 4 | B35: 0.484791142 | C35: 0.484791142 | D35: 0.7122042101 | E35: 0.4067524049 | F35: 0.4067524049 | G35: 0.2823162808
A37: Sensitivity Analysis #03
A38: =VLOOKUP(_xlfn.NUMBERVALUE(RIGHT(A37, 2)), Sensitivity_Summary, 2,FALSE) -> Baseline Annual Vehicle Mileage (VMT/Year)
B39: =Base_V1_Type_Ex&" (Baseline)" -> 2017 Chevrolet Cruze ICE (Baseline) | E39: =Comp_V1_Type_Ex&" (Comparison)" -> 2017 Chevrolet Bolt EV BEV (Comparison)
A40: Scenario | B40: Nominal Cost per Mile | C40: NPV Cost / Mile | D40: Lifecycle CO2 (lbs/mile) | E40: Nominal Cost per Mile | F40: NPV Cost / Mile | G40: Lifecycle CO2 (lbs/mile)
A41: =INDIRECT(VLOOKUP(_xlfn.NUMBERVALUE(RIGHT(A37,2)),Sensitivity_Summary,7,FALSE)) -> 15000 | B41: =_xlfn.NUMBERVALUE('Results Tables'!$C$29) -> 0.4227005601 | C41: =Results!$M$17 -> 0.4227005601 | D41: ='Environmental Model'!$B$18 -> 0.7122042101 | E41: =_xlfn.NUMBERVALUE('Results Tables'!$D$29) -> 0.4067524049 | F41: =Results!$N$17 -> 0.4067524049 | G41: ='Environmental Model'!$C$18 -> 0.2823162808
A42: =sensitivity_03_value_min -> 5000 | B42: 0.9005987061 | C42: 0.9005987061 | D42: 0.7122042101 | E42: 0.4067524049 | F42: 0.4067524049 | G42: 0.2823162808
A43: =A44-($A$51-$A$42)/9 -> 7222.222222 | B43: 0.68006589 | C43: 0.68006589 | D43: 0.7122042101 | E43: 0.4067524049 | F43: 0.4067524049 | G43: 0.2823162808
A44: =A45-($A$51-$A$42)/9 -> 9444.444444 | B44: 0.5632979655 | C44: 0.5632979655 | D44: 0.7122042101 | E44: 0.4067524049 | F44: 0.4067524049 | G44: 0.2823162808
A45: 11666.66667 | B45: 0.4910004382 | C45: 0.4910004382 | D45: 0.7122042101 | E45: 0.4067524049 | F45: 0.4067524049 | G45: 0.2823162808
A46: 13888.88889 | B46: 0.4418272844 | C46: 0.4418272844 | D46: 0.7122042101 | E46: 0.4067524049 | F46: 0.4067524049 | G46: 0.2823162808
A47: 16111.11111 | B47: 0.4062095918 | C47: 0.4062095918 | D47: 0.7122042101 | E47: 0.4067524049 | F47: 0.4067524049 | G47: 0.2823162808
A48: 18333.33333 | B48: 0.379217916 | C48: 0.379217916 | D48: 0.7122042101 | E48: 0.4067524049 | F48: 0.4067524049 | G48: 0.2823162808
A49: 20555.55556 | B49: 0.3580544601 | C49: 0.3580544601 | D49: 0.7122042101 | E49: 0.4067524049 | F49: 0.4067524049 | G49: 0.2823162808
A50: 22777.77778 | B50: 0.3410132466 | C50: 0.3410132466 | D50: 0.7122042101 | E50: 0.4067524049 | F50: 0.4067524049 | G50: 0.2823162808
A51: =sensitivity_03_value_max -> 25000 | B51: 0.3269948641 | C51: 0.3269948641 | D51: 0.7122042101 | E51: 0.4067524049 | F51: 0.4067524049 | G51: 0.2823162808
A53: Sensitivity Analysis #04
A54: =VLOOKUP(_xlfn.NUMBERVALUE(RIGHT(A53, 2)), Sensitivity_Summary, 2,FALSE) -> Comparison Annual Vehicle Mileage (VMT/Year)
B55: =Base_V1_Type_Ex&" (Baseline)" -> 2017 Chevrolet Cruze ICE (Baseline) | E55: =Comp_V1_Type_Ex&" (Comparison)" -> 2017 Chevrolet Bolt EV BEV (Comparison)
A56: Scenario | B56: Nominal Cost per Mile | C56: NPV Cost / Mile | D56: Lifecycle CO2 (lbs/mile) | E56: Nominal Cost per Mile | F56: NPV Cost / Mile | G56: Lifecycle CO2 (lbs/mile)
A57: =INDIRECT(VLOOKUP(_xlfn.NUMBERVALUE(RIGHT(A53,2)),Sensitivity_Summary,7,FALSE)) -> 15000 | B57: =_xlfn.NUMBERVALUE('Results Tables'!$C$29) -> 0.4227005601 | C57: =Results!$M$17 -> 0.4227005601 | D57: ='Environmental Model'!$B$18 -> 0.7122042101 | E57: =_xlfn.NUMBERVALUE('Results Tables'!$D$29) -> 0.4067524049 | F57: =Results!$N$17 -> 0.4067524049 | G57: ='Environmental Model'!$C$18 -> 0.2823162808
A58: =sensitivity_04_value_min -> 5000 | B58: 0.4227005601 | C58: 0.4227005601 | D58: 0.7122042101 | E58: 0.8050507191 | F58: 0.8050507191 | G58: 0.2823162808
A59: =A60-($A$67-$A$58)/9 -> 7222.222222 | B59: 0.4227005601 | C59: 0.4227005601 | D59: 0.7122042101 | E59: 0.6277074145 | F59: 0.6277074145 | G59: 0.2823162808
A60: =A61-($A$67-$A$58)/9 -> 9444.444444 | B60: 0.4227005601 | C60: 0.4227005601 | D60: 0.7122042101 | E60: 0.5315388487 | F60: 0.5315388487 | G60: 0.2823162808
A61: 11666.66667 | B61: 0.4227005601 | C61: 0.4227005601 | D61: 0.7122042101 | E61: 0.4696823552 | F61: 0.4696823552 | G61: 0.2823162808
A62: 13888.88889 | B62: 0.4227005601 | C62: 0.4227005601 | D62: 0.7122042101 | E62: 0.4251352177 | F62: 0.4251352177 | G62: 0.2823162808
A63: 16111.11111 | B63: 0.4227005601 | C63: 0.4227005601 | D63: 0.7122042101 | E63: 0.3901306011 | F63: 0.3901306011 | G63: 0.2823162808
A64: 18333.33333 | B64: 0.4227005601 | C64: 0.4227005601 | D64: 0.7122042101 | E64: 0.3605401618 | F64: 0.3605401618 | G64: 0.2823162808
A65: 20555.55556 | B65: 0.4227005601 | C65: 0.4227005601 | D65: 0.7122042101 | E65: 0.332541887 | F65: 0.332541887 | G65: 0.2823162808
A66: 22777.77778 | B66: 0.4227005601 | C66: 0.4227005601 | D66: 0.7122042101 | E66: 0.3082107572 | F66: 0.3082107572 | G66: 0.2823162808
A67: =sensitivity_04_value_max -> 25000 | B67: 0.4227005601 | C67: 0.4227005601 | D67: 0.7122042101 | E67: 0.2882051616 | F67: 0.2882051616 | G67: 0.2823162808

Sheet Lists_Hidden (hidden)
A1: Lists (Hidden Tab) - EV Fleet Procurement Analysis Tool
A3: Ownership Structures | B3: Pricing Approaches | C3: Input Fields
A4: Purchase (Cash) | B4: MSRP Less Discounts | C4: Input Field Name | D4: Field Range Name
A5: Purchase (Loan) | B5: Dealer Cost Plus Markup | C5: =IF(IFERROR(FIND("Comp",D5,1)>0,FALSE),"Comparison "&OFFSET(INDIRECT(D5),0,-3),IF(IFERROR(FIND("Base",D5,1)>0,FALSE),"Baseline "&OFFSET(INDIRECT(D5),0,-3),OFFSET(INDIRECT(D5),0,-1))) -> Electricity Cost ($/kWh) | D5: Electricity_Price
A6: FMV (Closed-End) Lease | C6: =IF(IFERROR(FIND("Comp",D6,1)>0,FALSE),"Comparison "&OFFSET(INDIRECT(D6),0,-3),IF(IFERROR(FIND("Base",D6,1)>0,FALSE),"Baseline "&OFFSET(INDIRECT(D6),0,-3),OFFSET(INDIRECT(D6),0,-1))) -> Gasoline Cost ($/Gallon) | D6: Gasoline_Price
A7: FMV (Closed-End) Lease w/ Cash Purchase | C7: Cost of Carbon ($/Ton) | D7: Carbon_Price
A8: FMV (Closed-End) Lease w/ Loan Purchase | C8: Inflation Rate (Excluding Fuel) (%/Year) | D8: Inflation_Rate_General
A9: TRAC (Open-End) Lease | C9: Baseline Number of Level 2 EV Stations Needed (#) | D9: Base_Num_Stations
A10: TRAC (Open-End) Lease w/ Cash Purchase | C10: Baseline Equipment and Installation Cost ($/Station) | D10: Base_Station_Cost
A11: TRAC (Open-End) Lease w/ Loan Purchase | C11: Baseline Maintenance Cost ($/Station/Year) | D11: Base_Station_Maint_Cost
A12: Tax-Exempt Lease Purchase (Cash) | C12: Baseline Value of Negotiated Discounts off MSRP ($/Vehicle) | D12: Base_V1_Discounts
C13: Baseline Down Payment ($/Vehicle) | D13: Base_V1_Down_Payment
C14: Baseline Value of Federal Tax Incentives ($/Vehicle) | D14: Base_V1_Federal_Tax_Incentives
C15: Baseline Fuel Economy Electric City (MPGe) | D15: Base_V1_Fuel_Economy_Electric_City
C16: Baseline Fuel Economy Electric Highway (MPGe) | D16: Base_V1_Fuel_Economy_Electric_Hwy
C17: Baseline Fuel Economy Gas City (MPG) | D17: Base_V1_Fuel_Economy_Gas_City
C18: Baseline Fuel Economy Gas Highway (MPG) | D18: Base_V1_Fuel_Economy_Gas_Hwy
C19: Baseline Initial Tax, Title, and Registration Cost ($/Vehicle) | D19: Base_V1_Initial_Taxes_Fees
C20: Baseline Cost to Insure ($/Year) | D20: Base_V1_Insurance_Cost
C21: Baseline Acquisition Fee ($/Vehicle) | D21: Base_V1_Lease_Acquisition_Fee
C22: Baseline Lease Interest Rate (APR - %) | D22: Base_V1_Lease_APR
C23: Baseline Disposition Charge ($/Vehicle) | D23: Base_V1_Lease_Disposition_Fee
C24: Baseline Excess Mileage Cost ($/Mile) | D24: Base_V1_Lease_Mileage_Cost
C25: Baseline Mileage Included (Closed-End Only) | D25: Base_V1_Lease_Mileage_Inc
C26: Baseline Money Factor (#) | D26: Base_V1_Lease_Money_Factor
C27: Baseline Residual Value ($/Vehicle) | D27: Base_V1_Lease_Residual_Price
C28: Baseline Lease Term (Years) | D28: Base_V1_Lease_Term
C29: Baseline Dealer Triple Net Price ($/Vehicle) | D29: Base_V1_List_Price
C30: Baseline Dealer Markup ($/Vehicle) | D30: Base_V1_List_Price_Markup
C31: Baseline Loan Interest Rate (APR - %) | D31: Base_V1_Loan_APR
C32: Baseline Loan Term (Years) | D32: Base_V1_Loan_Term
C33: Baseline Maintenance and Repair Cost - Years 1 - 5 ($/Mile) | D33: Base_V1_Maint_Repair_Cost_Year_1
C34: Baseline % of Annual Miles City Driving | D34: Base_V1_Miles_City
C35: Baseline % of Annual Miles on Gasoline | D35: Base_V1_Miles_Gas
C36: Baseline MSRP ($/Vehicle) | D36: Base_V1_MSRP
C37: Baseline Number of Vehicles to Procure (#) | D37: Base_V1_Num_Vehicles
C38: Baseline Value of Non-tax Incentives ($/Vehicle) | D38: Base_V1_Other_Incentives
C39: Baseline Maintenance and Repair Cost - Years 5+ ($/Mile) | D39: Base_V1_Maint_Repair_Cost_Year_5
C40: Baseline State Tax Incentive Cap ($) | D40: Base_V1_State_Tax_Incentive_Cap
C41: Baseline Value of State Tax Incentives ($/Vehicle) | D41: Base_V1_State_Tax_Incentives
C42: Baseline Tax Credits Can Be Monetized? (Y/N) | D42: Base_V1_Tax_Incentives_Monetized
C43: Baseline Recurring Taxes and Fees ($/Year) | D43: Base_V1_Taxes_Fees
C44: Baseline Annual Vehicle Mileage (VMT/Year) | D44: Base_V1_VMT
C45: Baseline Expected Years of Use/Ownership (Years) | D45: Base_V1_Years_Usage
C46: Comparison Number of Level 2 EV Stations Needed (#) | D46: Comp_Num_Stations
C47: Comparison Equipment and Installation Cost ($/Station) | D47: Comp_Station_Cost
C48: Comparison Maintenance Cost ($/Station/Year) | D48: Comp_Station_Maint_Cost
C49: Comparison Value of Negotiated Discounts off MSRP ($/Vehicle) | D49: Comp_V1_Discounts
C50: Comparison Down Payment ($/Vehicle) | D50: Comp_V1_Down_Payment
C51: Comparison Value of Federal Tax Credits ($/Vehicle) | D51: Comp_V1_Federal_Tax_Incentives
C52: Comparison Fuel Economy Electric City (MPGe) | D52: Comp_V1_Fuel_Economy_Electric_City
C53: Comparison Fuel Economy Electric Highway (MPGe) | D53: Comp_V1_Fuel_Economy_Electric_Hwy
C54: Comparison Fuel Economy Gas City (MPG) | D54: Comp_V1_Fuel_Economy_Gas_City
C55: Comparison Fuel Economy Gas Highway (MPG) | D55: Comp_V1_Fuel_Economy_Gas_Hwy
C56: Comparison Initial Tax, Title, and Registration Cost ($/Vehicle) | D56: Comp_V1_Initial_Taxes_Fees
C57: Comparison Cost to Insure ($/Year) | D57: Comp_V1_Insurance_Cost
C58: Comparison Acquisition Fee ($/Vehicle) | D58: Comp_V1_Lease_Acquisition_Fee
C59: Comparison Lease Interest Rate (APR - %) | D59: Comp_V1_Lease_APR
C60: Comparison Disposition Charge ($/Vehicle) | D60: Comp_V1_Lease_Disposition_Fee
C61: Comparison Excess Mileage Cost ($/Mile) | D61: Comp_V1_Lease_Mileage_Cost
C62: =IF(IFERROR(FIND("Comp",D62,1)>0,FALSE),"Comparison "&OFFSET(INDIRECT(D62),0,-3),IF(IFERROR(FIND("Base",D62,1)>0,FALSE),"Baseline "&OFFSET(INDIRECT(D62),0,-3),OFFSET(INDIRECT(D62),0,-1))) -> Comparison Mileage Included (Closed-End Only) | D62: Comp_V1_Lease_Mileage_Inc
C63: Comparison Money Factor (#) | D63: Comp_V1_Lease_Money_Factor
C64: Comparison Negotiated Residual Value ($/Vehicle) | D64: Comp_V1_Lease_Residual_Price
C65: Comparison Lease Term (Years) | D65: Comp_V1_Lease_Term
C66: Comparison Dealer List Price ($) | D66: Comp_V1_List_Price
C67: Comparison Markup ($) | D67: Comp_V1_List_Price_Markup
C68: Comparison Loan Interest Rate (APR - %) | D68: Comp_V1_Loan_APR
C69: Comparison Loan Term (Years) | D69: Comp_V1_Loan_Term
C70: Comparison Maintenance and Repair Cost - Years 1 - 5 ($/Mile) | D70: Comp_V1_Maint_Repair_Cost_Year_1
C71: Comparison % of Annual Miles City Driving | D71: Comp_V1_Miles_City
C72: Comparison % of Annual Miles on Gasoline | D72: Comp_V1_Miles_Gas
C73: Comparison MSRP ($) | D73: Comp_V1_MSRP
C74: Comparison Number of Vehicles to Procure (#) | D74: Comp_V1_Num_Vehicles
C75: Comparison Value of Non-tax Incentives ($/Vehicle) | D75: Comp_V1_Other_Incentives
C76: Comparison Maintenance and Repair Cost - Years 5+ ($/Mile) | D76: Comp_V1_Maint_Repair_Cost_Year_5
C77: Comparison State Tax Incentive Cap ($) | D77: Comp_V1_State_Tax_Incentive_Cap
C78: Comparison Value of State Tax Incentives ($/Vehicle) | D78: Comp_V1_State_Tax_Incentives
C79: Comparison Tax Credits Can Be Monetized? (Y/N) | D79: Comp_V1_Tax_Incentives_Monetized
C80: Comparison Recurring Taxes and Fees ($/Year) | D80: Comp_V1_Taxes_Fees
C81: Comparison Annual Vehicle Mileage (VMT/Year) | D81: Comp_V1_VMT
C82: Comparison Expected Years of Use/Ownership (Years) | D82: Comp_V1_Years_Usage

Sheet Dynamic_Lists_Hidden (hidden)
B1: Vehicle 1 Baseline Dynamic Lists | F1: Vehicle 2 Comparison Dynamic Lists
A2: Drivetrain | B2: Year | C2: Make | D2: Model | E2: Drivetrain | F2: Year | G2: Make | H2: Model
A3: =INDEX(List_Vehicle_DB_Drivetrain,MATCH(0,COUNTIF($A$2:A2,List_Vehicle_DB_Drivetrain),0)) -> BEV | B3: =INDEX(List_Vehicle_DB_Year,MATCH(0,COUNTIF($B$2:B2,List_Vehicle_DB_Year)+(List_Vehicle_DB_Drivetrain<>_Base_V1_Vehicle_Drivetrain),0)) -> *Custom | C3: =INDEX(List_Vehicle_DB_Make,MATCH(0,COUNTIF(C$2:$C2,List_Vehicle_DB_Make)+(List_Vehicle_DB_Drivetrain<>_Base_V1_Vehicle_Drivetrain)+(List_Vehicle_DB_Year<>_Base_V1_Vehicle_Year),0)) -> Chrysler | D3: =INDEX(List_Vehicle_DB_Model,MATCH(0,COUNTIF(D$2:$D2,List_Vehicle_DB_Model)+(List_Vehicle_DB_Drivetrain<>_Base_V1_Vehicle_Drivetrain)+(List_Vehicle_DB_Year<>_Base_V1_Vehicle_Year)++(List_Vehicle_DB_Make<>_Base_V1_Vehicle_Make),0)) -> Spark | E3: =INDEX(List_Vehicle_DB_Drivetrain,MATCH(0,COUNTIF(E$2:$E2,List_Vehicle_DB_Drivetrain),0)) -> BEV | F3: =INDEX(List_Vehicle_DB_Year,MATCH(0,COUNTIF($F$2:F2,List_Vehicle_DB_Year)+(List_Vehicle_DB_Drivetrain<>_Comp_V1_Vehicle_Drivetrain),0)) -> *Custom | G3: =INDEX(List_Vehicle_DB_Make,MATCH(0,COUNTIF($G$2:G2,List_Vehicle_DB_Make)+(List_Vehicle_DB_Drivetrain<>_Comp_V1_Vehicle_Drivetrain)+(List_Vehicle_DB_Year<>_Comp_V1_Vehicle_Year),0)) -> Mitsubishi | H3: =INDEX(List_Vehicle_DB_Model,MATCH(0,COUNTIF($H$2:H2,List_Vehicle_DB_Model)+(List_Vehicle_DB_Drivetrain<>_Comp_V1_Vehicle_Drivetrain)+(List_Vehicle_DB_Year<>_Comp_V1_Vehicle_Year)+(List_Vehicle_DB_Make<>_Comp_V1_Vehicle_Make),0)) -> Bolt EV
A4: =INDEX(List_Vehicle_DB_Drivetrain,MATCH(0,COUNTIF($A$2:A3,List_Vehicle_DB_Drivetrain),0)) -> ICE | B4: =INDEX(List_Vehicle_DB_Year,MATCH(0,COUNTIF($B$2:B3,List_Vehicle_DB_Year)+(List_Vehicle_DB_Drivetrain<>_Base_V1_Vehicle_Drivetrain),0)) -> 2016 | C4: =INDEX(List_Vehicle_DB_Make,MATCH(0,COUNTIF(C$2:$C3,List_Vehicle_DB_Make)+(List_Vehicle_DB_Drivetrain<>_Base_V1_Vehicle_Drivetrain)+(List_Vehicle_DB_Year<>_Base_V1_Vehicle_Year),0)) -> Ford | D4: =INDEX(List_Vehicle_DB_Model,MATCH(0,COUNTIF(D$2:$D3,List_Vehicle_DB_Model)+(List_Vehicle_DB_Drivetrain<>_Base_V1_Vehicle_Drivetrain)+(List_Vehicle_DB_Year<>_Base_V1_Vehicle_Year)++(List_Vehicle_DB_Make<>_Base_V1_Vehicle_Make),0)) -> Sonic | E4: =INDEX(List_Vehicle_DB_Drivetrain,MATCH(0,COUNTIF(E$2:$E3,List_Vehicle_DB_Drivetrain),0)) -> ICE | F4: =INDEX(List_Vehicle_DB_Year,MATCH(0,COUNTIF($F$2:F3,List_Vehicle_DB_Year)+(List_Vehicle_DB_Drivetrain<>_Comp_V1_Vehicle_Drivetrain),0)) -> 2016 | G4: =INDEX(List_Vehicle_DB_Make,MATCH(0,COUNTIF($G$2:G3,List_Vehicle_DB_Make)+(List_Vehicle_DB_Drivetrain<>_Comp_V1_Vehicle_Drivetrain)+(List_Vehicle_DB_Year<>_Comp_V1_Vehicle_Year),0)) -> Fiat | H4: =INDEX(List_Vehicle_DB_Model,MATCH(0,COUNTIF($H$2:H3,List_Vehicle_DB_Model)+(List_Vehicle_DB_Drivetrain<>_Comp_V1_Vehicle_Drivetrain)+(List_Vehicle_DB_Year<>_Comp_V1_Vehicle_Year)+(List_Vehicle_DB_Make<>_Comp_V1_Vehicle_Make),0)) -> 
A5: =INDEX(List_Vehicle_DB_Drivetrain,MATCH(0,COUNTIF($A$2:A4,List_Vehicle_DB_Drivetrain),0)) -> PHEV | B5: =INDEX(List_Vehicle_DB_Year,MATCH(0,COUNTIF($B$2:B4,List_Vehicle_DB_Year)+(List_Vehicle_DB_Drivetrain<>_Base_V1_Vehicle_Drivetrain),0)) -> 2017 | C5: =INDEX(List_Vehicle_DB_Make,MATCH(0,COUNTIF(C$2:$C4,List_Vehicle_DB_Make)+(List_Vehicle_DB_Drivetrain<>_Base_V1_Vehicle_Drivetrain)+(List_Vehicle_DB_Year<>_Base_V1_Vehicle_Year),0)) -> Hyundai | D5: =INDEX(List_Vehicle_DB_Model,MATCH(0,COUNTIF(D$2:$D4,List_Vehicle_DB_Model)+(List_Vehicle_DB_Drivetrain<>_Base_V1_Vehicle_Drivetrain)+(List_Vehicle_DB_Year<>_Base_V1_Vehicle_Year)++(List_Vehicle_DB_Make<>_Base_V1_Vehicle_Make),0)) -> Cruze | E5: =INDEX(List_Vehicle_DB_Drivetrain,MATCH(0,COUNTIF(E$2:$E4,List_Vehicle_DB_Drivetrain),0)) -> PHEV | F5: =INDEX(List_Vehicle_DB_Year,MATCH(0,COUNTIF($F$2:F4,List_Vehicle_DB_Year)+(List_Vehicle_DB_Drivetrain<>_Comp_V1_Vehicle_Drivetrain),0)) -> 2017 | G5: =INDEX(List_Vehicle_DB_Make,MATCH(0,COUNTIF($G$2:G4,List_Vehicle_DB_Make)+(List_Vehicle_DB_Drivetrain<>_Comp_V1_Vehicle_Drivetrain)+(List_Vehicle_DB_Year<>_Comp_V1_Vehicle_Year),0)) -> Kia | H5: =INDEX(List_Vehicle_DB_Model,MATCH(0,COUNTIF($H$2:H4,List_Vehicle_DB_Model)+(List_Vehicle_DB_Drivetrain<>_Comp_V1_Vehicle_Drivetrain)+(List_Vehicle_DB_Year<>_Comp_V1_Vehicle_Year)+(List_Vehicle_DB_Make<>_Comp_V1_Vehicle_Make),0)) -> 
A6: =INDEX(List_Vehicle_DB_Drivetrain,MATCH(0,COUNTIF($A$2:A5,List_Vehicle_DB_Drivetrain),0)) ->  | B6: =INDEX(List_Vehicle_DB_Year,MATCH(0,COUNTIF($B$2:B5,List_Vehicle_DB_Year)+(List_Vehicle_DB_Drivetrain<>_Base_V1_Vehicle_Drivetrain),0)) -> 2018 | C6: =INDEX(List_Vehicle_DB_Make,MATCH(0,COUNTIF(C$2:$C5,List_Vehicle_DB_Make)+(List_Vehicle_DB_Drivetrain<>_Base_V1_Vehicle_Drivetrain)+(List_Vehicle_DB_Year<>_Base_V1_Vehicle_Year),0)) -> Fiat | D6: =INDEX(List_Vehicle_DB_Model,MATCH(0,COUNTIF(D$2:$D5,List_Vehicle_DB_Model)+(List_Vehicle_DB_Drivetrain<>_Base_V1_Vehicle_Drivetrain)+(List_Vehicle_DB_Year<>_Base_V1_Vehicle_Year)++(List_Vehicle_DB_Make<>_Base_V1_Vehicle_Make),0)) -> Malibu | E6: =INDEX(List_Vehicle_DB_Drivetrain,MATCH(0,COUNTIF(E$2:$E5,List_Vehicle_DB_Drivetrain),0)) ->  | F6: =INDEX(List_Vehicle_DB_Year,MATCH(0,COUNTIF($F$2:F5,List_Vehicle_DB_Year)+(List_Vehicle_DB_Drivetrain<>_Comp_V1_Vehicle_Drivetrain),0)) ->  | G6: =INDEX(List_Vehicle_DB_Make,MATCH(0,COUNTIF($G$2:G5,List_Vehicle_DB_Make)+(List_Vehicle_DB_Drivetrain<>_Comp_V1_Vehicle_Drivetrain)+(List_Vehicle_DB_Year<>_Comp_V1_Vehicle_Year),0)) -> Chevrolet | H6: =INDEX(List_Vehicle_DB_Model,MATCH(0,COUNTIF($H$2:H5,List_Vehicle_DB_Model)+(List_Vehicle_DB_Drivetrain<>_Comp_V1_Vehicle_Drivetrain)+(List_Vehicle_DB_Year<>_Comp_V1_Vehicle_Year)+(List_Vehicle_DB_Make<>_Comp_V1_Vehicle_Make),0)) -> 
A7: =INDEX(List_Vehicle_DB_Drivetrain,MATCH(0,COUNTIF($A$2:A6,List_Vehicle_DB_Drivetrain),0)) ->  | B7: =INDEX(List_Vehicle_DB_Year,MATCH(0,COUNTIF($B$2:B6,List_Vehicle_DB_Year)+(List_Vehicle_DB_Drivetrain<>_Base_V1_Vehicle_Drivetrain),0)) ->  | C7: =INDEX(List_Vehicle_DB_Make,MATCH(0,COUNTIF(C$2:$C6,List_Vehicle_DB_Make)+(List_Vehicle_DB_Drivetrain<>_Base_V1_Vehicle_Drivetrain)+(List_Vehicle_DB_Year<>_Base_V1_Vehicle_Year),0)) -> Chevrolet | D7: =INDEX(List_Vehicle_DB_Model,MATCH(0,COUNTIF(D$2:$D6,List_Vehicle_DB_Model)+(List_Vehicle_DB_Drivetrain<>_Base_V1_Vehicle_Drivetrain)+(List_Vehicle_DB_Year<>_Base_V1_Vehicle_Year)++(List_Vehicle_DB_Make<>_Base_V1_Vehicle_Make),0)) -> Malibu Hybrid | E7: =INDEX(List_Vehicle_DB_Drivetrain,MATCH(0,COUNTIF(E$2:$E6,List_Vehicle_DB_Drivetrain),0)) ->  | F7: =INDEX(List_Vehicle_DB_Year,MATCH(0,COUNTIF($F$2:F6,List_Vehicle_DB_Year)+(List_Vehicle_DB_Drivetrain<>_Comp_V1_Vehicle_Drivetrain),0)) ->  | G7: =INDEX(List_Vehicle_DB_Make,MATCH(0,COUNTIF($G$2:G6,List_Vehicle_DB_Make)+(List_Vehicle_DB_Drivetrain<>_Comp_V1_Vehicle_Drivetrain)+(List_Vehicle_DB_Year<>_Comp_V1_Vehicle_Year),0)) -> Nissan | H7: =INDEX(List_Vehicle_DB_Model,MATCH(0,COUNTIF($H$2:H6,List_Vehicle_DB_Model)+(List_Vehicle_DB_Drivetrain<>_Comp_V1_Vehicle_Drivetrain)+(List_Vehicle_DB_Year<>_Comp_V1_Vehicle_Year)+(List_Vehicle_DB_Make<>_Comp_V1_Vehicle_Make),0)) -> 
A8: =INDEX(List_Vehicle_DB_Drivetrain,MATCH(0,COUNTIF($A$2:A7,List_Vehicle_DB_Drivetrain),0)) ->  | B8: =INDEX(List_Vehicle_DB_Year,MATCH(0,COUNTIF($B$2:B7,List_Vehicle_DB_Year)+(List_Vehicle_DB_Drivetrain<>_Base_V1_Vehicle_Drivetrain),0)) ->  | C8: =INDEX(List_Vehicle_DB_Make,MATCH(0,COUNTIF(C$2:$C7,List_Vehicle_DB_Make)+(List_Vehicle_DB_Drivetrain<>_Base_V1_Vehicle_Drivetrain)+(List_Vehicle_DB_Year<>_Base_V1_Vehicle_Year),0)) -> Volkswagen | D8: =INDEX(List_Vehicle_DB_Model,MATCH(0,COUNTIF(D$2:$D7,List_Vehicle_DB_Model)+(List_Vehicle_DB_Drivetrain<>_Base_V1_Vehicle_Drivetrain)+(List_Vehicle_DB_Year<>_Base_V1_Vehicle_Year)++(List_Vehicle_DB_Make<>_Base_V1_Vehicle_Make),0)) ->  | E8: =INDEX(List_Vehicle_DB_Drivetrain,MATCH(0,COUNTIF(E$2:$E7,List_Vehicle_DB_Drivetrain),0)) ->  | F8: =INDEX(List_Vehicle_DB_Year,MATCH(0,COUNTIF($F$2:F7,List_Vehicle_DB_Year)+(List_Vehicle_DB_Drivetrain<>_Comp_V1_Vehicle_Drivetrain),0)) ->  | G8: =INDEX(List_Vehicle_DB_Make,MATCH(0,COUNTIF($G$2:G7,List_Vehicle_DB_Make)+(List_Vehicle_DB_Drivetrain<>_Comp_V1_Vehicle_Drivetrain)+(List_Vehicle_DB_Year<>_Comp_V1_Vehicle_Year),0)) -> Hyundai | H8: =INDEX(List_Vehicle_DB_Model,MATCH(0,COUNTIF($H$2:H7,List_Vehicle_DB_Model)+(List_Vehicle_DB_Drivetrain<>_Comp_V1_Vehicle_Drivetrain)+(List_Vehicle_DB_Year<>_Comp_V1_Vehicle_Year)+(List_Vehicle_DB_Make<>_Comp_V1_Vehicle_Make),0)) -> 
A9: =INDEX(List_Vehicle_DB_Drivetrain,MATCH(0,COUNTIF($A$2:A8,List_Vehicle_DB_Drivetrain),0)) ->  | B9: =INDEX(List_Vehicle_DB_Year,MATCH(0,COUNTIF($B$2:B8,List_Vehicle_DB_Year)+(List_Vehicle_DB_Drivetrain<>_Base_V1_Vehicle_Drivetrain),0)) ->  | C9: =INDEX(List_Vehicle_DB_Make,MATCH(0,COUNTIF(C$2:$C8,List_Vehicle_DB_Make)+(List_Vehicle_DB_Drivetrain<>_Base_V1_Vehicle_Drivetrain)+(List_Vehicle_DB_Year<>_Base_V1_Vehicle_Year),0)) -> Toyota | D9: =INDEX(List_Vehicle_DB_Model,MATCH(0,COUNTIF(D$2:$D8,List_Vehicle_DB_Model)+(List_Vehicle_DB_Drivetrain<>_Base_V1_Vehicle_Drivetrain)+(List_Vehicle_DB_Year<>_Base_V1_Vehicle_Year)++(List_Vehicle_DB_Make<>_Base_V1_Vehicle_Make),0)) ->  | E9: =INDEX(List_Vehicle_DB_Drivetrain,MATCH(0,COUNTIF(E$2:$E8,List_Vehicle_DB_Drivetrain),0)) ->  | F9: =INDEX(List_Vehicle_DB_Year,MATCH(0,COUNTIF($F$2:F8,List_Vehicle_DB_Year)+(List_Vehicle_DB_Drivetrain<>_Comp_V1_Vehicle_Drivetrain),0)) ->  | G9: =INDEX(List_Vehicle_DB_Make,MATCH(0,COUNTIF($G$2:G8,List_Vehicle_DB_Make)+(List_Vehicle_DB_Drivetrain<>_Comp_V1_Vehicle_Drivetrain)+(List_Vehicle_DB_Year<>_Comp_V1_Vehicle_Year),0)) -> Ford | H9: =INDEX(List_Vehicle_DB_Model,MATCH(0,COUNTIF($H$2:H8,List_Vehicle_DB_Model)+(List_Vehicle_DB_Drivetrain<>_Comp_V1_Vehicle_Drivetrain)+(List_Vehicle_DB_Year<>_Comp_V1_Vehicle_Year)+(List_Vehicle_DB_Make<>_Comp_V1_Vehicle_Make),0)) -> 
A10: =INDEX(List_Vehicle_DB_Drivetrain,MATCH(0,COUNTIF($A$2:A9,List_Vehicle_DB_Drivetrain),0)) ->  | B10: =INDEX(List_Vehicle_DB_Year,MATCH(0,COUNTIF($B$2:B9,List_Vehicle_DB_Year)+(List_Vehicle_DB_Drivetrain<>_Base_V1_Vehicle_Drivetrain),0)) ->  | C10: =INDEX(List_Vehicle_DB_Make,MATCH(0,COUNTIF(C$2:$C9,List_Vehicle_DB_Make)+(List_Vehicle_DB_Drivetrain<>_Base_V1_Vehicle_Drivetrain)+(List_Vehicle_DB_Year<>_Base_V1_Vehicle_Year),0)) -> Kia | D10: =INDEX(List_Vehicle_DB_Model,MATCH(0,COUNTIF(D$2:$D9,List_Vehicle_DB_Model)+(List_Vehicle_DB_Drivetrain<>_Base_V1_Vehicle_Drivetrain)+(List_Vehicle_DB_Year<>_Base_V1_Vehicle_Year)++(List_Vehicle_DB_Make<>_Base_V1_Vehicle_Make),0)) ->  | E10: =INDEX(List_Vehicle_DB_Drivetrain,MATCH(0,COUNTIF(E$2:$E9,List_Vehicle_DB_Drivetrain),0)) ->  | F10: =INDEX(List_Vehicle_DB_Year,MATCH(0,COUNTIF($F$2:F9,List_Vehicle_DB_Year)+(List_Vehicle_DB_Drivetrain<>_Comp_V1_Vehicle_Drivetrain),0)) ->  | G10: =INDEX(List_Vehicle_DB_Make,MATCH(0,COUNTIF($G$2:G9,List_Vehicle_DB_Make)+(List_Vehicle_DB_Drivetrain<>_Comp_V1_Vehicle_Drivetrain)+(List_Vehicle_DB_Year<>_Comp_V1_Vehicle_Year),0)) -> Volkswagen | H10: =INDEX(List_Vehicle_DB_Model,MATCH(0,COUNTIF($H$2:H9,List_Vehicle_DB_Model)+(List_Vehicle_DB_Drivetrain<>_Comp_V1_Vehicle_Drivetrain)+(List_Vehicle_DB_Year<>_Comp_V1_Vehicle_Year)+(List_Vehicle_DB_Make<>_Comp_V1_Vehicle_Make),0)) -> 
A11: =INDEX(List_Vehicle_DB_Drivetrain,MATCH(0,COUNTIF($A$2:A10,List_Vehicle_DB_Drivetrain),0)) ->  | B11: =INDEX(List_Vehicle_DB_Year,MATCH(0,COUNTIF($B$2:B10,List_Vehicle_DB_Year)+(List_Vehicle_DB_Drivetrain<>_Base_V1_Vehicle_Drivetrain),0)) ->  | C11: =INDEX(List_Vehicle_DB_Make,MATCH(0,COUNTIF(C$2:$C10,List_Vehicle_DB_Make)+(List_Vehicle_DB_Drivetrain<>_Base_V1_Vehicle_Drivetrain)+(List_Vehicle_DB_Year<>_Base_V1_Vehicle_Year),0)) -> smart | D11: =INDEX(List_Vehicle_DB_Model,MATCH(0,COUNTIF(D$2:$D10,List_Vehicle_DB_Model)+(List_Vehicle_DB_Drivetrain<>_Base_V1_Vehicle_Drivetrain)+(List_Vehicle_DB_Year<>_Base_V1_Vehicle_Year)++(List_Vehicle_DB_Make<>_Base_V1_Vehicle_Make),0)) ->  | E11: =INDEX(List_Vehicle_DB_Drivetrain,MATCH(0,COUNTIF(E$2:$E10,List_Vehicle_DB_Drivetrain),0)) ->  | F11: =INDEX(List_Vehicle_DB_Year,MATCH(0,COUNTIF($F$2:F10,List_Vehicle_DB_Year)+(List_Vehicle_DB_Drivetrain<>_Comp_V1_Vehicle_Drivetrain),0)) ->  | G11: =INDEX(List_Vehicle_DB_Make,MATCH(0,COUNTIF($G$2:G10,List_Vehicle_DB_Make)+(List_Vehicle_DB_Drivetrain<>_Comp_V1_Vehicle_Drivetrain)+(List_Vehicle_DB_Year<>_Comp_V1_Vehicle_Year),0)) ->  | H11: =INDEX(List_Vehicle_DB_Model,MATCH(0,COUNTIF($H$2:H10,List_Vehicle_DB_Model)+(List_Vehicle_DB_Drivetrain<>_Comp_V1_Vehicle_Drivetrain)+(List_Vehicle_DB_Year<>_Comp_V1_Vehicle_Year)+(List_Vehicle_DB_Make<>_Comp_V1_Vehicle_Make),0)) -> 
A12: =INDEX(List_Vehicle_DB_Drivetrain,MATCH(0,COUNTIF($A$2:A11,List_Vehicle_DB_Drivetrain),0)) ->  | B12: =INDEX(List_Vehicle_DB_Year,MATCH(0,COUNTIF($B$2:B11,List_Vehicle_DB_Year)+(List_Vehicle_DB_Drivetrain<>_Base_V1_Vehicle_Drivetrain),0)) ->  | C12: =INDEX(List_Vehicle_DB_Make,MATCH(0,COUNTIF(C$2:$C11,List_Vehicle_DB_Make)+(List_Vehicle_DB_Drivetrain<>_Base_V1_Vehicle_Drivetrain)+(List_Vehicle_DB_Year<>_Base_V1_Vehicle_Year),0)) ->  | D12: =INDEX(List_Vehicle_DB_Model,MATCH(0,COUNTIF(D$2:$D11,List_Vehicle_DB_Model)+(List_Vehicle_DB_Drivetrain<>_Base_V1_Vehicle_Drivetrain)+(List_Vehicle_DB_Year<>_Base_V1_Vehicle_Year)++(List_Vehicle_DB_Make<>_Base_V1_Vehicle_Make),0)) ->  | E12: =INDEX(List_Vehicle_DB_Drivetrain,MATCH(0,COUNTIF(E$2:$E11,List_Vehicle_DB_Drivetrain),0)) ->  | F12: =INDEX(List_Vehicle_DB_Year,MATCH(0,COUNTIF($F$2:F11,List_Vehicle_DB_Year)+(List_Vehicle_DB_Drivetrain<>_Comp_V1_Vehicle_Drivetrain),0)) ->  | G12: =INDEX(List_Vehicle_DB_Make,MATCH(0,COUNTIF($G$2:G11,List_Vehicle_DB_Make)+(List_Vehicle_DB_Drivetrain<>_Comp_V1_Vehicle_Drivetrain)+(List_Vehicle_DB_Year<>_Comp_V1_Vehicle_Year),0)) ->  | H12: =INDEX(List_Vehicle_DB_Model,MATCH(0,COUNTIF($H$2:H11,List_Vehicle_DB_Model)+(List_Vehicle_DB_Drivetrain<>_Comp_V1_Vehicle_Drivetrain)+(List_Vehicle_DB_Year<>_Comp_V1_Vehicle_Year)+(List_Vehicle_DB_Make<>_Comp_V1_Vehicle_Make),0)) -> 
A13: =INDEX(List_Vehicle_DB_Drivetrain,MATCH(0,COUNTIF($A$2:A12,List_Vehicle_DB_Drivetrain),0)) ->  | B13: =INDEX(List_Vehicle_DB_Year,MATCH(0,COUNTIF($B$2:B12,List_Vehicle_DB_Year)+(List_Vehicle_DB_Drivetrain<>_Base_V1_Vehicle_Drivetrain),0)) ->  | C13: =INDEX(List_Vehicle_DB_Make,MATCH(0,COUNTIF(C$2:$C12,List_Vehicle_DB_Make)+(List_Vehicle_DB_Drivetrain<>_Base_V1_Vehicle_Drivetrain)+(List_Vehicle_DB_Year<>_Base_V1_Vehicle_Year),0)) ->  | D13: =INDEX(List_Vehicle_DB_Model,MATCH(0,COUNTIF(D$2:$D12,List_Vehicle_DB_Model)+(List_Vehicle_DB_Drivetrain<>_Base_V1_Vehicle_Drivetrain)+(List_Vehicle_DB_Year<>_Base_V1_Vehicle_Year)++(List_Vehicle_DB_Make<>_Base_V1_Vehicle_Make),0)) ->  | E13: =INDEX(List_Vehicle_DB_Drivetrain,MATCH(0,COUNTIF(E$2:$E12,List_Vehicle_DB_Drivetrain),0)) ->  | F13: =INDEX(List_Vehicle_DB_Year,MATCH(0,COUNTIF($F$2:F12,List_Vehicle_DB_Year)+(List_Vehicle_DB_Drivetrain<>_Comp_V1_Vehicle_Drivetrain),0)) ->  | G13: =INDEX(List_Vehicle_DB_Make,MATCH(0,COUNTIF($G$2:G12,List_Vehicle_DB_Make)+(List_Vehicle_DB_Drivetrain<>_Comp_V1_Vehicle_Drivetrain)+(List_Vehicle_DB_Year<>_Comp_V1_Vehicle_Year),0)) ->  | H13: =INDEX(List_Vehicle_DB_Model,MATCH(0,COUNTIF($H$2:H12,List_Vehicle_DB_Model)+(List_Vehicle_DB_Drivetrain<>_Comp_V1_Vehicle_Drivetrain)+(List_Vehicle_DB_Year<>_Comp_V1_Vehicle_Year)+(List_Vehicle_DB_Make<>_Comp_V1_Vehicle_Make),0)) -> 
A14: =INDEX(List_Vehicle_DB_Drivetrain,MATCH(0,COUNTIF($A$2:A13,List_Vehicle_DB_Drivetrain),0)) ->  | B14: =INDEX(List_Vehicle_DB_Year,MATCH(0,COUNTIF($B$2:B13,List_Vehicle_DB_Year)+(List_Vehicle_DB_Drivetrain<>_Base_V1_Vehicle_Drivetrain),0)) ->  | C14: =INDEX(List_Vehicle_DB_Make,MATCH(0,COUNTIF(C$2:$C13,List_Vehicle_DB_Make)+(List_Vehicle_DB_Drivetrain<>_Base_V1_Vehicle_Drivetrain)+(List_Vehicle_DB_Year<>_Base_V1_Vehicle_Year),0)) ->  | D14: =INDEX(List_Vehicle_DB_Model,MATCH(0,COUNTIF(D$2:$D13,List_Vehicle_DB_Model)+(List_Vehicle_DB_Drivetrain<>_Base_V1_Vehicle_Drivetrain)+(List_Vehicle_DB_Year<>_Base_V1_Vehicle_Year)++(List_Vehicle_DB_Make<>_Base_V1_Vehicle_Make),0)) ->  | E14: =INDEX(List_Vehicle_DB_Drivetrain,MATCH(0,COUNTIF(E$2:$E13,List_Vehicle_DB_Drivetrain),0)) ->  | F14: =INDEX(List_Vehicle_DB_Year,MATCH(0,COUNTIF($F$2:F13,List_Vehicle_DB_Year)+(List_Vehicle_DB_Drivetrain<>_Comp_V1_Vehicle_Drivetrain),0)) ->  | G14: =INDEX(List_Vehicle_DB_Make,MATCH(0,COUNTIF($G$2:G13,List_Vehicle_DB_Make)+(List_Vehicle_DB_Drivetrain<>_Comp_V1_Vehicle_Drivetrain)+(List_Vehicle_DB_Year<>_Comp_V1_Vehicle_Year),0)) ->  | H14: =INDEX(List_Vehicle_DB_Model,MATCH(0,COUNTIF($H$2:H13,List_Vehicle_DB_Model)+(List_Vehicle_DB_Drivetrain<>_Comp_V1_Vehicle_Drivetrain)+(List_Vehicle_DB_Year<>_Comp_V1_Vehicle_Year)+(List_Vehicle_DB_Make<>_Comp_V1_Vehicle_Make),0)) -> 
A15: =INDEX(List_Vehicle_DB_Drivetrain,MATCH(0,COUNTIF($A$2:A14,List_Vehicle_DB_Drivetrain),0)) ->  | B15: =INDEX(List_Vehicle_DB_Year,MATCH(0,COUNTIF($B$2:B14,List_Vehicle_DB_Year)+(List_Vehicle_DB_Drivetrain<>_Base_V1_Vehicle_Drivetrain),0)) ->  | C15: =INDEX(List_Vehicle_DB_Make,MATCH(0,COUNTIF(C$2:$C14,List_Vehicle_DB_Make)+(List_Vehicle_DB_Drivetrain<>_Base_V1_Vehicle_Drivetrain)+(List_Vehicle_DB_Year<>_Base_V1_Vehicle_Year),0)) ->  | D15: =INDEX(List_Vehicle_DB_Model,MATCH(0,COUNTIF(D$2:$D14,List_Vehicle_DB_Model)+(List_Vehicle_DB_Drivetrain<>_Base_V1_Vehicle_Drivetrain)+(List_Vehicle_DB_Year<>_Base_V1_Vehicle_Year)++(List_Vehicle_DB_Make<>_Base_V1_Vehicle_Make),0)) ->  | E15: =INDEX(List_Vehicle_DB_Drivetrain,MATCH(0,COUNTIF(E$2:$E14,List_Vehicle_DB_Drivetrain),0)) ->  | F15: =INDEX(List_Vehicle_DB_Year,MATCH(0,COUNTIF($F$2:F14,List_Vehicle_DB_Year)+(List_Vehicle_DB_Drivetrain<>_Comp_V1_Vehicle_Drivetrain),0)) ->  | G15: =INDEX(List_Vehicle_DB_Make,MATCH(0,COUNTIF($G$2:G14,List_Vehicle_DB_Make)+(List_Vehicle_DB_Drivetrain<>_Comp_V1_Vehicle_Drivetrain)+(List_Vehicle_DB_Year<>_Comp_V1_Vehicle_Year),0)) ->  | H15: =INDEX(List_Vehicle_DB_Model,MATCH(0,COUNTIF($H$2:H14,List_Vehicle_DB_Model)+(List_Vehicle_DB_Drivetrain<>_Comp_V1_Vehicle_Drivetrain)+(List_Vehicle_DB_Year<>_Comp_V1_Vehicle_Year)+(List_Vehicle_DB_Make<>_Comp_V1_Vehicle_Make),0)) -> 
A16: =INDEX(List_Vehicle_DB_Drivetrain,MATCH(0,COUNTIF($A$2:A15,List_Vehicle_DB_Drivetrain),0)) ->  | B16: =INDEX(List_Vehicle_DB_Year,MATCH(0,COUNTIF($B$2:B15,List_Vehicle_DB_Year)+(List_Vehicle_DB_Drivetrain<>_Base_V1_Vehicle_Drivetrain),0)) ->  | C16: =INDEX(List_Vehicle_DB_Make,MATCH(0,COUNTIF(C$2:$C15,List_Vehicle_DB_Make)+(List_Vehicle_DB_Drivetrain<>_Base_V1_Vehicle_Drivetrain)+(List_Vehicle_DB_Year<>_Base_V1_Vehicle_Year),0)) ->  | D16: =INDEX(List_Vehicle_DB_Model,MATCH(0,COUNTIF(D$2:$D15,List_Vehicle_DB_Model)+(List_Vehicle_DB_Drivetrain<>_Base_V1_Vehicle_Drivetrain)+(List_Vehicle_DB_Year<>_Base_V1_Vehicle_Year)++(List_Vehicle_DB_Make<>_Base_V1_Vehicle_Make),0)) ->  | E16: =INDEX(List_Vehicle_DB_Drivetrain,MATCH(0,COUNTIF(E$2:$E15,List_Vehicle_DB_Drivetrain),0)) ->  | F16: =INDEX(List_Vehicle_DB_Year,MATCH(0,COUNTIF($F$2:F15,List_Vehicle_DB_Year)+(List_Vehicle_DB_Drivetrain<>_Comp_V1_Vehicle_Drivetrain),0)) ->  | G16: =INDEX(List_Vehicle_DB_Make,MATCH(0,COUNTIF($G$2:G15,List_Vehicle_DB_Make)+(List_Vehicle_DB_Drivetrain<>_Comp_V1_Vehicle_Drivetrain)+(List_Vehicle_DB_Year<>_Comp_V1_Vehicle_Year),0)) ->  | H16: =INDEX(List_Vehicle_DB_Model,MATCH(0,COUNTIF($H$2:H15,List_Vehicle_DB_Model)+(List_Vehicle_DB_Drivetrain<>_Comp_V1_Vehicle_Drivetrain)+(List_Vehicle_DB_Year<>_Comp_V1_Vehicle_Year)+(List_Vehicle_DB_Make<>_Comp_V1_Vehicle_Make),0)) -> 
A17: =INDEX(List_Vehicle_DB_Drivetrain,MATCH(0,COUNTIF($A$2:A16,List_Vehicle_DB_Drivetrain),0)) ->  | B17: =INDEX(List_Vehicle_DB_Year,MATCH(0,COUNTIF($B$2:B16,List_Vehicle_DB_Year)+(List_Vehicle_DB_Drivetrain<>_Base_V1_Vehicle_Drivetrain),0)) ->  | C17: =INDEX(List_Vehicle_DB_Make,MATCH(0,COUNTIF(C$2:$C16,List_Vehicle_DB_Make)+(List_Vehicle_DB_Drivetrain<>_Base_V1_Vehicle_Drivetrain)+(List_Vehicle_DB_Year<>_Base_V1_Vehicle_Year),0)) ->  | D17: =INDEX(List_Vehicle_DB_Model,MATCH(0,COUNTIF(D$2:$D16,List_Vehicle_DB_Model)+(List_Vehicle_DB_Drivetrain<>_Base_V1_Vehicle_Drivetrain)+(List_Vehicle_DB_Year<>_Base_V1_Vehicle_Year)++(List_Vehicle_DB_Make<>_Base_V1_Vehicle_Make),0)) ->  | E17: =INDEX(List_Vehicle_DB_Drivetrain,MATCH(0,COUNTIF(E$2:$E16,List_Vehicle_DB_Drivetrain),0)) ->  | F17: =INDEX(List_Vehicle_DB_Year,MATCH(0,COUNTIF($F$2:F16,List_Vehicle_DB_Year)+(List_Vehicle_DB_Drivetrain<>_Comp_V1_Vehicle_Drivetrain),0)) ->  | G17: =INDEX(List_Vehicle_DB_Make,MATCH(0,COUNTIF($G$2:G16,List_Vehicle_DB_Make)+(List_Vehicle_DB_Drivetrain<>_Comp_V1_Vehicle_Drivetrain)+(List_Vehicle_DB_Year<>_Comp_V1_Vehicle_Year),0)) ->  | H17: =INDEX(List_Vehicle_DB_Model,MATCH(0,COUNTIF($H$2:H16,List_Vehicle_DB_Model)+(List_Vehicle_DB_Drivetrain<>_Comp_V1_Vehicle_Drivetrain)+(List_Vehicle_DB_Year<>_Comp_V1_Vehicle_Year)+(List_Vehicle_DB_Make<>_Comp_V1_Vehicle_Make),0)) -> 
A18: =INDEX(List_Vehicle_DB_Drivetrain,MATCH(0,COUNTIF($A$2:A17,List_Vehicle_DB_Drivetrain),0)) ->  | B18: =INDEX(List_Vehicle_DB_Year,MATCH(0,COUNTIF($B$2:B17,List_Vehicle_DB_Year)+(List_Vehicle_DB_Drivetrain<>_Base_V1_Vehicle_Drivetrain),0)) ->  | C18: =INDEX(List_Vehicle_DB_Make,MATCH(0,COUNTIF(C$2:$C17,List_Vehicle_DB_Make)+(List_Vehicle_DB_Drivetrain<>_Base_V1_Vehicle_Drivetrain)+(List_Vehicle_DB_Year<>_Base_V1_Vehicle_Year),0)) ->  | D18: =INDEX(List_Vehicle_DB_Model,MATCH(0,COUNTIF(D$2:$D17,List_Vehicle_DB_Model)+(List_Vehicle_DB_Drivetrain<>_Base_V1_Vehicle_Drivetrain)+(List_Vehicle_DB_Year<>_Base_V1_Vehicle_Year)++(List_Vehicle_DB_Make<>_Base_V1_Vehicle_Make),0)) ->  | E18: =INDEX(List_Vehicle_DB_Drivetrain,MATCH(0,COUNTIF(E$2:$E17,List_Vehicle_DB_Drivetrain),0)) ->  | F18: =INDEX(List_Vehicle_DB_Year,MATCH(0,COUNTIF($F$2:F17,List_Vehicle_DB_Year)+(List_Vehicle_DB_Drivetrain<>_Comp_V1_Vehicle_Drivetrain),0)) ->  | G18: =INDEX(List_Vehicle_DB_Make,MATCH(0,COUNTIF($G$2:G17,List_Vehicle_DB_Make)+(List_Vehicle_DB_Drivetrain<>_Comp_V1_Vehicle_Drivetrain)+(List_Vehicle_DB_Year<>_Comp_V1_Vehicle_Year),0)) ->  | H18: =INDEX(List_Vehicle_DB_Model,MATCH(0,COUNTIF($H$2:H17,List_Vehicle_DB_Model)+(List_Vehicle_DB_Drivetrain<>_Comp_V1_Vehicle_Drivetrain)+(List_Vehicle_DB_Year<>_Comp_V1_Vehicle_Year)+(List_Vehicle_DB_Make<>_Comp_V1_Vehicle_Make),0)) -> 
A19: =INDEX(List_Vehicle_DB_Drivetrain,MATCH(0,COUNTIF($A$2:A18,List_Vehicle_DB_Drivetrain),0)) ->  | B19: =INDEX(List_Vehicle_DB_Year,MATCH(0,COUNTIF($B$2:B18,List_Vehicle_DB_Year)+(List_Vehicle_DB_Drivetrain<>_Base_V1_Vehicle_Drivetrain),0)) ->  | C19: =INDEX(List_Vehicle_DB_Make,MATCH(0,COUNTIF(C$2:$C18,List_Vehicle_DB_Make)+(List_Vehicle_DB_Drivetrain<>_Base_V1_Vehicle_Drivetrain)+(List_Vehicle_DB_Year<>_Base_V1_Vehicle_Year),0)) ->  | D19: =INDEX(List_Vehicle_DB_Model,MATCH(0,COUNTIF(D$2:$D18,List_Vehicle_DB_Model)+(List_Vehicle_DB_Drivetrain<>_Base_V1_Vehicle_Drivetrain)+(List_Vehicle_DB_Year<>_Base_V1_Vehicle_Year)++(List_Vehicle_DB_Make<>_Base_V1_Vehicle_Make),0)) ->  | E19: =INDEX(List_Vehicle_DB_Drivetrain,MATCH(0,COUNTIF(E$2:$E18,List_Vehicle_DB_Drivetrain),0)) ->  | F19: =INDEX(List_Vehicle_DB_Year,MATCH(0,COUNTIF($F$2:F18,List_Vehicle_DB_Year)+(List_Vehicle_DB_Drivetrain<>_Comp_V1_Vehicle_Drivetrain),0)) ->  | G19: =INDEX(List_Vehicle_DB_Make,MATCH(0,COUNTIF($G$2:G18,List_Vehicle_DB_Make)+(List_Vehicle_DB_Drivetrain<>_Comp_V1_Vehicle_Drivetrain)+(List_Vehicle_DB_Year<>_Comp_V1_Vehicle_Year),0)) ->  | H19: =INDEX(List_Vehicle_DB_Model,MATCH(0,COUNTIF($H$2:H18,List_Vehicle_DB_Model)+(List_Vehicle_DB_Drivetrain<>_Comp_V1_Vehicle_Drivetrain)+(List_Vehicle_DB_Year<>_Comp_V1_Vehicle_Year)+(List_Vehicle_DB_Make<>_Comp_V1_Vehicle_Make),0)) -> 
A20: =INDEX(List_Vehicle_DB_Drivetrain,MATCH(0,COUNTIF($A$2:A19,List_Vehicle_DB_Drivetrain),0)) ->  | B20: =INDEX(List_Vehicle_DB_Year,MATCH(0,COUNTIF($B$2:B19,List_Vehicle_DB_Year)+(List_Vehicle_DB_Drivetrain<>_Base_V1_Vehicle_Drivetrain),0)) ->  | C20: =INDEX(List_Vehicle_DB_Make,MATCH(0,COUNTIF(C$2:$C19,List_Vehicle_DB_Make)+(List_Vehicle_DB_Drivetrain<>_Base_V1_Vehicle_Drivetrain)+(List_Vehicle_DB_Year<>_Base_V1_Vehicle_Year),0)) ->  | D20: =INDEX(List_Vehicle_DB_Model,MATCH(0,COUNTIF(D$2:$D19,List_Vehicle_DB_Model)+(List_Vehicle_DB_Drivetrain<>_Base_V1_Vehicle_Drivetrain)+(List_Vehicle_DB_Year<>_Base_V1_Vehicle_Year)++(List_Vehicle_DB_Make<>_Base_V1_Vehicle_Make),0)) ->  | E20: =INDEX(List_Vehicle_DB_Drivetrain,MATCH(0,COUNTIF(E$2:$E19,List_Vehicle_DB_Drivetrain),0)) ->  | F20: =INDEX(List_Vehicle_DB_Year,MATCH(0,COUNTIF($F$2:F19,List_Vehicle_DB_Year)+(List_Vehicle_DB_Drivetrain<>_Comp_V1_Vehicle_Drivetrain),0)) ->  | G20: =INDEX(List_Vehicle_DB_Make,MATCH(0,COUNTIF($G$2:G19,List_Vehicle_DB_Make)+(List_Vehicle_DB_Drivetrain<>_Comp_V1_Vehicle_Drivetrain)+(List_Vehicle_DB_Year<>_Comp_V1_Vehicle_Year),0)) ->  | H20: =INDEX(List_Vehicle_DB_Model,MATCH(0,COUNTIF($H$2:H19,List_Vehicle_DB_Model)+(List_Vehicle_DB_Drivetrain<>_Comp_V1_Vehicle_Drivetrain)+(List_Vehicle_DB_Year<>_Comp_V1_Vehicle_Year)+(List_Vehicle_DB_Make<>_Comp_V1_Vehicle_Make),0)) -> 
A21: =INDEX(List_Vehicle_DB_Drivetrain,MATCH(0,COUNTIF($A$2:A20,List_Vehicle_DB_Drivetrain),0)) ->  | B21: =INDEX(List_Vehicle_DB_Year,MATCH(0,COUNTIF($B$2:B20,List_Vehicle_DB_Year)+(List_Vehicle_DB_Drivetrain<>_Base_V1_Vehicle_Drivetrain),0)) ->  | C21: =INDEX(List_Vehicle_DB_Make,MATCH(0,COUNTIF(C$2:$C20,List_Vehicle_DB_Make)+(List_Vehicle_DB_Drivetrain<>_Base_V1_Vehicle_Drivetrain)+(List_Vehicle_DB_Year<>_Base_V1_Vehicle_Year),0)) ->  | D21: =INDEX(List_Vehicle_DB_Model,MATCH(0,COUNTIF(D$2:$D20,List_Vehicle_DB_Model)+(List_Vehicle_DB_Drivetrain<>_Base_V1_Vehicle_Drivetrain)+(List_Vehicle_DB_Year<>_Base_V1_Vehicle_Year)++(List_Vehicle_DB_Make<>_Base_V1_Vehicle_Make),0)) ->  | E21: =INDEX(List_Vehicle_DB_Drivetrain,MATCH(0,COUNTIF(E$2:$E20,List_Vehicle_DB_Drivetrain),0)) ->  | F21: =INDEX(List_Vehicle_DB_Year,MATCH(0,COUNTIF($F$2:F20,List_Vehicle_DB_Year)+(List_Vehicle_DB_Drivetrain<>_Comp_V1_Vehicle_Drivetrain),0)) ->  | G21: =INDEX(List_Vehicle_DB_Make,MATCH(0,COUNTIF($G$2:G20,List_Vehicle_DB_Make)+(List_Vehicle_DB_Drivetrain<>_Comp_V1_Vehicle_Drivetrain)+(List_Vehicle_DB_Year<>_Comp_V1_Vehicle_Year),0)) ->  | H21: =INDEX(List_Vehicle_DB_Model,MATCH(0,COUNTIF($H$2:H20,List_Vehicle_DB_Model)+(List_Vehicle_DB_Drivetrain<>_Comp_V1_Vehicle_Drivetrain)+(List_Vehicle_DB_Year<>_Comp_V1_Vehicle_Year)+(List_Vehicle_DB_Make<>_Comp_V1_Vehicle_Make),0)) -> 
A22: =INDEX(List_Vehicle_DB_Drivetrain,MATCH(0,COUNTIF($A$2:A21,List_Vehicle_DB_Drivetrain),0)) ->  | B22: =INDEX(List_Vehicle_DB_Year,MATCH(0,COUNTIF($B$2:B21,List_Vehicle_DB_Year)+(List_Vehicle_DB_Drivetrain<>_Base_V1_Vehicle_Drivetrain),0)) ->  | C22: =INDEX(List_Vehicle_DB_Make,MATCH(0,COUNTIF(C$2:$C21,List_Vehicle_DB_Make)+(List_Vehicle_DB_Drivetrain<>_Base_V1_Vehicle_Drivetrain)+(List_Vehicle_DB_Year<>_Base_V1_Vehicle_Year),0)) ->  | D22: =INDEX(List_Vehicle_DB_Model,MATCH(0,COUNTIF(D$2:$D21,List_Vehicle_DB_Model)+(List_Vehicle_DB_Drivetrain<>_Base_V1_Vehicle_Drivetrain)+(List_Vehicle_DB_Year<>_Base_V1_Vehicle_Year)++(List_Vehicle_DB_Make<>_Base_V1_Vehicle_Make),0)) ->  | E22: =INDEX(List_Vehicle_DB_Drivetrain,MATCH(0,COUNTIF(E$2:$E21,List_Vehicle_DB_Drivetrain),0)) ->  | F22: =INDEX(List_Vehicle_DB_Year,MATCH(0,COUNTIF($F$2:F21,List_Vehicle_DB_Year)+(List_Vehicle_DB_Drivetrain<>_Comp_V1_Vehicle_Drivetrain),0)) ->  | G22: =INDEX(List_Vehicle_DB_Make,MATCH(0,COUNTIF($G$2:G21,List_Vehicle_DB_Make)+(List_Vehicle_DB_Drivetrain<>_Comp_V1_Vehicle_Drivetrain)+(List_Vehicle_DB_Year<>_Comp_V1_Vehicle_Year),0)) ->  | H22: =INDEX(List_Vehicle_DB_Model,MATCH(0,COUNTIF($H$2:H21,List_Vehicle_DB_Model)+(List_Vehicle_DB_Drivetrain<>_Comp_V1_Vehicle_Drivetrain)+(List_Vehicle_DB_Year<>_Comp_V1_Vehicle_Year)+(List_Vehicle_DB_Make<>_Comp_V1_Vehicle_Make),0)) -> 
A23: =INDEX(List_Vehicle_DB_Drivetrain,MATCH(0,COUNTIF($A$2:A22,List_Vehicle_DB_Drivetrain),0)) ->  | B23: =INDEX(List_Vehicle_DB_Year,MATCH(0,COUNTIF($B$2:B22,List_Vehicle_DB_Year)+(List_Vehicle_DB_Drivetrain<>_Base_V1_Vehicle_Drivetrain),0)) ->  | C23: =INDEX(List_Vehicle_DB_Make,MATCH(0,COUNTIF(C$2:$C22,List_Vehicle_DB_Make)+(List_Vehicle_DB_Drivetrain<>_Base_V1_Vehicle_Drivetrain)+(List_Vehicle_DB_Year<>_Base_V1_Vehicle_Year),0)) ->  | D23: =INDEX(List_Vehicle_DB_Model,MATCH(0,COUNTIF(D$2:$D22,List_Vehicle_DB_Model)+(List_Vehicle_DB_Drivetrain<>_Base_V1_Vehicle_Drivetrain)+(List_Vehicle_DB_Year<>_Base_V1_Vehicle_Year)++(List_Vehicle_DB_Make<>_Base_V1_Vehicle_Make),0)) ->  | E23: =INDEX(List_Vehicle_DB_Drivetrain,MATCH(0,COUNTIF(E$2:$E22,List_Vehicle_DB_Drivetrain),0)) ->  | F23: =INDEX(List_Vehicle_DB_Year,MATCH(0,COUNTIF($F$2:F22,List_Vehicle_DB_Year)+(List_Vehicle_DB_Drivetrain<>_Comp_V1_Vehicle_Drivetrain),0)) ->  | G23: =INDEX(List_Vehicle_DB_Make,MATCH(0,COUNTIF($G$2:G22,List_Vehicle_DB_Make)+(List_Vehicle_DB_Drivetrain<>_Comp_V1_Vehicle_Drivetrain)+(List_Vehicle_DB_Year<>_Comp_V1_Vehicle_Year),0)) ->  | H23: =INDEX(List_Vehicle_DB_Model,MATCH(0,COUNTIF($H$2:H22,List_Vehicle_DB_Model)+(List_Vehicle_DB_Drivetrain<>_Comp_V1_Vehicle_Drivetrain)+(List_Vehicle_DB_Year<>_Comp_V1_Vehicle_Year)+(List_Vehicle_DB_Make<>_Comp_V1_Vehicle_Make),0)) -> 
A24: =INDEX(List_Vehicle_DB_Drivetrain,MATCH(0,COUNTIF($A$2:A23,List_Vehicle_DB_Drivetrain),0)) ->  | B24: =INDEX(List_Vehicle_DB_Year,MATCH(0,COUNTIF($B$2:B23,List_Vehicle_DB_Year)+(List_Vehicle_DB_Drivetrain<>_Base_V1_Vehicle_Drivetrain),0)) ->  | C24: =INDEX(List_Vehicle_DB_Make,MATCH(0,COUNTIF(C$2:$C23,List_Vehicle_DB_Make)+(List_Vehicle_DB_Drivetrain<>_Base_V1_Vehicle_Drivetrain)+(List_Vehicle_DB_Year<>_Base_V1_Vehicle_Year),0)) ->  | D24: =INDEX(List_Vehicle_DB_Model,MATCH(0,COUNTIF(D$2:$D23,List_Vehicle_DB_Model)+(List_Vehicle_DB_Drivetrain<>_Base_V1_Vehicle_Drivetrain)+(List_Vehicle_DB_Year<>_Base_V1_Vehicle_Year)++(List_Vehicle_DB_Make<>_Base_V1_Vehicle_Make),0)) ->  | E24: =INDEX(List_Vehicle_DB_Drivetrain,MATCH(0,COUNTIF(E$2:$E23,List_Vehicle_DB_Drivetrain),0)) ->  | F24: =INDEX(List_Vehicle_DB_Year,MATCH(0,COUNTIF($F$2:F23,List_Vehicle_DB_Year)+(List_Vehicle_DB_Drivetrain<>_Comp_V1_Vehicle_Drivetrain),0)) ->  | G24: =INDEX(List_Vehicle_DB_Make,MATCH(0,COUNTIF($G$2:G23,List_Vehicle_DB_Make)+(List_Vehicle_DB_Drivetrain<>_Comp_V1_Vehicle_Drivetrain)+(List_Vehicle_DB_Year<>_Comp_V1_Vehicle_Year),0)) ->  | H24: =INDEX(List_Vehicle_DB_Model,MATCH(0,COUNTIF($H$2:H23,List_Vehicle_DB_Model)+(List_Vehicle_DB_Drivetrain<>_Comp_V1_Vehicle_Drivetrain)+(List_Vehicle_DB_Year<>_Comp_V1_Vehicle_Year)+(List_Vehicle_DB_Make<>_Comp_V1_Vehicle_Make),0)) -> 
A25: =INDEX(List_Vehicle_DB_Drivetrain,MATCH(0,COUNTIF($A$2:A24,List_Vehicle_DB_Drivetrain),0)) ->  | B25: =INDEX(List_Vehicle_DB_Year,MATCH(0,COUNTIF($B$2:B24,List_Vehicle_DB_Year)+(List_Vehicle_DB_Drivetrain<>_Base_V1_Vehicle_Drivetrain),0)) ->  | C25: =INDEX(List_Vehicle_DB_Make,MATCH(0,COUNTIF(C$2:$C24,List_Vehicle_DB_Make)+(List_Vehicle_DB_Drivetrain<>_Base_V1_Vehicle_Drivetrain)+(List_Vehicle_DB_Year<>_Base_V1_Vehicle_Year),0)) ->  | D25: =INDEX(List_Vehicle_DB_Model,MATCH(0,COUNTIF(D$2:$D24,List_Vehicle_DB_Model)+(List_Vehicle_DB_Drivetrain<>_Base_V1_Vehicle_Drivetrain)+(List_Vehicle_DB_Year<>_Base_V1_Vehicle_Year)++(List_Vehicle_DB_Make<>_Base_V1_Vehicle_Make),0)) ->  | E25: =INDEX(List_Vehicle_DB_Drivetrain,MATCH(0,COUNTIF(E$2:$E24,List_Vehicle_DB_Drivetrain),0)) ->  | F25: =INDEX(List_Vehicle_DB_Year,MATCH(0,COUNTIF($F$2:F24,List_Vehicle_DB_Year)+(List_Vehicle_DB_Drivetrain<>_Comp_V1_Vehicle_Drivetrain),0)) ->  | G25: =INDEX(List_Vehicle_DB_Make,MATCH(0,COUNTIF($G$2:G24,List_Vehicle_DB_Make)+(List_Vehicle_DB_Drivetrain<>_Comp_V1_Vehicle_Drivetrain)+(List_Vehicle_DB_Year<>_Comp_V1_Vehicle_Year),0)) ->  | H25: =INDEX(List_Vehicle_DB_Model,MATCH(0,COUNTIF($H$2:H24,List_Vehicle_DB_Model)+(List_Vehicle_DB_Drivetrain<>_Comp_V1_Vehicle_Drivetrain)+(List_Vehicle_DB_Year<>_Comp_V1_Vehicle_Year)+(List_Vehicle_DB_Make<>_Comp_V1_Vehicle_Make),0)) -> 
A26: =INDEX(List_Vehicle_DB_Drivetrain,MATCH(0,COUNTIF($A$2:A25,List_Vehicle_DB_Drivetrain),0)) ->  | B26: =INDEX(List_Vehicle_DB_Year,MATCH(0,COUNTIF($B$2:B25,List_Vehicle_DB_Year)+(List_Vehicle_DB_Drivetrain<>_Base_V1_Vehicle_Drivetrain),0)) ->  | C26: =INDEX(List_Vehicle_DB_Make,MATCH(0,COUNTIF(C$2:$C25,List_Vehicle_DB_Make)+(List_Vehicle_DB_Drivetrain<>_Base_V1_Vehicle_Drivetrain)+(List_Vehicle_DB_Year<>_Base_V1_Vehicle_Year),0)) ->  | D26: =INDEX(List_Vehicle_DB_Model,MATCH(0,COUNTIF(D$2:$D25,List_Vehicle_DB_Model)+(List_Vehicle_DB_Drivetrain<>_Base_V1_Vehicle_Drivetrain)+(List_Vehicle_DB_Year<>_Base_V1_Vehicle_Year)++(List_Vehicle_DB_Make<>_Base_V1_Vehicle_Make),0)) ->  | E26: =INDEX(List_Vehicle_DB_Drivetrain,MATCH(0,COUNTIF(E$2:$E25,List_Vehicle_DB_Drivetrain),0)) ->  | F26: =INDEX(List_Vehicle_DB_Year,MATCH(0,COUNTIF($F$2:F25,List_Vehicle_DB_Year)+(List_Vehicle_DB_Drivetrain<>_Comp_V1_Vehicle_Drivetrain),0)) ->  | G26: =INDEX(List_Vehicle_DB_Make,MATCH(0,COUNTIF($G$2:G25,List_Vehicle_DB_Make)+(List_Vehicle_DB_Drivetrain<>_Comp_V1_Vehicle_Drivetrain)+(List_Vehicle_DB_Year<>_Comp_V1_Vehicle_Year),0)) ->  | H26: =INDEX(List_Vehicle_DB_Model,MATCH(0,COUNTIF($H$2:H25,List_Vehicle_DB_Model)+(List_Vehicle_DB_Drivetrain<>_Comp_V1_Vehicle_Drivetrain)+(List_Vehicle_DB_Year<>_Comp_V1_Vehicle_Year)+(List_Vehicle_DB_Make<>_Comp_V1_Vehicle_Make),0)) -> 
